Workbook

Sheet Info
D1: -1 | E1: 0 | F1: 1 | G1: 2 | H1: 3 | I1: 4 | J1: 5 | K1: 6 | L1: 7 | M1: 8 | N1: 9 | O1: 10 | P1: 11 | Q1: 12 | R1: 13 | S1: 14 | T1: 15 | Y1: =IF(OR(Z3="",Z4=""),"※ 市町村（左側）から順に選択してください","") -> ※ 市町村（左側）から順に選択してください | AD1: ｖ | AK1: v
V2: 表示行 | W2: 旧市町村数 | X2: 市町村行 | Y2: 参照シート、セル | Z2: check | AA2: 表示名 | AD2: 表示行 | AE2: 集落数 | AF2: 旧市町村行 | AG2: 参照シート | AH2: check | AK2: 表示行 | AL2: 集落数 | AM2: 旧市町村行 | AN2: 参照シート | AO2: check
D3: 県名 | G3: 市町村名 | J3: 旧市町村名 | V3: =IF(M4="",-1,IFERROR(MATCH(M4,OFFSET(集落2010,1,0,ROWS(集落2010),1),0)-1,3000))+AF3 -> 5 | W3: =COUNTIF('2010年'!B:B,Info!G4)-1 -> -1 | X3: =IF(G4="",6,MATCH(G4,'2010年'!B:B,0)) -> 6 | Y3: '2010年'!$A$1 | Z3: =OFFSET(INDIRECT(Y3),V3,1)&OFFSET(INDIRECT(Y3),V3,2)&OFFSET(INDIRECT(Y3),V3,3) ->  | AA3: =IF(OR(ISERROR(G4),ISERROR(J4),ISERROR(M4)),"表示できません",IF(G4&J4&M4="",D4,IF(M4<>"",M4,IF(J4<>"",IF($G$4=$J$4,"（旧）","")&$J$4,IF(J4<>"",J4,G4))))) -> 栃木県 | AD3: =IF(M4="",-1,IFERROR(MATCH(M4,OFFSET(集落2010,1,0,ROWS(集落2010),1),0)-1,999))+AF3 -> 5 | AE3: =COUNTIF('2010年'!C:C,Info!J4)-1 -> -1 | AF3: =IF(J4="",X3,MATCH(J4,'2010年'!C:C,0)) -> 6 | AG3: '2010年'!$A$1 | AH3: =OFFSET(INDIRECT(AG3),AD3,1)&OFFSET(INDIRECT(AG3),AD3,2)&OFFSET(INDIRECT(AG3),AD3,3) ->  | AI3: =IF(OR(ISERROR(AJ3),ISERROR(AL3)),"表示できません",IF(V4<>"",V4,IF(R4<>"",IF($G$4=$J$4,"（旧）","")&$J$4,IF(O4<>"",O4,L4)))) -> 5 | AK3: =IF(M4="",-1,IFERROR(MATCH(M4,OFFSET(集落2010,1,0,ROWS(集落2010),1),0)-1,999))+AM3 -> 5 | AL3: =COUNTIF('2010年'!C:C,Info!J4)-1 -> -1 | AM3: =IF(J4="",X3,MATCH(J4,'2010年'!C:C,0)) -> 6 | AN3: '2010年'!$A$1 | AO3: =OFFSET(INDIRECT(AN3),AK3,1)&OFFSET(INDIRECT(AN3),AK3,2)&OFFSET(INDIRECT(AN3),AK3,3) ->  | AP3: =IF(OR(ISERROR(AQ3),ISERROR(AS3)),"表示できません",IF(AC4<>"",AC4,IF(Y4<>"",IF($G$4=$J$4,"（旧）","")&$J$4,IF(V4<>"",V4,S4)))) -> （旧）
D4: 栃木県 | V4: =IF(M4="",-1,IFERROR(MATCH(M4,OFFSET(集落2015,1,0,ROWS(集落2015),1),0)-1,3000))+AF4 -> 5 | W4: =COUNTIF('2015年'!B:B,Info!G4)-1 -> -1 | X4: =IF(G4="",6,MATCH(G4,'2015年'!B:B,0)) -> 6 | Y4: '2015年'!$A$1 | Z4: =OFFSET(INDIRECT(Y4),V4,1)&OFFSET(INDIRECT(Y4),V4,2)&OFFSET(INDIRECT(Y4),V4,3) ->  | AD4: =IF(M4="",-1,IFERROR(MATCH(M4,OFFSET(集落2015,1,0,ROWS(集落2015),1),0)-1,999))+AF4 -> 5 | AE4: =COUNTIF('2015年'!C:C,Info!J4)-1 -> -1 | AF4: =IF(J4="",X3,MATCH(J4,'2015年'!C:C,0)) -> 6 | AG4: '2015年'!$A$1 | AH4: =OFFSET(INDIRECT(AG4),AD4,1)&OFFSET(INDIRECT(AG4),AD4,2)&OFFSET(INDIRECT(AG4),AD4,3) ->  | AK4: =IF(M4="",-1,IFERROR(MATCH(M4,OFFSET(集落2015,1,0,ROWS(集落2015),1),0)-1,999))+AM4 -> 5 | AL4: =COUNTIF('2015年'!C:C,Info!J4)-1 -> -1 | AM4: =IF(J4="",X4,MATCH(J4,'2010年'!C:C,0)) -> 6 | AN4: '2015年'!$A$1 | AO4: =OFFSET(INDIRECT(AN4),AK4,1)&OFFSET(INDIRECT(AN4),AK4,2)&OFFSET(INDIRECT(AN4),AK4,3) -> 
C6: ="総農家数" -> 総農家数 | G6: =IFERROR("◎ "&W11&IF(LEFT(R8,1)="県","の総農家に占める割合は "&TEXT(G13,"0.0")&"% で、"&D4&"（"&TEXT(G14,"0.0")&"%） "&X13,"は "&TEXT(G12,"#,###戸 で ")&W13&"、"&"総農家の "&TEXT(G13,"0.0")&"% を占める"),"") -> ◎ 販売農家の総農家に占める割合は 71.8% で、栃木県（71.8%） と同率である
K7: 単位：戸 | L7: 《主副業別割合》
F8: 総農家 | L8: =" "&IF(AND(LEFT(R8,1)<>"県",G4=""),D4,IF(LEFT(R8,1)="県",D12,$AA$3)) -> 2015年 | R8: 県との比較
G9: 販売 農家 | K9: 自給的農家 | R9: ="外円："&IF(AND(LEFT(R8,1)="県",G4=""),D4,IF(LEFT(R8,1)="県",$AA$3,"2015年"))&CHAR(10)&"内円："&IF(LEFT(R8,1)="県",$D$4,"2010年") -> 外円：栃木県 内円：栃木県
H10: 主業 農家 | I10: 準主業 農家 | J10: 副業的 農家 | V10: 列番号 | W10: 概要 | Y10: 凡例 | AC10: 内円
D11: 2010年 | F11: =IFERROR(OFFSET(INDIRECT($Y$3),$V$3,$V11+E$1),"nc") -> 64,337 | G11: =IFERROR(OFFSET(INDIRECT($Y$3),$V$3,$V11+F$1),"nc") -> 47,833 | H11: =IFERROR(OFFSET(INDIRECT($Y$3),$V$3,$V11+G$1),"nc") -> 11,015 | I11: =IFERROR(OFFSET(INDIRECT($Y$3),$V$3,$V11+I$1),"nc") -> 15,354 | J11: =IFERROR(OFFSET(INDIRECT($Y$3),$V$3,$V11+K$1),"nc") -> 21,464 | K11: =IFERROR(OFFSET(INDIRECT($Y$3),$V$3,$V11+L$1),"nc") -> 16,504 | V11: =CELL("col",'2010年'!E6)-1 -> 4 | W11: 販売農家 | X11: 対県 | Y11: 主業農家 | Z11: 準主業農家 | AA11: 副業的農家 | AB11: 自給的農家 | AC11: =IF(LEFT(R8,1)="県",2,-1) -> 2
D12: 2015年 | F12: =IFERROR(OFFSET(INDIRECT($Y$4),$V$4,$V12+E$1),"nc") -> 55,446 | G12: =IFERROR(OFFSET(INDIRECT($Y$4),$V$4,$V12+F$1),"nc") -> 39,810 | H12: =IFERROR(OFFSET(INDIRECT($Y$4),$V$4,$V12+G$1),"nc") -> 8,883 | I12: =IFERROR(OFFSET(INDIRECT($Y$4),$V$4,$V12+I$1),"nc") -> 10,121 | J12: =IFERROR(OFFSET(INDIRECT($Y$4),$V$4,$V12+K$1),"nc") -> 20,806 | K12: =IFERROR(OFFSET(INDIRECT($Y$4),$V$4,$V12+L$1),"nc") -> 15,636 | V12: =CELL("col",'2015年'!E6)-1 -> 4 | W12: =G12/G11-1 -> -0.1677293918 | X12: =G13-G14 -> 0.0
E13: 構成比(%) | F13: =IF(OR(AND(ISTEXT($F12),$F12<>"X",$F12<>"-"),AND(ISTEXT(F12),F12<>"X",F12<>"-")),"nc",IF(OR($F12="X",F12="X"),"X",IF(ROUND(SUM($F12),0)=0,"nc",SUM(F12)/$F12%))) -> 100.0 | G13: 71.8 | H13: =IF(OR(AND(ISTEXT($F12),$F12<>"X",$F12<>"-"),AND(ISTEXT(H12),H12<>"X",H12<>"-")),"nc",IF(OR($F12="X",H12="X"),"X",IF(ROUND(SUM($F12),0)=0,"nc",SUM(H12)/$F12%))) -> 16.0 | I13: 18.3 | J13: 37.5 | K13: 28.2 | W13: =IF(W12=0,"変化なし",TEXT(ABS(G12-G11),"#,##0")&"戸（"&TEXT(ABS(W12),"0.0%")&"） "&IF(W12>0,"増加","減少")) -> 8,023戸（16.8%） 減少 | X13: =IF(X12=0,"と同率である","を"&TEXT(ABS(X12),"#,##0.0")&"ポイント "&IF(X12>0,"上回る","下回る")) -> と同率である
E14: 県計 構成比(%) | F14: 100.0 | G14: =IFERROR(OFFSET(INDIRECT($Y$4),5,$V$12+F1)/OFFSET(INDIRECT($Y$4),5,V12)*100,"nc") -> 71.8 | H14: =IFERROR(OFFSET(INDIRECT($Y$4),5,$V$12+G1)/OFFSET(INDIRECT($Y$4),5,V12)*100,"nc") -> 16.0 | I14: =IFERROR(OFFSET(INDIRECT($Y$4),5,$V$12+I1)/OFFSET(INDIRECT($Y$4),5,V12)*100,"nc") -> 18.3 | J14: =IFERROR(OFFSET(INDIRECT($Y$4),5,$V$12+K1)/OFFSET(INDIRECT($Y$4),5,V12)*100,"nc") -> 37.5 | K14: =IFERROR(OFFSET(INDIRECT($Y$4),5,$V$12+L1)/OFFSET(INDIRECT($Y$4),5,V12)*100,"nc") -> 28.2
D15: =IFERROR("《参考》"&G4&"の総農家数の全国順位："&TEXT(OFFSET(#REF!,MATCH(Info!G4,#REF!,0),0),"#,##0")&"位","") -> 
C18: 基幹的農業従事者数
D19: =IFERROR(IF(RIGHT(C18,4)="ください","","◎ "&C18&"は "&TEXT(F23,"#,##0人 で ")&W24&IFERROR("、平均年齢 "&TEXT(S23,"0.0歳は")&IF(LEFT(R28,1)="県","県平均","2010年")&X24,"")),"") -> ◎ 基幹的農業従事者数は 52,914人 で 9,686人（15.5%） 減少、平均年齢 66.6歳は2010年を 0.7歳上回る
S20: 単位：人
F21: 計 | G21: 15～39歳 | H21: 40～44 | I21: 45～49 | J21: 50～54 | K21: 55～59 | L21: 60～64 | M21: 65～69 | N21: 70～74 | O21: 75～79 | P21: 80～84 | Q21: 85歳以上 | R21: 65歳以上 | S21: 平均 年齢 （歳） | V21: 列番号 | W21: 概要 | Y21: 縦棒 左 | Z21: 縦棒 右 | AA21: 凡例
D22: 2010年 | F22: =IFERROR(OFFSET(INDIRECT($Y$3),$V$3,V23-1),"nc") -> 62,600 | G22: =IFERROR(IF(COUNTIF(OFFSET(INDIRECT($Y$3),$V$3,V23,1,5),"@")>0,"@",IF(COUNTIF(OFFSET(INDIRECT($Y$3),$V$3,V23,1,5),"X")>0,"X",SUM(OFFSET(INDIRECT($Y$3),$V$3,V23,1,5)))),"nc") -> 3,012 | H22: =IFERROR(OFFSET(INDIRECT($Y$3),$V$3,$V23+J$1),"nc") -> 1,298 | I22: =IFERROR(OFFSET(INDIRECT($Y$3),$V$3,$V23+K$1),"nc") -> 2,020 | J22: 3,759 | K22: 6,939 | L22: 8,616 | M22: 8,476 | N22: 10,481 | O22: 9,957 | P22: 6,147 | Q22: 1,895 | R22: =IF(COUNTIF(M22:Q22,"@"),"@",(IF(COUNTIF(M22:Q22,"X"),"X",SUM(M22:Q22)))) -> 36,956 | S22: =IFERROR(OFFSET(INDIRECT($Y$3),$V$3,V23+15),"nc") -> 65.9 | V22: =IF(C18="農業従事者数",1,IF(C18="農業就業人口",2,IF(C18="基幹的農業従事者数",3,ERROR.TYPE(5)))) -> 3 | W22: 人数 | X22: 平均年齢 | Y22: =IF(LEFT(R28,1)="県",3,-1) -> -1 | Z22: =IF(LEFT(R28,1)="県",1,0) -> 0 | AA22: =IF(LEFT(R28,1)="県",$D$4,$D22) -> 2010年
D23: 2015年 | F23: =IFERROR(OFFSET(INDIRECT($Y$4),$V$4,$V24-1),"nc") -> 52,914 | G23: =IFERROR(IF(COUNTIF(OFFSET(INDIRECT($Y$4),$V$4,$V24,1,5),"X")>0,"X",SUM(OFFSET(INDIRECT($Y$4),$V$4,$V24,1,5))),"nc") -> 2,677 | H23: =IFERROR(OFFSET(INDIRECT($Y$4),$V$4,$V24+5),"nc") -> 1,249 | I23: =IFERROR(OFFSET(INDIRECT($Y$4),$V$4,$V24+6),"nc") -> 1,388 | J23: =IFERROR(OFFSET(INDIRECT($Y$4),$V$4,$V24+7),"nc") -> 2,109 | K23: =IFERROR(OFFSET(INDIRECT($Y$4),$V$4,$V24+8),"nc") -> 4,094 | L23: =IFERROR(OFFSET(INDIRECT($Y$4),$V$4,$V24+9),"nc") -> 8,588 | M23: =IFERROR(OFFSET(INDIRECT($Y$4),$V$4,$V24+10),"nc") -> 9,624 | N23: =IFERROR(OFFSET(INDIRECT($Y$4),$V$4,$V24+11),"nc") -> 7,712 | O23: =IFERROR(OFFSET(INDIRECT($Y$4),$V$4,$V24+12),"nc") -> 7,718 | P23: =IFERROR(OFFSET(INDIRECT($Y$4),$V$4,$V24+13),"nc") -> 5,263 | Q23: =IFERROR(OFFSET(INDIRECT($Y$4),$V$4,$V24+14),"nc") -> 2,492 | R23: =IF(COUNTIF(M23:Q23,"X"),"X",SUM(M23:Q23)) -> 32,809 | S23: =IFERROR(OFFSET(INDIRECT($Y$4),$V$4,$V24+15),"nc") -> 66.6 | V23: =IFERROR(CHOOSE(V22,CELL("col",'2010年'!N6),CELL("col",'2010年'!AG6),CELL("col",'2010年'!AZ6))-1,555) -> 51 | W23: =F23/F22-1 -> -0.1547284345 | X23: =S23-IF(LEFT(R28,1)="県",S26,S22) -> 0.7 | AA23: =IF(AND(LEFT(R28,1)="県",G4=""),D4,IF(LEFT(R28,1)="県",AA3,D23)) -> 2015年
E24: 構成比(%) | F24: =IF(OR(AND(ISTEXT($F23),$F23<>"X",$F23<>"-"),AND(ISTEXT(F23),F23<>"X",F23<>"-")),"nc",IF(OR($F23="X",F23="X"),"X",IF(ROUND(SUM($F23),0)=0,"nc",SUM(F23)/$F23%))) -> 100.0 | G24: 5.1 | H24: 2.4 | I24: 2.6 | J24: 4.0 | K24: 7.7 | L24: 16.2 | M24: 18.2 | N24: 14.6 | O24: 14.6 | P24: 9.9 | Q24: 4.7 | R24: 62.0 | V24: =IFERROR(CHOOSE(V22,CELL("col",'2015年'!N6),CELL("col",'2015年'!AG6),CELL("col",'2015年'!AZ6))-1,555) -> 51 | W24: =IF(W23=0,"変化なし",TEXT(ABS(F23-F22),"#,##0人")&"（"&TEXT(ABS(W23),"0.0%")&"） "&IF(W23>0,"増加","減少")) -> 9,686人（15.5%） 減少 | X24: =IF(X23=0,"と同じである","を "&TEXT(ABS(X23),"0.0歳")&IF(X23>0,"上回る","下回る")) -> を 0.7歳上回る
E25: 2015年 | F25: =IFERROR(OFFSET(INDIRECT($Y$4),5,V24-1),"nc") -> 52,914 | G25: =IFERROR(SUM(OFFSET(INDIRECT($Y$4),5,V24,1,5)),"nc") -> 2,677 | H25: =IFERROR(OFFSET(INDIRECT($Y$4),5,V24+5),"nc") -> 1,249 | I25: =IFERROR(OFFSET(INDIRECT($Y$4),5,V24+6),"nc") -> 1,388 | J25: =IFERROR(OFFSET(INDIRECT($Y$4),5,V24+7),"nc") -> 2,109 | K25: =IFERROR(OFFSET(INDIRECT($Y$4),5,V24+8),"nc") -> 4,094 | L25: =IFERROR(OFFSET(INDIRECT($Y$4),5,V24+9),"nc") -> 8,588 | M25: =IFERROR(OFFSET(INDIRECT($Y$4),5,V24+10),"nc") -> 9,624 | N25: =IFERROR(OFFSET(INDIRECT($Y$4),5,V24+11),"nc") -> 7,712 | O25: =IFERROR(OFFSET(INDIRECT($Y$4),5,V24+12),"nc") -> 7,718 | P25: =IFERROR(OFFSET(INDIRECT($Y$4),5,V24+13),"nc") -> 5,263 | Q25: =IFERROR(OFFSET(INDIRECT($Y$4),5,V24+14),"nc") -> 2,492 | R25: =SUM(M25:Q25) -> 32,809
E26: 県計 構成比(%) | F26: 100.0 | G26: =IFERROR(ROUND(G25/$F25*100,1),"nc") -> 5.1 | H26: =IFERROR(ROUND(H25/$F25*100,1),"nc") -> 2.4 | I26: 2.6 | J26: 4.0 | K26: 7.7 | L26: 16.2 | M26: 18.2 | N26: 14.6 | O26: 14.6 | P26: 9.9 | Q26: 4.7 | R26: 62.0 | S26: =IFERROR(OFFSET(INDIRECT($Y$4),5,V24+15),"nc") -> 66.6
D27: =IF(LEFT(R28,1)="県","（％）","（人）") -> （人） | G27: ="《年齢階層別"&C18&IF(LEFT(R28,1)="県","割合","")&"》 "&IF(AND(LEFT(R28,1)<>"県",G4=""),D4,IF(LEFT(R28,1)="県",D23,AA3)) -> 《年齢階層別基幹的農業従事者数》 栃木県
R28: 前回との比較
C41: 後継者がいる農家数（販売農家）
D42: =IFERROR(" ◎ 後継者がいる農家数の割合は "&TEXT(H51,"0.0")&"％（"&TEXT(H50,"#,##0")&"戸）で、"&IF(LEFT(Z48,1)="県","県平均の "&TEXT(H52,"0.0"),"2010年の "&TEXT(H48,"0.0"))&"％"&AB49,"") -> ◎ 後継者がいる農家数の割合は 50.5％（20,091戸）で、県平均の 50.5％と同率である
D43: =IFERROR(IF(LEFT(Z49,1)="県","県平均の "&TEXT(H52,"0.0")," 2010年の "&TEXT(H48,"0.0"))&"％"&AB47,"") -> 2010年の 62.0％ を 11.6ポイント 下回る
H44: 単位：戸 | J44: ="《後継者のいる農家数"&IF(LEFT(Z49,1)="県","割合","")&"》 "&IF(AND(LEFT(Z49,1)<>"県",G4=""),D4,IF(LEFT(Z49,1)="県","2015年",AA3)) -> 《後継者のいる農家数》 栃木県 | P44: ="《後継者のいる農家数"&IF(LEFT(Z48,1)="県","割合","")&"》 "&IF(AND(LEFT(Z48,1)<>"県",M4=""),J4,IF(LEFT(Z48,1)="県","2015年",AA3)) -> 《後継者のいる農家数割合》 2015年
H45: 計 | V45: 列番号 | W45: 2015年 | X45: 2010年 | Y45: 縦棒左 | Z45: 縦棒右 | AA45: 凡例 | AB45: 差
D46: 2010年 | E46: 農家数 | H46: =IFERROR(OFFSET(INDIRECT($Y$3),$V$3,X46-1),"nc") -> 47,833 | V46: 農家数 | W46: =CELL("col",'2015年'!BS6)-1 -> 70 | X46: =CELL("col",'2010年'!BS6)-1 -> 70 | Y46: 1 | Z46: 0 | AA46: =IF(LEFT(Z49,1)="県",$D$4,$D46) -> 2010年 | AB46: =H51-IF(LEFT(Z49,1)="県",H52,H48) -> -11.55481570512430
G47: 後継者がいる農家数 | H47: =IFERROR(OFFSET(INDIRECT(Y3),V3,X47-1),"nc") -> 29,667 | V47: 後継者有 | W47: =CELL("col",'2015年'!CI5)-1 -> 86 | X47: =CELL("col",'2010年'!CI5)-1 -> 86 | Y47: -4 | Z47: -1 | AA47: =IF(AND(LEFT(Z49,1)="県",G4=""),D4,IF(LEFT(Z49,1)="県",AA3,D49)) -> 2015年 | AB47: =IF(AB46=0,"と同率である"," を "&TEXT(ABS(AB46),"0.0")&"ポイント "&IF(AB46>0,"上回る","下回る")) -> を 11.6ポイント 下回る
G48: 割合(%) | H48: =IF(OR(AND(ISTEXT(H46),H46<>"X",H46<>"-"),AND(ISTEXT(H47),H47<>"X",H47<>"-")),"nc",IF(OR(H46="X",H47="X"),"X",IF(ROUND(SUM(H46),0)=0,"nc",SUM(H47)/H46%))) -> 62.0 | Z48: 県との比較 | AA48: =IF(LEFT(Z48,1)="県",$D$4,$D46) -> 栃木県 | AB48: =H51-IF(LEFT(Z48,1)="県",H52,H48) -> 0.00000000000000
D49: 2015年 | E49: 農家数 | H49: =IFERROR(OFFSET(INDIRECT($Y$4),$V$4,W46-1),"nc") -> 39,810 | Z49: 前回との比較 | AA49: =AA3 -> 栃木県 | AB49: =IF(AB48=0,"と同率である"," を "&TEXT(ABS(AB48),"0.0")&"ポイント "&IF(AB48>0,"上回る","下回る")) -> と同率である
G50: 後継者がいる農家数 | H50: =IFERROR(OFFSET(INDIRECT($Y$4),$V$4,$W47-1),"nc") -> 20,091
G51: 割合(%) | H51: =IF(OR(AND(ISTEXT(H49),H49<>"X",H49<>"-"),AND(ISTEXT(H50),H50<>"X",H50<>"-")),"nc",IF(OR(H49="X",H50="X"),"X",IF(ROUND(SUM(H49),0)=0,"nc",SUM(H50)/H49%))) -> 50.5
D52: 県計 | G52: 後継者がいる割合(%) | H52: =IFERROR(OFFSET(INDIRECT($Y$4),5,$W$47-1)/OFFSET(INDIRECT($Y$4),5,$W$46-1)*100,"nc") -> 50.5
D73: =IFERROR(" ◎ 一世代家族経営の割合は "&TEXT(G79/100,"0.0%")&"（"&TEXT(G78,"#,##0")&"戸）で、"&IF(LEFT(R75,1)="県","県平均の "&TEXT(G80/100,"0.0%"),"2010年の "&TEXT(G77/F77,"0.0%"))&W78,"") -> 
L74: 単位：戸
F75: 計 | G75: 一世代家族 経営 | J75: 二世代家族 経営 | L75: 三世代家族 経営 | R75: 前回との比較
H76: 一人家族経営 | I76: 夫婦家族経営 | K76: 親子家族経営 | V76: 列番号 | W76: 県、前回との差 | X76: グラフ用 | Y76: 一世代 | Z76: 二世代 | AA76: 三世代
D77: 2010年 | F77: =IFERROR(OFFSET(INDIRECT($Y$3),$V$3,$V77),"nc") -> nc | G77: =IFERROR(OFFSET(INDIRECT($Y$3),$V$3,$V$77+F1),"nc") -> nc | H77: nc | I77: nc | J77: nc | K77: nc | L77: nc | V77: =CELL("col",#REF!)-1 ->  | W77: =IF(LEFT(R75,1)="県",G79-G80,G79-G77/F77*100) ->  | X77: =IF(LEFT($R$75,1)="県",AA3,D77) -> 2010年 | Y77: =IF(LEFT($R$75,1)="県",G79,G77/F77*100) ->  | Z77: =IF(LEFT($R$75,1)="県",J79,J77/F77*100) ->  | AA77: =IF(LEFT($R$75,1)="県",L79,L77/F77*100) -> 
D78: 2015年 | F78: =IFERROR(OFFSET(INDIRECT($Y$4),$V$4,$V78),"nc") -> 0 | G78: =IFERROR(SUM(OFFSET(INDIRECT($Y$4),$V$4,$V$78+F1)),"nc") -> 0 | H78: 0 | I78: 0 | J78: 0 | K78: 0 | L78: 0 | V78: =CELL("col",'2015年'!CV6)-1 -> 99 | W78: =IF(W77=0," と同率である"," を "&TEXT(ABS(W77),"0.0")&"ポイント "&IF(W77>0,"上回る","下回る")) ->  | X78: =IF(LEFT($R$75,1)="県",D4,D78) -> 2015年 | Y78: =IF(LEFT($R$75,1)="県",G80,G79) -> nc | Z78: =IF(LEFT($R$75,1)="県",J80,J79) -> nc | AA78: =IF(LEFT($R$75,1)="県",L80,L79) -> nc
E79: 構成比(%) | F79: =IF(OR(AND(ISTEXT($F78),$F78<>"X",$F78<>"-"),AND(ISTEXT(F78),F78<>"X",F78<>"-")),"nc",IF(OR($F78="X",F78="X"),"X",IF(ROUND(SUM($F78),0)=0,"nc",SUM(F78)/$F78%))) -> nc | G79: nc | H79: nc | I79: nc | J79: nc | K79: nc | L79: nc
E80: 県計 構成比(%) | F80: 100.0 | G80: =IFERROR(OFFSET(INDIRECT($Y$4),5,$V$78+F1)/OFFSET(INDIRECT($Y$4),5,$V$78)%,"nc") -> nc | H80: nc | I80: nc | J80: nc | K80: nc | L80: nc
C84: 過去１年間の生活の主な状態別世帯員数（計）
D85: =IFERROR(" ◎ 「自営農業が主」の割合は "&TEXT(H91/100,"0.0%")&"（"&TEXT(H90,"#,###")&"戸）で、"&IF(LEFT(R87,1)="県"," 県平均"&"の "&TEXT(H93/100,"0.0%")&W90,"2010年の "&TEXT(H89/F89,"0.0%")&X90),"") -> ◎ 「自営農業が主」の割合は 36.9%（52,917戸）で、2010年の 33.7% を 3.2ポイント 上回る
M86: 単位：人 | N86: =" 《主な状態別世帯員数割合》 " -> 《主な状態別世帯員数割合》
F87: 計 | G87: 主に仕事 | K87: 主に 家事・育児 | L87: 学生 | M87: その他 | N87: =" "&IF(AND(LEFT(R87,1)<>"県",G4=""),D4,IF(LEFT(R87,1)="県",D90,AA3)) -> 栃木県 | R87: 前回との比較 | W87: 自営農業の増減 | Y87: 凡例用 | AE87: 内円
G88: 小計 | H88: 自営農業が主 | I88: 勤務が主 | J88: 農業以外の自営が主 | R88: ="外円："&IF(AND(LEFT(R87,1)="県",G4=""),D4,IF(LEFT(R87,1)="県",$AA$3,"2015年"))&CHAR(10)&"内円："&IF(LEFT(R87,1)="県",$D$4,"2010年") -> 外円：2015年 内円：2010年 | V88: 列番号 | W88: 県 | X88: 前回 | Y88: 自営農業 | Z88: 勤務 | AA88: 農業以外の自営 | AB88: 家事・育児 | AC88: 学生 | AD88: その他 | AE88: offset 行数
A89: 15 | D89: 2010年 | F89: =IFERROR(OFFSET(INDIRECT($Y$3),$V$3,$V95-1),"nc") -> 185,643 | G89: =IFERROR(OFFSET(INDIRECT($Y$3),$V$3,$V95),"nc") -> 137,835 | H89: =IFERROR(OFFSET(INDIRECT($Y$3),$V$3,$V95+1),"nc") -> 62,601 | I89: =IFERROR(OFFSET(INDIRECT($Y$3),$V$3,$V95+2),"nc") -> 69,070 | J89: =IFERROR(OFFSET(INDIRECT($Y$3),$V$3,$V95+3),"nc") -> 6,164 | K89: =IFERROR(OFFSET(INDIRECT($Y$3),$V$3,$V95+4),"nc") -> 13,928 | L89: =IFERROR(OFFSET(INDIRECT($Y$3),$V$3,$V95+5),"nc") -> 12,594 | M89: =IFERROR(OFFSET(INDIRECT($Y$3),$V$3,$V95+6),"nc") -> 21,286 | V89: =CELL("col",'2010年'!DC6)-1 -> 106 | W89: =H91-H93 -> 0.00 | X89: =H91-H89/F89*100 -> 3.217076755 | AE89: =IF(LEFT(R87,1)="県",2,-1) -> -1
D90: 2015年 | F90: =IFERROR(OFFSET(INDIRECT($Y$4),$V$4,$V96-1),"nc") -> 143,258 | G90: =IFERROR(OFFSET(INDIRECT($Y$4),$V$4,$V96),"nc") -> 108,775 | H90: =IFERROR(OFFSET(INDIRECT($Y$4),$V$4,$V96+1),"nc") -> 52,917 | I90: =IFERROR(OFFSET(INDIRECT($Y$4),$V$4,$V96+2),"nc") -> 49,845 | J90: =IFERROR(OFFSET(INDIRECT($Y$4),$V$4,$V96+3),"nc") -> 6,013 | K90: =IFERROR(OFFSET(INDIRECT($Y$4),$V$4,$V96+4),"nc") -> 10,099 | L90: =IFERROR(OFFSET(INDIRECT($Y$4),$V$4,$V96+5),"nc") -> 8,109 | M90: =IFERROR(OFFSET(INDIRECT($Y$4),$V$4,$V96+6),"nc") -> 16,275 | V90: =CELL("col",'2015年'!DC6)-1 -> 106 | W90: =" "&IF(W89=0,"と同率である"," を "&TEXT(ABS(W89),"0.0")&"ポイント "&IF(W89>0,"上回る","下回る")) -> と同率である | X90: =IF(X89=0,"と同率である"," を "&TEXT(ABS(X89),"0.0")&"ポイント "&IF(X89>0,"上回る","下回る")) -> を 3.2ポイント 上回る
E91: 構成比(%) | F91: =IF(OR(AND(ISTEXT($F90),$F90<>"X",$F90<>"-"),AND(ISTEXT(F90),F90<>"X",F90<>"-")),"nc",IF(OR($F90="X",F90="X"),"X",IF(ROUND(SUM($F90),0)=0,"nc",SUM(F90)/$F90%))) -> 100.0 | G91: 75.9 | H91: 36.9 | I91: 34.8 | J91: 4.2 | K91: 7.0 | L91: 5.7 | M91: 11.4
E92: 県計 実数 | F92: =IFERROR(OFFSET(INDIRECT($Y$4),5,V96-1),"nc") -> 143,258 | G92: =IFERROR(OFFSET(INDIRECT($Y$4),5,$V$96),"nc") -> 108,775 | H92: =IFERROR(OFFSET(INDIRECT($Y$4),5,V96+1),"nc") -> 52,917 | I92: =IFERROR(OFFSET(INDIRECT($Y$4),5,V96+2),"nc") -> 49,845 | J92: =IFERROR(OFFSET(INDIRECT($Y$4),5,V96+3),"nc") -> 6,013 | K92: =IFERROR(OFFSET(INDIRECT($Y$4),5,V96+4),"nc") -> 10,099 | L92: =IFERROR(OFFSET(INDIRECT($Y$4),5,V96+5),"nc") -> 8,109 | M92: =IFERROR(OFFSET(INDIRECT($Y$4),5,V96+6),"nc") -> 16,275
E93: 県計 構成比(%) | F93: 100.0 | G93: =IFERROR(OFFSET(INDIRECT($Y$4),5,$V$96)/OFFSET(INDIRECT($Y$4),5,$V$96-1)*100,"nc") -> 75.9 | H93: =IFERROR(OFFSET(INDIRECT($Y$4),5,$V$96+F1)/OFFSET(INDIRECT($Y$4),5,$V$96-1)*100,"nc") -> 36.9 | I93: 34.8 | J93: 4.2 | K93: 7.0 | L93: 5.7 | M93: 11.4 | V93: 列番号 | W93: 概要 | Y93: 縦棒 左 | Z93: 縦棒 右 | AA93: 凡例
V94: =IF(C84="過去１年間の生活の主な状態別世帯員数（計）",1,IF(C84="過去１年間の生活の主な状態別世帯員数（男）",2,IF(C84="過去１年間の生活の主な状態別世帯員数（女）",3,ERROR.TYPE(5)))) -> 1 | W94: 人数 | X94: 平均年齢 | Y94: =IF(LEFT(R100,1)="県",3,-1) -> -1 | Z94: =IF(LEFT(R100,1)="県",1,0) -> 0 | AA94: =IF(LEFT(R100,1)="県",$D$4,$D94) -> 0
V95: =IFERROR(CHOOSE(V94,CELL("col",'2010年'!DD6),CELL("col",'2010年'!EG6),CELL("col",'2010年'!EO6))-1,555) -> 107 | W95: =F95/F94-1 ->  | X95: =S95-IF(LEFT(R100,1)="県",S98,S94) -> 0.0 | AA95: =IF(LEFT(R100,1)="県",AA75,D95) -> 0
V96: =IFERROR(CHOOSE(V94,CELL("col",'2015年'!DD6),CELL("col",'2015年'!EG6),CELL("col",'2015年'!EO6))-1,555) -> 107 | W96: =IF(W95=0,"変化なし",TEXT(ABS(F95-F94),"#,##0人")&"（"&TEXT(ABS(W95),"0.0%")&"） "&IF(W95>0,"増加","減少")) ->  | X96: =IF(X95=0,"と同じである","を "&TEXT(ABS(X95),"0.0歳")&IF(X95>0,"上回る","下回る")) -> と同じである
C98: 農産物販売金額１位の部門別農家数（販売のあった農家）
D99: =IF(AA105="",""," ◎ "&AA105&"（"&TEXT(Z105,"0.0")&"%） が最も多く、次いで"&SUBSTITUTE(AA106&AA107,"」「","」、「")&"の順で、この"&DBCS(COUNTIF(AB103:AN103,"<4"))&"部門で全体の "&TEXT(Z104,"0.0")&"% を占める") -> ◎ 「稲作」（73.5%） が最も多く、次いで「施設野菜」、「露地野菜」の順で、この３部門で全体の 89.6% を占める
S100: 単位：戸
F101: 計 | G101: 稲作 | H101: 麦類作 | I101: 雑穀・ いも類・ 豆類 | J101: 工芸農作物 | K101: 野菜類 | M101: 果樹類 | N101: 花き・ 花木 | O101: その他の作物 | P101: 酪農 | Q101: 肉用牛 | R101: 養豚 | S101: 養鶏
K102: 露地 | L102: 施設 | O102: その他の作物 | P102: 畜産 | V102: 列番号 | W102: offset行数 | Y102: 凡例 | Z102: 上位 | AB102: 稲作 | AC102: 麦類作 | AD102: 雑穀・ いも類・ 豆類 | AE102: 工芸 農作物 | AF102: 露地 野菜 | AG102: 施設 野菜 | AH102: 果樹類 | AI102: 花き・ 花木 | AJ102: その他 の作物 | AK102: 酪農 | AL102: 肉用牛 | AM102: 養豚 | AN102: 養鶏
D103: 2010年 | F103: =IFERROR(OFFSET(INDIRECT($Y$3),$V$3,$V103),"nc") -> 43,681 | G103: =IFERROR(OFFSET(INDIRECT($Y$3),$V$3,$V103+F$1),"nc") -> 32,561 | H103: 336 | I103: 224 | J103: 339 | K103: 2,344 | L103: 4,131 | M103: 1,109 | N103: 714 | O103: 205 | P103: =IFERROR(OFFSET(INDIRECT($Y$3),$V$3,$V103+O$1),"nc") -> 857 | Q103: =IFERROR(OFFSET(INDIRECT($Y$3),$V$3,$V103+P$1),"nc") -> 672 | R103: =IFERROR(OFFSET(INDIRECT($Y$3),$V$3,$V103+Q$1),"nc") -> 90 | S103: =IFERROR(OFFSET(INDIRECT($Y$3),$V$3,$V103+R$1),"nc") -> 65 | V103: =CELL("col",'2010年'!DK6)-1 -> 114 | W103: 縦棒左 | X103: 縦棒右 | Y103: =IF(LEFT(R108,1)="県",D4,D103) -> 2010年 | Z103: ３品目計 | AA103: 順位 | AB103: =IFERROR(RANK(G104,$G$104:$S$104,0),99) -> 1 | AC103: 8 | AD103: 9 | AE103: 11 | AF103: 3 | AG103: 2 | AH103: 4 | AI103: 6 | AJ103: 10 | AK103: 5 | AL103: 7 | AM103: 12 | AN103: 13
D104: 2015年 | F104: =IFERROR(OFFSET(INDIRECT($Y$4),$V$4,V104),"nc") -> 36,723 | G104: =IFERROR(OFFSET(INDIRECT($Y$4),$V$4,$V104+F1),"nc") -> 26,988 | H104: 286 | I104: 203 | J104: 186 | K104: 2,337 | L104: 3,574 | M104: 976 | N104: 597 | O104: 200 | P104: =IFERROR(OFFSET(INDIRECT($Y$4),$V$4,$V104+O1),"nc") -> 689 | Q104: =IFERROR(OFFSET(INDIRECT($Y$4),$V$4,$V104+P1),"nc") -> 575 | R104: =IFERROR(OFFSET(INDIRECT($Y$4),$V$4,$V104+Q1),"nc") -> 50 | S104: =IFERROR(OFFSET(INDIRECT($Y$4),$V$4,$V104+R1),"nc") -> 46 | V104: =CELL("col",'2015年'!DK6)-1 -> 114 | W104: =IF(LEFT(R108,1)="県",2,-1) -> -1 | X104: =IF(LEFT(R108,1)="県",1,0) -> 0 | Y104: =IF(AND(LEFT(R108,1)="県",G4=""),D4,IF(LEFT(R108,1)="県",AA3,D104)) -> 2015年 | Z104: =SUM(AB104:AN104) -> 89.58690739 | AA104: ％ | AB104: =IF(AB103<4,G104/$F$104%,0) -> 73.49072788 | AC104: =IF(AC103<4,H104/$F$104%,0) -> 0 | AD104: =IF(AD103<4,I104/$F$104%,0) -> 0 | AE104: 0 | AF104: 6.363859162 | AG104: 9.732320344 | AH104: 0 | AI104: 0 | AJ104: 0 | AK104: 0 | AL104: 0 | AM104: 0 | AN104: 0
E105: 構成比(%) | F105: =IF(OR(AND(ISTEXT($F104),$F104<>"X",$F104<>"-"),AND(ISTEXT(F104),F104<>"X",F104<>"-")),"nc",IF(OR($F104="X",F104="X"),"X",IF(ROUND(SUM($F104),0)=0,"nc",SUM(F104)/$F104%))) -> 100.0 | G105: 73.5 | H105: 0.8 | I105: 0.6 | J105: 0.5 | K105: 6.4 | L105: 9.7 | M105: 2.7 | N105: 1.6 | O105: 0.5 | P105: 1.9 | Q105: 1.6 | R105: 0.1 | S105: 0.1 | Y105: １位 | Z105: =SUMIF($AB$103:$AN$103,1,AB104:AN104) -> 73.49072788 | AA105: =SUBSTITUTE(AB105&AC105&AD105&AE105&AF105&AG105&AH105&AI105&AJ105&AK105&AL105&AM105&AN105,"」「","」と「") -> 「稲作」 | AB105: =IF(AB103=1,"「"&CLEAN(AB102)&"」","") -> 「稲作」
E106: 県計 構成比(%) | F106: 100.0 | G106: =IFERROR(IF(OFFSET(INDIRECT($Y$4),5,$V$104+F1)="-","-",ROUND(OFFSET(INDIRECT($Y$4),5,$V$104+F1)/OFFSET(INDIRECT($Y$4),5,$V$104)*100,1)),"nc") -> 73.5 | H106: 0.8 | I106: 0.6 | J106: 0.5 | K106: 6.4 | L106: 9.7 | M106: 2.7 | N106: 1.6 | O106: 0.5 | P106: 1.9 | Q106: 1.6 | R106: 0.1 | S106: 0.1 | Y106: ２位 | Z106: =SUMIF($AB$103:$AN$103,2,$AB$104:$AN$104) -> 9.732320344 | AA106: =SUBSTITUTE(AB106&AC106&AD106&AE106&AF106&AG106&AH106&AI106&AJ106&AK106&AL106&AM106&AN106,"」「","」と「") -> 「施設野菜」 | AB106: =IF(AB103=2,"「"&CLEAN(AB102)&"」","") ->  | AG106: 「施設野菜」
D107: =IF(LEFT(R108,1)="県","（％）","（戸）") -> （戸） | H107: ="《農産物販売金額１位の部門別農家数"&IF(LEFT(R108,1)="県","割合","")&"》 "&IF(AND(LEFT(R108,1)<>"県",G4=""),D4,IF(LEFT(R108,1)="県","2015年",AA3)) -> 《農産物販売金額１位の部門別農家数》 栃木県 | Y107: ３位 | Z107: =SUMIF($AB$103:$AN$103,3,$AB$104:$AN$104) -> 6.363859162 | AA107: =SUBSTITUTE(AB107&AC107&AD107&AE107&AF107&AG107&AH107&AI107&AJ107&AK107&AL107&AM107&AN107,"」「","」と「") -> 「露地野菜」 | AB107: =IF(AB103=3,"「"&CLEAN(AB102)&"」","") ->  | AF107: 「露地野菜」
R108: 前回との比較
C121: 経営耕地面積（販売農家） | I121: =IFERROR(" ◎ 経営耕地面積は "&IF(G126=G125,"変化なし",TEXT(ABS(G126-G125),"#,##0")&"ha（"&TEXT(ABS(G126/G125-1),"0.0%"&"） "))&IF(F126=F125,"",IF(G126<G125,"減少","増加"))&"、１戸当たりでは "&IF(X125=0,"変動無し",TEXT(ABS(X125),"0.00")&"ha "&IF(X125>0,"増加","減少")),"") -> ◎ 経営耕地面積は 7,307ha（7.3%) 減少、１戸当たりでは 0.24ha 増加
D122: =AA3 -> 栃木県 | K122: 単位：ha
F123: 経 営 耕 地 のある農家数 | G123: 経 営 耕 地 面 積 | K123: １戸当たり経営耕地面積
H124: 田 | I124: 畑 （樹園地を除く） | J124: 樹園地 | V124: 列番号 | W124: 凡例用 | X124: １戸当たり増減
D125: 2010年 | F125: =IFERROR(OFFSET(INDIRECT($Y$3),$V$3,V125),"nc") -> 47,778 | G125: =IFERROR(ROUND(OFFSET(INDIRECT($Y$3),$V$3,$V$125+F1)/100,0),OFFSET(INDIRECT($Y$3),$V$3,$V$125+F1)) -> 99,543 | H125: =IFERROR(ROUND(OFFSET(INDIRECT($Y$3),$V$3,$V$125+G1)/100,0),OFFSET(INDIRECT($Y$3),$V$3,$V$125+G1)) -> 82,965 | I125: =IFERROR(ROUND(OFFSET(INDIRECT($Y$3),$V$3,$V$125+H1)/100,0),OFFSET(INDIRECT($Y$3),$V$3,$V$125+H1)) -> 14,771 | J125: =IFERROR(ROUND(OFFSET(INDIRECT($Y$3),$V$3,$V$125+I1)/100,0),OFFSET(INDIRECT($Y$3),$V$3,$V$125+I1)) -> 1,808 | K125: =IF(OR(AND(ISTEXT($F125),$F125<>"X",$F125<>"-"),AND(ISTEXT(G125),G125<>"X",G125<>"-")),"nc",IF(OR($F125="X",G125="X"),"X",IF(ROUND(SUM($F125),0)=0,"nc",ROUND(SUM(G125)/$F125,2)))) -> 2.08 | V125: =CELL("col",'2010年'!EA6)-1 -> 130 | W125: 田 | X125: =K126-K125 -> 0.24
D126: 2015年 | F126: =IFERROR(OFFSET(INDIRECT($Y$4),$V$4,$V126),"nc") -> 39,739 | G126: =IFERROR(ROUND(OFFSET(INDIRECT($Y$4),$V$4,$V126+F1)/100,0),OFFSET(INDIRECT($Y$4),$V$4,$V126+F1)) -> 92,236 | H126: =IFERROR(ROUND(OFFSET(INDIRECT($Y$4),$V$4,$V126+G1)/100,0),OFFSET(INDIRECT($Y$4),$V$4,$V126+G1)) -> 77,560 | I126: =IFERROR(ROUND(OFFSET(INDIRECT($Y$4),$V$4,$V126+H1)/100,0),OFFSET(INDIRECT($Y$4),$V$4,$V126+H1)) -> 13,081 | J126: =IFERROR(ROUND(OFFSET(INDIRECT($Y$4),$V$4,$V126+I1)/100,0),OFFSET(INDIRECT($Y$4),$V$4,$V126+I1)) -> 1,596 | K126: =IF(OR(AND(ISTEXT($F126),$F126<>"X",$F126<>"-"),AND(ISTEXT(G126),G126<>"X",G126<>"-")),"nc",IF(OR($F126="X",G126="X"),"X",IF(ROUND(SUM($F126),0)=0,"nc",ROUND(SUM(G126)/$F126,2)))) -> 2.32 | V126: =CELL("col",'2015年'!EA6)-1 -> 130 | W126: 畑
E127: 構成比(%) | G127: =IF(OR(AND(ISTEXT($G126),$G126<>"X",$G126<>"-"),AND(ISTEXT(G126),G126<>"X",G126<>"-")),"nc",IF(OR($G126="X",G126="X"),"X",IF(ROUND(SUM($G126),0)=0,"nc",SUM(G126)/$G126%))) -> 100.0 | H127: =IF(OR(AND(ISTEXT($G126),$G126<>"X",$G126<>"-"),AND(ISTEXT(H126),H126<>"X",H126<>"-")),"nc",IF(OR($G126="X",H126="X"),"X",IF(ROUND(SUM($G126),0)=0,"nc",SUM(H126)/$G126%))) -> 84.1 | I127: =IF(OR(AND(ISTEXT($G126),$G126<>"X",$G126<>"-"),AND(ISTEXT(I126),I126<>"X",I126<>"-")),"nc",IF(OR($G126="X",I126="X"),"X",IF(ROUND(SUM($G126),0)=0,"nc",SUM(I126)/$G126%))) -> 14.2 | J127: =IF(OR(AND(ISTEXT($G126),$G126<>"X",$G126<>"-"),AND(ISTEXT(J126),J126<>"X",J126<>"-")),"nc",IF(OR($G126="X",J126="X"),"X",IF(ROUND(SUM($G126),0)=0,"nc",SUM(J126)/$G126%))) -> 1.7 | W127: 樹園地
E128: 県計 構成比(%) | G128: 100.0 | H128: =IFERROR(ROUND(OFFSET(INDIRECT($Y$4),5,$V$126+G1)/OFFSET(INDIRECT($Y$4),5,$V$126+1)*100,1),"nc") -> 84.1 | I128: =IFERROR(ROUND(OFFSET(INDIRECT($Y$4),5,$V$126+H1)/OFFSET(INDIRECT($Y$4),5,$V$126+1)*100,1),"nc") -> 14.2 | J128: =IFERROR(ROUND(OFFSET(INDIRECT($Y$4),5,$V$126+I1)/OFFSET(INDIRECT($Y$4),5,$V$126+1)*100,1),"nc") -> 1.7 | K128: =IFERROR(OFFSET(INDIRECT($Y$4),5,V126+1)/OFFSET(INDIRECT($Y$4),5,V126)/100,"nc") -> 2.32
D129: =IFERROR("《参考》"&G4&"の経営耕地面積の全国順位："&TEXT(OFFSET(#REF!,MATCH(Info!G4,#REF!,0),0),"#,##0")&"位","") -> 

Sheet 2010年 (hidden)
A1: 都道府県名（支庁名） | B1: 市区町村名 | C1: 旧市区町村名 | D1: 農業集落名 | E1: 総農家数 | M1: （７）年齢別の農業従事者数（自営農業に従事した世帯員数）男女計 | AC1: 農業従事者の平均年齢 | AF1: 年齢別の農業就業人口（自営農業に主として従事した世帯員数）男女計 | AV1: 農業就業人口 | AY1: （11）年齢別の基幹的農業従事者数（自営農業に主として従事した世帯員のうち仕事が主の世帯員数）男女計 | BO1: 基幹的農業従事者 平均年齢 | BR1: （２）年齢別の経営者数男女計 | CH1: ウ後継者がいる経営者 | CV1: 家族経営構成別農家数 | DC1: （６）過去１年間の生活の主な状態別世帯員数 | DH1: 男女計 | DK1: （４）農産物販売金額１位の部門別農家数 | EA1: （１）経営耕地の状況 | EF1: （６）過去１年間の生活の主な状態別世帯員数(男) | EN1: （６）過去１年間の生活の主な状態別世帯員数(女)
F2: 販売農家数 | L2: 自給的農家 | M2: 計 | N2: 15～19歳 | O2: 20～24 | P2: 25～29 | Q2: 30～34 | R2: 35～39 | S2: 40～44 | T2: 45～49 | U2: 50～54 | V2: 55～59 | W2: 60～64 | X2: 65～69 | Y2: 70～74 | Z2: 75～79 | AA2: 80～84 | AB2: 85歳以上 | AC2: 男女計 | AD2: 男 | AE2: 女 | AF2: 計 | AG2: 15～19歳 | AH2: 20～24 | AI2: 25～29 | AJ2: 30～34 | AK2: 35～39 | AL2: 40～44 | AM2: 45～49 | AN2: 50～54 | AO2: 55～59 | AP2: 60～64 | AQ2: 65～69 | AR2: 70～74 | AS2: 75～79 | AT2: 80～84 | AU2: 85歳以上 | AY2: 計 | AZ2: 15～19歳 | BA2: 20～24 | BB2: 25～29 | BC2: 30～34 | BD2: 35～39 | BE2: 40～44 | BF2: 45～49 | BG2: 50～54 | BH2: 55～59 | BI2: 60～64 | BJ2: 65～69 | BK2: 70～74 | BL2: 75～79 | BM2: 80～84 | BN2: 85歳以上 | BR2: 計 | BS2: 15～19歳 | BT2: 20～24 | BU2: 25～29 | BV2: 30～34 | BW2: 35～39 | BX2: 40～44 | BY2: 45～49 | BZ2: 50～54 | CA2: 55～59 | CB2: 60～64 | CC2: 65～69 | CD2: 70～74 | CE2: 75～79 | CF2: 80～84 | CG2: 85歳以上 | CH2: 計 | CI2: 30歳未満 | CJ2: 30～34 | CK2: 35～39 | CL2: 40～44 | CM2: 45～49 | CN2: 50～54 | CO2: 55～59 | CP2: 60～64 | CQ2: 65～69 | CR2: 70～74 | CS2: 75～79 | CT2: 80～84 | CU2: 85歳以上 | DD2: 主に仕事 | DN2: 雑穀・ | EA2: 経営耕地 のある 農家数 | EB2: 経営耕地 総面積 | EC2: 田 | ED2: 畑（樹園地を除く） | EE2: 樹園地 | EF2: 計 | EG2: 主に仕事 | EK2: 主に家事 ・育児 | EL2: 学生 | EM2: その他 | EN2: 計 | EO2: 主に仕事 | ES2: 主に家事 ・育児 | ET2: 学生 | EU2: その他
G3: 主業農家 | I3: 準主業農家 | K3: 副業的農家 | AV3: 男女計の 平均年齢 | AW3: 男の 平均年齢 | AX3: 女の 平均年齢 | BO3: 男女計 | BP3: 男 | BQ3: 女 | DC3: 計 | DD3: 小計 | DE3: 自営農業 が主 | DF3: 勤務が主 | DG3: 農業以外の | DH3: 主に家事 ・育児 | DI3: 学生 | DJ3: その他 | DK3: 計 | DL3: 稲作 | DM3: 麦類作 | DN3: いも類 | DO3: 工芸農作物 | DP3: 露地野菜 | DQ3: 施設野菜 | DR3: 果樹類 | DS3: 花き・花木 | DT3: その他の 作物 | DU3: 酪農 | DV3: 肉用牛 | DW3: 養豚 | DX3: 養鶏 | DY3: 養蚕 | DZ3: その他の 畜産 | EG3: 小計 | EH3: 自営農業 が主 | EI3: 勤務が主 | EJ3: 農業以外の 自営業が主 | EO3: 小計 | EP3: 自営農業 が主 | EQ3: 勤務が主 | ER3: 農業以外の 自営業が主
H4: 65歳未満の農業専従者がいる | J4: 65歳未満の農業専従者がいる | DG4: 自営業が主 | DN4: ・豆類
A6: 栃木県 | E6: 64,337 | F6: 47,833 | G6: 11,015 | H6: 9,030 | I6: 15,354 | J6: 4,284 | K6: 21,464 | L6: 16,504 | M6: 139,621 | N6: 2,304 | O6: 4,359 | P6: 5,376 | Q6: 5,861 | R6: 6,145 | S6: 6,886 | T6: 9,724 | U6: 14,003 | V6: 18,483 | W6: 15,905 | X6: 11,412 | Y6: 12,933 | Z6: 12,928 | AA6: 9,550 | AB6: 3,752 | AC6: 57.4 | AD6: 55.8 | AE6: 59.2 | AF6: 79,881 | AG6: 1,556 | AH6: 1,179 | AI6: 1,071 | AJ6: 1,465 | AK6: 1,652 | AL6: 1,861 | AM6: 2,584 | AN6: 4,516 | AO6: 7,963 | AP6: 9,765 | AQ6: 9,470 | AR6: 11,969 | AS6: 12,312 | AT6: 9,046 | AU6: 3,472 | AV6: 64.7 | AW6: 64.5 | AX6: 65.0 | AY6: 62,600 | AZ6: 18 | BA6: 258 | BB6: 683 | BC6: 957 | BD6: 1,096 | BE6: 1,298 | BF6: 2,020 | BG6: 3,759 | BH6: 6,939 | BI6: 8,616 | BJ6: 8,476 | BK6: 10,481 | BL6: 9,957 | BM6: 6,147 | BN6: 1,895 | BO6: 65.9 | BP6: 65.6 | BQ6: 66.3 | BR6: 47,833 | BS6: - | BT6: 10 | BU6: 45 | BV6: 185 | BW6: 544 | BX6: 1,337 | BY6: 3,161 | BZ6: 5,785 | CA6: 9,089 | CB6: 8,828 | CC6: 5,639 | CD6: 5,742 | CE6: 4,384 | CF6: 2,338 | CG6: 746 | CH6: 29,667 | CI6: 1 | CJ6: 6 | CK6: 51 | CL6: 296 | CM6: 1,275 | CN6: 3,070 | CO6: 5,596 | CP6: 5,779 | CQ6: 3,841 | CR6: 4,133 | CS6: 3,226 | CT6: 1,792 | CU6: 601 | DC6: 185,643 | DD6: 137,835 | DE6: 62,601 | DF6: 69,070 | DG6: 6,164 | DH6: 13,928 | DI6: 12,594 | DJ6: 21,286 | DK6: 43,681 | DL6: 32,561 | DM6: 336 | DN6: 224 | DO6: 339 | DP6: 2,344 | DQ6: 4,131 | DR6: 1,109 | DS6: 714 | DT6: 205 | DU6: 857 | DV6: 672 | DW6: 90 | DX6: 65 | DY6: 22 | DZ6: 12 | EA6: 47,778 | EB6: 9,954,346 | EC6: 8,296,454 | ED6: 1,477,109 | EE6: 180,783 | EF6: 92,172 | EG6: 78,351 | EH6: 33,778 | EI6: 40,312 | EJ6: 4,261 | EK6: 192 | EL6: 6,476 | EM6: 7,153 | EN6: 93,471 | EO6: 59,484 | EP6: 28,823 | EQ6: 28,758 | ER6: 1,903 | ES6: 13,736 | ET6: 6,118 | EU6: 14,133
A7: 栃木県 | B7: 宇都宮市 | E7: 6,141 | F7: 4,757 | G7: 1,143 | H7: 912 | I7: 1,432 | J7: 465 | K7: 2,182 | L7: 1,384 | M7: 13,779 | N7: 244 | O7: 420 | P7: 564 | Q7: 583 | R7: 665 | S7: 697 | T7: 937 | U7: 1,372 | V7: 1,902 | W7: 1,672 | X7: 1,171 | Y7: 1,205 | Z7: 1,171 | AA7: 837 | AB7: 339 | AC7: 56.7 | AD7: 55.2 | AE7: 58.5 | AF7: 7,446 | AG7: 65 | AH7: 71 | AI7: 88 | AJ7: 131 | AK7: 164 | AL7: 178 | AM7: 267 | AN7: 473 | AO7: 812 | AP7: 1,033 | AQ7: 963 | AR7: 1,097 | AS7: 1,067 | AT7: 747 | AU7: 290 | AV7: 64.8 | AW7: 64.7 | AX7: 64.9 | AY7: 6,212 | AZ7: - | BA7: 28 | BB7: 69 | BC7: 96 | BD7: 117 | BE7: 138 | BF7: 216 | BG7: 425 | BH7: 741 | BI7: 939 | BJ7: 874 | BK7: 983 | BL7: 897 | BM7: 521 | BN7: 168 | BO7: 65.0 | BP7: 64.8 | BQ7: 65.4 | BR7: 4,757 | BS7: - | BT7: - | BU7: 5 | BV7: 23 | BW7: 53 | BX7: 147 | BY7: 302 | BZ7: 564 | CA7: 933 | CB7: 908 | CC7: 598 | CD7: 537 | CE7: 381 | CF7: 219 | CG7: 87 | CH7: 2,709 | CI7: 1 | CJ7: 2 | CK7: 3 | CL7: 21 | CM7: 101 | CN7: 259 | CO7: 517 | CP7: 545 | CQ7: 404 | CR7: 373 | CS7: 252 | CT7: 158 | CU7: 73 | DC7: 18,643 | DD7: 13,373 | DE7: 6,212 | DF7: 6,585 | DG7: 576 | DH7: 1,564 | DI7: 1,346 | DJ7: 2,360 | DK7: 4,421 | DL7: 3,574 | DM7: 11 | DN7: 9 | DO7: - | DP7: 159 | DQ7: 284 | DR7: 208 | DS7: 84 | DT7: 17 | DU7: 17 | DV7: 46 | DW7: 4 | DX7: 7 | DY7: - | DZ7: 1 | EA7: 4,753 | EB7: 1,046,929 | EC7: 903,059 | ED7: 105,615 | EE7: 38,255 | EF7: 9,136 | EG7: 7,642 | EH7: 3,285 | EI7: 3,970 | EJ7: 387 | EK7: 16 | EL7: 689 | EM7: 789 | EN7: 9,507 | EO7: 5,731 | EP7: 2,927 | EQ7: 2,615 | ER7: 189 | ES7: 1,548 | ET7: 657 | EU7: 1,571
A8: 栃木県 | B8: 宇都宮市 | C8: 宇都宮市 | E8: 102 | F8: 51 | G8: 8 | H8: 3 | I8: 11 | J8: 4 | K8: 32 | L8: 51 | M8: 137 | N8: 2 | O8: 3 | P8: 3 | Q8: 2 | R8: 5 | S8: 3 | T8: 18 | U8: 13 | V8: 17 | W8: 10 | X8: 17 | Y8: 18 | Z8: 12 | AA8: 8 | AB8: 6 | AC8: 59.9 | AD8: 58.8 | AE8: 61.1 | AF8: 80 | AG8: 2 | AH8: 1 | AI8: - | AJ8: 1 | AK8: 1 | AL8: 1 | AM8: 8 | AN8: 4 | AO8: 6 | AP8: 4 | AQ8: 13 | AR8: 15 | AS8: 11 | AT8: 8 | AU8: 5 | AV8: 65.5 | AW8: 66.0 | AX8: 65.1 | AY8: 49 | AZ8: - | BA8: - | BB8: - | BC8: 1 | BD8: - | BE8: 1 | BF8: 5 | BG8: 3 | BH8: 4 | BI8: 3 | BJ8: 10 | BK8: 10 | BL8: 4 | BM8: 5 | BN8: 3 | BO8: 66.6 | BP8: 66.2 | BQ8: 67.3 | BR8: 51 | BS8: - | BT8: - | BU8: - | BV8: - | BW8: - | BX8: - | BY8: 6 | BZ8: 3 | CA8: 9 | CB8: 5 | CC8: 7 | CD8: 7 | CE8: 7 | CF8: 3 | CG8: 4 | CH8: 26 | CI8: - | CJ8: - | CK8: - | CL8: - | CM8: 1 | CN8: 1 | CO8: 3 | CP8: 2 | CQ8: 4 | CR8: 3 | CS8: 6 | CT8: 2 | CU8: 4 | DC8: 187 | DD8: 118 | DE8: 49 | DF8: 49 | DG8: 20 | DH8: 25 | DI8: 14 | DJ8: 30 | DK8: 40 | DL8: 29 | DM8: - | DN8: - | DO8: - | DP8: 5 | DQ8: 4 | DR8: - | DS8: 2 | DT8: - | DU8: - | DV8: - | DW8: - | DX8: - | DY8: - | DZ8: - | EA8: 51 | EB8: 4,578 | EC8: 3,472 | ED8: 944 | EE8: 162 | EF8: 96 | EG8: 74 | EH8: 31 | EI8: 32 | EJ8: 11 | EK8: - | EL8: 10 | EM8: 12 | EN8: 91 | EO8: 44 | EP8: 18 | EQ8: 17 | ER8: 9 | ES8: 25 | ET8: 4 | EU8: 18
A9: 栃木県 | B9: 宇都宮市 | C9: 宇都宮市 | D9: 東町 | E9: - | F9: - | G9: - | H9: - | I9: - | J9: - | K9: - | L9: - | M9: - | N9: - | O9: - | P9: - | Q9: - | R9: - | S9: - | T9: - | U9: - | V9: - | W9: - | X9: - | Y9: - | Z9: - | AA9: - | AB9: - | AC9: … | AD9: … | AE9: … | AF9: - | AG9: - | AH9: - | AI9: - | AJ9: - | AK9: - | AL9: - | AM9: - | AN9: - | AO9: - | AP9: - | AQ9: - | AR9: - | AS9: - | AT9: - | AU9: - | AV9: … | AW9: … | AX9: … | AY9: - | AZ9: - | BA9: - | BB9: - | BC9: - | BD9: - | BE9: - | BF9: - | BG9: - | BH9: - | BI9: - | BJ9: - | BK9: - | BL9: - | BM9: - | BN9: - | BO9: … | BP9: … | BQ9: … | BR9: - | BS9: - | BT9: - | BU9: - | BV9: - | BW9: - | BX9: - | BY9: - | BZ9: - | CA9: - | CB9: - | CC9: - | CD9: - | CE9: - | CF9: - | CG9: - | CH9: - | CI9: - | CJ9: - | CK9: - | CL9: - | CM9: - | CN9: - | CO9: - | CP9: - | CQ9: - | CR9: - | CS9: - | CT9: - | CU9: - | DC9: - | DD9: - | DE9: - | DF9: - | DG9: - | DH9: - | DI9: - | DJ9: - | DK9: - | DL9: - | DM9: - | DN9: - | DO9: - | DP9: - | DQ9: - | DR9: - | DS9: - | DT9: - | DU9: - | DV9: - | DW9: - | DX9: - | DY9: - | DZ9: - | EA9: - | EB9: - | EC9: - | ED9: - | EE9: - | EF9: - | EG9: - | EH9: - | EI9: - | EJ9: - | EK9: - | EL9: - | EM9: - | EN9: - | EO9: - | EP9: - | EQ9: - | ER9: - | ES9: - | ET9: - | EU9: -
A10: 栃木県 | B10: 宇都宮市 | C10: 宇都宮市 | D10: 今泉東部 | E10: 11 | F10: 5 | G10: - | H10: - | I10: 1 | J10: - | K10: 4 | L10: 6 | M10: 13 | N10: - | O10: - | P10: - | Q10: 1 | R10: - | S10: - | T10: - | U10: 1 | V10: 5 | W10: 2 | X10: 1 | Y10: 1 | Z10: 1 | AA10: 1 | AB10: - | AC10: 61.0 | AD10: 56.2 | AE10: 65.1 | AF10: 1 | AG10: - | AH10: - | AI10: - | AJ10: - | AK10: - | AL10: - | AM10: - | AN10: - | AO10: - | AP10: - | AQ10: - | AR10: - | AS10: - | AT10: 1 | AU10: - | AV10: 83.0 | AW10: … | AX10: 83.0 | AY10: - | AZ10: - | BA10: - | BB10: - | BC10: - | BD10: - | BE10: - | BF10: - | BG10: - | BH10: - | BI10: - | BJ10: - | BK10: - | BL10: - | BM10: - | BN10: - | BO10: … | BP10: … | BQ10: … | BR10: 5 | BS10: - | BT10: - | BU10: - | BV10: - | BW10: - | BX10: - | BY10: - | BZ10: - | CA10: 3 | CB10: 1 | CC10: - | CD10: 1 | CE10: - | CF10: - | CG10: - | CH10: 1 | CI10: - | CJ10: - | CK10: - | CL10: - | CM10: - | CN10: - | CO10: - | CP10: 1 | CQ10: - | CR10: - | CS10: - | CT10: - | CU10: - | DC10: 19 | DD10: 14 | DE10: - | DF10: 5 | DG10: 9 | DH10: 1 | DI10: 1 | DJ10: 3 | DK10: 1 | DL10: - | DM10: - | DN10: - | DO10: - | DP10: - | DQ10: - | DR10: - | DS10: 1 | DT10: - | DU10: - | DV10: - | DW10: - | DX10: - | DY10: - | DZ10: - | EA10: 5 | EB10: 388 | EC10: 193 | ED10: 100 | EE10: 95 | EF10: 8 | EG10: 7 | EH10: - | EI10: 2 | EJ10: 5 | EK10: - | EL10: - | EM10: 1 | EN10: 11 | EO10: 7 | EP10: - | EQ10: 3 | ER10: 4 | ES10: 1 | ET10: 1 | EU10: 2
A11: 栃木県 | B11: 宇都宮市 | C11: 宇都宮市 | D11: 今泉西部 | E11: - | F11: - | G11: - | H11: - | I11: - | J11: - | K11: - | L11: - | M11: - | N11: - | O11: - | P11: - | Q11: - | R11: - | S11: - | T11: - | U11: - | V11: - | W11: - | X11: - | Y11: - | Z11: - | AA11: - | AB11: - | AC11: … | AD11: … | AE11: … | AF11: - | AG11: - | AH11: - | AI11: - | AJ11: - | AK11: - | AL11: - | AM11: - | AN11: - | AO11: - | AP11: - | AQ11: - | AR11: - | AS11: - | AT11: - | AU11: - | AV11: … | AW11: … | AX11: … | AY11: - | AZ11: - | BA11: - | BB11: - | BC11: - | BD11: - | BE11: - | BF11: - | BG11: - | BH11: - | BI11: - | BJ11: - | BK11: - | BL11: - | BM11: - | BN11: - | BO11: … | BP11: … | BQ11: … | BR11: - | BS11: - | BT11: - | BU11: - | BV11: - | BW11: - | BX11: - | BY11: - | BZ11: - | CA11: - | CB11: - | CC11: - | CD11: - | CE11: - | CF11: - | CG11: - | CH11: - | CI11: - | CJ11: - | CK11: - | CL11: - | CM11: - | CN11: - | CO11: - | CP11: - | CQ11: - | CR11: - | CS11: - | CT11: - | CU11: - | DC11: - | DD11: - | DE11: - | DF11: - | DG11: - | DH11: - | DI11: - | DJ11: - | DK11: - | DL11: - | DM11: - | DN11: - | DO11: - | DP11: - | DQ11: - | DR11: - | DS11: - | DT11: - | DU11: - | DV11: - | DW11: - | DX11: - | DY11: - | DZ11: - | EA11: - | EB11: - | EC11: - | ED11: - | EE11: - | EF11: - | EG11: - | EH11: - | EI11: - | EJ11: - | EK11: - | EL11: - | EM11: - | EN11: - | EO11: - | EP11: - | EQ11: - | ER11: - | ES11: - | ET11: - | EU11: -
A12: 栃木県 | B12: 宇都宮市 | C12: 宇都宮市 | D12: 今泉北部 | E12: 4 | F12: 2 | G12: x | H12: x | I12: x | J12: x | K12: x | L12: 2 | M12: x | N12: x | O12: x | P12: x | Q12: x | R12: x | S12: x | T12: x | U12: x | V12: x | W12: x | X12: x | Y12: x | Z12: x | AA12: x | AB12: x | AC12: 68.3 | AD12: 68.0 | AE12: 68.5 | AF12: x | AG12: x | AH12: x | AI12: x | AJ12: x | AK12: x | AL12: x | AM12: x | AN12: x | AO12: x | AP12: x | AQ12: x | AR12: x | AS12: x | AT12: x | AU12: x | AV12: 68.3 | AW12: 68.0 | AX12: 68.5 | AY12: x | AZ12: x | BA12: x | BB12: x | BC12: x | BD12: x | BE12: x | BF12: x | BG12: x | BH12: x | BI12: x | BJ12: x | BK12: x | BL12: x | BM12: x | BN12: x | BO12: 68.0 | BP12: 68.0 | BQ12: … | BR12: 2 | BS12: - | BT12: - | BU12: - | BV12: - | BW12: - | BX12: - | BY12: - | BZ12: - | CA12: - | CB12: - | CC12: 2 | CD12: - | CE12: - | CF12: - | CG12: - | CH12: - | CI12: - | CJ12: - | CK12: - | CL12: - | CM12: - | CN12: - | CO12: - | CP12: - | CQ12: - | CR12: - | CS12: - | CT12: - | CU12: - | DC12: 6 | DD12: 3 | DE12: 2 | DF12: 1 | DG12: - | DH12: 3 | DI12: - | DJ12: - | DK12: 1 | DL12: 1 | DM12: - | DN12: - | DO12: - | DP12: - | DQ12: - | DR12: - | DS12: - | DT12: - | DU12: - | DV12: - | DW12: - | DX12: - | DY12: - | DZ12: - | EA12: 2 | EB12: 100 | EC12: 88 | ED12: 12 | EE12: - | EF12: 3 | EG12: 3 | EH12: 2 | EI12: 1 | EJ12: - | EK12: - | EL12: - | EM12: - | EN12: 3 | EO12: - | EP12: - | EQ12: - | ER12: - | ES12: 3 | ET12: - | EU12: -
A13: 栃木県 | B13: 宇都宮市 | C13: 宇都宮市 | D13: 宿郷６丁目 | E13: 1 | F13: - | G13: - | H13: - | I13: - | J13: - | K13: - | L13: 1 | M13: - | N13: - | O13: - | P13: - | Q13: - | R13: - | S13: - | T13: - | U13: - | V13: - | W13: - | X13: - | Y13: - | Z13: - | AA13: - | AB13: - | AC13: … | AD13: … | AE13: … | AF13: - | AG13: - | AH13: - | AI13: - | AJ13: - | AK13: - | AL13: - | AM13: - | AN13: - | AO13: - | AP13: - | AQ13: - | AR13: - | AS13: - | AT13: - | AU13: - | AV13: … | AW13: … | AX13: … | AY13: - | AZ13: - | BA13: - | BB13: - | BC13: - | BD13: - | BE13: - | BF13: - | BG13: - | BH13: - | BI13: - | BJ13: - | BK13: - | BL13: - | BM13: - | BN13: - | BO13: … | BP13: … | BQ13: … | BR13: - | BS13: - | BT13: - | BU13: - | BV13: - | BW13: - | BX13: - | BY13: - | BZ13: - | CA13: - | CB13: - | CC13: - | CD13: - | CE13: - | CF13: - | CG13: - | CH13: - | CI13: - | CJ13: - | CK13: - | CL13: - | CM13: - | CN13: - | CO13: - | CP13: - | CQ13: - | CR13: - | CS13: - | CT13: - | CU13: - | DC13: - | DD13: - | DE13: - | DF13: - | DG13: - | DH13: - | DI13: - | DJ13: - | DK13: - | DL13: - | DM13: - | DN13: - | DO13: - | DP13: - | DQ13: - | DR13: - | DS13: - | DT13: - | DU13: - | DV13: - | DW13: - | DX13: - | DY13: - | DZ13: - | EA13: - | EB13: - | EC13: - | ED13: - | EE13: - | EF13: - | EG13: - | EH13: - | EI13: - | EJ13: - | EK13: - | EL13: - | EM13: - | EN13: - | EO13: - | EP13: - | EQ13: - | ER13: - | ES13: - | ET13: - | EU13: -
A14: 栃木県 | B14: 宇都宮市 | C14: 宇都宮市 | D14: 今泉南部 | E14: 4 | F14: - | G14: - | H14: - | I14: - | J14: - | K14: - | L14: 4 | M14: - | N14: - | O14: - | P14: - | Q14: - | R14: - | S14: - | T14: - | U14: - | V14: - | W14: - | X14: - | Y14: - | Z14: - | AA14: - | AB14: - | AC14: … | AD14: … | AE14: … | AF14: - | AG14: - | AH14: - | AI14: - | AJ14: - | AK14: - | AL14: - | AM14: - | AN14: - | AO14: - | AP14: - | AQ14: - | AR14: - | AS14: - | AT14: - | AU14: - | AV14: … | AW14: … | AX14: … | AY14: - | AZ14: - | BA14: - | BB14: - | BC14: - | BD14: - | BE14: - | BF14: - | BG14: - | BH14: - | BI14: - | BJ14: - | BK14: - | BL14: - | BM14: - | BN14: - | BO14: … | BP14: … | BQ14: … | BR14: - | BS14: - | BT14: - | BU14: - | BV14: - | BW14: - | BX14: - | BY14: - | BZ14: - | CA14: - | CB14: - | CC14: - | CD14: - | CE14: - | CF14: - | CG14: - | CH14: - | CI14: - | CJ14: - | CK14: - | CL14: - | CM14: - | CN14: - | CO14: - | CP14: - | CQ14: - | CR14: - | CS14: - | CT14: - | CU14: - | DC14: - | DD14: - | DE14: - | DF14: - | DG14: - | DH14: - | DI14: - | DJ14: - | DK14: - | DL14: - | DM14: - | DN14: - | DO14: - | DP14: - | DQ14: - | DR14: - | DS14: - | DT14: - | DU14: - | DV14: - | DW14: - | DX14: - | DY14: - | DZ14: - | EA14: - | EB14: - | EC14: - | ED14: - | EE14: - | EF14: - | EG14: - | EH14: - | EI14: - | EJ14: - | EK14: - | EL14: - | EM14: - | EN14: - | EO14: - | EP14: - | EQ14: - | ER14: - | ES14: - | ET14: - | EU14: -
A15: 栃木県 | B15: 宇都宮市 | C15: 宇都宮市 | D15: 峰町 | E15: 1 | F15: - | G15: - | H15: - | I15: - | J15: - | K15: - | L15: 1 | M15: - | N15: - | O15: - | P15: - | Q15: - | R15: - | S15: - | T15: - | U15: - | V15: - | W15: - | X15: - | Y15: - | Z15: - | AA15: - | AB15: - | AC15: … | AD15: … | AE15: … | AF15: - | AG15: - | AH15: - | AI15: - | AJ15: - | AK15: - | AL15: - | AM15: - | AN15: - | AO15: - | AP15: - | AQ15: - | AR15: - | AS15: - | AT15: - | AU15: - | AV15: … | AW15: … | AX15: … | AY15: - | AZ15: - | BA15: - | BB15: - | BC15: - | BD15: - | BE15: - | BF15: - | BG15: - | BH15: - | BI15: - | BJ15: - | BK15: - | BL15: - | BM15: - | BN15: - | BO15: … | BP15: … | BQ15: … | BR15: - | BS15: - | BT15: - | BU15: - | BV15: - | BW15: - | BX15: - | BY15: - | BZ15: - | CA15: - | CB15: - | CC15: - | CD15: - | CE15: - | CF15: - | CG15: - | CH15: - | CI15: - | CJ15: - | CK15: - | CL15: - | CM15: - | CN15: - | CO15: - | CP15: - | CQ15: - | CR15: - | CS15: - | CT15: - | CU15: - | DC15: - | DD15: - | DE15: - | DF15: - | DG15: - | DH15: - | DI15: - | DJ15: - | DK15: - | DL15: - | DM15: - | DN15: - | DO15: - | DP15: - | DQ15: - | DR15: - | DS15: - | DT15: - | DU15: - | DV15: - | DW15: - | DX15: - | DY15: - | DZ15: - | EA15: - | EB15: - | EC15: - | ED15: - | EE15: - | EF15: - | EG15: - | EH15: - | EI15: - | EJ15: - | EK15: - | EL15: - | EM15: - | EN15: - | EO15: - | EP15: - | EQ15: - | ER15: - | ES15: - | ET15: - | EU15: -
A16: 栃木県 | B16: 宇都宮市 | C16: 宇都宮市 | D16: 平松町 | E16: - | F16: - | G16: - | H16: - | I16: - | J16: - | K16: - | L16: - | M16: - | N16: - | O16: - | P16: - | Q16: - | R16: - | S16: - | T16: - | U16: - | V16: - | W16: - | X16: - | Y16: - | Z16: - | AA16: - | AB16: - | AC16: … | AD16: … | AE16: … | AF16: - | AG16: - | AH16: - | AI16: - | AJ16: - | AK16: - | AL16: - | AM16: - | AN16: - | AO16: - | AP16: - | AQ16: - | AR16: - | AS16: - | AT16: - | AU16: - | AV16: … | AW16: … | AX16: … | AY16: - | AZ16: - | BA16: - | BB16: - | BC16: - | BD16: - | BE16: - | BF16: - | BG16: - | BH16: - | BI16: - | BJ16: - | BK16: - | BL16: - | BM16: - | BN16: - | BO16: … | BP16: … | BQ16: … | BR16: - | BS16: - | BT16: - | BU16: - | BV16: - | BW16: - | BX16: - | BY16: - | BZ16: - | CA16: - | CB16: - | CC16: - | CD16: - | CE16: - | CF16: - | CG16: - | CH16: - | CI16: - | CJ16: - | CK16: - | CL16: - | CM16: - | CN16: - | CO16: - | CP16: - | CQ16: - | CR16: - | CS16: - | CT16: - | CU16: - | DC16: - | DD16: - | DE16: - | DF16: - | DG16: - | DH16: - | DI16: - | DJ16: - | DK16: - | DL16: - | DM16: - | DN16: - | DO16: - | DP16: - | DQ16: - | DR16: - | DS16: - | DT16: - | DU16: - | DV16: - | DW16: - | DX16: - | DY16: - | DZ16: - | EA16: - | EB16: - | EC16: - | ED16: - | EE16: - | EF16: - | EG16: - | EH16: - | EI16: - | EJ16: - | EK16: - | EL16: - | EM16: - | EN16: - | EO16: - | EP16: - | EQ16: - | ER16: - | ES16: - | ET16: - | EU16: -
A17: 栃木県 | B17: 宇都宮市 | C17: 宇都宮市 | D17: 宇大西 | E17: 2 | F17: 1 | G17: x | H17: x | I17: x | J17: x | K17: x | L17: 1 | M17: x | N17: x | O17: x | P17: x | Q17: x | R17: x | S17: x | T17: x | U17: x | V17: x | W17: x | X17: x | Y17: x | Z17: x | AA17: x | AB17: x | AC17: 69.3 | AD17: 75.5 | AE17: 57.0 | AF17: x | AG17: x | AH17: x | AI17: x | AJ17: x | AK17: x | AL17: x | AM17: x | AN17: x | AO17: x | AP17: x | AQ17: x | AR17: x | AS17: x | AT17: x | AU17: x | AV17: 69.3 | AW17: 75.5 | AX17: 57.0 | AY17: x | AZ17: x | BA17: x | BB17: x | BC17: x | BD17: x | BE17: x | BF17: x | BG17: x | BH17: x | BI17: x | BJ17: x | BK17: x | BL17: x | BM17: x | BN17: x | BO17: 61.0 | BP17: 61.0 | BQ17: … | BR17: 1 | BS17: - | BT17: - | BU17: - | BV17: - | BW17: - | BX17: - | BY17: - | BZ17: - | CA17: - | CB17: - | CC17: - | CD17: - | CE17: - | CF17: - | CG17: 1 | CH17: 1 | CI17: - | CJ17: - | CK17: - | CL17: - | CM17: - | CN17: - | CO17: - | CP17: - | CQ17: - | CR17: - | CS17: - | CT17: - | CU17: 1 | DC17: 4 | DD17: 1 | DE17: 1 | DF17: - | DG17: - | DH17: 1 | DI17: - | DJ17: 2 | DK17: 1 | DL17: 1 | DM17: - | DN17: - | DO17: - | DP17: - | DQ17: - | DR17: - | DS17: - | DT17: - | DU17: - | DV17: - | DW17: - | DX17: - | DY17: - | DZ17: - | EA17: 1 | EB17: 150 | EC17: 150 | ED17: - | EE17: - | EF17: 2 | EG17: 1 | EH17: 1 | EI17: - | EJ17: - | EK17: - | EL17: - | EM17: 1 | EN17: 2 | EO17: - | EP17: - | EQ17: - | ER17: - | ES17: 1 | ET17: - | EU17: 1
A18: 栃木県 | B18: 宇都宮市 | C18: 宇都宮市 | D18: 簗瀬２丁目 | E18: 5 | F18: 1 | G18: x | H18: x | I18: x | J18: x | K18: x | L18: 4 | M18: x | N18: x | O18: x | P18: x | Q18: x | R18: x | S18: x | T18: x | U18: x | V18: x | W18: x | X18: x | Y18: x | Z18: x | AA18: x | AB18: x | AC18: 58.0 | AD18: 58.0 | AE18: 58.0 | AF18: x | AG18: x | AH18: x | AI18: x | AJ18: x | AK18: x | AL18: x | AM18: x | AN18: x | AO18: x | AP18: x | AQ18: x | AR18: x | AS18: x | AT18: x | AU18: x | AV18: 58.0 | AW18: … | AX18: 58.0 | AY18: x | AZ18: x | BA18: x | BB18: x | BC18: x | BD18: x | BE18: x | BF18: x | BG18: x | BH18: x | BI18: x | BJ18: x | BK18: x | BL18: x | BM18: x | BN18: x | BO18: 71.0 | BP18: … | BQ18: 71.0 | BR18: 1 | BS18: - | BT18: - | BU18: - | BV18: - | BW18: - | BX18: - | BY18: 1 | BZ18: - | CA18: - | CB18: - | CC18: - | CD18: - | CE18: - | CF18: - | CG18: - | CH18: - | CI18: - | CJ18: - | CK18: - | CL18: - | CM18: - | CN18: - | CO18: - | CP18: - | CQ18: - | CR18: - | CS18: - | CT18: - | CU18: - | DC18: 5 | DD18: 3 | DE18: 1 | DF18: 2 | DG18: - | DH18: 1 | DI18: 1 | DJ18: - | DK18: 1 | DL18: 1 | DM18: - | DN18: - | DO18: - | DP18: - | DQ18: - | DR18: - | DS18: - | DT18: - | DU18: - | DV18: - | DW18: - | DX18: - | DY18: - | DZ18: - | EA18: 1 | EB18: 55 | EC18: 35 | ED18: 20 | EE18: - | EF18: 3 | EG18: 2 | EH18: - | EI18: 2 | EJ18: - | EK18: - | EL18: 1 | EM18: - | EN18: 2 | EO18: 1 | EP18: 1 | EQ18: - | ER18: - | ES18: 1 | ET18: - | EU18: -
A19: 栃木県 | B19: 宇都宮市 | C19: 宇都宮市 | D19: 東簗瀬 | E19: 11 | F19: 9 | G19: - | H19: - | I19: 2 | J19: 1 | K19: 7 | L19: 2 | M19: 24 | N19: - | O19: 1 | P19: - | Q19: - | R19: 2 | S19: 1 | T19: 1 | U19: 1 | V19: 3 | W19: 3 | X19: 7 | Y19: 2 | Z19: - | AA19: 1 | AB19: 2 | AC19: 60.9 | AD19: 61.3 | AE19: 60.2 | AF19: 13 | AG19: - | AH19: - | AI19: - | AJ19: - | AK19: - | AL19: 1 | AM19: - | AN19: - | AO19: 1 | AP19: - | AQ19: 6 | AR19: 2 | AS19: - | AT19: 1 | AU19: 2 | AV19: 69.7 | AW19: 72.1 | AX19: 65.8 | AY19: 10 | AZ19: - | BA19: - | BB19: - | BC19: - | BD19: - | BE19: 1 | BF19: - | BG19: - | BH19: - | BI19: - | BJ19: 5 | BK19: 2 | BL19: - | BM19: 1 | BN19: 1 | BO19: 69.5 | BP19: 70.3 | BQ19: 67.7 | BR19: 9 | BS19: - | BT19: - | BU19: - | BV19: - | BW19: - | BX19: - | BY19: - | BZ19: - | CA19: 1 | CB19: 1 | CC19: 3 | CD19: 2 | CE19: - | CF19: 1 | CG19: 1 | CH19: 8 | CI19: - | CJ19: - | CK19: - | CL19: - | CM19: - | CN19: - | CO19: 1 | CP19: 1 | CQ19: 3 | CR19: 1 | CS19: - | CT19: 1 | CU19: 1 | DC19: 38 | DD19: 29 | DE19: 10 | DF19: 14 | DG19: 5 | DH19: 4 | DI19: 1 | DJ19: 4 | DK19: 8 | DL19: 5 | DM19: - | DN19: - | DO19: - | DP19: 1 | DQ19: 1 | DR19: - | DS19: 1 | DT19: - | DU19: - | DV19: - | DW19: - | DX19: - | DY19: - | DZ19: - | EA19: 9 | EB19: 913 | EC19: 753 | ED19: 148 | EE19: 12 | EF19: 20 | EG19: 18 | EH19: 7 | EI19: 8 | EJ19: 3 | EK19: - | EL19: 1 | EM19: 1 | EN19: 18 | EO19: 11 | EP19: 3 | EQ19: 6 | ER19: 2 | ES19: 4 | ET19: - | EU19: 3
A20: 栃木県 | B20: 宇都宮市 | C20: 宇都宮市 | D20: 簗瀬１丁目 | E20: 4 | F20: 3 | G20: - | H20: - | I20: 1 | J20: 1 | K20: 2 | L20: 1 | M20: 10 | N20: - | O20: - | P20: - | Q20: - | R20: - | S20: - | T20: 1 | U20: 1 | V20: 2 | W20: - | X20: 1 | Y20: - | Z20: 3 | AA20: 1 | AB20: 1 | AC20: 68.3 | AD20: 66.8 | AE20: 69.8 | AF20: 7 | AG20: - | AH20: - | AI20: - | AJ20: - | AK20: - | AL20: - | AM20: - | AN20: 1 | AO20: 1 | AP20: - | AQ20: - | AR20: - | AS20: 3 | AT20: 1 | AU20: 1 | AV20: 73.4 | AW20: 82.5 | AX20: 69.8 | AY20: 4 | AZ20: - | BA20: - | BB20: - | BC20: - | BD20: - | BE20: - | BF20: - | BG20: - | BH20: 1 | BI20: - | BJ20: - | BK20: - | BL20: 1 | BM20: 1 | BN20: 1 | BO20: 76.3 | BP20: 82.5 | BQ20: 70.0 | BR20: 3 | BS20: - | BT20: - | BU20: - | BV20: - | BW20: - | BX20: - | BY20: - | BZ20: - | CA20: 1 | CB20: - | CC20: - | CD20: - | CE20: 2 | CF20: - | CG20: - | CH20: 3 | CI20: - | CJ20: - | CK20: - | CL20: - | CM20: - | CN20: - | CO20: 1 | CP20: - | CQ20: - | CR20: - | CS20: 2 | CT20: - | CU20: - | DC20: 13 | DD20: 9 | DE20: 4 | DF20: 3 | DG20: 2 | DH20: 2 | DI20: - | DJ20: 2 | DK20: 3 | DL20: 3 | DM20: - | DN20: - | DO20: - | DP20: - | DQ20: - | DR20: - | DS20: - | DT20: - | DU20: - | DV20: - | DW20: - | DX20: - | DY20: - | DZ20: - | EA20: 3 | EB20: 190 | EC20: 180 | ED20: 10 | EE20: - | EF20: 7 | EG20: 6 | EH20: 2 | EI20: 2 | EJ20: 2 | EK20: - | EL20: - | EM20: 1 | EN20: 6 | EO20: 3 | EP20: 2 | EQ20: 1 | ER20: - | ES20: 2 | ET20: - | EU20: 1
A21: 栃木県 | B21: 宇都宮市 | C21: 宇都宮市 | D21: 下河原 | E21: 5 | F21: 2 | G21: x | H21: x | I21: x | J21: x | K21: x | L21: 3 | M21: x | N21: x | O21: x | P21: x | Q21: x | R21: x | S21: x | T21: x | U21: x | V21: x | W21: x | X21: x | Y21: x | Z21: x | AA21: x | AB21: x | AC21: 75.0 | AD21: 77.0 | AE21: 74.0 | AF21: x | AG21: x | AH21: x | AI21: x | AJ21: x | AK21: x | AL21: x | AM21: x | AN21: x | AO21: x | AP21: x | AQ21: x | AR21: x | AS21: x | AT21: x | AU21: x | AV21: 83.5 | AW21: 77.0 | AX21: 90.0 | AY21: x | AZ21: x | BA21: x | BB21: x | BC21: x | BD21: x | BE21: x | BF21: x | BG21: x | BH21: x | BI21: x | BJ21: x | BK21: x | BL21: x | BM21: x | BN21: x | BO21: 83.5 | BP21: 77.0 | BQ21: 90.0 | BR21: 2 | BS21: - | BT21: - | BU21: - | BV21: - | BW21: - | BX21: - | BY21: - | BZ21: - | CA21: - | CB21: - | CC21: - | CD21: - | CE21: 1 | CF21: - | CG21: 1 | CH21: 2 | CI21: - | CJ21: - | CK21: - | CL21: - | CM21: - | CN21: - | CO21: - | CP21: - | CQ21: - | CR21: - | CS21: 1 | CT21: - | CU21: 1 | DC21: 7 | DD21: 5 | DE21: 2 | DF21: 3 | DG21: - | DH21: - | DI21: - | DJ21: 2 | DK21: 1 | DL21: 1 | DM21: - | DN21: - | DO21: - | DP21: - | DQ21: - | DR21: - | DS21: - | DT21: - | DU21: - | DV21: - | DW21: - | DX21: - | DY21: - | DZ21: - | EA21: 2 | EB21: 84 | EC21: 65 | ED21: 19 | EE21: - | EF21: 3 | EG21: 2 | EH21: 1 | EI21: 1 | EJ21: - | EK21: - | EL21: - | EM21: 1 | EN21: 4 | EO21: 3 | EP21: 1 | EQ21: 2 | ER21: - | ES21: - | ET21: - | EU21: 1
A22: 栃木県 | B22: 宇都宮市 | C22: 宇都宮市 | D22: 西原旭陵 | E22: 9 | F22: 3 | G22: 2 | H22: 2 | I22: - | J22: - | K22: 1 | L22: 6 | M22: 7 | N22: - | O22: - | P22: - | Q22: - | R22: - | S22: - | T22: 1 | U22: 1 | V22: 1 | W22: - | X22: - | Y22: 2 | Z22: - | AA22: 2 | AB22: - | AC22: 66.3 | AD22: 63.8 | AE22: 69.7 | AF22: 7 | AG22: - | AH22: - | AI22: - | AJ22: - | AK22: - | AL22: - | AM22: 1 | AN22: 1 | AO22: 1 | AP22: - | AQ22: - | AR22: 2 | AS22: - | AT22: 2 | AU22: - | AV22: 66.3 | AW22: 63.8 | AX22: 69.7 | AY22: 6 | AZ22: - | BA22: - | BB22: - | BC22: - | BD22: - | BE22: - | BF22: 1 | BG22: 1 | BH22: 1 | BI22: - | BJ22: - | BK22: 1 | BL22: - | BM22: 2 | BN22: - | BO22: 65.2 | BP22: 63.8 | BQ22: 68.0 | BR22: 3 | BS22: - | BT22: - | BU22: - | BV22: - | BW22: - | BX22: - | BY22: 1 | BZ22: - | CA22: 1 | CB22: - | CC22: - | CD22: 1 | CE22: - | CF22: - | CG22: - | CH22: - | CI22: - | CJ22: - | CK22: - | CL22: - | CM22: - | CN22: - | CO22: - | CP22: - | CQ22: - | CR22: - | CS22: - | CT22: - | CU22: - | DC22: 8 | DD22: 6 | DE22: 6 | DF22: - | DG22: - | DH22: 1 | DI22: - | DJ22: 1 | DK22: 3 | DL22: 2 | DM22: - | DN22: - | DO22: - | DP22: - | DQ22: 1 | DR22: - | DS22: - | DT22: - | DU22: - | DV22: - | DW22: - | DX22: - | DY22: - | DZ22: - | EA22: 3 | EB22: 371 | EC22: 330 | ED22: 41 | EE22: - | EF22: 4 | EG22: 4 | EH22: 4 | EI22: - | EJ22: - | EK22: - | EL22: - | EM22: - | EN22: 4 | EO22: 2 | EP22: 2 | EQ22: - | ER22: - | ES22: 1 | ET22: - | EU22: 1
A23: 栃木県 | B23: 宇都宮市 | C23: 宇都宮市 | D23: 西原宮隠 | E23: 20 | F23: 15 | G23: 3 | H23: 1 | I23: 4 | J23: 2 | K23: 8 | L23: 5 | M23: 36 | N23: - | O23: - | P23: 2 | Q23: 1 | R23: 2 | S23: 1 | T23: 8 | U23: 5 | V23: 2 | W23: 3 | X23: 3 | Y23: 5 | Z23: 3 | AA23: 1 | AB23: - | AC23: 55.7 | AD23: 54.4 | AE23: 57.1 | AF23: 21 | AG23: - | AH23: - | AI23: - | AJ23: 1 | AK23: 1 | AL23: - | AM23: 3 | AN23: 2 | AO23: 1 | AP23: 2 | AQ23: 2 | AR23: 5 | AS23: 3 | AT23: 1 | AU23: - | AV23: 62.0 | AW23: 60.9 | AX23: 62.8 | AY23: 12 | AZ23: - | BA23: - | BB23: - | BC23: 1 | BD23: - | BE23: - | BF23: 2 | BG23: 2 | BH23: 1 | BI23: 1 | BJ23: 1 | BK23: 4 | BL23: - | BM23: - | BN23: - | BO23: 58.8 | BP23: 55.0 | BQ23: 62.5 | BR23: 15 | BS23: - | BT23: - | BU23: - | BV23: - | BW23: - | BX23: - | BY23: 3 | BZ23: 3 | CA23: 2 | CB23: 2 | CC23: 1 | CD23: 2 | CE23: 1 | CF23: 1 | CG23: - | CH23: 5 | CI23: - | CJ23: - | CK23: - | CL23: - | CM23: - | CN23: 1 | CO23: 1 | CP23: - | CQ23: - | CR23: 2 | CS23: 1 | CT23: - | CU23: - | DC23: 47 | DD23: 26 | DE23: 12 | DF23: 13 | DG23: 1 | DH23: 7 | DI23: 4 | DJ23: 10 | DK23: 13 | DL23: 10 | DM23: - | DN23: - | DO23: - | DP23: 1 | DQ23: 2 | DR23: - | DS23: - | DT23: - | DU23: - | DV23: - | DW23: - | DX23: - | DY23: - | DZ23: - | EA23: 15 | EB23: 1,329 | EC23: 910 | ED23: 419 | EE23: - | EF23: 22 | EG23: 16 | EH23: 6 | EI23: 10 | EJ23: - | EK23: - | EL23: 2 | EM23: 4 | EN23: 25 | EO23: 10 | EP23: 6 | EQ23: 3 | ER23: 1 | ES23: 7 | ET23: 2 | EU23: 6
A24: 栃木県 | B24: 宇都宮市 | C24: 宇都宮市 | D24: 第六区下組 | E24: 6 | F24: 3 | G24: - | H24: - | I24: 1 | J24: - | K24: 2 | L24: 3 | M24: 11 | N24: - | O24: - | P24: - | Q24: - | R24: 1 | S24: 1 | T24: 3 | U24: - | V24: - | W24: - | X24: - | Y24: 3 | Z24: 3 | AA24: - | AB24: - | AC24: 60.0 | AD24: 59.8 | AE24: 60.2 | AF24: 6 | AG24: - | AH24: - | AI24: - | AJ24: - | AK24: - | AL24: - | AM24: 1 | AN24: - | AO24: - | AP24: - | AQ24: - | AR24: 2 | AS24: 3 | AT24: - | AU24: - | AV24: 69.5 | AW24: 68.8 | AX24: 71.0 | AY24: 4 | AZ24: - | BA24: - | BB24: - | BC24: - | BD24: - | BE24: - | BF24: 1 | BG24: - | BH24: - | BI24: - | BJ24: - | BK24: 1 | BL24: 2 | BM24: - | BN24: - | BO24: 67.5 | BP24: 66.3 | BQ24: 71.0 | BR24: 3 | BS24: - | BT24: - | BU24: - | BV24: - | BW24: - | BX24: - | BY24: - | BZ24: - | CA24: - | CB24: - | CC24: - | CD24: - | CE24: 3 | CF24: - | CG24: - | CH24: 2 | CI24: - | CJ24: - | CK24: - | CL24: - | CM24: - | CN24: - | CO24: - | CP24: - | CQ24: - | CR24: - | CS24: 2 | CT24: - | CU24: - | DC24: 12 | DD24: 9 | DE24: 4 | DF24: 2 | DG24: 3 | DH24: 1 | DI24: 1 | DJ24: 1 | DK24: 2 | DL24: 1 | DM24: - | DN24: - | DO24: - | DP24: 1 | DQ24: - | DR24: - | DS24: - | DT24: - | DU24: - | DV24: - | DW24: - | DX24: - | DY24: - | DZ24: - | EA24: 3 | EB24: 188 | EC24: 125 | ED24: 48 | EE24: 15 | EF24: 7 | EG24: 5 | EH24: 3 | EI24: 1 | EJ24: 1 | EK24: - | EL24: 1 | EM24: 1 | EN24: 5 | EO24: 4 | EP24: 1 | EQ24: 1 | ER24: 2 | ES24: 1 | ET24: - | EU24: -
A25: 栃木県 | B25: 宇都宮市 | C25: 宇都宮市 | D25: 第六区中組 | E25: 1 | F25: - | G25: - | H25: - | I25: - | J25: - | K25: - | L25: 1 | M25: - | N25: - | O25: - | P25: - | Q25: - | R25: - | S25: - | T25: - | U25: - | V25: - | W25: - | X25: - | Y25: - | Z25: - | AA25: - | AB25: - | AC25: … | AD25: … | AE25: … | AF25: - | AG25: - | AH25: - | AI25: - | AJ25: - | AK25: - | AL25: - | AM25: - | AN25: - | AO25: - | AP25: - | AQ25: - | AR25: - | AS25: - | AT25: - | AU25: - | AV25: … | AW25: … | AX25: … | AY25: - | AZ25: - | BA25: - | BB25: - | BC25: - | BD25: - | BE25: - | BF25: - | BG25: - | BH25: - | BI25: - | BJ25: - | BK25: - | BL25: - | BM25: - | BN25: - | BO25: … | BP25: … | BQ25: … | BR25: - | BS25: - | BT25: - | BU25: - | BV25: - | BW25: - | BX25: - | BY25: - | BZ25: - | CA25: - | CB25: - | CC25: - | CD25: - | CE25: - | CF25: - | CG25: - | CH25: - | CI25: - | CJ25: - | CK25: - | CL25: - | CM25: - | CN25: - | CO25: - | CP25: - | CQ25: - | CR25: - | CS25: - | CT25: - | CU25: - | DC25: - | DD25: - | DE25: - | DF25: - | DG25: - | DH25: - | DI25: - | DJ25: - | DK25: - | DL25: - | DM25: - | DN25: - | DO25: - | DP25: - | DQ25: - | DR25: - | DS25: - | DT25: - | DU25: - | DV25: - | DW25: - | DX25: - | DY25: - | DZ25: - | EA25: - | EB25: - | EC25: - | ED25: - | EE25: - | EF25: - | EG25: - | EH25: - | EI25: - | EJ25: - | EK25: - | EL25: - | EM25: - | EN25: - | EO25: - | EP25: - | EQ25: - | ER25: - | ES25: - | ET25: - | EU25: -
A26: 栃木県 | B26: 宇都宮市 | C26: 宇都宮市 | D26: 第六区上組 | E26: 1 | F26: 1 | G26: x | H26: x | I26: x | J26: x | K26: x | L26: - | M26: x | N26: x | O26: x | P26: x | Q26: x | R26: x | S26: x | T26: x | U26: x | V26: x | W26: x | X26: x | Y26: x | Z26: x | AA26: x | AB26: x | AC26: 42.9 | AD26: 41.8 | AE26: 44.3 | AF26: x | AG26: x | AH26: x | AI26: x | AJ26: x | AK26: x | AL26: x | AM26: x | AN26: x | AO26: x | AP26: x | AQ26: x | AR26: x | AS26: x | AT26: x | AU26: x | AV26: 42.9 | AW26: 41.8 | AX26: 44.3 | AY26: x | AZ26: x | BA26: x | BB26: x | BC26: x | BD26: x | BE26: x | BF26: x | BG26: x | BH26: x | BI26: x | BJ26: x | BK26: x | BL26: x | BM26: x | BN26: x | BO26: 47.0 | BP26: 47.0 | BQ26: … | BR26: 1 | BS26: - | BT26: - | BU26: - | BV26: - | BW26: - | BX26: - | BY26: 1 | BZ26: - | CA26: - | CB26: - | CC26: - | CD26: - | CE26: - | CF26: - | CG26: - | CH26: 1 | CI26: - | CJ26: - | CK26: - | CL26: - | CM26: 1 | CN26: - | CO26: - | CP26: - | CQ26: - | CR26: - | CS26: - | CT26: - | CU26: - | DC26: 7 | DD26: 1 | DE26: 1 | DF26: - | DG26: - | DH26: 1 | DI26: 3 | DJ26: 2 | DK26: 1 | DL26: 1 | DM26: - | DN26: - | DO26: - | DP26: - | DQ26: - | DR26: - | DS26: - | DT26: - | DU26: - | DV26: - | DW26: - | DX26: - | DY26: - | DZ26: - | EA26: 1 | EB26: 115 | EC26: 115 | ED26: - | EE26: - | EF26: 4 | EG26: 1 | EH26: 1 | EI26: - | EJ26: - | EK26: - | EL26: 2 | EM26: 1 | EN26: 3 | EO26: - | EP26: - | EQ26: - | ER26: - | ES26: 1 | ET26: 1 | EU26: 1
A27: 栃木県 | B27: 宇都宮市 | C27: 宇都宮市 | D27: 西原南部 | E27: 2 | F27: - | G27: - | H27: - | I27: - | J27: - | K27: - | L27: 2 | M27: - | N27: - | O27: - | P27: - | Q27: - | R27: - | S27: - | T27: - | U27: - | V27: - | W27: - | X27: - | Y27: - | Z27: - | AA27: - | AB27: - | AC27: … | AD27: … | AE27: … | AF27: - | AG27: - | AH27: - | AI27: - | AJ27: - | AK27: - | AL27: - | AM27: - | AN27: - | AO27: - | AP27: - | AQ27: - | AR27: - | AS27: - | AT27: - | AU27: - | AV27: … | AW27: … | AX27: … | AY27: - | AZ27: - | BA27: - | BB27: - | BC27: - | BD27: - | BE27: - | BF27: - | BG27: - | BH27: - | BI27: - | BJ27: - | BK27: - | BL27: - | BM27: - | BN27: - | BO27: … | BP27: … | BQ27: … | BR27: - | BS27: - | BT27: - | BU27: - | BV27: - | BW27: - | BX27: - | BY27: - | BZ27: - | CA27: - | CB27: - | CC27: - | CD27: - | CE27: - | CF27: - | CG27: - | CH27: - | CI27: - | CJ27: - | CK27: - | CL27: - | CM27: - | CN27: - | CO27: - | CP27: - | CQ27: - | CR27: - | CS27: - | CT27: - | CU27: - | DC27: - | DD27: - | DE27: - | DF27: - | DG27: - | DH27: - | DI27: - | DJ27: - | DK27: - | DL27: - | DM27: - | DN27: - | DO27: - | DP27: - | DQ27: - | DR27: - | DS27: - | DT27: - | DU27: - | DV27: - | DW27: - | DX27: - | DY27: - | DZ27: - | EA27: - | EB27: - | EC27: - | ED27: - | EE27: - | EF27: - | EG27: - | EH27: - | EI27: - | EJ27: - | EK27: - | EL27: - | EM27: - | EN27: - | EO27: - | EP27: - | EQ27: - | ER27: - | ES27: - | ET27: - | EU27: -
A28: 栃木県 | B28: 宇都宮市 | C28: 宇都宮市 | D28: 西原北部 | E28: - | F28: - | G28: - | H28: - | I28: - | J28: - | K28: - | L28: - | M28: - | N28: - | O28: - | P28: - | Q28: - | R28: - | S28: - | T28: - | U28: - | V28: - | W28: - | X28: - | Y28: - | Z28: - | AA28: - | AB28: - | AC28: … | AD28: … | AE28: … | AF28: - | AG28: - | AH28: - | AI28: - | AJ28: - | AK28: - | AL28: - | AM28: - | AN28: - | AO28: - | AP28: - | AQ28: - | AR28: - | AS28: - | AT28: - | AU28: - | AV28: … | AW28: … | AX28: … | AY28: - | AZ28: - | BA28: - | BB28: - | BC28: - | BD28: - | BE28: - | BF28: - | BG28: - | BH28: - | BI28: - | BJ28: - | BK28: - | BL28: - | BM28: - | BN28: - | BO28: … | BP28: … | BQ28: … | BR28: - | BS28: - | BT28: - | BU28: - | BV28: - | BW28: - | BX28: - | BY28: - | BZ28: - | CA28: - | CB28: - | CC28: - | CD28: - | CE28: - | CF28: - | CG28: - | CH28: - | CI28: - | CJ28: - | CK28: - | CL28: - | CM28: - | CN28: - | CO28: - | CP28: - | CQ28: - | CR28: - | CS28: - | CT28: - | CU28: - | DC28: - | DD28: - | DE28: - | DF28: - | DG28: - | DH28: - | DI28: - | DJ28: - | DK28: - | DL28: - | DM28: - | DN28: - | DO28: - | DP28: - | DQ28: - | DR28: - | DS28: - | DT28: - | DU28: - | DV28: - | DW28: - | DX28: - | DY28: - | DZ28: - | EA28: - | EB28: - | EC28: - | ED28: - | EE28: - | EF28: - | EG28: - | EH28: - | EI28: - | EJ28: - | EK28: - | EL28: - | EM28: - | EN28: - | EO28: - | EP28: - | EQ28: - | ER28: - | ES28: - | ET28: - | EU28: -
A29: 栃木県 | B29: 宇都宮市 | C29: 宇都宮市 | D29: 一の沢（北・南） | E29: 7 | F29: 2 | G29: x | H29: x | I29: x | J29: x | K29: x | L29: 5 | M29: x | N29: x | O29: x | P29: x | Q29: x | R29: x | S29: x | T29: x | U29: x | V29: x | W29: x | X29: x | Y29: x | Z29: x | AA29: x | AB29: x | AC29: 70.6 | AD29: 69.0 | AE29: 73.0 | AF29: x | AG29: x | AH29: x | AI29: x | AJ29: x | AK29: x | AL29: x | AM29: x | AN29: x | AO29: x | AP29: x | AQ29: x | AR29: x | AS29: x | AT29: x | AU29: x | AV29: 75.5 | AW29: 78.0 | AX29: 73.0 | AY29: x | AZ29: x | BA29: x | BB29: x | BC29: x | BD29: x | BE29: x | BF29: x | BG29: x | BH29: x | BI29: x | BJ29: x | BK29: x | BL29: x | BM29: x | BN29: x | BO29: 74.7 | BP29: 78.0 | BQ29: 68.0 | BR29: 2 | BS29: - | BT29: - | BU29: - | BV29: - | BW29: - | BX29: - | BY29: - | BZ29: - | CA29: - | CB29: - | CC29: - | CD29: 1 | CE29: - | CF29: 1 | CG29: - | CH29: 1 | CI29: - | CJ29: - | CK29: - | CL29: - | CM29: - | CN29: - | CO29: - | CP29: - | CQ29: - | CR29: - | CS29: - | CT29: 1 | CU29: - | DC29: 8 | DD29: 6 | DE29: 3 | DF29: 3 | DG29: - | DH29: 1 | DI29: - | DJ29: 1 | DK29: 2 | DL29: - | DM29: - | DN29: - | DO29: - | DP29: 2 | DQ29: - | DR29: - | DS29: - | DT29: - | DU29: - | DV29: - | DW29: - | DX29: - | DY29: - | DZ29: - | EA29: 2 | EB29: 120 | EC29: - | ED29: 80 | EE29: 40 | EF29: 4 | EG29: 4 | EH29: 2 | EI29: 2 | EJ29: - | EK29: - | EL29: - | EM29: - | EN29: 4 | EO29: 2 | EP29: 1 | EQ29: 1 | ER29: - | ES29: 1 | ET29: - | EU29: 1
A30: 栃木県 | B30: 宇都宮市 | C30: 宇都宮市 | D30: 戸祭２丁目 | E30: @ | F30: @ | G30: @ | H30: @ | I30: @ | J30: @ | K30: @ | L30: @ | M30: @ | N30: @ | O30: @ | P30: @ | Q30: @ | R30: @ | S30: @ | T30: @ | U30: @ | V30: @ | W30: @ | X30: @ | Y30: @ | Z30: @ | AA30: @ | AB30: @ | AC30: … | AD30: … | AE30: … | AF30: @ | AG30: @ | AH30: @ | AI30: @ | AJ30: @ | AK30: @ | AL30: @ | AM30: @ | AN30: @ | AO30: @ | AP30: @ | AQ30: @ | AR30: @ | AS30: @ | AT30: @ | AU30: @ | AV30: … | AW30: … | AX30: … | AY30: @ | AZ30: @ | BA30: @ | BB30: @ | BC30: @ | BD30: @ | BE30: @ | BF30: @ | BG30: @ | BH30: @ | BI30: @ | BJ30: @ | BK30: @ | BL30: @ | BM30: @ | BN30: @ | BO30: … | BP30: … | BQ30: … | BR30: - | BS30: - | BT30: - | BU30: - | BV30: - | BW30: - | BX30: - | BY30: - | BZ30: - | CA30: - | CB30: - | CC30: - | CD30: - | CE30: - | CF30: - | CG30: - | CH30: - | CI30: - | CJ30: - | CK30: - | CL30: - | CM30: - | CN30: - | CO30: - | CP30: - | CQ30: - | CR30: - | CS30: - | CT30: - | CU30: - | DC30: - | DD30: - | DE30: - | DF30: - | DG30: - | DH30: - | DI30: - | DJ30: - | DK30: - | DL30: - | DM30: - | DN30: - | DO30: - | DP30: - | DQ30: - | DR30: - | DS30: - | DT30: - | DU30: - | DV30: - | DW30: - | DX30: - | DY30: - | DZ30: - | EA30: - | EB30: - | EC30: - | ED30: - | EE30: - | EF30: - | EG30: - | EH30: - | EI30: - | EJ30: - | EK30: - | EL30: - | EM30: - | EN30: - | EO30: - | EP30: - | EQ30: - | ER30: - | ES30: - | ET30: - | EU30: -
A31: 栃木県 | B31: 宇都宮市 | C31: 宇都宮市 | D31: 戸祭西部 | E31: @ | F31: @ | G31: @ | H31: @ | I31: @ | J31: @ | K31: @ | L31: @ | M31: @ | N31: @ | O31: @ | P31: @ | Q31: @ | R31: @ | S31: @ | T31: @ | U31: @ | V31: @ | W31: @ | X31: @ | Y31: @ | Z31: @ | AA31: @ | AB31: @ | AC31: 55.0 | AD31: 57.0 | AE31: 53.0 | AF31: @ | AG31: @ | AH31: @ | AI31: @ | AJ31: @ | AK31: @ | AL31: @ | AM31: @ | AN31: @ | AO31: @ | AP31: @ | AQ31: @ | AR31: @ | AS31: @ | AT31: @ | AU31: @ | AV31: … | AW31: … | AX31: … | AY31: @ | AZ31: @ | BA31: @ | BB31: @ | BC31: @ | BD31: @ | BE31: @ | BF31: @ | BG31: @ | BH31: @ | BI31: @ | BJ31: @ | BK31: @ | BL31: @ | BM31: @ | BN31: @ | BO31: … | BP31: … | BQ31: … | BR31: 1 | BS31: - | BT31: - | BU31: - | BV31: - | BW31: - | BX31: - | BY31: - | BZ31: - | CA31: 1 | CB31: - | CC31: - | CD31: - | CE31: - | CF31: - | CG31: - | CH31: - | CI31: - | CJ31: - | CK31: - | CL31: - | CM31: - | CN31: - | CO31: - | CP31: - | CQ31: - | CR31: - | CS31: - | CT31: - | CU31: - | DC31: 4 | DD31: 1 | DE31: - | DF31: 1 | DG31: - | DH31: 1 | DI31: 2 | DJ31: - | DK31: 1 | DL31: 1 | DM31: - | DN31: - | DO31: - | DP31: - | DQ31: - | DR31: - | DS31: - | DT31: - | DU31: - | DV31: - | DW31: - | DX31: - | DY31: - | DZ31: - | EA31: 1 | EB31: 190 | EC31: 190 | ED31: - | EE31: - | EF31: 3 | EG31: 1 | EH31: - | EI31: 1 | EJ31: - | EK31: - | EL31: 2 | EM31: - | EN31: 1 | EO31: - | EP31: - | EQ31: - | ER31: - | ES31: 1 | ET31: - | EU31: -
A32: 栃木県 | B32: 宇都宮市 | C32: 宇都宮市 | D32: 戸祭元町 | E32: 3 | F32: 1 | G32: x | H32: x | I32: x | J32: x | K32: x | L32: 2 | M32: x | N32: x | O32: x | P32: x | Q32: x | R32: x | S32: x | T32: x | U32: x | V32: x | W32: x | X32: x | Y32: x | Z32: x | AA32: x | AB32: x | AC32: 69.0 | AD32: 69.0 | AE32: … | AF32: x | AG32: x | AH32: x | AI32: x | AJ32: x | AK32: x | AL32: x | AM32: x | AN32: x | AO32: x | AP32: x | AQ32: x | AR32: x | AS32: x | AT32: x | AU32: x | AV32: 69.0 | AW32: 69.0 | AX32: … | AY32: x | AZ32: x | BA32: x | BB32: x | BC32: x | BD32: x | BE32: x | BF32: x | BG32: x | BH32: x | BI32: x | BJ32: x | BK32: x | BL32: x | BM32: x | BN32: x | BO32: 69.0 | BP32: 69.0 | BQ32: … | BR32: 1 | BS32: - | BT32: - | BU32: - | BV32: - | BW32: - | BX32: - | BY32: - | BZ32: - | CA32: - | CB32: - | CC32: 1 | CD32: - | CE32: - | CF32: - | CG32: - | CH32: 1 | CI32: - | CJ32: - | CK32: - | CL32: - | CM32: - | CN32: - | CO32: - | CP32: - | CQ32: 1 | CR32: - | CS32: - | CT32: - | CU32: - | DC32: 1 | DD32: 1 | DE32: 1 | DF32: - | DG32: - | DH32: - | DI32: - | DJ32: - | DK32: - | DL32: - | DM32: - | DN32: - | DO32: - | DP32: - | DQ32: - | DR32: - | DS32: - | DT32: - | DU32: - | DV32: - | DW32: - | DX32: - | DY32: - | DZ32: - | EA32: 1 | EB32: 30 | EC32: 30 | ED32: - | EE32: - | EF32: 1 | EG32: 1 | EH32: 1 | EI32: - | EJ32: - | EK32: - | EL32: - | EM32: - | EN32: - | EO32: - | EP32: - | EQ32: - | ER32: - | ES32: - | ET32: - | EU32: -
A33: 栃木県 | B33: 宇都宮市 | C33: 宇都宮市 | D33: 大曽 | E33: 3 | F33: 2 | G33: x | H33: x | I33: x | J33: x | K33: x | L33: 1 | M33: x | N33: x | O33: x | P33: x | Q33: x | R33: x | S33: x | T33: x | U33: x | V33: x | W33: x | X33: x | Y33: x | Z33: x | AA33: x | AB33: x | AC33: 52.0 | AD33: 50.8 | AE33: 55.0 | AF33: x | AG33: x | AH33: x | AI33: x | AJ33: x | AK33: x | AL33: x | AM33: x | AN33: x | AO33: x | AP33: x | AQ33: x | AR33: x | AS33: x | AT33: x | AU33: x | AV33: 61.0 | AW33: 64.0 | AX33: 58.0 | AY33: x | AZ33: x | BA33: x | BB33: x | BC33: x | BD33: x | BE33: x | BF33: x | BG33: x | BH33: x | BI33: x | BJ33: x | BK33: x | BL33: x | BM33: x | BN33: x | BO33: 61.0 | BP33: 64.0 | BQ33: 58.0 | BR33: 2 | BS33: - | BT33: - | BU33: - | BV33: - | BW33: - | BX33: - | BY33: - | BZ33: - | CA33: - | CB33: 1 | CC33: - | CD33: - | CE33: - | CF33: - | CG33: 1 | CH33: 1 | CI33: - | CJ33: - | CK33: - | CL33: - | CM33: - | CN33: - | CO33: - | CP33: - | CQ33: - | CR33: - | CS33: - | CT33: - | CU33: 1 | DC33: 8 | DD33: 4 | DE33: 2 | DF33: 2 | DG33: - | DH33: 1 | DI33: 1 | DJ33: 2 | DK33: 2 | DL33: 2 | DM33: - | DN33: - | DO33: - | DP33: - | DQ33: - | DR33: - | DS33: - | DT33: - | DU33: - | DV33: - | DW33: - | DX33: - | DY33: - | DZ33: - | EA33: 2 | EB33: 355 | EC33: 308 | ED33: 47 | EE33: - | EF33: 5 | EG33: 3 | EH33: 1 | EI33: 2 | EJ33: - | EK33: - | EL33: 1 | EM33: 1 | EN33: 3 | EO33: 1 | EP33: 1 | EQ33: - | ER33: - | ES33: 1 | ET33: - | EU33: 1
A34: 栃木県 | B34: 宇都宮市 | C34: 横川村 | E34: 425 | F34: 311 | G34: 76 | H34: 61 | I34: 84 | J34: 28 | K34: 151 | L34: 114 | M34: 914 | N34: 22 | O34: 33 | P34: 40 | Q34: 25 | R34: 37 | S34: 60 | T34: 67 | U34: 87 | V34: 132 | W34: 98 | X34: 97 | Y34: 96 | Z34: 64 | AA34: 35 | AB34: 21 | AC34: 56.0 | AD34: 55.4 | AE34: 56.7 | AF34: 486 | AG34: 5 | AH34: 5 | AI34: 9 | AJ34: 6 | AK34: 13 | AL34: 16 | AM34: 17 | AN34: 35 | AO34: 59 | AP34: 54 | AQ34: 77 | AR34: 88 | AS34: 57 | AT34: 29 | AU34: 16 | AV34: 63.4 | AW34: 64.4 | AX34: 62.5 | AY34: 382 | AZ34: - | BA34: - | BB34: 7 | BC34: 6 | BD34: 11 | BE34: 13 | BF34: 15 | BG34: 32 | BH34: 52 | BI34: 47 | BJ34: 63 | BK34: 74 | BL34: 45 | BM34: 14 | BN34: 3 | BO34: 62.9 | BP34: 63.7 | BQ34: 61.9 | BR34: 311 | BS34: - | BT34: - | BU34: - | BV34: 1 | BW34: 2 | BX34: 9 | BY34: 17 | BZ34: 30 | CA34: 70 | CB34: 42 | CC34: 55 | CD34: 45 | CE34: 22 | CF34: 9 | CG34: 9 | CH34: 176 | CI34: - | CJ34: 1 | CK34: - | CL34: 1 | CM34: 5 | CN34: 12 | CO34: 37 | CP34: 17 | CQ34: 37 | CR34: 33 | CS34: 19 | CT34: 6 | CU34: 8 | DC34: 1,254 | DD34: 824 | DE34: 382 | DF34: 406 | DG34: 36 | DH34: 140 | DI34: 112 | DJ34: 178 | DK34: 288 | DL34: 235 | DM34: 4 | DN34: - | DO34: - | DP34: 12 | DQ34: 20 | DR34: 2 | DS34: 1 | DT34: 1 | DU34: 1 | DV34: 12 | DW34: - | DX34: - | DY34: - | DZ34: - | EA34: 311 | EB34: 60,169 | EC34: 54,827 | ED34: 5,091 | EE34: 251 | EF34: 614 | EG34: 492 | EH34: 208 | EI34: 258 | EJ34: 26 | EK34: 2 | EL34: 57 | EM34: 63 | EN34: 640 | EO34: 332 | EP34: 174 | EQ34: 148 | ER34: 10 | ES34: 138 | ET34: 55 | EU34: 115
A35: 栃木県 | B35: 宇都宮市 | C35: 横川村 | D35: 平松本町 | E35: 16 | F35: 2 | G35: x | H35: x | I35: x | J35: x | K35: x | L35: 14 | M35: x | N35: x | O35: x | P35: x | Q35: x | R35: x | S35: x | T35: x | U35: x | V35: x | W35: x | X35: x | Y35: x | Z35: x | AA35: x | AB35: x | AC35: 52.5 | AD35: 53.5 | AE35: 51.5 | AF35: x | AG35: x | AH35: x | AI35: x | AJ35: x | AK35: x | AL35: x | AM35: x | AN35: x | AO35: x | AP35: x | AQ35: x | AR35: x | AS35: x | AT35: x | AU35: x | AV35: 68.7 | AW35: 74.0 | AX35: 66.0 | AY35: x | AZ35: x | BA35: x | BB35: x | BC35: x | BD35: x | BE35: x | BF35: x | BG35: x | BH35: x | BI35: x | BJ35: x | BK35: x | BL35: x | BM35: x | BN35: x | BO35: 73.0 | BP35: 74.0 | BQ35: 72.0 | BR35: 2 | BS35: - | BT35: - | BU35: - | BV35: - | BW35: - | BX35: - | BY35: - | BZ35: - | CA35: 1 | CB35: - | CC35: - | CD35: 1 | CE35: - | CF35: - | CG35: - | CH35: 2 | CI35: - | CJ35: - | CK35: - | CL35: - | CM35: - | CN35: - | CO35: 1 | CP35: - | CQ35: - | CR35: 1 | CS35: - | CT35: - | CU35: - | DC35: 9 | DD35: 7 | DE35: 2 | DF35: 4 | DG35: 1 | DH35: 1 | DI35: - | DJ35: 1 | DK35: 2 | DL35: 2 | DM35: - | DN35: - | DO35: - | DP35: - | DQ35: - | DR35: - | DS35: - | DT35: - | DU35: - | DV35: - | DW35: - | DX35: - | DY35: - | DZ35: - | EA35: 2 | EB35: 270 | EC35: 240 | ED35: 30 | EE35: - | EF35: 5 | EG35: 4 | EH35: 1 | EI35: 2 | EJ35: 1 | EK35: - | EL35: - | EM35: 1 | EN35: 4 | EO35: 3 | EP35: 1 | EQ35: 2 | ER35: - | ES35: 1 | ET35: - | EU35: -
A36: 栃木県 | B36: 宇都宮市 | C36: 横川村 | D36: 下栗町１丁目 | E36: 23 | F36: 16 | G36: 4 | H36: 2 | I36: 7 | J36: 3 | K36: 5 | L36: 7 | M36: 60 | N36: 4 | O36: 8 | P36: 3 | Q36: 1 | R36: 5 | S36: 4 | T36: 2 | U36: 8 | V36: 11 | W36: 3 | X36: 5 | Y36: - | Z36: 2 | AA36: 2 | AB36: 2 | AC36: 47.7 | AD36: 47.6 | AE36: 47.8 | AF36: 27 | AG36: 1 | AH36: 2 | AI36: - | AJ36: - | AK36: 4 | AL36: - | AM36: - | AN36: 3 | AO36: 4 | AP36: 3 | AQ36: 4 | AR36: - | AS36: 2 | AT36: 2 | AU36: 2 | AV36: 57.0 | AW36: 59.5 | AX36: 52.7 | AY36: 19 | AZ36: - | BA36: - | BB36: - | BC36: - | BD36: 3 | BE36: - | BF36: - | BG36: 3 | BH36: 3 | BI36: 3 | BJ36: 4 | BK36: - | BL36: 2 | BM36: - | BN36: 1 | BO36: 59.6 | BP36: 62.1 | BQ36: 54.3 | BR36: 16 | BS36: - | BT36: - | BU36: - | BV36: - | BW36: - | BX36: 1 | BY36: - | BZ36: 1 | CA36: 8 | CB36: 2 | CC36: 3 | CD36: - | CE36: 1 | CF36: - | CG36: - | CH36: 13 | CI36: - | CJ36: - | CK36: - | CL36: 1 | CM36: - | CN36: 1 | CO36: 6 | CP36: 1 | CQ36: 3 | CR36: - | CS36: 1 | CT36: - | CU36: - | DC36: 81 | DD36: 42 | DE36: 19 | DF36: 22 | DG36: 1 | DH36: 8 | DI36: 13 | DJ36: 18 | DK36: 16 | DL36: 14 | DM36: 1 | DN36: - | DO36: - | DP36: - | DQ36: - | DR36: - | DS36: - | DT36: - | DU36: - | DV36: 1 | DW36: - | DX36: - | DY36: - | DZ36: - | EA36: 16 | EB36: 3,354 | EC36: 3,248 | ED36: 106 | EE36: - | EF36: 40 | EG36: 28 | EH36: 13 | EI36: 14 | EJ36: 1 | EK36: - | EL36: 8 | EM36: 4 | EN36: 41 | EO36: 14 | EP36: 6 | EQ36: 8 | ER36: - | ES36: 8 | ET36: 5 | EU36: 14
A37: 栃木県 | B37: 宇都宮市 | C37: 横川村 | D37: 下栗町２丁目 | E37: 37 | F37: 31 | G37: 11 | H37: 11 | I37: 12 | J37: 4 | K37: 8 | L37: 6 | M37: 78 | N37: 1 | O37: 2 | P37: 1 | Q37: 2 | R37: 3 | S37: 5 | T37: 7 | U37: 10 | V37: 9 | W37: 12 | X37: 12 | Y37: 6 | Z37: 4 | AA37: 2 | AB37: 2 | AC37: 57.2 | AD37: 56.5 | AE37: 58.0 | AF37: 51 | AG37: - | AH37: 2 | AI37: 1 | AJ37: 1 | AK37: 2 | AL37: 4 | AM37: 5 | AN37: 7 | AO37: 1 | AP37: 6 | AQ37: 9 | AR37: 6 | AS37: 4 | AT37: 2 | AU37: 1 | AV37: 58.2 | AW37: 59.0 | AX37: 57.3 | AY37: 45 | AZ37: - | BA37: - | BB37: - | BC37: 1 | BD37: 2 | BE37: 3 | BF37: 4 | BG37: 7 | BH37: 1 | BI37: 6 | BJ37: 9 | BK37: 6 | BL37: 4 | BM37: 1 | BN37: 1 | BO37: 60.6 | BP37: 62.0 | BQ37: 58.9 | BR37: 31 | BS37: - | BT37: - | BU37: - | BV37: - | BW37: - | BX37: 1 | BY37: 2 | BZ37: 6 | CA37: 6 | CB37: 5 | CC37: 8 | CD37: 1 | CE37: 2 | CF37: - | CG37: - | CH37: 18 | CI37: - | CJ37: - | CK37: - | CL37: - | CM37: 1 | CN37: 2 | CO37: 2 | CP37: 2 | CQ37: 8 | CR37: 1 | CS37: 2 | CT37: - | CU37: - | DC37: 124 | DD37: 84 | DE37: 45 | DF37: 34 | DG37: 5 | DH37: 14 | DI37: 15 | DJ37: 11 | DK37: 30 | DL37: 21 | DM37: - | DN37: - | DO37: - | DP37: 3 | DQ37: 5 | DR37: - | DS37: - | DT37: - | DU37: - | DV37: 1 | DW37: - | DX37: - | DY37: - | DZ37: - | EA37: 31 | EB37: 7,863 | EC37: 7,381 | ED37: 482 | EE37: - | EF37: 65 | EG37: 52 | EH37: 24 | EI37: 23 | EJ37: 5 | EK37: - | EL37: 11 | EM37: 2 | EN37: 59 | EO37: 32 | EP37: 21 | EQ37: 11 | ER37: - | ES37: 14 | ET37: 4 | EU37: 9
A38: 栃木県 | B38: 宇都宮市 | C38: 横川村 | D38: 下栗本町 | E38: 46 | F38: 40 | G38: 16 | H38: 12 | I38: 8 | J38: 3 | K38: 16 | L38: 6 | M38: 120 | N38: 4 | O38: 5 | P38: 4 | Q38: 5 | R38: 6 | S38: 5 | T38: 12 | U38: 13 | V38: 16 | W38: 9 | X38: 13 | Y38: 9 | Z38: 12 | AA38: 6 | AB38: 1 | AC38: 55.2 | AD38: 54.3 | AE38: 56.3 | AF38: 66 | AG38: 1 | AH38: - | AI38: - | AJ38: - | AK38: 2 | AL38: 1 | AM38: 6 | AN38: 8 | AO38: 6 | AP38: 6 | AQ38: 11 | AR38: 9 | AS38: 11 | AT38: 4 | AU38: 1 | AV38: 63.7 | AW38: 63.7 | AX38: 63.6 | AY38: 56 | AZ38: - | BA38: - | BB38: - | BC38: - | BD38: 2 | BE38: 1 | BF38: 6 | BG38: 8 | BH38: 6 | BI38: 6 | BJ38: 9 | BK38: 6 | BL38: 7 | BM38: 4 | BN38: 1 | BO38: 62.9 | BP38: 63.1 | BQ38: 62.8 | BR38: 40 | BS38: - | BT38: - | BU38: - | BV38: - | BW38: 1 | BX38: 1 | BY38: 4 | BZ38: 7 | CA38: 7 | CB38: 4 | CC38: 8 | CD38: 3 | CE38: 5 | CF38: - | CG38: - | CH38: 21 | CI38: - | CJ38: - | CK38: - | CL38: - | CM38: 1 | CN38: 3 | CO38: 5 | CP38: 1 | CQ38: 4 | CR38: 2 | CS38: 5 | CT38: - | CU38: - | DC38: 160 | DD38: 106 | DE38: 56 | DF38: 50 | DG38: - | DH38: 12 | DI38: 15 | DJ38: 27 | DK38: 37 | DL38: 25 | DM38: - | DN38: - | DO38: - | DP38: - | DQ38: 4 | DR38: - | DS38: - | DT38: - | DU38: - | DV38: 8 | DW38: - | DX38: - | DY38: - | DZ38: - | EA38: 40 | EB38: 7,716 | EC38: 6,848 | ED38: 832 | EE38: 36 | EF38: 80 | EG38: 57 | EH38: 27 | EI38: 30 | EJ38: - | EK38: - | EL38: 9 | EM38: 14 | EN38: 80 | EO38: 49 | EP38: 29 | EQ38: 20 | ER38: - | ES38: 12 | ET38: 6 | EU38: 13
A39: 栃木県 | B39: 宇都宮市 | C39: 横川村 | D39: さるやま町 | E39: 18 | F39: 10 | G39: 3 | H39: 3 | I39: 1 | J39: 1 | K39: 6 | L39: 8 | M39: 27 | N39: - | O39: - | P39: 3 | Q39: - | R39: - | S39: - | T39: 2 | U39: 2 | V39: 7 | W39: 4 | X39: 2 | Y39: 2 | Z39: 3 | AA39: 2 | AB39: - | AC39: 59.3 | AD39: 61.1 | AE39: 57.7 | AF39: 16 | AG39: - | AH39: - | AI39: 1 | AJ39: - | AK39: - | AL39: - | AM39: - | AN39: 1 | AO39: 5 | AP39: 2 | AQ39: - | AR39: 2 | AS39: 3 | AT39: 2 | AU39: - | AV39: 64.6 | AW39: 68.0 | AX39: 61.3 | AY39: 13 | AZ39: - | BA39: - | BB39: 1 | BC39: - | BD39: - | BE39: - | BF39: - | BG39: 1 | BH39: 4 | BI39: 2 | BJ39: - | BK39: 1 | BL39: 3 | BM39: 1 | BN39: - | BO39: 63.2 | BP39: 68.0 | BQ39: 55.4 | BR39: 10 | BS39: - | BT39: - | BU39: - | BV39: - | BW39: - | BX39: - | BY39: - | BZ39: - | CA39: 5 | CB39: 2 | CC39: - | CD39: 1 | CE39: 2 | CF39: - | CG39: - | CH39: 3 | CI39: - | CJ39: - | CK39: - | CL39: - | CM39: - | CN39: - | CO39: 1 | CP39: 1 | CQ39: - | CR39: - | CS39: 1 | CT39: - | CU39: - | DC39: 39 | DD39: 31 | DE39: 13 | DF39: 17 | DG39: 1 | DH39: 3 | DI39: 2 | DJ39: 3 | DK39: 8 | DL39: 6 | DM39: - | DN39: - | DO39: - | DP39: - | DQ39: - | DR39: - | DS39: - | DT39: - | DU39: - | DV39: 2 | DW39: - | DX39: - | DY39: - | DZ39: - | EA39: 10 | EB39: 2,813 | EC39: 2,477 | ED39: 336 | EE39: - | EF39: 16 | EG39: 15 | EH39: 8 | EI39: 6 | EJ39: 1 | EK39: - | EL39: - | EM39: 1 | EN39: 23 | EO39: 16 | EP39: 5 | EQ39: 11 | ER39: - | ES39: 3 | ET39: 2 | EU39: 2
A40: 栃木県 | B40: 宇都宮市 | C40: 横川村 | D40: 砂田町 | E40: 54 | F40: 40 | G40: 11 | H40: 9 | I40: 10 | J40: 1 | K40: 19 | L40: 14 | M40: 128 | N40: 3 | O40: 4 | P40: 13 | Q40: 3 | R40: 5 | S40: 10 | T40: 6 | U40: 12 | V40: 26 | W40: 13 | X40: 7 | Y40: 9 | Z40: 7 | AA40: 5 | AB40: 5 | AC40: 53.6 | AD40: 52.5 | AE40: 54.7 | AF40: 60 | AG40: 1 | AH40: - | AI40: 4 | AJ40: 2 | AK40: 1 | AL40: 5 | AM40: 2 | AN40: 3 | AO40: 11 | AP40: 3 | AQ40: 5 | AR40: 9 | AS40: 6 | AT40: 4 | AU40: 4 | AV40: 60.3 | AW40: 58.1 | AX40: 62.3 | AY40: 47 | AZ40: - | BA40: - | BB40: 3 | BC40: 2 | BD40: 1 | BE40: 5 | BF40: 2 | BG40: 3 | BH40: 10 | BI40: 2 | BJ40: 4 | BK40: 9 | BL40: 5 | BM40: 1 | BN40: - | BO40: 57.5 | BP40: 55.9 | BQ40: 59.7 | BR40: 40 | BS40: - | BT40: - | BU40: - | BV40: 1 | BW40: - | BX40: 1 | BY40: - | BZ40: 5 | CA40: 10 | CB40: 8 | CC40: 3 | CD40: 6 | CE40: 3 | CF40: 1 | CG40: 2 | CH40: 27 | CI40: - | CJ40: 1 | CK40: - | CL40: - | CM40: - | CN40: 3 | CO40: 6 | CP40: 4 | CQ40: 3 | CR40: 5 | CS40: 2 | CT40: 1 | CU40: 2 | DC40: 167 | DD40: 112 | DE40: 47 | DF40: 61 | DG40: 4 | DH40: 21 | DI40: 11 | DJ40: 23 | DK40: 36 | DL40: 31 | DM40: - | DN40: - | DO40: - | DP40: 1 | DQ40: 3 | DR40: - | DS40: 1 | DT40: - | DU40: - | DV40: - | DW40: - | DX40: - | DY40: - | DZ40: - | EA40: 40 | EB40: 5,893 | EC40: 5,580 | ED40: 313 | EE40: - | EF40: 81 | EG40: 68 | EH40: 27 | EI40: 38 | EJ40: 3 | EK40: - | EL40: 5 | EM40: 8 | EN40: 86 | EO40: 44 | EP40: 20 | EQ40: 23 | ER40: 1 | ES40: 21 | ET40: 6 | EU40: 15
A41: 栃木県 | B41: 宇都宮市 | C41: 横川村 | D41: 東横田 | E41: 25 | F41: 20 | G41: 2 | H41: 1 | I41: 10 | J41: 6 | K41: 8 | L41: 5 | M41: 59 | N41: 4 | O41: 1 | P41: 4 | Q41: 2 | R41: - | S41: 5 | T41: 6 | U41: 3 | V41: 9 | W41: 9 | X41: 4 | Y41: 8 | Z41: - | AA41: 2 | AB41: 2 | AC41: 53.8 | AD41: 51.6 | AE41: 56.5 | AF41: 26 | AG41: - | AH41: - | AI41: - | AJ41: - | AK41: - | AL41: 1 | AM41: - | AN41: 1 | AO41: 4 | AP41: 5 | AQ41: 4 | AR41: 7 | AS41: - | AT41: 2 | AU41: 2 | AV41: 67.2 | AW41: 65.4 | AX41: 69.0 | AY41: 22 | AZ41: - | BA41: - | BB41: - | BC41: - | BD41: - | BE41: 1 | BF41: - | BG41: 1 | BH41: 4 | BI41: 5 | BJ41: 3 | BK41: 6 | BL41: - | BM41: 2 | BN41: - | BO41: 65.1 | BP41: 64.7 | BQ41: 65.7 | BR41: 20 | BS41: - | BT41: - | BU41: - | BV41: - | BW41: - | BX41: - | BY41: 1 | BZ41: 2 | CA41: 4 | CB41: 4 | CC41: 2 | CD41: 5 | CE41: - | CF41: 1 | CG41: 1 | CH41: 12 | CI41: - | CJ41: - | CK41: - | CL41: - | CM41: - | CN41: - | CO41: 2 | CP41: 2 | CQ41: 2 | CR41: 4 | CS41: - | CT41: 1 | CU41: 1 | DC41: 78 | DD41: 56 | DE41: 22 | DF41: 33 | DG41: 1 | DH41: 3 | DI41: 3 | DJ41: 16 | DK41: 19 | DL41: 17 | DM41: - | DN41: - | DO41: - | DP41: 1 | DQ41: 1 | DR41: - | DS41: - | DT41: - | DU41: - | DV41: - | DW41: - | DX41: - | DY41: - | DZ41: - | EA41: 20 | EB41: 4,639 | EC41: 4,343 | ED41: 296 | EE41: - | EF41: 39 | EG41: 31 | EH41: 12 | EI41: 19 | EJ41: - | EK41: - | EL41: 1 | EM41: 7 | EN41: 39 | EO41: 25 | EP41: 10 | EQ41: 14 | ER41: 1 | ES41: 3 | ET41: 2 | EU41: 9
A42: 栃木県 | B42: 宇都宮市 | C42: 横川村 | D42: 屋板本町 | E42: 29 | F42: 26 | G42: 8 | H42: 8 | I42: 8 | J42: 1 | K42: 10 | L42: 3 | M42: 74 | N42: 1 | O42: 5 | P42: 1 | Q42: 2 | R42: - | S42: 5 | T42: 7 | U42: 11 | V42: 10 | W42: 7 | X42: 3 | Y42: 8 | Z42: 6 | AA42: 6 | AB42: 2 | AC42: 57.4 | AD42: 59.8 | AE42: 55.3 | AF42: 44 | AG42: 1 | AH42: 1 | AI42: 1 | AJ42: 1 | AK42: - | AL42: 1 | AM42: 1 | AN42: 5 | AO42: 5 | AP42: 6 | AQ42: 2 | AR42: 7 | AS42: 5 | AT42: 6 | AU42: 2 | AV42: 63.8 | AW42: 66.6 | AX42: 61.6 | AY42: 27 | AZ42: - | BA42: - | BB42: 1 | BC42: 1 | BD42: - | BE42: 1 | BF42: 1 | BG42: 4 | BH42: 4 | BI42: 5 | BJ42: 2 | BK42: 4 | BL42: 3 | BM42: 1 | BN42: - | BO42: 60.9 | BP42: 60.2 | BQ42: 61.6 | BR42: 26 | BS42: - | BT42: - | BU42: - | BV42: - | BW42: - | BX42: 2 | BY42: 2 | BZ42: 2 | CA42: 8 | CB42: 4 | CC42: - | CD42: 3 | CE42: 2 | CF42: 3 | CG42: - | CH42: 6 | CI42: - | CJ42: - | CK42: - | CL42: - | CM42: - | CN42: - | CO42: 2 | CP42: 1 | CQ42: - | CR42: 2 | CS42: 1 | CT42: - | CU42: - | DC42: 105 | DD42: 57 | DE42: 27 | DF42: 30 | DG42: - | DH42: 13 | DI42: 16 | DJ42: 19 | DK42: 26 | DL42: 20 | DM42: 1 | DN42: - | DO42: - | DP42: - | DQ42: 4 | DR42: - | DS42: - | DT42: 1 | DU42: - | DV42: - | DW42: - | DX42: - | DY42: - | DZ42: - | EA42: 26 | EB42: 6,783 | EC42: 6,469 | ED42: 254 | EE42: 60 | EF42: 47 | EG42: 33 | EH42: 13 | EI42: 20 | EJ42: - | EK42: - | EL42: 7 | EM42: 7 | EN42: 58 | EO42: 24 | EP42: 14 | EQ42: 10 | ER42: - | ES42: 13 | ET42: 9 | EU42: 12
A43: 栃木県 | B43: 宇都宮市 | C43: 横川村 | D43: 屋板町 | E43: 49 | F43: 33 | G43: 7 | H43: 5 | I43: 5 | J43: 3 | K43: 21 | L43: 16 | M43: 94 | N43: - | O43: 2 | P43: 3 | Q43: 3 | R43: 5 | S43: 9 | T43: 5 | U43: 8 | V43: 9 | W43: 13 | X43: 16 | Y43: 11 | Z43: 8 | AA43: 2 | AB43: - | AC43: 57.5 | AD43: 56.5 | AE43: 58.9 | AF43: 46 | AG43: - | AH43: - | AI43: - | AJ43: 1 | AK43: - | AL43: 1 | AM43: - | AN43: 1 | AO43: 3 | AP43: 10 | AQ43: 12 | AR43: 10 | AS43: 6 | AT43: 2 | AU43: - | AV43: 66.8 | AW43: 71.1 | AX43: 62.9 | AY43: 35 | AZ43: - | BA43: - | BB43: - | BC43: 1 | BD43: - | BE43: - | BF43: - | BG43: - | BH43: 1 | BI43: 10 | BJ43: 9 | BK43: 9 | BL43: 5 | BM43: - | BN43: - | BO43: 67.2 | BP43: 70.6 | BQ43: 62.1 | BR43: 33 | BS43: - | BT43: - | BU43: - | BV43: - | BW43: 1 | BX43: 2 | BY43: 2 | BZ43: 2 | CA43: 5 | CB43: 5 | CC43: 9 | CD43: 4 | CE43: 2 | CF43: 1 | CG43: - | CH43: 19 | CI43: - | CJ43: - | CK43: - | CL43: - | CM43: 1 | CN43: 1 | CO43: 3 | CP43: 3 | CQ43: 5 | CR43: 3 | CS43: 2 | CT43: 1 | CU43: - | DC43: 136 | DD43: 86 | DE43: 35 | DF43: 46 | DG43: 5 | DH43: 22 | DI43: 11 | DJ43: 17 | DK43: 30 | DL43: 28 | DM43: - | DN43: - | DO43: - | DP43: 1 | DQ43: - | DR43: - | DS43: - | DT43: - | DU43: 1 | DV43: - | DW43: - | DX43: - | DY43: - | DZ43: - | EA43: 33 | EB43: 6,166 | EC43: 5,638 | ED43: 523 | EE43: 5 | EF43: 65 | EG43: 58 | EH43: 21 | EI43: 33 | EJ43: 4 | EK43: - | EL43: 3 | EM43: 4 | EN43: 71 | EO43: 28 | EP43: 14 | EQ43: 13 | ER43: 1 | ES43: 22 | ET43: 8 | EU43: 13
A44: 栃木県 | B44: 宇都宮市 | C44: 横川村 | D44: 上横田 | E44: 20 | F44: 18 | G44: - | H44: - | I44: 4 | J44: 1 | K44: 14 | L44: 2 | M44: 57 | N44: 2 | O44: 2 | P44: 1 | Q44: 1 | R44: 2 | S44: 7 | T44: 7 | U44: 3 | V44: 2 | W44: 6 | X44: 7 | Y44: 10 | Z44: 5 | AA44: 1 | AB44: 1 | AC44: 56.3 | AD44: 54.3 | AE44: 58.7 | AF44: 22 | AG44: 1 | AH44: - | AI44: - | AJ44: - | AK44: - | AL44: - | AM44: 1 | AN44: - | AO44: - | AP44: - | AQ44: 6 | AR44: 9 | AS44: 3 | AT44: 1 | AU44: 1 | AV44: 68.7 | AW44: 71.9 | AX44: 66.5 | AY44: 16 | AZ44: - | BA44: - | BB44: - | BC44: - | BD44: - | BE44: - | BF44: 1 | BG44: - | BH44: - | BI44: - | BJ44: 5 | BK44: 7 | BL44: 2 | BM44: 1 | BN44: - | BO44: 70.2 | BP44: 71.9 | BQ44: 68.0 | BR44: 18 | BS44: - | BT44: - | BU44: - | BV44: - | BW44: - | BX44: - | BY44: 3 | BZ44: - | CA44: 1 | CB44: 3 | CC44: 5 | CD44: 4 | CE44: - | CF44: 1 | CG44: 1 | CH44: 11 | CI44: - | CJ44: - | CK44: - | CL44: - | CM44: 1 | CN44: - | CO44: - | CP44: - | CQ44: 4 | CR44: 4 | CS44: - | CT44: 1 | CU44: 1 | DC44: 75 | DD44: 51 | DE44: 16 | DF44: 32 | DG44: 3 | DH44: 7 | DI44: 7 | DJ44: 10 | DK44: 18 | DL44: 18 | DM44: - | DN44: - | DO44: - | DP44: - | DQ44: - | DR44: - | DS44: - | DT44: - | DU44: - | DV44: - | DW44: - | DX44: - | DY44: - | DZ44: - | EA44: 18 | EB44: 3,636 | EC44: 3,471 | ED44: 165 | EE44: - | EF44: 41 | EG44: 32 | EH44: 9 | EI44: 20 | EJ44: 3 | EK44: 1 | EL44: 6 | EM44: 2 | EN44: 34 | EO44: 19 | EP44: 7 | EQ44: 12 | ER44: - | ES44: 6 | ET44: 1 | EU44: 8
A45: 栃木県 | B45: 宇都宮市 | C45: 横川村 | D45: 台新田 | E45: 24 | F45: 15 | G45: 2 | H45: 1 | I45: 3 | J45: 1 | K45: 10 | L45: 9 | M45: 34 | N45: - | O45: - | P45: 1 | Q45: 1 | R45: - | S45: 2 | T45: 2 | U45: - | V45: 4 | W45: 3 | X45: 7 | Y45: 12 | Z45: 1 | AA45: - | AB45: 1 | AC45: 63.6 | AD45: 60.2 | AE45: 67.4 | AF45: 25 | AG45: - | AH45: - | AI45: - | AJ45: - | AK45: - | AL45: - | AM45: - | AN45: - | AO45: 4 | AP45: 3 | AQ45: 4 | AR45: 12 | AS45: 1 | AT45: - | AU45: 1 | AV45: 69.0 | AW45: 69.0 | AX45: 69.0 | AY45: 17 | AZ45: - | BA45: - | BB45: - | BC45: - | BD45: - | BE45: - | BF45: - | BG45: - | BH45: 4 | BI45: 3 | BJ45: 1 | BK45: 9 | BL45: - | BM45: - | BN45: - | BO45: 67.1 | BP45: 68.7 | BQ45: 64.7 | BR45: 15 | BS45: - | BT45: - | BU45: - | BV45: - | BW45: - | BX45: 1 | BY45: - | BZ45: - | CA45: 1 | CB45: 1 | CC45: 4 | CD45: 7 | CE45: - | CF45: - | CG45: 1 | CH45: 9 | CI45: - | CJ45: - | CK45: - | CL45: - | CM45: - | CN45: - | CO45: 1 | CP45: - | CQ45: 3 | CR45: 4 | CS45: - | CT45: - | CU45: 1 | DC45: 46 | DD45: 29 | DE45: 17 | DF45: 9 | DG45: 3 | DH45: 10 | DI45: 1 | DJ45: 6 | DK45: 14 | DL45: 13 | DM45: - | DN45: - | DO45: - | DP45: - | DQ45: 1 | DR45: - | DS45: - | DT45: - | DU45: - | DV45: - | DW45: - | DX45: - | DY45: - | DZ45: - | EA45: 15 | EB45: 1,275 | EC45: 1,040 | ED45: 235 | EE45: - | EF45: 23 | EG45: 19 | EH45: 10 | EI45: 6 | EJ45: 3 | EK45: 1 | EL45: 1 | EM45: 2 | EN45: 23 | EO45: 10 | EP45: 7 | EQ45: 3 | ER45: - | ES45: 9 | ET45: - | EU45: 4
A46: 栃木県 | B46: 宇都宮市 | C46: 横川村 | D46: 江曽島西 | E46: @ | F46: @ | G46: @ | H46: @ | I46: @ | J46: @ | K46: @ | L46: @ | M46: @ | N46: @ | O46: @ | P46: @ | Q46: @ | R46: @ | S46: @ | T46: @ | U46: @ | V46: @ | W46: @ | X46: @ | Y46: @ | Z46: @ | AA46: @ | AB46: @ | AC46: 67.6 | AD46: 71.8 | AE46: 63.7 | AF46: @ | AG46: @ | AH46: @ | AI46: @ | AJ46: @ | AK46: @ | AL46: @ | AM46: @ | AN46: @ | AO46: @ | AP46: @ | AQ46: @ | AR46: @ | AS46: @ | AT46: @ | AU46: @ | AV46: 74.5 | AW46: 77.6 | AX46: 71.4 | AY46: @ | AZ46: @ | BA46: @ | BB46: @ | BC46: @ | BD46: @ | BE46: @ | BF46: @ | BG46: @ | BH46: @ | BI46: @ | BJ46: @ | BK46: @ | BL46: @ | BM46: @ | BN46: @ | BO46: 73.4 | BP46: 74.5 | BQ46: 72.7 | BR46: 9 | BS46: - | BT46: - | BU46: - | BV46: - | BW46: - | BX46: - | BY46: - | BZ46: - | CA46: - | CB46: 2 | CC46: 2 | CD46: 2 | CE46: - | CF46: 2 | CG46: 1 | CH46: 3 | CI46: - | CJ46: - | CK46: - | CL46: - | CM46: - | CN46: - | CO46: - | CP46: - | CQ46: - | CR46: - | CS46: - | CT46: 2 | CU46: 1 | DC46: 35 | DD46: 24 | DE46: 5 | DF46: 16 | DG46: 3 | DH46: 5 | DI46: 1 | DJ46: 5 | DK46: 5 | DL46: 2 | DM46: - | DN46: - | DO46: - | DP46: 1 | DQ46: - | DR46: 2 | DS46: - | DT46: - | DU46: - | DV46: - | DW46: - | DX46: - | DY46: - | DZ46: - | EA46: 9 | EB46: 541 | EC46: 245 | ED46: 190 | EE46: 106 | EF46: 17 | EG46: 13 | EH46: 2 | EI46: 10 | EJ46: 1 | EK46: - | EL46: - | EM46: 4 | EN46: 18 | EO46: 11 | EP46: 3 | EQ46: 6 | ER46: 2 | ES46: 5 | ET46: 1 | EU46: 1
A47: 栃木県 | B47: 宇都宮市 | C47: 横川村 | D47: 江曽島中 | E47: 5 | F47: 4 | G47: 1 | H47: - | I47: - | J47: - | K47: 3 | L47: 1 | M47: 10 | N47: - | O47: - | P47: - | Q47: - | R47: - | S47: 1 | T47: 1 | U47: 1 | V47: - | W47: - | X47: 2 | Y47: 2 | Z47: 3 | AA47: - | AB47: - | AC47: 64.7 | AD47: 63.0 | AE47: 66.4 | AF47: 8 | AG47: - | AH47: - | AI47: - | AJ47: - | AK47: - | AL47: - | AM47: - | AN47: 1 | AO47: - | AP47: - | AQ47: 2 | AR47: 2 | AS47: 3 | AT47: - | AU47: - | AV47: 69.4 | AW47: 66.8 | AX47: 72.0 | AY47: 7 | AZ47: - | BA47: - | BB47: - | BC47: - | BD47: - | BE47: - | BF47: - | BG47: 1 | BH47: - | BI47: - | BJ47: 1 | BK47: 2 | BL47: 3 | BM47: - | BN47: - | BO47: 69.6 | BP47: 66.3 | BQ47: 72.0 | BR47: 4 | BS47: - | BT47: - | BU47: - | BV47: - | BW47: - | BX47: - | BY47: - | BZ47: 1 | CA47: - | CB47: - | CC47: 1 | CD47: 1 | CE47: 1 | CF47: - | CG47: - | CH47: 2 | CI47: - | CJ47: - | CK47: - | CL47: - | CM47: - | CN47: - | CO47: - | CP47: - | CQ47: - | CR47: 1 | CS47: 1 | CT47: - | CU47: - | DC47: 11 | DD47: 10 | DE47: 7 | DF47: 3 | DG47: - | DH47: - | DI47: - | DJ47: 1 | DK47: 2 | DL47: 1 | DM47: - | DN47: - | DO47: - | DP47: 1 | DQ47: - | DR47: - | DS47: - | DT47: - | DU47: - | DV47: - | DW47: - | DX47: - | DY47: - | DZ47: - | EA47: 4 | EB47: 408 | EC47: 179 | ED47: 229 | EE47: - | EF47: 6 | EG47: 5 | EH47: 3 | EI47: 2 | EJ47: - | EK47: - | EL47: - | EM47: 1 | EN47: 5 | EO47: 5 | EP47: 4 | EQ47: 1 | ER47: - | ES47: - | ET47: - | EU47: -
A48: 栃木県 | B48: 宇都宮市 | C48: 横川村 | D48: 江曽島東 | E48: 20 | F48: 14 | G48: 1 | H48: 1 | I48: 5 | J48: 1 | K48: 8 | L48: 6 | M48: 39 | N48: - | O48: 2 | P48: 2 | Q48: 1 | R48: 4 | S48: 1 | T48: 1 | U48: 2 | V48: 6 | W48: 3 | X48: 9 | Y48: 5 | Z48: 1 | AA48: - | AB48: 2 | AC48: 57.0 | AD48: 59.8 | AE48: 54.1 | AF48: 16 | AG48: - | AH48: - | AI48: - | AJ48: - | AK48: 1 | AL48: - | AM48: - | AN48: - | AO48: 1 | AP48: 2 | AQ48: 8 | AR48: 3 | AS48: 1 | AT48: - | AU48: - | AV48: 65.8 | AW48: 70.2 | AX48: 60.0 | AY48: 12 | AZ48: - | BA48: - | BB48: - | BC48: - | BD48: - | BE48: - | BF48: - | BG48: - | BH48: 1 | BI48: 1 | BJ48: 7 | BK48: 3 | BL48: - | BM48: - | BN48: - | BO48: 67.1 | BP48: 69.3 | BQ48: 62.8 | BR48: 14 | BS48: - | BT48: - | BU48: - | BV48: - | BW48: - | BX48: - | BY48: - | BZ48: 1 | CA48: 2 | CB48: - | CC48: 5 | CD48: 3 | CE48: 1 | CF48: - | CG48: 2 | CH48: 10 | CI48: - | CJ48: - | CK48: - | CL48: - | CM48: - | CN48: 1 | CO48: 1 | CP48: - | CQ48: 2 | CR48: 3 | CS48: 1 | CT48: - | CU48: 2 | DC48: 49 | DD48: 34 | DE48: 12 | DF48: 17 | DG48: 5 | DH48: 8 | DI48: 2 | DJ48: 5 | DK48: 13 | DL48: 11 | DM48: - | DN48: - | DO48: - | DP48: 2 | DQ48: - | DR48: - | DS48: - | DT48: - | DU48: - | DV48: - | DW48: - | DX48: - | DY48: - | DZ48: - | EA48: 14 | EB48: 1,506 | EC48: 999 | ED48: 475 | EE48: 32 | EF48: 25 | EG48: 23 | EH48: 8 | EI48: 13 | EJ48: 2 | EK48: - | EL48: - | EM48: 2 | EN48: 24 | EO48: 11 | EP48: 4 | EQ48: 4 | ER48: 3 | ES48: 8 | ET48: 2 | EU48: 3
A49: 栃木県 | B49: 宇都宮市 | C49: 横川村 | D49: 川田町本村 | E49: 13 | F49: 10 | G49: 5 | H49: 5 | I49: 3 | J49: 2 | K49: 2 | L49: 3 | M49: 38 | N49: 2 | O49: - | P49: 3 | Q49: 1 | R49: 2 | S49: 1 | T49: 2 | U49: 6 | V49: 8 | W49: 1 | X49: 1 | Y49: 2 | Z49: 6 | AA49: 3 | AB49: - | AC49: 55.0 | AD49: 56.1 | AE49: 53.8 | AF49: 28 | AG49: - | AH49: - | AI49: 2 | AJ49: - | AK49: 2 | AL49: 1 | AM49: 1 | AN49: 3 | AO49: 8 | AP49: 1 | AQ49: 1 | AR49: 2 | AS49: 6 | AT49: 1 | AU49: - | AV49: 58.5 | AW49: 60.3 | AX49: 56.8 | AY49: 26 | AZ49: - | BA49: - | BB49: 2 | BC49: - | BD49: 2 | BE49: 1 | BF49: 1 | BG49: 2 | BH49: 8 | BI49: - | BJ49: 1 | BK49: 2 | BL49: 6 | BM49: 1 | BN49: - | BO49: 58.7 | BP49: 60.3 | BQ49: 56.8 | BR49: 10 | BS49: - | BT49: - | BU49: - | BV49: - | BW49: - | BX49: - | BY49: 1 | BZ49: 2 | CA49: 5 | CB49: - | CC49: 1 | CD49: - | CE49: 1 | CF49: - | CG49: - | CH49: 5 | CI49: - | CJ49: - | CK49: - | CL49: - | CM49: 1 | CN49: 1 | CO49: 2 | CP49: - | CQ49: - | CR49: - | CS49: 1 | CT49: - | CU49: - | DC49: 52 | DD49: 36 | DE49: 26 | DF49: 8 | DG49: 2 | DH49: 3 | DI49: 7 | DJ49: 6 | DK49: 10 | DL49: 7 | DM49: 1 | DN49: - | DO49: - | DP49: 1 | DQ49: 1 | DR49: - | DS49: - | DT49: - | DU49: - | DV49: - | DW49: - | DX49: - | DY49: - | DZ49: - | EA49: 10 | EB49: 2,467 | EC49: 2,078 | ED49: 377 | EE49: 12 | EF49: 24 | EG49: 20 | EH49: 14 | EI49: 5 | EJ49: 1 | EK49: - | EL49: 2 | EM49: 2 | EN49: 28 | EO49: 16 | EP49: 12 | EQ49: 3 | ER49: 1 | ES49: 3 | ET49: 5 | EU49: 4
A50: 栃木県 | B50: 宇都宮市 | C50: 横川村 | D50: 川田町本郷 | E50: 15 | F50: 12 | G50: 2 | H50: 1 | I50: 3 | J50: - | K50: 7 | L50: 3 | M50: 39 | N50: 1 | O50: 2 | P50: - | Q50: 1 | R50: 1 | S50: 5 | T50: 3 | U50: 5 | V50: 5 | W50: 3 | X50: 1 | Y50: 6 | Z50: 5 | AA50: 1 | AB50: - | AC50: 55.5 | AD50: 52.1 | AE50: 59.2 | AF50: 21 | AG50: - | AH50: - | AI50: - | AJ50: - | AK50: 1 | AL50: 2 | AM50: - | AN50: 1 | AO50: 3 | AP50: 2 | AQ50: 1 | AR50: 6 | AS50: 5 | AT50: - | AU50: - | AV50: 64.0 | AW50: 66.3 | AX50: 62.5 | AY50: 20 | AZ50: - | BA50: - | BB50: - | BC50: - | BD50: 1 | BE50: 1 | BF50: - | BG50: 1 | BH50: 3 | BI50: 2 | BJ50: 1 | BK50: 6 | BL50: 5 | BM50: - | BN50: - | BO50: 65.1 | BP50: 66.3 | BQ50: 64.3 | BR50: 12 | BS50: - | BT50: - | BU50: - | BV50: - | BW50: - | BX50: - | BY50: 2 | BZ50: 1 | CA50: 2 | CB50: 1 | CC50: 1 | CD50: 3 | CE50: 2 | CF50: - | CG50: - | CH50: 8 | CI50: - | CJ50: - | CK50: - | CL50: - | CM50: - | CN50: - | CO50: 2 | CP50: 1 | CQ50: 1 | CR50: 2 | CS50: 2 | CT50: - | CU50: - | DC50: 50 | DD50: 35 | DE50: 20 | DF50: 15 | DG50: - | DH50: 5 | DI50: 6 | DJ50: 4 | DK50: 12 | DL50: 12 | DM50: - | DN50: - | DO50: - | DP50: - | DQ50: - | DR50: - | DS50: - | DT50: - | DU50: - | DV50: - | DW50: - | DX50: - | DY50: - | DZ50: - | EA50: 12 | EB50: 1,591 | EC50: 1,416 | ED50: 175 | EE50: - | EF50: 23 | EG50: 19 | EH50: 8 | EI50: 11 | EJ50: - | EK50: - | EL50: 3 | EM50: 1 | EN50: 27 | EO50: 16 | EP50: 12 | EQ50: 4 | ER50: - | ES50: 5 | ET50: 3 | EU50: 3
A51: 栃木県 | B51: 宇都宮市 | C51: 横川村 | D51: 川田町大城内 | E51: 11 | F51: 10 | G51: 3 | H51: 2 | I51: 3 | J51: 1 | K51: 4 | L51: 1 | M51: 27 | N51: - | O51: - | P51: 1 | Q51: 2 | R51: 1 | S51: - | T51: 2 | U51: 2 | V51: 8 | W51: 3 | X51: 6 | Y51: 1 | Z51: - | AA51: - | AB51: 1 | AC51: 56.9 | AD51: 56.6 | AE51: 57.2 | AF51: 16 | AG51: - | AH51: - | AI51: - | AJ51: 1 | AK51: - | AL51: - | AM51: 1 | AN51: 1 | AO51: 4 | AP51: 2 | AQ51: 6 | AR51: 1 | AS51: - | AT51: - | AU51: - | AV51: 60.4 | AW51: 59.8 | AX51: 61.1 | AY51: 13 | AZ51: - | BA51: - | BB51: - | BC51: 1 | BD51: - | BE51: - | BF51: - | BG51: 1 | BH51: 3 | BI51: 1 | BJ51: 6 | BK51: 1 | BL51: - | BM51: - | BN51: - | BO51: 61.5 | BP51: 59.8 | BQ51: 64.4 | BR51: 10 | BS51: - | BT51: - | BU51: - | BV51: - | BW51: - | BX51: - | BY51: - | BZ51: - | CA51: 5 | CB51: 1 | CC51: 3 | CD51: 1 | CE51: - | CF51: - | CG51: - | CH51: 7 | CI51: - | CJ51: - | CK51: - | CL51: - | CM51: - | CN51: - | CO51: 3 | CP51: 1 | CQ51: 2 | CR51: 1 | CS51: - | CT51: - | CU51: - | DC51: 36 | DD51: 24 | DE51: 13 | DF51: 9 | DG51: 2 | DH51: 5 | DI51: 2 | DJ51: 5 | DK51: 10 | DL51: 7 | DM51: 1 | DN51: - | DO51: - | DP51: 1 | DQ51: 1 | DR51: - | DS51: - | DT51: - | DU51: - | DV51: - | DW51: - | DX51: - | DY51: - | DZ51: - | EA51: 10 | EB51: 3,166 | EC51: 3,128 | ED51: 38 | EE51: - | EF51: 16 | EG51: 15 | EH51: 8 | EI51: 6 | EJ51: 1 | EK51: - | EL51: 1 | EM51: - | EN51: 20 | EO51: 9 | EP51: 5 | EQ51: 3 | ER51: 1 | ES51: 5 | ET51: 1 | EU51: 5
A52: 栃木県 | B52: 宇都宮市 | C52: 横川村 | D52: 宮原 | E52: - | F52: - | G52: - | H52: - | I52: - | J52: - | K52: - | L52: - | M52: - | N52: - | O52: - | P52: - | Q52: - | R52: - | S52: - | T52: - | U52: - | V52: - | W52: - | X52: - | Y52: - | Z52: - | AA52: - | AB52: - | AC52: … | AD52: … | AE52: … | AF52: - | AG52: - | AH52: - | AI52: - | AJ52: - | AK52: - | AL52: - | AM52: - | AN52: - | AO52: - | AP52: - | AQ52: - | AR52: - | AS52: - | AT52: - | AU52: - | AV52: … | AW52: … | AX52: … | AY52: - | AZ52: - | BA52: - | BB52: - | BC52: - | BD52: - | BE52: - | BF52: - | BG52: - | BH52: - | BI52: - | BJ52: - | BK52: - | BL52: - | BM52: - | BN52: - | BO52: … | BP52: … | BQ52: … | BR52: - | BS52: - | BT52: - | BU52: - | BV52: - | BW52: - | BX52: - | BY52: - | BZ52: - | CA52: - | CB52: - | CC52: - | CD52: - | CE52: - | CF52: - | CG52: - | CH52: - | CI52: - | CJ52: - | CK52: - | CL52: - | CM52: - | CN52: - | CO52: - | CP52: - | CQ52: - | CR52: - | CS52: - | CT52: - | CU52: - | DC52: - | DD52: - | DE52: - | DF52: - | DG52: - | DH52: - | DI52: - | DJ52: - | DK52: - | DL52: - | DM52: - | DN52: - | DO52: - | DP52: - | DQ52: - | DR52: - | DS52: - | DT52: - | DU52: - | DV52: - | DW52: - | DX52: - | DY52: - | DZ52: - | EA52: - | EB52: - | EC52: - | ED52: - | EE52: - | EF52: - | EG52: - | EH52: - | EI52: - | EJ52: - | EK52: - | EL52: - | EM52: - | EN52: - | EO52: - | EP52: - | EQ52: - | ER52: - | ES52: - | ET52: - | EU52: -
A53: 栃木県 | B53: 宇都宮市 | C53: 横川村 | D53: 双葉 | E53: 1 | F53: 1 | G53: x | H53: x | I53: x | J53: x | K53: x | L53: - | M53: x | N53: x | O53: x | P53: x | Q53: x | R53: x | S53: x | T53: x | U53: x | V53: x | W53: x | X53: x | Y53: x | Z53: x | AA53: x | AB53: x | AC53: 85.0 | AD53: 85.0 | AE53: … | AF53: x | AG53: x | AH53: x | AI53: x | AJ53: x | AK53: x | AL53: x | AM53: x | AN53: x | AO53: x | AP53: x | AQ53: x | AR53: x | AS53: x | AT53: x | AU53: x | AV53: 85.0 | AW53: 85.0 | AX53: … | AY53: x | AZ53: x | BA53: x | BB53: x | BC53: x | BD53: x | BE53: x | BF53: x | BG53: x | BH53: x | BI53: x | BJ53: x | BK53: x | BL53: x | BM53: x | BN53: x | BO53: … | BP53: … | BQ53: … | BR53: 1 | BS53: - | BT53: - | BU53: - | BV53: - | BW53: - | BX53: - | BY53: - | BZ53: - | CA53: - | CB53: - | CC53: - | CD53: - | CE53: - | CF53: - | CG53: 1 | CH53: - | CI53: - | CJ53: - | CK53: - | CL53: - | CM53: - | CN53: - | CO53: - | CP53: - | CQ53: - | CR53: - | CS53: - | CT53: - | CU53: - | DC53: 1 | DD53: - | DE53: - | DF53: - | DG53: - | DH53: - | DI53: - | DJ53: 1 | DK53: - | DL53: - | DM53: - | DN53: - | DO53: - | DP53: - | DQ53: - | DR53: - | DS53: - | DT53: - | DU53: - | DV53: - | DW53: - | DX53: - | DY53: - | DZ53: - | EA53: 1 | EB53: 82 | EC53: 47 | ED53: 35 | EE53: - | EF53: 1 | EG53: - | EH53: - | EI53: - | EJ53: - | EK53: - | EL53: - | EM53: 1 | EN53: - | EO53: - | EP53: - | EQ53: - | ER53: - | ES53: - | ET53: - | EU53: -
A54: 栃木県 | B54: 宇都宮市 | C54: 平石村 | E54: 486 | F54: 395 | G54: 67 | H54: 50 | I54: 130 | J54: 47 | K54: 198 | L54: 91 | M54: 1,129 | N54: 16 | O54: 37 | P54: 56 | Q54: 46 | R54: 55 | S54: 63 | T54: 79 | U54: 126 | V54: 149 | W54: 123 | X54: 89 | Y54: 108 | Z54: 98 | AA54: 53 | AB54: 31 | AC54: 56.2 | AD54: 55.4 | AE54: 57.1 | AF54: 579 | AG54: 5 | AH54: 3 | AI54: 5 | AJ54: 12 | AK54: 14 | AL54: 10 | AM54: 31 | AN54: 39 | AO54: 54 | AP54: 79 | AQ54: 71 | AR54: 94 | AS54: 85 | AT54: 49 | AU54: 28 | AV54: 64.9 | AW54: 65.6 | AX54: 64.2 | AY54: 449 | AZ54: - | BA54: - | BB54: 1 | BC54: 7 | BD54: 9 | BE54: 5 | BF54: 26 | BG54: 32 | BH54: 42 | BI54: 70 | BJ54: 68 | BK54: 84 | BL54: 65 | BM54: 31 | BN54: 9 | BO54: 65.3 | BP54: 65.6 | BQ54: 64.9 | BR54: 395 | BS54: - | BT54: - | BU54: 1 | BV54: 3 | BW54: 4 | BX54: 7 | BY54: 26 | BZ54: 54 | CA54: 67 | CB54: 71 | CC54: 45 | CD54: 57 | CE54: 34 | CF54: 17 | CG54: 9 | CH54: 244 | CI54: - | CJ54: - | CK54: 1 | CL54: 1 | CM54: 12 | CN54: 27 | CO54: 40 | CP54: 49 | CQ54: 30 | CR54: 40 | CS54: 26 | CT54: 12 | CU54: 6 | DC54: 1,567 | DD54: 1,077 | DE54: 449 | DF54: 554 | DG54: 74 | DH54: 157 | DI54: 119 | DJ54: 214 | DK54: 378 | DL54: 332 | DM54: 3 | DN54: - | DO54: - | DP54: 2 | DQ54: 13 | DR54: 16 | DS54: 8 | DT54: - | DU54: 1 | DV54: 3 | DW54: - | DX54: - | DY54: - | DZ54: - | EA54: 395 | EB54: 74,047 | EC54: 67,815 | ED54: 3,820 | EE54: 2,412 | EF54: 769 | EG54: 640 | EH54: 252 | EI54: 338 | EJ54: 50 | EK54: 1 | EL54: 55 | EM54: 73 | EN54: 798 | EO54: 437 | EP54: 197 | EQ54: 216 | ER54: 24 | ES54: 156 | ET54: 64 | EU54: 141
A55: 栃木県 | B55: 宇都宮市 | C55: 平石村 | D55: 御幸本町 | E55: 5 | F55: 1 | G55: x | H55: x | I55: x | J55: x | K55: x | L55: 4 | M55: x | N55: x | O55: x | P55: x | Q55: x | R55: x | S55: x | T55: x | U55: x | V55: x | W55: x | X55: x | Y55: x | Z55: x | AA55: x | AB55: x | AC55: 46.0 | AD55: 46.0 | AE55: … | AF55: x | AG55: x | AH55: x | AI55: x | AJ55: x | AK55: x | AL55: x | AM55: x | AN55: x | AO55: x | AP55: x | AQ55: x | AR55: x | AS55: x | AT55: x | AU55: x | AV55: … | AW55: … | AX55: … | AY55: x | AZ55: x | BA55: x | BB55: x | BC55: x | BD55: x | BE55: x | BF55: x | BG55: x | BH55: x | BI55: x | BJ55: x | BK55: x | BL55: x | BM55: x | BN55: x | BO55: … | BP55: … | BQ55: … | BR55: 1 | BS55: - | BT55: - | BU55: - | BV55: - | BW55: - | BX55: - | BY55: 1 | BZ55: - | CA55: - | CB55: - | CC55: - | CD55: - | CE55: - | CF55: - | CG55: - | CH55: - | CI55: - | CJ55: - | CK55: - | CL55: - | CM55: - | CN55: - | CO55: - | CP55: - | CQ55: - | CR55: - | CS55: - | CT55: - | CU55: - | DC55: 1 | DD55: 1 | DE55: - | DF55: 1 | DG55: - | DH55: - | DI55: - | DJ55: - | DK55: - | DL55: - | DM55: - | DN55: - | DO55: - | DP55: - | DQ55: - | DR55: - | DS55: - | DT55: - | DU55: - | DV55: - | DW55: - | DX55: - | DY55: - | DZ55: - | EA55: 1 | EB55: 300 | EC55: 200 | ED55: 100 | EE55: - | EF55: 1 | EG55: 1 | EH55: - | EI55: 1 | EJ55: - | EK55: - | EL55: - | EM55: - | EN55: - | EO55: - | EP55: - | EQ55: - | ER55: - | ES55: - | ET55: - | EU55: -
A56: 栃木県 | B56: 宇都宮市 | C56: 平石村 | D56: 鶉内 | E56: 28 | F56: 25 | G56: 4 | H56: 3 | I56: 10 | J56: 6 | K56: 11 | L56: 3 | M56: 85 | N56: - | O56: 6 | P56: 6 | Q56: 5 | R56: 5 | S56: 5 | T56: 3 | U56: 6 | V56: 14 | W56: 8 | X56: 2 | Y56: 10 | Z56: 9 | AA56: 4 | AB56: 2 | AC56: 54.6 | AD56: 54.3 | AE56: 54.8 | AF56: 41 | AG56: - | AH56: 1 | AI56: - | AJ56: 3 | AK56: 1 | AL56: - | AM56: 1 | AN56: 2 | AO56: 6 | AP56: 8 | AQ56: 2 | AR56: 5 | AS56: 6 | AT56: 4 | AU56: 2 | AV56: 63.5 | AW56: 63.1 | AX56: 63.9 | AY56: 30 | AZ56: - | BA56: - | BB56: - | BC56: 2 | BD56: 1 | BE56: - | BF56: - | BG56: 2 | BH56: 5 | BI56: 8 | BJ56: 2 | BK56: 5 | BL56: 4 | BM56: 1 | BN56: - | BO56: 62.3 | BP56: 61.8 | BQ56: 63.0 | BR56: 25 | BS56: - | BT56: - | BU56: - | BV56: - | BW56: - | BX56: - | BY56: 1 | BZ56: 3 | CA56: 4 | CB56: 6 | CC56: 2 | CD56: 4 | CE56: 3 | CF56: 2 | CG56: - | CH56: 19 | CI56: - | CJ56: - | CK56: - | CL56: - | CM56: 1 | CN56: 2 | CO56: 3 | CP56: 5 | CQ56: 1 | CR56: 3 | CS56: 3 | CT56: 1 | CU56: - | DC56: 107 | DD56: 70 | DE56: 30 | DF56: 34 | DG56: 6 | DH56: 12 | DI56: 7 | DJ56: 18 | DK56: 24 | DL56: 20 | DM56: 1 | DN56: - | DO56: - | DP56: 1 | DQ56: - | DR56: 1 | DS56: 1 | DT56: - | DU56: - | DV56: - | DW56: - | DX56: - | DY56: - | DZ56: - | EA56: 25 | EB56: 5,114 | EC56: 4,785 | ED56: 54 | EE56: 275 | EF56: 52 | EG56: 43 | EH56: 18 | EI56: 21 | EJ56: 4 | EK56: - | EL56: 2 | EM56: 7 | EN56: 55 | EO56: 27 | EP56: 12 | EQ56: 13 | ER56: 2 | ES56: 12 | ET56: 5 | EU56: 11
A57: 栃木県 | B57: 宇都宮市 | C57: 平石村 | D57: 北組 | E57: 17 | F57: 16 | G57: 3 | H57: 2 | I57: 3 | J57: - | K57: 10 | L57: 1 | M57: 49 | N57: - | O57: 1 | P57: 3 | Q57: 3 | R57: - | S57: 1 | T57: 5 | U57: 5 | V57: 5 | W57: 7 | X57: 3 | Y57: 2 | Z57: 6 | AA57: 5 | AB57: 3 | AC57: 59.7 | AD57: 59.8 | AE57: 59.7 | AF57: 26 | AG57: - | AH57: - | AI57: 2 | AJ57: 1 | AK57: - | AL57: - | AM57: 1 | AN57: 2 | AO57: 1 | AP57: 2 | AQ57: 3 | AR57: 2 | AS57: 5 | AT57: 5 | AU57: 2 | AV57: 67.0 | AW57: 67.8 | AX57: 66.3 | AY57: 17 | AZ57: - | BA57: - | BB57: - | BC57: - | BD57: - | BE57: - | BF57: - | BG57: 2 | BH57: 1 | BI57: 1 | BJ57: 3 | BK57: 2 | BL57: 4 | BM57: 3 | BN57: 1 | BO57: 71.4 | BP57: 70.1 | BQ57: 73.3 | BR57: 16 | BS57: - | BT57: - | BU57: - | BV57: - | BW57: - | BX57: - | BY57: 1 | BZ57: 4 | CA57: - | CB57: 6 | CC57: 2 | CD57: 1 | CE57: 1 | CF57: 1 | CG57: - | CH57: 10 | CI57: - | CJ57: - | CK57: - | CL57: - | CM57: - | CN57: 1 | CO57: - | CP57: 5 | CQ57: 2 | CR57: - | CS57: 1 | CT57: 1 | CU57: - | DC57: 62 | DD57: 40 | DE57: 17 | DF57: 18 | DG57: 5 | DH57: 6 | DI57: 5 | DJ57: 11 | DK57: 15 | DL57: 14 | DM57: - | DN57: - | DO57: - | DP57: - | DQ57: - | DR57: 1 | DS57: - | DT57: - | DU57: - | DV57: - | DW57: - | DX57: - | DY57: - | DZ57: - | EA57: 16 | EB57: 2,610 | EC57: 2,437 | ED57: 23 | EE57: 150 | EF57: 32 | EG57: 24 | EH57: 10 | EI57: 11 | EJ57: 3 | EK57: - | EL57: 2 | EM57: 6 | EN57: 30 | EO57: 16 | EP57: 7 | EQ57: 7 | ER57: 2 | ES57: 6 | ET57: 3 | EU57: 5
A58: 栃木県 | B58: 宇都宮市 | C58: 平石村 | D58: 東組 | E58: 13 | F58: 11 | G58: 2 | H58: 2 | I58: 4 | J58: - | K58: 5 | L58: 2 | M58: 35 | N58: - | O58: 1 | P58: 3 | Q58: 1 | R58: 2 | S58: 3 | T58: 1 | U58: 4 | V58: 3 | W58: 6 | X58: 1 | Y58: 6 | Z58: 2 | AA58: - | AB58: 2 | AC58: 55.9 | AD58: 56.6 | AE58: 55.1 | AF58: 19 | AG58: - | AH58: - | AI58: - | AJ58: 1 | AK58: 1 | AL58: - | AM58: - | AN58: - | AO58: - | AP58: 6 | AQ58: 1 | AR58: 6 | AS58: 2 | AT58: - | AU58: 2 | AV58: 66.4 | AW58: 67.4 | AX58: 65.3 | AY58: 13 | AZ58: - | BA58: - | BB58: - | BC58: 1 | BD58: 1 | BE58: - | BF58: - | BG58: - | BH58: - | BI58: 5 | BJ58: 1 | BK58: 4 | BL58: 1 | BM58: - | BN58: - | BO58: 62.0 | BP58: 63.8 | BQ58: 59.2 | BR58: 11 | BS58: - | BT58: - | BU58: - | BV58: - | BW58: - | BX58: - | BY58: 1 | BZ58: - | CA58: 2 | CB58: 3 | CC58: - | CD58: 3 | CE58: 2 | CF58: - | CG58: - | CH58: 8 | CI58: - | CJ58: - | CK58: - | CL58: - | CM58: - | CN58: - | CO58: 1 | CP58: 3 | CQ58: - | CR58: 2 | CS58: 2 | CT58: - | CU58: - | DC58: 40 | DD58: 28 | DE58: 13 | DF58: 12 | DG58: 3 | DH58: 4 | DI58: 2 | DJ58: 6 | DK58: 11 | DL58: 9 | DM58: - | DN58: - | DO58: - | DP58: - | DQ58: - | DR58: - | DS58: 2 | DT58: - | DU58: - | DV58: - | DW58: - | DX58: - | DY58: - | DZ58: - | EA58: 11 | EB58: 2,159 | EC58: 2,034 | ED58: 125 | EE58: - | EF58: 21 | EG58: 16 | EH58: 8 | EI58: 7 | EJ58: 1 | EK58: - | EL58: 2 | EM58: 3 | EN58: 19 | EO58: 12 | EP58: 5 | EQ58: 5 | ER58: 2 | ES58: 4 | ET58: - | EU58: 3
A59: 栃木県 | B59: 宇都宮市 | C59: 平石村 | D59: 免の内 | E59: 20 | F59: 18 | G59: 3 | H59: 3 | I59: 8 | J59: 1 | K59: 7 | L59: 2 | M59: 56 | N59: 3 | O59: 5 | P59: 4 | Q59: - | R59: 3 | S59: 2 | T59: 4 | U59: 10 | V59: 10 | W59: 4 | X59: 5 | Y59: 1 | Z59: 2 | AA59: 3 | AB59: - | AC59: 49.9 | AD59: 47.4 | AE59: 52.4 | AF59: 20 | AG59: 2 | AH59: 1 | AI59: - | AJ59: - | AK59: - | AL59: - | AM59: 1 | AN59: 2 | AO59: 2 | AP59: 3 | AQ59: 4 | AR59: 1 | AS59: 2 | AT59: 2 | AU59: - | AV59: 58.4 | AW59: 59.6 | AX59: 57.6 | AY59: 16 | AZ59: - | BA59: - | BB59: - | BC59: - | BD59: - | BE59: - | BF59: 1 | BG59: 2 | BH59: 2 | BI59: 3 | BJ59: 4 | BK59: 1 | BL59: 2 | BM59: 1 | BN59: - | BO59: 64.4 | BP59: 66.0 | BQ59: 63.2 | BR59: 18 | BS59: - | BT59: - | BU59: - | BV59: - | BW59: 1 | BX59: - | BY59: 1 | BZ59: 4 | CA59: 7 | CB59: 2 | CC59: 2 | CD59: - | CE59: 1 | CF59: - | CG59: - | CH59: 11 | CI59: - | CJ59: - | CK59: - | CL59: - | CM59: 1 | CN59: 2 | CO59: 4 | CP59: 2 | CQ59: 1 | CR59: - | CS59: 1 | CT59: - | CU59: - | DC59: 74 | DD59: 50 | DE59: 16 | DF59: 33 | DG59: 1 | DH59: 6 | DI59: 11 | DJ59: 7 | DK59: 18 | DL59: 17 | DM59: - | DN59: - | DO59: - | DP59: - | DQ59: 1 | DR59: - | DS59: - | DT59: - | DU59: - | DV59: - | DW59: - | DX59: - | DY59: - | DZ59: - | EA59: 18 | EB59: 5,153 | EC59: 5,060 | ED59: 66 | EE59: 27 | EF59: 35 | EG59: 29 | EH59: 7 | EI59: 21 | EJ59: 1 | EK59: - | EL59: 6 | EM59: - | EN59: 39 | EO59: 21 | EP59: 9 | EQ59: 12 | ER59: - | ES59: 6 | ET59: 5 | EU59: 7
A60: 栃木県 | B60: 宇都宮市 | C60: 平石村 | D60: 中久保 | E60: 5 | F60: - | G60: - | H60: - | I60: - | J60: - | K60: - | L60: 5 | M60: - | N60: - | O60: - | P60: - | Q60: - | R60: - | S60: - | T60: - | U60: - | V60: - | W60: - | X60: - | Y60: - | Z60: - | AA60: - | AB60: - | AC60: … | AD60: … | AE60: … | AF60: - | AG60: - | AH60: - | AI60: - | AJ60: - | AK60: - | AL60: - | AM60: - | AN60: - | AO60: - | AP60: - | AQ60: - | AR60: - | AS60: - | AT60: - | AU60: - | AV60: … | AW60: … | AX60: … | AY60: - | AZ60: - | BA60: - | BB60: - | BC60: - | BD60: - | BE60: - | BF60: - | BG60: - | BH60: - | BI60: - | BJ60: - | BK60: - | BL60: - | BM60: - | BN60: - | BO60: … | BP60: … | BQ60: … | BR60: - | BS60: - | BT60: - | BU60: - | BV60: - | BW60: - | BX60: - | BY60: - | BZ60: - | CA60: - | CB60: - | CC60: - | CD60: - | CE60: - | CF60: - | CG60: - | CH60: - | CI60: - | CJ60: - | CK60: - | CL60: - | CM60: - | CN60: - | CO60: - | CP60: - | CQ60: - | CR60: - | CS60: - | CT60: - | CU60: - | DC60: - | DD60: - | DE60: - | DF60: - | DG60: - | DH60: - | DI60: - | DJ60: - | DK60: - | DL60: - | DM60: - | DN60: - | DO60: - | DP60: - | DQ60: - | DR60: - | DS60: - | DT60: - | DU60: - | DV60: - | DW60: - | DX60: - | DY60: - | DZ60: - | EA60: - | EB60: - | EC60: - | ED60: - | EE60: - | EF60: - | EG60: - | EH60: - | EI60: - | EJ60: - | EK60: - | EL60: - | EM60: - | EN60: - | EO60: - | EP60: - | EQ60: - | ER60: - | ES60: - | ET60: - | EU60: -
A61: 栃木県 | B61: 宇都宮市 | C61: 平石村 | D61: 中平出 | E61: 29 | F61: 23 | G61: 4 | H61: 1 | I61: 11 | J61: 6 | K61: 8 | L61: 6 | M61: 82 | N61: 2 | O61: 5 | P61: 6 | Q61: 2 | R61: 4 | S61: 6 | T61: 5 | U61: 11 | V61: 7 | W61: 5 | X61: 5 | Y61: 9 | Z61: 10 | AA61: 4 | AB61: 1 | AC61: 54.3 | AD61: 54.1 | AE61: 54.6 | AF61: 41 | AG61: 1 | AH61: - | AI61: 2 | AJ61: - | AK61: 1 | AL61: 3 | AM61: - | AN61: 4 | AO61: 2 | AP61: 5 | AQ61: 4 | AR61: 9 | AS61: 5 | AT61: 4 | AU61: 1 | AV61: 63.2 | AW61: 63.1 | AX61: 63.4 | AY61: 32 | AZ61: - | BA61: - | BB61: 1 | BC61: - | BD61: - | BE61: 2 | BF61: - | BG61: 3 | BH61: 1 | BI61: 5 | BJ61: 4 | BK61: 9 | BL61: 2 | BM61: 4 | BN61: 1 | BO61: 66.5 | BP61: 65.0 | BQ61: 68.5 | BR61: 23 | BS61: - | BT61: - | BU61: 1 | BV61: - | BW61: - | BX61: 2 | BY61: 1 | BZ61: 3 | CA61: 5 | CB61: 3 | CC61: 3 | CD61: 4 | CE61: - | CF61: 1 | CG61: - | CH61: 17 | CI61: - | CJ61: - | CK61: - | CL61: - | CM61: - | CN61: 3 | CO61: 3 | CP61: 3 | CQ61: 3 | CR61: 4 | CS61: - | CT61: 1 | CU61: - | DC61: 102 | DD61: 69 | DE61: 32 | DF61: 32 | DG61: 5 | DH61: 12 | DI61: 11 | DJ61: 10 | DK61: 23 | DL61: 18 | DM61: 2 | DN61: - | DO61: - | DP61: - | DQ61: - | DR61: 1 | DS61: 1 | DT61: - | DU61: - | DV61: 1 | DW61: - | DX61: - | DY61: - | DZ61: - | EA61: 23 | EB61: 3,881 | EC61: 3,707 | ED61: 99 | EE61: 75 | EF61: 54 | EG61: 44 | EH61: 18 | EI61: 22 | EJ61: 4 | EK61: - | EL61: 6 | EM61: 4 | EN61: 48 | EO61: 25 | EP61: 14 | EQ61: 10 | ER61: 1 | ES61: 12 | ET61: 5 | EU61: 6
A62: 栃木県 | B62: 宇都宮市 | C62: 平石村 | D62: 東組東 | E62: 16 | F62: 14 | G62: 1 | H62: 1 | I62: 3 | J62: 2 | K62: 10 | L62: 2 | M62: 48 | N62: - | O62: 2 | P62: 4 | Q62: 5 | R62: - | S62: 2 | T62: 2 | U62: 7 | V62: 10 | W62: 2 | X62: - | Y62: 4 | Z62: 5 | AA62: 3 | AB62: 2 | AC62: 55.0 | AD62: 54.2 | AE62: 56.0 | AF62: 23 | AG62: - | AH62: 1 | AI62: - | AJ62: 2 | AK62: - | AL62: - | AM62: - | AN62: 2 | AO62: 3 | AP62: 1 | AQ62: - | AR62: 4 | AS62: 5 | AT62: 3 | AU62: 2 | AV62: 66.1 | AW62: 70.3 | AX62: 62.8 | AY62: 11 | AZ62: - | BA62: - | BB62: - | BC62: 1 | BD62: - | BE62: - | BF62: - | BG62: 1 | BH62: 1 | BI62: 1 | BJ62: - | BK62: 3 | BL62: 3 | BM62: 1 | BN62: - | BO62: 66.7 | BP62: 66.5 | BQ62: 67.3 | BR62: 14 | BS62: - | BT62: - | BU62: - | BV62: - | BW62: - | BX62: - | BY62: - | BZ62: 1 | CA62: 5 | CB62: 2 | CC62: - | CD62: 2 | CE62: 3 | CF62: 1 | CG62: - | CH62: 9 | CI62: - | CJ62: - | CK62: - | CL62: - | CM62: - | CN62: 1 | CO62: 3 | CP62: 2 | CQ62: - | CR62: - | CS62: 2 | CT62: 1 | CU62: - | DC62: 60 | DD62: 39 | DE62: 11 | DF62: 23 | DG62: 5 | DH62: 10 | DI62: 1 | DJ62: 10 | DK62: 14 | DL62: 13 | DM62: - | DN62: - | DO62: - | DP62: - | DQ62: - | DR62: - | DS62: 1 | DT62: - | DU62: - | DV62: - | DW62: - | DX62: - | DY62: - | DZ62: - | EA62: 14 | EB62: 2,096 | EC62: 2,014 | ED62: 72 | EE62: 10 | EF62: 28 | EG62: 25 | EH62: 8 | EI62: 14 | EJ62: 3 | EK62: - | EL62: - | EM62: 3 | EN62: 32 | EO62: 14 | EP62: 3 | EQ62: 9 | ER62: 2 | ES62: 10 | ET62: 1 | EU62: 7
A63: 栃木県 | B63: 宇都宮市 | C63: 平石村 | D63: 広町 | E63: 18 | F63: 15 | G63: - | H63: - | I63: 11 | J63: 4 | K63: 4 | L63: 3 | M63: 47 | N63: 3 | O63: 1 | P63: - | Q63: 2 | R63: 5 | S63: 1 | T63: 4 | U63: 5 | V63: 7 | W63: 5 | X63: 1 | Y63: 5 | Z63: 6 | AA63: - | AB63: 2 | AC63: 54.9 | AD63: 51.6 | AE63: 58.7 | AF63: 18 | AG63: 2 | AH63: - | AI63: - | AJ63: - | AK63: 2 | AL63: - | AM63: - | AN63: - | AO63: 2 | AP63: 1 | AQ63: - | AR63: 3 | AS63: 6 | AT63: - | AU63: 2 | AV63: 63.0 | AW63: 49.8 | AX63: 69.6 | AY63: 11 | AZ63: - | BA63: - | BB63: - | BC63: - | BD63: 1 | BE63: - | BF63: - | BG63: - | BH63: 1 | BI63: - | BJ63: - | BK63: 3 | BL63: 6 | BM63: - | BN63: - | BO63: 70.1 | BP63: 66.5 | BQ63: 72.1 | BR63: 15 | BS63: - | BT63: - | BU63: - | BV63: - | BW63: - | BX63: - | BY63: 1 | BZ63: 3 | CA63: 3 | CB63: 4 | CC63: - | CD63: 2 | CE63: 1 | CF63: - | CG63: 1 | CH63: 8 | CI63: - | CJ63: - | CK63: - | CL63: - | CM63: - | CN63: 2 | CO63: 2 | CP63: 1 | CQ63: - | CR63: 1 | CS63: 1 | CT63: - | CU63: 1 | DC63: 62 | DD63: 46 | DE63: 11 | DF63: 30 | DG63: 5 | DH63: 3 | DI63: 5 | DJ63: 8 | DK63: 14 | DL63: 14 | DM63: - | DN63: - | DO63: - | DP63: - | DQ63: - | DR63: - | DS63: - | DT63: - | DU63: - | DV63: - | DW63: - | DX63: - | DY63: - | DZ63: - | EA63: 15 | EB63: 3,971 | EC63: 3,790 | ED63: 181 | EE63: - | EF63: 29 | EG63: 24 | EH63: 4 | EI63: 17 | EJ63: 3 | EK63: - | EL63: 4 | EM63: 1 | EN63: 33 | EO63: 22 | EP63: 7 | EQ63: 13 | ER63: 2 | ES63: 3 | ET63: 1 | EU63: 7
A64: 栃木県 | B64: 宇都宮市 | C64: 平石村 | D64: 関口 | E64: 22 | F64: 19 | G64: 4 | H64: 4 | I64: 5 | J64: 2 | K64: 10 | L64: 3 | M64: 45 | N64: - | O64: 1 | P64: 1 | Q64: 4 | R64: 3 | S64: 1 | T64: 2 | U64: 3 | V64: 5 | W64: 9 | X64: 5 | Y64: 3 | Z64: 4 | AA64: 4 | AB64: - | AC64: 57.9 | AD64: 57.9 | AE64: 57.8 | AF64: 23 | AG64: - | AH64: - | AI64: - | AJ64: - | AK64: - | AL64: - | AM64: 2 | AN64: - | AO64: 2 | AP64: 5 | AQ64: 4 | AR64: 3 | AS64: 3 | AT64: 4 | AU64: - | AV64: 67.7 | AW64: 68.4 | AX64: 66.8 | AY64: 19 | AZ64: - | BA64: - | BB64: - | BC64: - | BD64: - | BE64: - | BF64: 2 | BG64: - | BH64: 2 | BI64: 3 | BJ64: 4 | BK64: 3 | BL64: 3 | BM64: 2 | BN64: - | BO64: 67.0 | BP64: 67.9 | BQ64: 66.0 | BR64: 19 | BS64: - | BT64: - | BU64: - | BV64: - | BW64: - | BX64: - | BY64: 1 | BZ64: 2 | CA64: 2 | CB64: 6 | CC64: 4 | CD64: 1 | CE64: 2 | CF64: 1 | CG64: - | CH64: 12 | CI64: - | CJ64: - | CK64: - | CL64: - | CM64: 1 | CN64: 2 | CO64: 2 | CP64: 3 | CQ64: 2 | CR64: - | CS64: 1 | CT64: 1 | CU64: - | DC64: 67 | DD64: 49 | DE64: 19 | DF64: 27 | DG64: 3 | DH64: 4 | DI64: 4 | DJ64: 10 | DK64: 19 | DL64: 16 | DM64: - | DN64: - | DO64: - | DP64: 1 | DQ64: - | DR64: 2 | DS64: - | DT64: - | DU64: - | DV64: - | DW64: - | DX64: - | DY64: - | DZ64: - | EA64: 19 | EB64: 3,613 | EC64: 2,947 | ED64: 511 | EE64: 155 | EF64: 38 | EG64: 29 | EH64: 10 | EI64: 16 | EJ64: 3 | EK64: - | EL64: 4 | EM64: 5 | EN64: 29 | EO64: 20 | EP64: 9 | EQ64: 11 | ER64: - | ES64: 4 | ET64: - | EU64: 5
A65: 栃木県 | B65: 宇都宮市 | C65: 平石村 | D65: 上柳田 | E65: 22 | F65: 22 | G65: 1 | H65: 1 | I65: 6 | J65: 3 | K65: 15 | L65: - | M65: 60 | N65: 2 | O65: 3 | P65: 5 | Q65: - | R65: - | S65: 2 | T65: 3 | U65: 10 | V65: 12 | W65: 2 | X65: 2 | Y65: 7 | Z65: 3 | AA65: 6 | AB65: 3 | AC65: 56.8 | AD65: 56.2 | AE65: 57.5 | AF65: 29 | AG65: - | AH65: - | AI65: - | AJ65: - | AK65: - | AL65: - | AM65: 1 | AN65: 3 | AO65: 5 | AP65: - | AQ65: 2 | AR65: 6 | AS65: 3 | AT65: 6 | AU65: 3 | AV65: 70.3 | AW65: 75.0 | AX65: 66.9 | AY65: 20 | AZ65: - | BA65: - | BB65: - | BC65: - | BD65: - | BE65: - | BF65: - | BG65: 1 | BH65: 3 | BI65: - | BJ65: 2 | BK65: 6 | BL65: 3 | BM65: 3 | BN65: 2 | BO65: 71.8 | BP65: 75.0 | BQ65: 66.9 | BR65: 22 | BS65: - | BT65: - | BU65: - | BV65: - | BW65: - | BX65: - | BY65: - | BZ65: 6 | CA65: 6 | CB65: 2 | CC65: - | CD65: 5 | CE65: 1 | CF65: 1 | CG65: 1 | CH65: 11 | CI65: - | CJ65: - | CK65: - | CL65: - | CM65: - | CN65: 2 | CO65: 3 | CP65: 1 | CQ65: - | CR65: 3 | CS65: 1 | CT65: - | CU65: 1 | DC65: 78 | DD65: 53 | DE65: 20 | DF65: 32 | DG65: 1 | DH65: 10 | DI65: 6 | DJ65: 9 | DK65: 21 | DL65: 21 | DM65: - | DN65: - | DO65: - | DP65: - | DQ65: - | DR65: - | DS65: - | DT65: - | DU65: - | DV65: - | DW65: - | DX65: - | DY65: - | DZ65: - | EA65: 22 | EB65: 3,919 | EC65: 3,698 | ED65: 221 | EE65: - | EF65: 36 | EG65: 34 | EH65: 12 | EI65: 21 | EJ65: 1 | EK65: - | EL65: 1 | EM65: 1 | EN65: 42 | EO65: 19 | EP65: 8 | EQ65: 11 | ER65: - | ES65: 10 | ET65: 5 | EU65: 8
A66: 栃木県 | B66: 宇都宮市 | C66: 平石村 | D66: 下柳田北 | E66: 22 | F66: 18 | G66: 8 | H66: 7 | I66: 4 | J66: 1 | K66: 6 | L66: 4 | M66: 52 | N66: 3 | O66: 2 | P66: 2 | Q66: 1 | R66: 1 | S66: 2 | T66: 7 | U66: 9 | V66: 5 | W66: 3 | X66: 4 | Y66: 2 | Z66: 8 | AA66: 2 | AB66: 1 | AC66: 54.4 | AD66: 51.8 | AE66: 57.0 | AF66: 37 | AG66: - | AH66: - | AI66: - | AJ66: - | AK66: - | AL66: 1 | AM66: 6 | AN66: 6 | AO66: 4 | AP66: 3 | AQ66: 4 | AR66: 2 | AS66: 8 | AT66: 2 | AU66: 1 | AV66: 62.4 | AW66: 61.1 | AX66: 63.3 | AY66: 33 | AZ66: - | BA66: - | BB66: - | BC66: - | BD66: - | BE66: 1 | BF66: 6 | BG66: 5 | BH66: 4 | BI66: 3 | BJ66: 4 | BK66: 2 | BL66: 6 | BM66: 1 | BN66: 1 | BO66: 61.3 | BP66: 60.1 | BQ66: 62.3 | BR66: 18 | BS66: - | BT66: - | BU66: - | BV66: - | BW66: - | BX66: 1 | BY66: 2 | BZ66: 4 | CA66: 4 | CB66: 1 | CC66: 2 | CD66: 1 | CE66: 3 | CF66: - | CG66: - | CH66: 9 | CI66: - | CJ66: - | CK66: - | CL66: - | CM66: - | CN66: 2 | CO66: 2 | CP66: - | CQ66: 2 | CR66: 1 | CS66: 2 | CT66: - | CU66: - | DC66: 73 | DD66: 52 | DE66: 33 | DF66: 19 | DG66: - | DH66: 2 | DI66: 6 | DJ66: 13 | DK66: 18 | DL66: 11 | DM66: - | DN66: - | DO66: - | DP66: - | DQ66: 5 | DR66: - | DS66: 1 | DT66: - | DU66: - | DV66: 1 | DW66: - | DX66: - | DY66: - | DZ66: - | EA66: 18 | EB66: 4,027 | EC66: 3,684 | ED66: 343 | EE66: - | EF66: 33 | EG66: 28 | EH66: 15 | EI66: 13 | EJ66: - | EK66: - | EL66: 1 | EM66: 4 | EN66: 40 | EO66: 24 | EP66: 18 | EQ66: 6 | ER66: - | ES66: 2 | ET66: 5 | EU66: 9
A67: 栃木県 | B67: 宇都宮市 | C67: 平石村 | D67: 下柳田南 | E67: 16 | F67: 14 | G67: 6 | H67: 5 | I67: 2 | J67: 1 | K67: 6 | L67: 2 | M67: 33 | N67: - | O67: - | P67: - | Q67: - | R67: 1 | S67: 3 | T67: 3 | U67: 1 | V67: 2 | W67: 7 | X67: 5 | Y67: 6 | Z67: 1 | AA67: 2 | AB67: 2 | AC67: 63.4 | AD67: 59.8 | AE67: 67.6 | AF67: 28 | AG67: - | AH67: - | AI67: - | AJ67: - | AK67: - | AL67: 1 | AM67: 3 | AN67: 1 | AO67: 2 | AP67: 5 | AQ67: 5 | AR67: 6 | AS67: 1 | AT67: 2 | AU67: 2 | AV67: 65.9 | AW67: 63.8 | AX67: 68.0 | AY67: 23 | AZ67: - | BA67: - | BB67: - | BC67: - | BD67: - | BE67: - | BF67: 2 | BG67: 1 | BH67: 2 | BI67: 5 | BJ67: 4 | BK67: 6 | BL67: 1 | BM67: 2 | BN67: - | BO67: 65.7 | BP67: 65.2 | BQ67: 66.2 | BR67: 14 | BS67: - | BT67: - | BU67: - | BV67: - | BW67: - | BX67: - | BY67: 2 | BZ67: 1 | CA67: 1 | CB67: 3 | CC67: 3 | CD67: 3 | CE67: 1 | CF67: - | CG67: - | CH67: 7 | CI67: - | CJ67: - | CK67: - | CL67: - | CM67: 2 | CN67: - | CO67: 1 | CP67: 3 | CQ67: 1 | CR67: - | CS67: - | CT67: - | CU67: - | DC67: 42 | DD67: 29 | DE67: 23 | DF67: 6 | DG67: - | DH67: 2 | DI67: 2 | DJ67: 9 | DK67: 13 | DL67: 8 | DM67: - | DN67: - | DO67: - | DP67: - | DQ67: 5 | DR67: - | DS67: - | DT67: - | DU67: - | DV67: - | DW67: - | DX67: - | DY67: - | DZ67: - | EA67: 14 | EB67: 4,019 | EC67: 3,924 | ED67: 95 | EE67: - | EF67: 20 | EG67: 16 | EH67: 12 | EI67: 4 | EJ67: - | EK67: - | EL67: - | EM67: 4 | EN67: 22 | EO67: 13 | EP67: 11 | EQ67: 2 | ER67: - | ES67: 2 | ET67: 2 | EU67: 5
A68: 栃木県 | B68: 宇都宮市 | C68: 平石村 | D68: 北原 | E68: 13 | F68: 9 | G68: 2 | H68: 2 | I68: 3 | J68: 1 | K68: 4 | L68: 4 | M68: 25 | N68: - | O68: - | P68: 1 | Q68: - | R68: 3 | S68: 2 | T68: 1 | U68: 3 | V68: 3 | W68: 3 | X68: 5 | Y68: 2 | Z68: 1 | AA68: - | AB68: 1 | AC68: 56.8 | AD68: 54.0 | AE68: 59.8 | AF68: 14 | AG68: - | AH68: - | AI68: - | AJ68: - | AK68: 1 | AL68: - | AM68: 1 | AN68: 2 | AO68: - | AP68: 2 | AQ68: 4 | AR68: 2 | AS68: 1 | AT68: - | AU68: 1 | AV68: 63.3 | AW68: 61.4 | AX68: 65.1 | AY68: 14 | AZ68: - | BA68: - | BB68: - | BC68: - | BD68: 1 | BE68: - | BF68: 1 | BG68: 2 | BH68: - | BI68: 2 | BJ68: 4 | BK68: 2 | BL68: 1 | BM68: - | BN68: 1 | BO68: 63.3 | BP68: 61.4 | BQ68: 65.1 | BR68: 9 | BS68: - | BT68: - | BU68: - | BV68: - | BW68: 1 | BX68: - | BY68: - | BZ68: 1 | CA68: 2 | CB68: 1 | CC68: 1 | CD68: 2 | CE68: 1 | CF68: - | CG68: - | CH68: 7 | CI68: - | CJ68: - | CK68: 1 | CL68: - | CM68: - | CN68: 1 | CO68: 1 | CP68: 1 | CQ68: 1 | CR68: 1 | CS68: 1 | CT68: - | CU68: - | DC68: 37 | DD68: 29 | DE68: 14 | DF68: 13 | DG68: 2 | DH68: 3 | DI68: 2 | DJ68: 3 | DK68: 9 | DL68: 6 | DM68: - | DN68: - | DO68: - | DP68: - | DQ68: 1 | DR68: 2 | DS68: - | DT68: - | DU68: - | DV68: - | DW68: - | DX68: - | DY68: - | DZ68: - | EA68: 9 | EB68: 1,100 | EC68: 572 | ED68: 38 | EE68: 490 | EF68: 17 | EG68: 16 | EH68: 7 | EI68: 8 | EJ68: 1 | EK68: - | EL68: - | EM68: 1 | EN68: 20 | EO68: 13 | EP68: 7 | EQ68: 5 | ER68: 1 | ES68: 3 | ET68: 2 | EU68: 2
A69: 栃木県 | B69: 宇都宮市 | C69: 平石村 | D69: 小原 | E69: 11 | F69: 6 | G69: 1 | H69: 1 | I69: 3 | J69: 1 | K69: 2 | L69: 5 | M69: 16 | N69: - | O69: - | P69: - | Q69: - | R69: - | S69: 2 | T69: 3 | U69: - | V69: - | W69: 5 | X69: 1 | Y69: 2 | Z69: 2 | AA69: - | AB69: 1 | AC69: 61.6 | AD69: 57.6 | AE69: 66.7 | AF69: 12 | AG69: - | AH69: - | AI69: - | AJ69: - | AK69: - | AL69: 1 | AM69: 3 | AN69: - | AO69: - | AP69: 3 | AQ69: 1 | AR69: 2 | AS69: 2 | AT69: - | AU69: - | AV69: 61.1 | AW69: 59.3 | AX69: 63.6 | AY69: 10 | AZ69: - | BA69: - | BB69: - | BC69: - | BD69: - | BE69: - | BF69: 3 | BG69: - | BH69: - | BI69: 3 | BJ69: 1 | BK69: 1 | BL69: 2 | BM69: - | BN69: - | BO69: 62.2 | BP69: 62.5 | BQ69: 61.8 | BR69: 6 | BS69: - | BT69: - | BU69: - | BV69: - | BW69: - | BX69: - | BY69: 2 | BZ69: - | CA69: - | CB69: 2 | CC69: 1 | CD69: 1 | CE69: - | CF69: - | CG69: - | CH69: - | CI69: - | CJ69: - | CK69: - | CL69: - | CM69: - | CN69: - | CO69: - | CP69: - | CQ69: - | CR69: - | CS69: - | CT69: - | CU69: - | DC69: 25 | DD69: 20 | DE69: 10 | DF69: 8 | DG69: 2 | DH69: 1 | DI69: 1 | DJ69: 3 | DK69: 5 | DL69: 3 | DM69: - | DN69: - | DO69: - | DP69: - | DQ69: - | DR69: 1 | DS69: 1 | DT69: - | DU69: - | DV69: - | DW69: - | DX69: - | DY69: - | DZ69: - | EA69: 6 | EB69: 1,021 | EC69: 715 | ED69: 106 | EE69: 200 | EF69: 13 | EG69: 11 | EH69: 6 | EI69: 4 | EJ69: 1 | EK69: - | EL69: 1 | EM69: 1 | EN69: 12 | EO69: 9 | EP69: 4 | EQ69: 4 | ER69: 1 | ES69: 1 | ET69: - | EU69: 2
A70: 栃木県 | B70: 宇都宮市 | C70: 平石村 | D70: 三井寺 | E70: 10 | F70: 7 | G70: - | H70: - | I70: 1 | J70: - | K70: 6 | L70: 3 | M70: 15 | N70: - | O70: - | P70: - | Q70: - | R70: - | S70: 2 | T70: 1 | U70: - | V70: 1 | W70: 1 | X70: 2 | Y70: 4 | Z70: 2 | AA70: 1 | AB70: 1 | AC70: 66.3 | AD70: 67.9 | AE70: 63.8 | AF70: 11 | AG70: - | AH70: - | AI70: - | AJ70: - | AK70: - | AL70: - | AM70: - | AN70: - | AO70: - | AP70: 1 | AQ70: 2 | AR70: 4 | AS70: 2 | AT70: 1 | AU70: 1 | AV70: 73.3 | AW70: 74.6 | AX70: 71.0 | AY70: 11 | AZ70: - | BA70: - | BB70: - | BC70: - | BD70: - | BE70: - | BF70: - | BG70: - | BH70: - | BI70: 1 | BJ70: 2 | BK70: 4 | BL70: 2 | BM70: 1 | BN70: 1 | BO70: 73.3 | BP70: 74.6 | BQ70: 71.0 | BR70: 7 | BS70: - | BT70: - | BU70: - | BV70: - | BW70: - | BX70: - | BY70: 1 | BZ70: - | CA70: - | CB70: 1 | CC70: 1 | CD70: 2 | CE70: 1 | CF70: - | CG70: 1 | CH70: 5 | CI70: - | CJ70: - | CK70: - | CL70: - | CM70: - | CN70: - | CO70: - | CP70: 1 | CQ70: 1 | CR70: 1 | CS70: 1 | CT70: - | CU70: 1 | DC70: 27 | DD70: 19 | DE70: 11 | DF70: 7 | DG70: 1 | DH70: 3 | DI70: 4 | DJ70: 1 | DK70: 5 | DL70: 5 | DM70: - | DN70: - | DO70: - | DP70: - | DQ70: - | DR70: - | DS70: - | DT70: - | DU70: - | DV70: - | DW70: - | DX70: - | DY70: - | DZ70: - | EA70: 7 | EB70: 605 | EC70: 570 | ED70: 15 | EE70: 20 | EF70: 13 | EG70: 11 | EH70: 7 | EI70: 4 | EJ70: - | EK70: - | EL70: 2 | EM70: - | EN70: 14 | EO70: 8 | EP70: 4 | EQ70: 3 | ER70: 1 | ES70: 3 | ET70: 2 | EU70: 1
A71: 栃木県 | B71: 宇都宮市 | C71: 平石村 | D71: 山下 | E71: 12 | F71: 10 | G71: 3 | H71: 3 | I71: 2 | J71: - | K71: 5 | L71: 2 | M71: 27 | N71: - | O71: - | P71: 1 | Q71: 1 | R71: 1 | S71: 1 | T71: 2 | U71: 3 | V71: 2 | W71: 2 | X71: 2 | Y71: 6 | Z71: 4 | AA71: 2 | AB71: - | AC71: 61.7 | AD71: 61.9 | AE71: 61.4 | AF71: 20 | AG71: - | AH71: - | AI71: - | AJ71: - | AK71: 1 | AL71: 1 | AM71: 1 | AN71: 1 | AO71: 2 | AP71: 2 | AQ71: 1 | AR71: 5 | AS71: 4 | AT71: 2 | AU71: - | AV71: 65.6 | AW71: 65.0 | AX71: 66.2 | AY71: 18 | AZ71: - | BA71: - | BB71: - | BC71: - | BD71: 1 | BE71: 1 | BF71: 1 | BG71: 1 | BH71: 2 | BI71: 1 | BJ71: 1 | BK71: 4 | BL71: 4 | BM71: 2 | BN71: - | BO71: 65.3 | BP71: 65.0 | BQ71: 65.9 | BR71: 10 | BS71: - | BT71: - | BU71: - | BV71: - | BW71: - | BX71: - | BY71: - | BZ71: 2 | CA71: 1 | CB71: 1 | CC71: 1 | CD71: 2 | CE71: 3 | CF71: - | CG71: - | CH71: 7 | CI71: - | CJ71: - | CK71: - | CL71: - | CM71: - | CN71: 1 | CO71: 1 | CP71: 1 | CQ71: 1 | CR71: 2 | CS71: 1 | CT71: - | CU71: - | DC71: 41 | DD71: 29 | DE71: 18 | DF71: 10 | DG71: 1 | DH71: 5 | DI71: 6 | DJ71: 1 | DK71: 10 | DL71: 9 | DM71: - | DN71: - | DO71: - | DP71: - | DQ71: - | DR71: - | DS71: - | DT71: - | DU71: - | DV71: 1 | DW71: - | DX71: - | DY71: - | DZ71: - | EA71: 10 | EB71: 2,784 | EC71: 2,617 | ED71: 167 | EE71: - | EF71: 20 | EG71: 16 | EH71: 11 | EI71: 5 | EJ71: - | EK71: - | EL71: 3 | EM71: 1 | EN71: 21 | EO71: 13 | EP71: 7 | EQ71: 5 | ER71: 1 | ES71: 5 | ET71: 3 | EU71: -
A72: 栃木県 | B72: 宇都宮市 | C72: 平石村 | D72: 前表 | E72: 12 | F72: 9 | G72: 2 | H72: 1 | I72: 3 | J72: 1 | K72: 4 | L72: 3 | M72: 24 | N72: - | O72: - | P72: 1 | Q72: 2 | R72: 1 | S72: - | T72: - | U72: 2 | V72: 6 | W72: 4 | X72: 2 | Y72: 3 | Z72: 2 | AA72: 1 | AB72: - | AC72: 58.3 | AD72: 58.0 | AE72: 58.5 | AF72: 10 | AG72: - | AH72: - | AI72: - | AJ72: - | AK72: - | AL72: - | AM72: - | AN72: - | AO72: 2 | AP72: 2 | AQ72: 1 | AR72: 3 | AS72: 1 | AT72: 1 | AU72: - | AV72: 67.2 | AW72: 67.2 | AX72: 67.3 | AY72: 8 | AZ72: - | BA72: - | BB72: - | BC72: - | BD72: - | BE72: - | BF72: - | BG72: - | BH72: 2 | BI72: 1 | BJ72: 1 | BK72: 3 | BL72: - | BM72: 1 | BN72: - | BO72: 66.6 | BP72: 64.8 | BQ72: 69.7 | BR72: 9 | BS72: - | BT72: - | BU72: - | BV72: - | BW72: - | BX72: - | BY72: - | BZ72: - | CA72: 3 | CB72: 2 | CC72: 1 | CD72: 2 | CE72: 1 | CF72: - | CG72: - | CH72: 7 | CI72: - | CJ72: - | CK72: - | CL72: - | CM72: - | CN72: - | CO72: 2 | CP72: 1 | CQ72: 1 | CR72: 2 | CS72: 1 | CT72: - | CU72: - | DC72: 37 | DD72: 24 | DE72: 8 | DF72: 15 | DG72: 1 | DH72: 8 | DI72: - | DJ72: 5 | DK72: 9 | DL72: 8 | DM72: - | DN72: - | DO72: - | DP72: - | DQ72: - | DR72: 1 | DS72: - | DT72: - | DU72: - | DV72: - | DW72: - | DX72: - | DY72: - | DZ72: - | EA72: 9 | EB72: 1,352 | EC72: 1,206 | ED72: 80 | EE72: 66 | EF72: 19 | EG72: 15 | EH72: 5 | EI72: 10 | EJ72: - | EK72: 1 | EL72: - | EM72: 3 | EN72: 18 | EO72: 9 | EP72: 3 | EQ72: 5 | ER72: 1 | ES72: 7 | ET72: - | EU72: 2
A73: 栃木県 | B73: 宇都宮市 | C73: 平石村 | D73: 馬場尻 | E73: 11 | F73: 9 | G73: 1 | H73: 1 | I73: 4 | J73: 1 | K73: 4 | L73: 2 | M73: 22 | N73: - | O73: - | P73: - | Q73: 1 | R73: 4 | S73: - | T73: 2 | U73: 2 | V73: - | W73: 7 | X73: 1 | Y73: 2 | Z73: 1 | AA73: 2 | AB73: - | AC73: 57.9 | AD73: 57.9 | AE73: 57.9 | AF73: 10 | AG73: - | AH73: - | AI73: - | AJ73: - | AK73: - | AL73: - | AM73: - | AN73: - | AO73: - | AP73: 4 | AQ73: 1 | AR73: 2 | AS73: 1 | AT73: 2 | AU73: - | AV73: 70.5 | AW73: 71.8 | AX73: 68.5 | AY73: 7 | AZ73: - | BA73: - | BB73: - | BC73: - | BD73: - | BE73: - | BF73: - | BG73: - | BH73: - | BI73: 4 | BJ73: 1 | BK73: 1 | BL73: - | BM73: 1 | BN73: - | BO73: 67.7 | BP73: 69.8 | BQ73: 62.5 | BR73: 9 | BS73: - | BT73: - | BU73: - | BV73: - | BW73: - | BX73: - | BY73: 1 | BZ73: 2 | CA73: - | CB73: 3 | CC73: 1 | CD73: 1 | CE73: - | CF73: 1 | CG73: - | CH73: 5 | CI73: - | CJ73: - | CK73: - | CL73: - | CM73: - | CN73: 1 | CO73: - | CP73: 2 | CQ73: - | CR73: 1 | CS73: - | CT73: 1 | CU73: - | DC73: 32 | DD73: 16 | DE73: 7 | DF73: 9 | DG73: - | DH73: 7 | DI73: 3 | DJ73: 6 | DK73: 9 | DL73: 8 | DM73: - | DN73: - | DO73: - | DP73: - | DQ73: - | DR73: 1 | DS73: - | DT73: - | DU73: - | DV73: - | DW73: - | DX73: - | DY73: - | DZ73: - | EA73: 9 | EB73: 1,353 | EC73: 1,084 | ED73: 203 | EE73: 66 | EF73: 15 | EG73: 13 | EH73: 5 | EI73: 8 | EJ73: - | EK73: - | EL73: 1 | EM73: 1 | EN73: 17 | EO73: 3 | EP73: 2 | EQ73: 1 | ER73: - | ES73: 7 | ET73: 2 | EU73: 5
A74: 栃木県 | B74: 宇都宮市 | C74: 平石村 | D74: 阿久戸 | E74: 12 | F74: 10 | G74: 3 | H74: 2 | I74: 3 | J74: 1 | K74: 4 | L74: 2 | M74: 25 | N74: 2 | O74: 1 | P74: 3 | Q74: - | R74: 2 | S74: 2 | T74: 1 | U74: 2 | V74: 3 | W74: 5 | X74: 2 | Y74: 2 | Z74: - | AA74: - | AB74: - | AC74: 48.2 | AD74: 47.4 | AE74: 49.3 | AF74: 7 | AG74: - | AH74: - | AI74: - | AJ74: - | AK74: 1 | AL74: - | AM74: - | AN74: - | AO74: - | AP74: 4 | AQ74: 1 | AR74: 1 | AS74: - | AT74: - | AU74: - | AV74: 59.3 | AW74: 57.0 | AX74: 65.0 | AY74: 7 | AZ74: - | BA74: - | BB74: - | BC74: - | BD74: 1 | BE74: - | BF74: - | BG74: - | BH74: - | BI74: 4 | BJ74: 1 | BK74: 1 | BL74: - | BM74: - | BN74: - | BO74: 59.3 | BP74: 57.0 | BQ74: 65.0 | BR74: 10 | BS74: - | BT74: - | BU74: - | BV74: - | BW74: - | BX74: 1 | BY74: - | BZ74: 1 | CA74: 1 | CB74: 4 | CC74: 1 | CD74: 2 | CE74: - | CF74: - | CG74: - | CH74: 4 | CI74: - | CJ74: - | CK74: - | CL74: - | CM74: - | CN74: 1 | CO74: - | CP74: 1 | CQ74: - | CR74: 2 | CS74: - | CT74: - | CU74: - | DC74: 35 | DD74: 22 | DE74: 7 | DF74: 14 | DG74: 1 | DH74: 5 | DI74: 3 | DJ74: 5 | DK74: 10 | DL74: 10 | DM74: - | DN74: - | DO74: - | DP74: - | DQ74: - | DR74: - | DS74: - | DT74: - | DU74: - | DV74: - | DW74: - | DX74: - | DY74: - | DZ74: - | EA74: 10 | EB74: 1,197 | EC74: 1,105 | ED74: 92 | EE74: - | EF74: 16 | EG74: 14 | EH74: 5 | EI74: 8 | EJ74: 1 | EK74: - | EL74: 1 | EM74: 1 | EN74: 19 | EO74: 8 | EP74: 2 | EQ74: 6 | ER74: - | ES74: 5 | ET74: 2 | EU74: 4
A75: 栃木県 | B75: 宇都宮市 | C75: 平石村 | D75: 大島 | E75: 4 | F75: 4 | G75: - | H75: - | I75: 2 | J75: 2 | K75: 2 | L75: - | M75: 13 | N75: - | O75: - | P75: 2 | Q75: 3 | R75: - | S75: - | T75: 1 | U75: 2 | V75: 3 | W75: 1 | X75: 1 | Y75: - | Z75: - | AA75: - | AB75: - | AC75: 46.4 | AD75: 46.0 | AE75: 46.8 | AF75: 4 | AG75: - | AH75: - | AI75: - | AJ75: 1 | AK75: - | AL75: - | AM75: - | AN75: 1 | AO75: 2 | AP75: - | AQ75: - | AR75: - | AS75: - | AT75: - | AU75: - | AV75: 50.0 | AW75: 46.0 | AX75: 54.0 | AY75: 4 | AZ75: - | BA75: - | BB75: - | BC75: 1 | BD75: - | BE75: - | BF75: - | BG75: 1 | BH75: 2 | BI75: - | BJ75: - | BK75: - | BL75: - | BM75: - | BN75: - | BO75: 50.0 | BP75: 46.0 | BQ75: 54.0 | BR75: 4 | BS75: - | BT75: - | BU75: - | BV75: 1 | BW75: - | BX75: - | BY75: 1 | BZ75: - | CA75: 1 | CB75: - | CC75: 1 | CD75: - | CE75: - | CF75: - | CG75: - | CH75: - | CI75: - | CJ75: - | CK75: - | CL75: - | CM75: - | CN75: - | CO75: - | CP75: - | CQ75: - | CR75: - | CS75: - | CT75: - | CU75: - | DC75: 16 | DD75: 13 | DE75: 4 | DF75: 8 | DG75: 1 | DH75: 1 | DI75: 2 | DJ75: - | DK75: 4 | DL75: 3 | DM75: - | DN75: - | DO75: - | DP75: - | DQ75: - | DR75: 1 | DS75: - | DT75: - | DU75: - | DV75: - | DW75: - | DX75: - | DY75: - | DZ75: - | EA75: 4 | EB75: 463 | EC75: 343 | ED75: - | EE75: 120 | EF75: 8 | EG75: 8 | EH75: 2 | EI75: 5 | EJ75: 1 | EK75: - | EL75: - | EM75: - | EN75: 8 | EO75: 5 | EP75: 2 | EQ75: 3 | ER75: - | ES75: 1 | ET75: 2 | EU75: -
A76: 栃木県 | B76: 宇都宮市 | C76: 平石村 | D76: 福島 | E76: 19 | F76: 15 | G76: 2 | H76: 1 | I76: 1 | J76: - | K76: 12 | L76: 4 | M76: 41 | N76: - | O76: - | P76: - | Q76: 1 | R76: 2 | S76: 4 | T76: 5 | U76: 3 | V76: 5 | W76: 4 | X76: 3 | Y76: 4 | Z76: 5 | AA76: 2 | AB76: 3 | AC76: 61.2 | AD76: 62.1 | AE76: 60.0 | AF76: 21 | AG76: - | AH76: - | AI76: - | AJ76: - | AK76: 1 | AL76: 1 | AM76: 2 | AN76: - | AO76: 1 | AP76: 2 | AQ76: 3 | AR76: 3 | AS76: 4 | AT76: 1 | AU76: 3 | AV76: 68.3 | AW76: 70.8 | AX76: 64.1 | AY76: 13 | AZ76: - | BA76: - | BB76: - | BC76: - | BD76: - | BE76: 1 | BF76: 2 | BG76: - | BH76: - | BI76: 1 | BJ76: 3 | BK76: 2 | BL76: 3 | BM76: 1 | BN76: - | BO76: 66.0 | BP76: 66.7 | BQ76: 64.5 | BR76: 15 | BS76: - | BT76: - | BU76: - | BV76: - | BW76: - | BX76: 1 | BY76: 1 | BZ76: 1 | CA76: 2 | CB76: 1 | CC76: 1 | CD76: 2 | CE76: 3 | CF76: 1 | CG76: 2 | CH76: 7 | CI76: - | CJ76: - | CK76: - | CL76: - | CM76: - | CN76: 1 | CO76: - | CP76: 1 | CQ76: 1 | CR76: 2 | CS76: 1 | CT76: 1 | CU76: - | DC76: 63 | DD76: 37 | DE76: 13 | DF76: 20 | DG76: 4 | DH76: 11 | DI76: 2 | DJ76: 13 | DK76: 15 | DL76: 14 | DM76: - | DN76: - | DO76: - | DP76: - | DQ76: - | DR76: - | DS76: 1 | DT76: - | DU76: - | DV76: - | DW76: - | DX76: - | DY76: - | DZ76: - | EA76: 15 | EB76: 1,462 | EC76: 1,347 | ED76: 115 | EE76: - | EF76: 32 | EG76: 24 | EH76: 9 | EI76: 12 | EJ76: 3 | EK76: - | EL76: 2 | EM76: 6 | EN76: 31 | EO76: 13 | EP76: 4 | EQ76: 8 | ER76: 1 | ES76: 11 | ET76: - | EU76: 7
A77: 栃木県 | B77: 宇都宮市 | C77: 平石村 | D77: 川岸 | E77: 20 | F77: 14 | G77: 1 | H77: 1 | I77: 4 | J77: - | K77: 9 | L77: 6 | M77: 38 | N77: - | O77: 1 | P77: - | Q77: - | R77: 2 | S77: 5 | T77: 4 | U77: 4 | V77: 3 | W77: 7 | X77: 5 | Y77: 3 | Z77: 2 | AA77: 1 | AB77: 1 | AC77: 57.3 | AD77: 58.7 | AE77: 56.0 | AF77: 18 | AG77: - | AH77: - | AI77: - | AJ77: - | AK77: 2 | AL77: 1 | AM77: 1 | AN77: - | AO77: 1 | AP77: 1 | AQ77: 5 | AR77: 3 | AS77: 2 | AT77: 1 | AU77: 1 | AV77: 64.4 | AW77: 64.9 | AX77: 63.9 | AY77: 14 | AZ77: - | BA77: - | BB77: - | BC77: - | BD77: 1 | BE77: - | BF77: 1 | BG77: - | BH77: - | BI77: 1 | BJ77: 5 | BK77: 3 | BL77: 2 | BM77: 1 | BN77: - | BO77: 66.5 | BP77: 67.6 | BQ77: 65.0 | BR77: 14 | BS77: - | BT77: - | BU77: - | BV77: - | BW77: 1 | BX77: - | BY77: - | BZ77: 2 | CA77: - | CB77: 4 | CC77: 2 | CD77: 2 | CE77: 1 | CF77: 1 | CG77: 1 | CH77: 7 | CI77: - | CJ77: - | CK77: - | CL77: - | CM77: - | CN77: 1 | CO77: - | CP77: 2 | CQ77: 1 | CR77: 2 | CS77: 1 | CT77: - | CU77: - | DC77: 53 | DD77: 40 | DE77: 14 | DF77: 22 | DG77: 4 | DH77: 6 | DI77: 3 | DJ77: 4 | DK77: 13 | DL77: 13 | DM77: - | DN77: - | DO77: - | DP77: - | DQ77: - | DR77: - | DS77: - | DT77: - | DU77: - | DV77: - | DW77: - | DX77: - | DY77: - | DZ77: - | EA77: 14 | EB77: 3,033 | EC77: 2,910 | ED77: 123 | EE77: - | EF77: 23 | EG77: 20 | EH77: 8 | EI77: 11 | EJ77: 1 | EK77: - | EL77: 2 | EM77: 1 | EN77: 30 | EO77: 20 | EP77: 6 | EQ77: 11 | ER77: 3 | ES77: 6 | ET77: 1 | EU77: 3
A78: 栃木県 | B78: 宇都宮市 | C78: 平石村 | D78: 久保田 | E78: 22 | F78: 20 | G78: 3 | H78: 2 | I78: 6 | J78: 2 | K78: 11 | L78: 2 | M78: 54 | N78: - | O78: 2 | P78: 2 | Q78: 3 | R78: 4 | S78: 3 | T78: 7 | U78: 4 | V78: 3 | W78: 9 | X78: 8 | Y78: 6 | Z78: 3 | AA78: - | AB78: - | AC78: 54.0 | AD78: 53.4 | AE78: 54.7 | AF78: 18 | AG78: - | AH78: - | AI78: - | AJ78: 1 | AK78: - | AL78: - | AM78: 1 | AN78: 2 | AO78: - | AP78: 3 | AQ78: 4 | AR78: 5 | AS78: 2 | AT78: - | AU78: - | AV78: 63.5 | AW78: 67.0 | AX78: 58.0 | AY78: 15 | AZ78: - | BA78: - | BB78: - | BC78: - | BD78: - | BE78: - | BF78: 1 | BG78: 2 | BH78: - | BI78: 3 | BJ78: 4 | BK78: 4 | BL78: 1 | BM78: - | BN78: - | BO78: 64.1 | BP78: 67.0 | BQ78: 56.3 | BR78: 20 | BS78: - | BT78: - | BU78: - | BV78: - | BW78: - | BX78: 1 | BY78: 2 | BZ78: 1 | CA78: 1 | CB78: 4 | CC78: 5 | CD78: 5 | CE78: 1 | CF78: - | CG78: - | CH78: 16 | CI78: - | CJ78: - | CK78: - | CL78: 1 | CM78: 2 | CN78: - | CO78: - | CP78: 3 | CQ78: 4 | CR78: 5 | CS78: 1 | CT78: - | CU78: - | DC78: 85 | DD78: 58 | DE78: 15 | DF78: 34 | DG78: 9 | DH78: 10 | DI78: 2 | DJ78: 15 | DK78: 20 | DL78: 19 | DM78: - | DN78: - | DO78: - | DP78: - | DQ78: - | DR78: - | DS78: - | DT78: - | DU78: 1 | DV78: - | DW78: - | DX78: - | DY78: - | DZ78: - | EA78: 20 | EB78: 3,219 | EC78: 3,073 | ED78: 122 | EE78: 24 | EF78: 42 | EG78: 33 | EH78: 11 | EI78: 15 | EJ78: 7 | EK78: - | EL78: 2 | EM78: 7 | EN78: 43 | EO78: 25 | EP78: 4 | EQ78: 19 | ER78: 2 | ES78: 10 | ET78: - | EU78: 8
A79: 栃木県 | B79: 宇都宮市 | C79: 平石村 | D79: 根本 | E79: 20 | F79: 18 | G79: 1 | H79: - | I79: 12 | J79: 4 | K79: 5 | L79: 2 | M79: 54 | N79: - | O79: 1 | P79: 7 | Q79: 4 | R79: 4 | S79: - | T79: - | U79: 7 | V79: 10 | W79: 9 | X79: 5 | Y79: 2 | Z79: 3 | AA79: 1 | AB79: 1 | AC79: 52.8 | AD79: 50.7 | AE79: 55.4 | AF79: 34 | AG79: - | AH79: - | AI79: 1 | AJ79: 1 | AK79: - | AL79: - | AM79: - | AN79: 3 | AO79: 8 | AP79: 9 | AQ79: 5 | AR79: 2 | AS79: 3 | AT79: 1 | AU79: 1 | AV79: 61.9 | AW79: 62.0 | AX79: 61.8 | AY79: 24 | AZ79: - | BA79: - | BB79: - | BC79: 1 | BD79: - | BE79: - | BF79: - | BG79: 2 | BH79: 6 | BI79: 9 | BJ79: 3 | BK79: 2 | BL79: 1 | BM79: - | BN79: - | BO79: 60.6 | BP79: 60.3 | BQ79: 61.1 | BR79: 18 | BS79: - | BT79: - | BU79: - | BV79: - | BW79: - | BX79: - | BY79: - | BZ79: 5 | CA79: 4 | CB79: 5 | CC79: 3 | CD79: 1 | CE79: - | CF79: - | CG79: - | CH79: 13 | CI79: - | CJ79: - | CK79: - | CL79: - | CM79: - | CN79: 3 | CO79: 3 | CP79: 4 | CQ79: 2 | CR79: 1 | CS79: - | CT79: - | CU79: - | DC79: 79 | DD79: 53 | DE79: 24 | DF79: 27 | DG79: 2 | DH79: 8 | DI79: 3 | DJ79: 15 | DK79: 17 | DL79: 17 | DM79: - | DN79: - | DO79: - | DP79: - | DQ79: - | DR79: - | DS79: - | DT79: - | DU79: - | DV79: - | DW79: - | DX79: - | DY79: - | DZ79: - | EA79: 18 | EB79: 3,754 | EC79: 3,592 | ED79: 162 | EE79: - | EF79: 35 | EG79: 31 | EH79: 15 | EI79: 14 | EJ79: 2 | EK79: - | EL79: - | EM79: 4 | EN79: 44 | EO79: 22 | EP79: 9 | EQ79: 13 | ER79: - | ES79: 8 | ET79: 3 | EU79: 11
A80: 栃木県 | B80: 宇都宮市 | C80: 平石村 | D80: 西組 | E80: 21 | F80: 14 | G80: 4 | H80: 4 | I80: 3 | J80: 1 | K80: 7 | L80: 7 | M80: 42 | N80: - | O80: - | P80: 1 | Q80: 2 | R80: 1 | S80: 2 | T80: 5 | U80: 6 | V80: 8 | W80: - | X80: 3 | Y80: 6 | Z80: 6 | AA80: 2 | AB80: - | AC80: 58.7 | AD80: 57.7 | AE80: 59.8 | AF80: 25 | AG80: - | AH80: - | AI80: - | AJ80: - | AK80: 1 | AL80: 1 | AM80: 2 | AN80: 2 | AO80: 2 | AP80: - | AQ80: 3 | AR80: 6 | AS80: 6 | AT80: 2 | AU80: - | AV80: 65.5 | AW80: 67.3 | AX80: 63.9 | AY80: 18 | AZ80: - | BA80: - | BB80: - | BC80: - | BD80: - | BE80: - | BF80: 2 | BG80: 2 | BH80: 1 | BI80: - | BJ80: 3 | BK80: 4 | BL80: 4 | BM80: 2 | BN80: - | BO80: 66.8 | BP80: 66.2 | BQ80: 67.7 | BR80: 14 | BS80: - | BT80: - | BU80: - | BV80: - | BW80: - | BX80: - | BY80: 2 | BZ80: 3 | CA80: 4 | CB80: - | CC80: 1 | CD80: 2 | CE80: 1 | CF80: 1 | CG80: - | CH80: 9 | CI80: - | CJ80: - | CK80: - | CL80: - | CM80: 2 | CN80: - | CO80: 3 | CP80: - | CQ80: - | CR80: 2 | CS80: 1 | CT80: 1 | CU80: - | DC80: 58 | DD80: 38 | DE80: 18 | DF80: 20 | DG80: - | DH80: 2 | DI80: 9 | DJ80: 9 | DK80: 13 | DL80: 13 | DM80: - | DN80: - | DO80: - | DP80: - | DQ80: - | DR80: - | DS80: - | DT80: - | DU80: - | DV80: - | DW80: - | DX80: - | DY80: - | DZ80: - | EA80: 14 | EB80: 3,328 | EC80: 3,212 | ED80: 116 | EE80: - | EF80: 30 | EG80: 23 | EH80: 11 | EI80: 12 | EJ80: - | EK80: - | EL80: 5 | EM80: 2 | EN80: 28 | EO80: 15 | EP80: 7 | EQ80: 8 | ER80: - | ES80: 2 | ET80: 4 | EU80: 7
A81: 栃木県 | B81: 宇都宮市 | C81: 平石村 | D81: 久部 | E81: 7 | F81: 7 | G81: 2 | H81: - | I81: 2 | J81: - | K81: 3 | L81: - | M81: 14 | N81: - | O81: - | P81: - | Q81: 2 | R81: - | S81: - | T81: - | U81: 3 | V81: - | W81: 2 | X81: 2 | Y81: 2 | Z81: 2 | AA81: 1 | AB81: - | AC81: 61.2 | AD81: 62.1 | AE81: 60.0 | AF81: 9 | AG81: - | AH81: - | AI81: - | AJ81: - | AK81: - | AL81: - | AM81: - | AN81: 1 | AO81: - | AP81: 2 | AQ81: 2 | AR81: 2 | AS81: 2 | AT81: - | AU81: - | AV81: 67.8 | AW81: 70.0 | AX81: 66.0 | AY81: 9 | AZ81: - | BA81: - | BB81: - | BC81: - | BD81: - | BE81: - | BF81: - | BG81: 1 | BH81: - | BI81: 2 | BJ81: 2 | BK81: 2 | BL81: 2 | BM81: - | BN81: - | BO81: 67.8 | BP81: 70.0 | BQ81: 66.0 | BR81: 7 | BS81: - | BT81: - | BU81: - | BV81: - | BW81: - | BX81: - | BY81: - | BZ81: 1 | CA81: - | CB81: 1 | CC81: 1 | CD81: 2 | CE81: 1 | CF81: 1 | CG81: - | CH81: 5 | CI81: - | CJ81: - | CK81: - | CL81: - | CM81: - | CN81: - | CO81: - | CP81: 1 | CQ81: 1 | CR81: 2 | CS81: 1 | CT81: - | CU81: - | DC81: 21 | DD81: 17 | DE81: 9 | DF81: 6 | DG81: 2 | DH81: 1 | DI81: 2 | DJ81: 1 | DK81: 7 | DL81: 6 | DM81: - | DN81: - | DO81: - | DP81: - | DQ81: - | DR81: 1 | DS81: - | DT81: - | DU81: - | DV81: - | DW81: - | DX81: - | DY81: - | DZ81: - | EA81: 7 | EB81: 1,497 | EC81: 1,284 | ED81: 23 | EE81: 190 | EF81: 11 | EG81: 11 | EH81: 4 | EI81: 5 | EJ81: 2 | EK81: - | EL81: - | EM81: - | EN81: 10 | EO81: 6 | EP81: 5 | EQ81: 1 | ER81: - | ES81: 1 | ET81: 2 | EU81: 1
A82: 栃木県 | B82: 宇都宮市 | C82: 平石村 | D82: 新谷 | E82: 16 | F82: 12 | G82: 4 | H82: 1 | I82: 3 | J82: 1 | K82: 5 | L82: 4 | M82: 36 | N82: - | O82: 4 | P82: 1 | Q82: 1 | R82: 1 | S82: 6 | T82: 3 | U82: 4 | V82: 4 | W82: 2 | X82: 3 | Y82: 2 | Z82: 3 | AA82: 1 | AB82: 1 | AC82: 52.6 | AD82: 52.2 | AE82: 53.2 | AF82: 19 | AG82: - | AH82: - | AI82: - | AJ82: 1 | AK82: 1 | AL82: - | AM82: 3 | AN82: 2 | AO82: 1 | AP82: 1 | AQ82: 3 | AR82: 2 | AS82: 3 | AT82: 1 | AU82: 1 | AV82: 62.4 | AW82: 65.1 | AX82: 60.0 | AY82: 15 | AZ82: - | BA82: - | BB82: - | BC82: - | BD82: 1 | BE82: - | BF82: 2 | BG82: 1 | BH82: 1 | BI82: 1 | BJ82: 3 | BK82: 2 | BL82: 3 | BM82: 1 | BN82: - | BO82: 64.3 | BP82: 63.6 | BQ82: 64.9 | BR82: 12 | BS82: - | BT82: - | BU82: - | BV82: - | BW82: 1 | BX82: - | BY82: 2 | BZ82: 1 | CA82: 2 | CB82: 2 | CC82: 1 | CD82: 1 | CE82: 1 | CF82: 1 | CG82: - | CH82: 9 | CI82: - | CJ82: - | CK82: - | CL82: - | CM82: 2 | CN82: - | CO82: 2 | CP82: 1 | CQ82: 1 | CR82: 1 | CS82: 1 | CT82: 1 | CU82: - | DC82: 53 | DD82: 34 | DE82: 15 | DF82: 19 | DG82: - | DH82: 4 | DI82: 6 | DJ82: 9 | DK82: 12 | DL82: 12 | DM82: - | DN82: - | DO82: - | DP82: - | DQ82: - | DR82: - | DS82: - | DT82: - | DU82: - | DV82: - | DW82: - | DX82: - | DY82: - | DZ82: - | EA82: 12 | EB82: 2,561 | EC82: 2,361 | ED82: 200 | EE82: - | EF82: 25 | EG82: 20 | EH82: 7 | EI82: 13 | EJ82: - | EK82: - | EL82: 2 | EM82: 3 | EN82: 28 | EO82: 14 | EP82: 8 | EQ82: 6 | ER82: - | ES82: 4 | ET82: 4 | EU82: 6
A83: 栃木県 | B83: 宇都宮市 | C83: 平石村 | D83: 古城内 | E83: 15 | F83: 13 | G83: 1 | H83: 1 | I83: 7 | J83: 4 | K83: 5 | L83: 2 | M83: 36 | N83: 1 | O83: - | P83: 2 | Q83: 2 | R83: - | S83: 2 | T83: 2 | U83: 3 | V83: 10 | W83: 2 | X83: 3 | Y83: - | Z83: 5 | AA83: 2 | AB83: 2 | AC83: 58.0 | AD83: 56.7 | AE83: 59.8 | AF83: 18 | AG83: - | AH83: - | AI83: - | AJ83: 1 | AK83: - | AL83: - | AM83: 1 | AN83: - | AO83: 5 | AP83: 2 | AQ83: 1 | AR83: - | AS83: 5 | AT83: 2 | AU83: 1 | AV83: 66.3 | AW83: 69.1 | AX83: 63.4 | AY83: 16 | AZ83: - | BA83: - | BB83: - | BC83: 1 | BD83: - | BE83: - | BF83: 1 | BG83: - | BH83: 5 | BI83: 2 | BJ83: 1 | BK83: - | BL83: 4 | BM83: 2 | BN83: - | BO83: 64.5 | BP83: 67.1 | BQ83: 61.9 | BR83: 13 | BS83: - | BT83: - | BU83: - | BV83: 1 | BW83: - | BX83: - | BY83: 1 | BZ83: - | CA83: 2 | CB83: 2 | CC83: 2 | CD83: - | CE83: 2 | CF83: 2 | CG83: 1 | CH83: 10 | CI83: - | CJ83: - | CK83: - | CL83: - | CM83: 1 | CN83: - | CO83: 1 | CP83: 2 | CQ83: 1 | CR83: - | CS83: 2 | CT83: 2 | CU83: 1 | DC83: 52 | DD83: 42 | DE83: 16 | DF83: 22 | DG83: 4 | DH83: 6 | DI83: 2 | DJ83: 2 | DK83: 13 | DL83: 11 | DM83: - | DN83: - | DO83: - | DP83: - | DQ83: 1 | DR83: 1 | DS83: - | DT83: - | DU83: - | DV83: - | DW83: - | DX83: - | DY83: - | DZ83: - | EA83: 13 | EB83: 1,907 | EC83: 1,749 | ED83: 103 | EE83: 55 | EF83: 28 | EG83: 26 | EH83: 8 | EI83: 15 | EJ83: 3 | EK83: - | EL83: 1 | EM83: 1 | EN83: 24 | EO83: 16 | EP83: 8 | EQ83: 7 | ER83: 1 | ES83: 6 | ET83: 1 | EU83: 1
A84: 栃木県 | B84: 宇都宮市 | C84: 平石村 | D84: 岡 | E84: 17 | F84: 15 | G84: - | H84: - | I84: 2 | J84: 1 | K84: 13 | L84: 2 | M84: 35 | N84: - | O84: - | P84: - | Q84: 1 | R84: 5 | S84: 4 | T84: 1 | U84: 1 | V84: 5 | W84: 2 | X84: 6 | Y84: 4 | Z84: 1 | AA84: 4 | AB84: 1 | AC84: 59.6 | AD84: 57.7 | AE84: 62.1 | AF84: 15 | AG84: - | AH84: - | AI84: - | AJ84: - | AK84: 1 | AL84: - | AM84: - | AN84: - | AO84: - | AP84: 2 | AQ84: 5 | AR84: 2 | AS84: 1 | AT84: 3 | AU84: 1 | AV84: 69.9 | AW84: 76.8 | AX84: 65.3 | AY84: 12 | AZ84: - | BA84: - | BB84: - | BC84: - | BD84: 1 | BE84: - | BF84: - | BG84: - | BH84: - | BI84: 1 | BJ84: 5 | BK84: 2 | BL84: 1 | BM84: 1 | BN84: 1 | BO84: 68.5 | BP84: 75.4 | BQ84: 63.6 | BR84: 15 | BS84: - | BT84: - | BU84: - | BV84: 1 | BW84: - | BX84: 1 | BY84: 1 | BZ84: - | CA84: 4 | CB84: - | CC84: 2 | CD84: 3 | CE84: - | CF84: 2 | CG84: 1 | CH84: 8 | CI84: - | CJ84: - | CK84: - | CL84: - | CM84: - | CN84: - | CO84: 2 | CP84: - | CQ84: 2 | CR84: 2 | CS84: - | CT84: 1 | CU84: 1 | DC84: 54 | DD84: 41 | DE84: 12 | DF84: 24 | DG84: 5 | DH84: 4 | DI84: - | DJ84: 9 | DK84: 11 | DL84: 10 | DM84: - | DN84: - | DO84: - | DP84: - | DQ84: - | DR84: 1 | DS84: - | DT84: - | DU84: - | DV84: - | DW84: - | DX84: - | DY84: - | DZ84: - | EA84: 15 | EB84: 1,804 | EC84: 1,485 | ED84: 195 | EE84: 124 | EF84: 27 | EG84: 24 | EH84: 5 | EI84: 15 | EJ84: 4 | EK84: - | EL84: - | EM84: 3 | EN84: 27 | EO84: 17 | EP84: 7 | EQ84: 9 | ER84: 1 | ES84: 4 | ET84: - | EU84: 6
A85: 栃木県 | B85: 宇都宮市 | C85: 平石村 | D85: 岡台（台町） | E85: 2 | F85: - | G85: - | H85: - | I85: - | J85: - | K85: - | L85: 2 | M85: - | N85: - | O85: - | P85: - | Q85: - | R85: - | S85: - | T85: - | U85: - | V85: - | W85: - | X85: - | Y85: - | Z85: - | AA85: - | AB85: - | AC85: … | AD85: … | AE85: … | AF85: - | AG85: - | AH85: - | AI85: - | AJ85: - | AK85: - | AL85: - | AM85: - | AN85: - | AO85: - | AP85: - | AQ85: - | AR85: - | AS85: - | AT85: - | AU85: - | AV85: … | AW85: … | AX85: … | AY85: - | AZ85: - | BA85: - | BB85: - | BC85: - | BD85: - | BE85: - | BF85: - | BG85: - | BH85: - | BI85: - | BJ85: - | BK85: - | BL85: - | BM85: - | BN85: - | BO85: … | BP85: … | BQ85: … | BR85: - | BS85: - | BT85: - | BU85: - | BV85: - | BW85: - | BX85: - | BY85: - | BZ85: - | CA85: - | CB85: - | CC85: - | CD85: - | CE85: - | CF85: - | CG85: - | CH85: - | CI85: - | CJ85: - | CK85: - | CL85: - | CM85: - | CN85: - | CO85: - | CP85: - | CQ85: - | CR85: - | CS85: - | CT85: - | CU85: - | DC85: - | DD85: - | DE85: - | DF85: - | DG85: - | DH85: - | DI85: - | DJ85: - | DK85: - | DL85: - | DM85: - | DN85: - | DO85: - | DP85: - | DQ85: - | DR85: - | DS85: - | DT85: - | DU85: - | DV85: - | DW85: - | DX85: - | DY85: - | DZ85: - | EA85: - | EB85: - | EC85: - | ED85: - | EE85: - | EF85: - | EG85: - | EH85: - | EI85: - | EJ85: - | EK85: - | EL85: - | EM85: - | EN85: - | EO85: - | EP85: - | EQ85: - | ER85: - | ES85: - | ET85: - | EU85: -
A86: 栃木県 | B86: 宇都宮市 | C86: 平石村 | D86: 東峰北 | E86: 1 | F86: - | G86: - | H86: - | I86: - | J86: - | K86: - | L86: 1 | M86: - | N86: - | O86: - | P86: - | Q86: - | R86: - | S86: - | T86: - | U86: - | V86: - | W86: - | X86: - | Y86: - | Z86: - | AA86: - | AB86: - | AC86: … | AD86: … | AE86: … | AF86: - | AG86: - | AH86: - | AI86: - | AJ86: - | AK86: - | AL86: - | AM86: - | AN86: - | AO86: - | AP86: - | AQ86: - | AR86: - | AS86: - | AT86: - | AU86: - | AV86: … | AW86: … | AX86: … | AY86: - | AZ86: - | BA86: - | BB86: - | BC86: - | BD86: - | BE86: - | BF86: - | BG86: - | BH86: - | BI86: - | BJ86: - | BK86: - | BL86: - | BM86: - | BN86: - | BO86: … | BP86: … | BQ86: … | BR86: - | BS86: - | BT86: - | BU86: - | BV86: - | BW86: - | BX86: - | BY86: - | BZ86: - | CA86: - | CB86: - | CC86: - | CD86: - | CE86: - | CF86: - | CG86: - | CH86: - | CI86: - | CJ86: - | CK86: - | CL86: - | CM86: - | CN86: - | CO86: - | CP86: - | CQ86: - | CR86: - | CS86: - | CT86: - | CU86: - | DC86: - | DD86: - | DE86: - | DF86: - | DG86: - | DH86: - | DI86: - | DJ86: - | DK86: - | DL86: - | DM86: - | DN86: - | DO86: - | DP86: - | DQ86: - | DR86: - | DS86: - | DT86: - | DU86: - | DV86: - | DW86: - | DX86: - | DY86: - | DZ86: - | EA86: - | EB86: - | EC86: - | ED86: - | EE86: - | EF86: - | EG86: - | EH86: - | EI86: - | EJ86: - | EK86: - | EL86: - | EM86: - | EN86: - | EO86: - | EP86: - | EQ86: - | ER86: - | ES86: - | ET86: - | EU86: -
A87: 栃木県 | B87: 宇都宮市 | C87: 平石村 | D87: 東峰南 | E87: 2 | F87: 2 | G87: x | H87: x | I87: x | J87: x | K87: x | L87: - | M87: x | N87: x | O87: x | P87: x | Q87: x | R87: x | S87: x | T87: x | U87: x | V87: x | W87: x | X87: x | Y87: x | Z87: x | AA87: x | AB87: x | AC87: 55.0 | AD87: 57.3 | AE87: 48.0 | AF87: x | AG87: x | AH87: x | AI87: x | AJ87: x | AK87: x | AL87: x | AM87: x | AN87: x | AO87: x | AP87: x | AQ87: x | AR87: x | AS87: x | AT87: x | AU87: x | AV87: 59.5 | AW87: 71.0 | AX87: 48.0 | AY87: x | AZ87: x | BA87: x | BB87: x | BC87: x | BD87: x | BE87: x | BF87: x | BG87: x | BH87: x | BI87: x | BJ87: x | BK87: x | BL87: x | BM87: x | BN87: x | BO87: 59.5 | BP87: 71.0 | BQ87: 48.0 | BR87: 2 | BS87: - | BT87: - | BU87: - | BV87: - | BW87: - | BX87: - | BY87: - | BZ87: 1 | CA87: - | CB87: - | CC87: - | CD87: 1 | CE87: - | CF87: - | CG87: - | CH87: - | CI87: - | CJ87: - | CK87: - | CL87: - | CM87: - | CN87: - | CO87: - | CP87: - | CQ87: - | CR87: - | CS87: - | CT87: - | CU87: - | DC87: 7 | DD87: 4 | DE87: 2 | DF87: 1 | DG87: 1 | DH87: - | DI87: 2 | DJ87: 1 | DK87: 2 | DL87: 1 | DM87: - | DN87: - | DO87: - | DP87: - | DQ87: - | DR87: 1 | DS87: - | DT87: - | DU87: - | DV87: - | DW87: - | DX87: - | DY87: - | DZ87: - | EA87: 2 | EB87: 139 | EC87: 48 | ED87: 26 | EE87: 65 | EF87: 4 | EG87: 3 | EH87: 1 | EI87: 1 | EJ87: 1 | EK87: - | EL87: 1 | EM87: - | EN87: 3 | EO87: 1 | EP87: 1 | EQ87: - | ER87: - | ES87: - | ET87: 1 | EU87: 1
A88: 栃木県 | B88: 宇都宮市 | C88: 平石村 | D88: 越戸 | E88: 3 | F88: 3 | G88: - | H88: - | I88: 1 | J88: 1 | K88: 2 | L88: - | M88: 9 | N88: - | O88: 1 | P88: 1 | Q88: - | R88: - | S88: - | T88: - | U88: 2 | V88: 3 | W88: - | X88: - | Y88: 1 | Z88: - | AA88: - | AB88: 1 | AC88: 54.0 | AD88: 55.6 | AE88: 52.0 | AF88: 4 | AG88: - | AH88: - | AI88: - | AJ88: - | AK88: - | AL88: - | AM88: - | AN88: 1 | AO88: 1 | AP88: - | AQ88: - | AR88: 1 | AS88: - | AT88: - | AU88: 1 | AV88: 67.3 | AW88: 72.0 | AX88: 62.5 | AY88: 4 | AZ88: - | BA88: - | BB88: - | BC88: - | BD88: - | BE88: - | BF88: - | BG88: 1 | BH88: 1 | BI88: - | BJ88: - | BK88: 1 | BL88: - | BM88: - | BN88: 1 | BO88: 67.3 | BP88: 72.0 | BQ88: 62.5 | BR88: 3 | BS88: - | BT88: - | BU88: - | BV88: - | BW88: - | BX88: - | BY88: - | BZ88: 1 | CA88: 1 | CB88: - | CC88: - | CD88: - | CE88: - | CF88: - | CG88: 1 | CH88: 2 | CI88: - | CJ88: - | CK88: - | CL88: - | CM88: - | CN88: - | CO88: 1 | CP88: - | CQ88: - | CR88: - | CS88: - | CT88: - | CU88: 1 | DC88: 15 | DD88: 9 | DE88: 4 | DF88: 5 | DG88: - | DH88: 1 | DI88: 4 | DJ88: 1 | DK88: 2 | DL88: 2 | DM88: - | DN88: - | DO88: - | DP88: - | DQ88: - | DR88: - | DS88: - | DT88: - | DU88: - | DV88: - | DW88: - | DX88: - | DY88: - | DZ88: - | EA88: 3 | EB88: 227 | EC88: 183 | ED88: 44 | EE88: - | EF88: 8 | EG88: 5 | EH88: 2 | EI88: 3 | EJ88: - | EK88: - | EL88: 3 | EM88: - | EN88: 7 | EO88: 4 | EP88: 2 | EQ88: 2 | ER88: - | ES88: 1 | ET88: 1 | EU88: 1
A89: 栃木県 | B89: 宇都宮市 | C89: 平石村 | D89: 御幸 | E89: 3 | F89: 2 | G89: x | H89: x | I89: x | J89: x | K89: x | L89: 1 | M89: x | N89: x | O89: x | P89: x | Q89: x | R89: x | S89: x | T89: x | U89: x | V89: x | W89: x | X89: x | Y89: x | Z89: x | AA89: x | AB89: x | AC89: 57.3 | AD89: 51.3 | AE89: 63.3 | AF89: x | AG89: x | AH89: x | AI89: x | AJ89: x | AK89: x | AL89: x | AM89: x | AN89: x | AO89: x | AP89: x | AQ89: x | AR89: x | AS89: x | AT89: x | AU89: x | AV89: 58.3 | AW89: 50.0 | AX89: 62.5 | AY89: x | AZ89: x | BA89: x | BB89: x | BC89: x | BD89: x | BE89: x | BF89: x | BG89: x | BH89: x | BI89: x | BJ89: x | BK89: x | BL89: x | BM89: x | BN89: x | BO89: 58.3 | BP89: 50.0 | BQ89: 62.5 | BR89: 2 | BS89: - | BT89: - | BU89: - | BV89: - | BW89: - | BX89: - | BY89: - | BZ89: 1 | CA89: - | CB89: - | CC89: 1 | CD89: - | CE89: - | CF89: - | CG89: - | CH89: 2 | CI89: - | CJ89: - | CK89: - | CL89: - | CM89: - | CN89: 1 | CO89: - | CP89: - | CQ89: 1 | CR89: - | CS89: - | CT89: - | CU89: - | DC89: 9 | DD89: 6 | DE89: 3 | DF89: 3 | DG89: - | DH89: - | DI89: 3 | DJ89: - | DK89: 2 | DL89: 1 | DM89: - | DN89: - | DO89: - | DP89: - | DQ89: - | DR89: 1 | DS89: - | DT89: - | DU89: - | DV89: - | DW89: - | DX89: - | DY89: - | DZ89: - | EA89: 2 | EB89: 379 | EC89: 79 | ED89: - | EE89: 300 | EF89: 4 | EG89: 3 | EH89: 1 | EI89: 2 | EJ89: - | EK89: - | EL89: 1 | EM89: - | EN89: 5 | EO89: 3 | EP89: 2 | EQ89: 1 | ER89: - | ES89: - | ET89: 2 | EU89: -
A90: 栃木県 | B90: 宇都宮市 | C90: 瑞穂野村 | E90: 455 | F90: 377 | G90: 90 | H90: 76 | I90: 95 | J90: 38 | K90: 192 | L90: 78 | M90: 1,095 | N90: 29 | O90: 31 | P90: 52 | Q90: 53 | R90: 48 | S90: 49 | T90: 80 | U90: 108 | V90: 160 | W90: 127 | X90: 95 | Y90: 84 | Z90: 85 | AA90: 70 | AB90: 24 | AC90: 55.9 | AD90: 54.9 | AE90: 57.2 | AF90: 566 | AG90: 11 | AH90: 5 | AI90: 3 | AJ90: 13 | AK90: 11 | AL90: 10 | AM90: 25 | AN90: 38 | AO90: 62 | AP90: 69 | AQ90: 74 | AR90: 79 | AS90: 79 | AT90: 65 | AU90: 22 | AV90: 64.6 | AW90: 65.0 | AX90: 64.3 | AY90: 433 | AZ90: - | BA90: 3 | BB90: 3 | BC90: 7 | BD90: 7 | BE90: 7 | BF90: 23 | BG90: 31 | BH90: 58 | BI90: 58 | BJ90: 61 | BK90: 69 | BL90: 60 | BM90: 38 | BN90: 8 | BO90: 64.7 | BP90: 64.5 | BQ90: 65.0 | BR90: 377 | BS90: - | BT90: - | BU90: - | BV90: - | BW90: 5 | BX90: 12 | BY90: 30 | BZ90: 41 | CA90: 85 | CB90: 69 | CC90: 46 | CD90: 38 | CE90: 26 | CF90: 21 | CG90: 4 | CH90: 210 | CI90: - | CJ90: - | CK90: - | CL90: 1 | CM90: 12 | CN90: 17 | CO90: 48 | CP90: 46 | CQ90: 28 | CR90: 25 | CS90: 15 | CT90: 15 | CU90: 3 | DC90: 1,526 | DD90: 1,067 | DE90: 433 | DF90: 591 | DG90: 43 | DH90: 128 | DI90: 113 | DJ90: 218 | DK90: 342 | DL90: 266 | DM90: 1 | DN90: - | DO90: - | DP90: 10 | DQ90: 47 | DR90: 3 | DS90: 2 | DT90: 5 | DU90: 3 | DV90: 2 | DW90: 3 | DX90: - | DY90: - | DZ90: - | EA90: 376 | EB90: 64,025 | EC90: 56,036 | ED90: 7,816 | EE90: 173 | EF90: 738 | EG90: 602 | EH90: 235 | EI90: 341 | EJ90: 26 | EK90: 3 | EL90: 58 | EM90: 75 | EN90: 788 | EO90: 465 | EP90: 198 | EQ90: 250 | ER90: 17 | ES90: 125 | ET90: 55 | EU90: 143
A91: 栃木県 | B91: 宇都宮市 | C91: 瑞穂野村 | D91: 岡の内 | E91: 22 | F91: 20 | G91: 1 | H91: 1 | I91: 7 | J91: 1 | K91: 12 | L91: 2 | M91: 55 | N91: - | O91: 1 | P91: 2 | Q91: 4 | R91: 3 | S91: - | T91: 2 | U91: 5 | V91: 11 | W91: 4 | X91: 5 | Y91: 5 | Z91: 5 | AA91: 8 | AB91: - | AC91: 59.5 | AD91: 57.1 | AE91: 62.5 | AF91: 25 | AG91: - | AH91: - | AI91: - | AJ91: - | AK91: - | AL91: - | AM91: - | AN91: 1 | AO91: 2 | AP91: 1 | AQ91: 3 | AR91: 5 | AS91: 5 | AT91: 8 | AU91: - | AV91: 72.9 | AW91: 71.8 | AX91: 73.9 | AY91: 20 | AZ91: - | BA91: - | BB91: - | BC91: - | BD91: - | BE91: - | BF91: - | BG91: 1 | BH91: 2 | BI91: 1 | BJ91: 1 | BK91: 4 | BL91: 4 | BM91: 7 | BN91: - | BO91: 72.8 | BP91: 69.9 | BQ91: 75.2 | BR91: 20 | BS91: - | BT91: - | BU91: - | BV91: - | BW91: 1 | BX91: - | BY91: - | BZ91: 1 | CA91: 6 | CB91: 1 | CC91: 3 | CD91: 2 | CE91: 1 | CF91: 5 | CG91: - | CH91: 14 | CI91: - | CJ91: - | CK91: - | CL91: - | CM91: - | CN91: - | CO91: 4 | CP91: - | CQ91: 3 | CR91: 2 | CS91: 1 | CT91: 4 | CU91: - | DC91: 80 | DD91: 64 | DE91: 20 | DF91: 43 | DG91: 1 | DH91: 4 | DI91: 5 | DJ91: 7 | DK91: 20 | DL91: 18 | DM91: - | DN91: - | DO91: - | DP91: - | DQ91: 2 | DR91: - | DS91: - | DT91: - | DU91: - | DV91: - | DW91: - | DX91: - | DY91: - | DZ91: - | EA91: 20 | EB91: 3,036 | EC91: 2,596 | ED91: 440 | EE91: - | EF91: 44 | EG91: 37 | EH91: 9 | EI91: 27 | EJ91: 1 | EK91: 1 | EL91: 2 | EM91: 4 | EN91: 36 | EO91: 27 | EP91: 11 | EQ91: 16 | ER91: - | ES91: 3 | ET91: 3 | EU91: 3
A92: 栃木県 | B92: 宇都宮市 | C92: 瑞穂野村 | D92: 中郡 | E92: 18 | F92: 15 | G92: 6 | H92: 6 | I92: 2 | J92: 1 | K92: 7 | L92: 3 | M92: 42 | N92: 1 | O92: 1 | P92: 2 | Q92: 1 | R92: 3 | S92: 1 | T92: 4 | U92: 2 | V92: 7 | W92: 4 | X92: 3 | Y92: 5 | Z92: 2 | AA92: 5 | AB92: 1 | AC92: 57.7 | AD92: 56.3 | AE92: 59.9 | AF92: 27 | AG92: - | AH92: - | AI92: - | AJ92: 1 | AK92: 2 | AL92: - | AM92: 1 | AN92: - | AO92: 3 | AP92: 4 | AQ92: 3 | AR92: 5 | AS92: 2 | AT92: 5 | AU92: 1 | AV92: 66.2 | AW92: 64.6 | AX92: 68.3 | AY92: 20 | AZ92: - | BA92: - | BB92: - | BC92: 1 | BD92: 1 | BE92: - | BF92: 1 | BG92: - | BH92: 3 | BI92: 4 | BJ92: 3 | BK92: 5 | BL92: 1 | BM92: 1 | BN92: - | BO92: 62.9 | BP92: 61.6 | BQ92: 65.3 | BR92: 15 | BS92: - | BT92: - | BU92: - | BV92: - | BW92: - | BX92: - | BY92: 2 | BZ92: - | CA92: 5 | CB92: 1 | CC92: 2 | CD92: 2 | CE92: 1 | CF92: 1 | CG92: 1 | CH92: 7 | CI92: - | CJ92: - | CK92: - | CL92: - | CM92: 1 | CN92: - | CO92: 2 | CP92: - | CQ92: 2 | CR92: 1 | CS92: - | CT92: - | CU92: 1 | DC92: 58 | DD92: 36 | DE92: 20 | DF92: 14 | DG92: 2 | DH92: 6 | DI92: 6 | DJ92: 10 | DK92: 14 | DL92: 7 | DM92: - | DN92: - | DO92: - | DP92: 1 | DQ92: 4 | DR92: - | DS92: - | DT92: 1 | DU92: 1 | DV92: - | DW92: - | DX92: - | DY92: - | DZ92: - | EA92: 15 | EB92: 2,180 | EC92: 1,809 | ED92: 371 | EE92: - | EF92: 29 | EG92: 22 | EH92: 13 | EI92: 7 | EJ92: 2 | EK92: - | EL92: 2 | EM92: 5 | EN92: 29 | EO92: 14 | EP92: 7 | EQ92: 7 | ER92: - | ES92: 6 | ET92: 4 | EU92: 5
A93: 栃木県 | B93: 宇都宮市 | C93: 瑞穂野村 | D93: 宿 | E93: 19 | F93: 17 | G93: 5 | H93: 4 | I93: 3 | J93: - | K93: 9 | L93: 2 | M93: 49 | N93: 2 | O93: 1 | P93: 2 | Q93: 3 | R93: 2 | S93: 5 | T93: 2 | U93: 3 | V93: 5 | W93: 6 | X93: 3 | Y93: 3 | Z93: 9 | AA93: 2 | AB93: 1 | AC93: 56.2 | AD93: 56.2 | AE93: 56.3 | AF93: 26 | AG93: - | AH93: - | AI93: - | AJ93: 2 | AK93: 2 | AL93: - | AM93: - | AN93: 1 | AO93: 2 | AP93: 4 | AQ93: 3 | AR93: 2 | AS93: 9 | AT93: 1 | AU93: - | AV93: 64.1 | AW93: 64.4 | AX93: 63.8 | AY93: 20 | AZ93: - | BA93: - | BB93: - | BC93: 1 | BD93: 2 | BE93: - | BF93: - | BG93: 1 | BH93: 2 | BI93: 2 | BJ93: 2 | BK93: 2 | BL93: 8 | BM93: - | BN93: - | BO93: 64.2 | BP93: 64.1 | BQ93: 64.4 | BR93: 17 | BS93: - | BT93: - | BU93: - | BV93: - | BW93: 1 | BX93: - | BY93: 1 | BZ93: 2 | CA93: 3 | CB93: 2 | CC93: 2 | CD93: 2 | CE93: 3 | CF93: - | CG93: 1 | CH93: 8 | CI93: - | CJ93: - | CK93: - | CL93: - | CM93: - | CN93: - | CO93: 1 | CP93: 2 | CQ93: 1 | CR93: 1 | CS93: 2 | CT93: - | CU93: 1 | DC93: 68 | DD93: 50 | DE93: 20 | DF93: 30 | DG93: - | DH93: 3 | DI93: 6 | DJ93: 9 | DK93: 16 | DL93: 12 | DM93: - | DN93: - | DO93: - | DP93: - | DQ93: 1 | DR93: 1 | DS93: 1 | DT93: - | DU93: 1 | DV93: - | DW93: - | DX93: - | DY93: - | DZ93: - | EA93: 17 | EB93: 2,808 | EC93: 2,076 | ED93: 662 | EE93: 70 | EF93: 32 | EG93: 27 | EH93: 12 | EI93: 15 | EJ93: - | EK93: - | EL93: 4 | EM93: 1 | EN93: 36 | EO93: 23 | EP93: 8 | EQ93: 15 | ER93: - | ES93: 3 | ET93: 2 | EU93: 8
A94: 栃木県 | B94: 宇都宮市 | C94: 瑞穂野村 | D94: 新田 | E94: 17 | F94: 13 | G94: - | H94: - | I94: 3 | J94: 1 | K94: 10 | L94: 4 | M94: 38 | N94: - | O94: - | P94: 2 | Q94: 1 | R94: 3 | S94: 3 | T94: 2 | U94: 5 | V94: 3 | W94: 4 | X94: 4 | Y94: 7 | Z94: 2 | AA94: - | AB94: 2 | AC94: 57.8 | AD94: 55.3 | AE94: 61.3 | AF94: 17 | AG94: - | AH94: - | AI94: - | AJ94: - | AK94: 1 | AL94: - | AM94: - | AN94: 1 | AO94: - | AP94: - | AQ94: 4 | AR94: 7 | AS94: 2 | AT94: - | AU94: 2 | AV94: 70.1 | AW94: 71.5 | AX94: 68.8 | AY94: 10 | AZ94: - | BA94: - | BB94: - | BC94: - | BD94: - | BE94: - | BF94: - | BG94: - | BH94: - | BI94: - | BJ94: 2 | BK94: 6 | BL94: 2 | BM94: - | BN94: - | BO94: 71.7 | BP94: 71.5 | BQ94: 72.0 | BR94: 13 | BS94: - | BT94: - | BU94: - | BV94: - | BW94: - | BX94: 1 | BY94: - | BZ94: 3 | CA94: 1 | CB94: 3 | CC94: 1 | CD94: 3 | CE94: 1 | CF94: - | CG94: - | CH94: 6 | CI94: - | CJ94: - | CK94: - | CL94: - | CM94: - | CN94: - | CO94: 1 | CP94: 2 | CQ94: - | CR94: 2 | CS94: 1 | CT94: - | CU94: - | DC94: 57 | DD94: 35 | DE94: 10 | DF94: 23 | DG94: 2 | DH94: 6 | DI94: 4 | DJ94: 12 | DK94: 13 | DL94: 13 | DM94: - | DN94: - | DO94: - | DP94: - | DQ94: - | DR94: - | DS94: - | DT94: - | DU94: - | DV94: - | DW94: - | DX94: - | DY94: - | DZ94: - | EA94: 13 | EB94: 1,122 | EC94: 981 | ED94: 141 | EE94: - | EF94: 30 | EG94: 22 | EH94: 6 | EI94: 15 | EJ94: 1 | EK94: - | EL94: 3 | EM94: 5 | EN94: 27 | EO94: 13 | EP94: 4 | EQ94: 8 | ER94: 1 | ES94: 6 | ET94: 1 | EU94: 7
A95: 栃木県 | B95: 宇都宮市 | C95: 瑞穂野村 | D95: 谷地下 | E95: 11 | F95: 10 | G95: 2 | H95: 1 | I95: 5 | J95: 2 | K95: 3 | L95: 1 | M95: 31 | N95: - | O95: 2 | P95: 4 | Q95: 2 | R95: 2 | S95: - | T95: 2 | U95: 3 | V95: 3 | W95: 7 | X95: - | Y95: - | Z95: 2 | AA95: 3 | AB95: 1 | AC95: 52.9 | AD95: 49.4 | AE95: 58.3 | AF95: 14 | AG95: - | AH95: - | AI95: - | AJ95: - | AK95: - | AL95: - | AM95: - | AN95: 1 | AO95: 2 | AP95: 6 | AQ95: - | AR95: - | AS95: 1 | AT95: 3 | AU95: 1 | AV95: 67.6 | AW95: 68.3 | AX95: 66.7 | AY95: 8 | AZ95: - | BA95: - | BB95: - | BC95: - | BD95: - | BE95: - | BF95: - | BG95: 1 | BH95: 2 | BI95: 4 | BJ95: - | BK95: - | BL95: - | BM95: 1 | BN95: - | BO95: 62.3 | BP95: 65.2 | BQ95: 57.3 | BR95: 10 | BS95: - | BT95: - | BU95: - | BV95: - | BW95: - | BX95: - | BY95: 1 | BZ95: - | CA95: 2 | CB95: 6 | CC95: - | CD95: - | CE95: 1 | CF95: - | CG95: - | CH95: 5 | CI95: - | CJ95: - | CK95: - | CL95: - | CM95: - | CN95: - | CO95: 2 | CP95: 2 | CQ95: - | CR95: - | CS95: 1 | CT95: - | CU95: - | DC95: 37 | DD95: 25 | DE95: 8 | DF95: 17 | DG95: - | DH95: 2 | DI95: - | DJ95: 10 | DK95: 7 | DL95: 7 | DM95: - | DN95: - | DO95: - | DP95: - | DQ95: - | DR95: - | DS95: - | DT95: - | DU95: - | DV95: - | DW95: - | DX95: - | DY95: - | DZ95: - | EA95: 10 | EB95: 1,939 | EC95: 1,755 | ED95: 174 | EE95: 10 | EF95: 20 | EG95: 16 | EH95: 5 | EI95: 11 | EJ95: - | EK95: - | EL95: - | EM95: 4 | EN95: 17 | EO95: 9 | EP95: 3 | EQ95: 6 | ER95: - | ES95: 2 | ET95: - | EU95: 6
A96: 栃木県 | B96: 宇都宮市 | C96: 瑞穂野村 | D96: 新宿小原 | E96: 16 | F96: 12 | G96: 3 | H96: 3 | I96: 5 | J96: 3 | K96: 4 | L96: 4 | M96: 35 | N96: 2 | O96: 1 | P96: - | Q96: 4 | R96: - | S96: 1 | T96: 4 | U96: 2 | V96: 9 | W96: 2 | X96: - | Y96: 4 | Z96: 3 | AA96: 2 | AB96: 1 | AC96: 55.4 | AD96: 56.6 | AE96: 53.8 | AF96: 23 | AG96: - | AH96: - | AI96: - | AJ96: 1 | AK96: - | AL96: - | AM96: 4 | AN96: - | AO96: 7 | AP96: 1 | AQ96: - | AR96: 4 | AS96: 3 | AT96: 2 | AU96: 1 | AV96: 63.5 | AW96: 67.3 | AX96: 59.3 | AY96: 18 | AZ96: - | BA96: - | BB96: - | BC96: - | BD96: - | BE96: - | BF96: 4 | BG96: - | BH96: 6 | BI96: 1 | BJ96: - | BK96: 4 | BL96: 3 | BM96: - | BN96: - | BO96: 62.7 | BP96: 64.3 | BQ96: 60.6 | BR96: 12 | BS96: - | BT96: - | BU96: - | BV96: - | BW96: - | BX96: - | BY96: 2 | BZ96: 1 | CA96: 4 | CB96: 1 | CC96: - | CD96: 1 | CE96: 1 | CF96: 1 | CG96: 1 | CH96: 8 | CI96: - | CJ96: - | CK96: - | CL96: - | CM96: 1 | CN96: 1 | CO96: 2 | CP96: 1 | CQ96: - | CR96: 1 | CS96: - | CT96: 1 | CU96: 1 | DC96: 46 | DD96: 31 | DE96: 18 | DF96: 13 | DG96: - | DH96: 2 | DI96: 4 | DJ96: 9 | DK96: 11 | DL96: 6 | DM96: - | DN96: - | DO96: - | DP96: - | DQ96: 3 | DR96: - | DS96: - | DT96: 1 | DU96: 1 | DV96: - | DW96: - | DX96: - | DY96: - | DZ96: - | EA96: 12 | EB96: 2,120 | EC96: 1,945 | ED96: 175 | EE96: - | EF96: 26 | EG96: 18 | EH96: 10 | EI96: 8 | EJ96: - | EK96: - | EL96: 3 | EM96: 5 | EN96: 20 | EO96: 13 | EP96: 8 | EQ96: 5 | ER96: - | ES96: 2 | ET96: 1 | EU96: 4
A97: 栃木県 | B97: 宇都宮市 | C97: 瑞穂野村 | D97: 西新宿柿木坂 | E97: 12 | F97: 8 | G97: 3 | H97: 3 | I97: 2 | J97: 1 | K97: 3 | L97: 4 | M97: 28 | N97: 3 | O97: - | P97: 4 | Q97: - | R97: - | S97: 2 | T97: - | U97: 7 | V97: 3 | W97: - | X97: 2 | Y97: 2 | Z97: 3 | AA97: 2 | AB97: - | AC97: 51.8 | AD97: 50.0 | AE97: 54.3 | AF97: 15 | AG97: - | AH97: - | AI97: 1 | AJ97: - | AK97: - | AL97: 2 | AM97: - | AN97: 2 | AO97: 2 | AP97: - | AQ97: 1 | AR97: 2 | AS97: 3 | AT97: 2 | AU97: - | AV97: 62.2 | AW97: 57.8 | AX97: 68.8 | AY97: 13 | AZ97: - | BA97: - | BB97: 1 | BC97: - | BD97: - | BE97: 2 | BF97: - | BG97: 2 | BH97: 2 | BI97: - | BJ97: 1 | BK97: 2 | BL97: 2 | BM97: 1 | BN97: - | BO97: 59.5 | BP97: 55.1 | BQ97: 66.6 | BR97: 8 | BS97: - | BT97: - | BU97: - | BV97: - | BW97: - | BX97: 1 | BY97: - | BZ97: 2 | CA97: 3 | CB97: - | CC97: - | CD97: 1 | CE97: 1 | CF97: - | CG97: - | CH97: 7 | CI97: - | CJ97: - | CK97: - | CL97: - | CM97: - | CN97: 2 | CO97: 3 | CP97: - | CQ97: - | CR97: 1 | CS97: 1 | CT97: - | CU97: - | DC97: 42 | DD97: 28 | DE97: 13 | DF97: 15 | DG97: - | DH97: 4 | DI97: 6 | DJ97: 4 | DK97: 7 | DL97: 6 | DM97: - | DN97: - | DO97: - | DP97: - | DQ97: 1 | DR97: - | DS97: - | DT97: - | DU97: - | DV97: - | DW97: - | DX97: - | DY97: - | DZ97: - | EA97: 8 | EB97: 4,381 | EC97: 3,681 | ED97: 700 | EE97: - | EF97: 24 | EG97: 18 | EH97: 8 | EI97: 10 | EJ97: - | EK97: 1 | EL97: 2 | EM97: 3 | EN97: 18 | EO97: 10 | EP97: 5 | EQ97: 5 | ER97: - | ES97: 3 | ET97: 4 | EU97: 1
A98: 栃木県 | B98: 宇都宮市 | C98: 瑞穂野村 | D98: 森 | E98: 17 | F98: 15 | G98: 4 | H98: 1 | I98: 1 | J98: 1 | K98: 10 | L98: 2 | M98: 38 | N98: - | O98: - | P98: 1 | Q98: - | R98: 5 | S98: 1 | T98: 5 | U98: 4 | V98: 1 | W98: 6 | X98: 5 | Y98: 4 | Z98: 4 | AA98: 2 | AB98: - | AC98: 58.4 | AD98: 57.7 | AE98: 59.4 | AF98: 18 | AG98: - | AH98: - | AI98: - | AJ98: - | AK98: - | AL98: - | AM98: 1 | AN98: - | AO98: - | AP98: 4 | AQ98: 5 | AR98: 4 | AS98: 3 | AT98: 1 | AU98: - | AV98: 68.0 | AW98: 68.4 | AX98: 67.5 | AY98: 16 | AZ98: - | BA98: - | BB98: - | BC98: - | BD98: - | BE98: - | BF98: 1 | BG98: - | BH98: - | BI98: 3 | BJ98: 5 | BK98: 4 | BL98: 2 | BM98: 1 | BN98: - | BO98: 67.6 | BP98: 68.4 | BQ98: 66.2 | BR98: 15 | BS98: - | BT98: - | BU98: - | BV98: - | BW98: - | BX98: 1 | BY98: 2 | BZ98: 2 | CA98: 1 | CB98: 2 | CC98: 3 | CD98: 1 | CE98: 2 | CF98: 1 | CG98: - | CH98: 4 | CI98: - | CJ98: - | CK98: - | CL98: - | CM98: - | CN98: - | CO98: - | CP98: - | CQ98: 2 | CR98: - | CS98: 1 | CT98: 1 | CU98: - | DC98: 58 | DD98: 46 | DE98: 16 | DF98: 29 | DG98: 1 | DH98: 4 | DI98: 2 | DJ98: 6 | DK98: 13 | DL98: 12 | DM98: - | DN98: - | DO98: - | DP98: - | DQ98: 1 | DR98: - | DS98: - | DT98: - | DU98: - | DV98: - | DW98: - | DX98: - | DY98: - | DZ98: - | EA98: 15 | EB98: 2,166 | EC98: 1,872 | ED98: 294 | EE98: - | EF98: 27 | EG98: 25 | EH98: 10 | EI98: 14 | EJ98: 1 | EK98: - | EL98: 1 | EM98: 1 | EN98: 31 | EO98: 21 | EP98: 6 | EQ98: 15 | ER98: - | ES98: 4 | ET98: 1 | EU98: 5
A99: 栃木県 | B99: 宇都宮市 | C99: 瑞穂野村 | D99: 竹の岸 | E99: 12 | F99: 7 | G99: - | H99: - | I99: - | J99: - | K99: 7 | L99: 5 | M99: 16 | N99: - | O99: - | P99: - | Q99: - | R99: 2 | S99: - | T99: 1 | U99: - | V99: 2 | W99: 2 | X99: 4 | Y99: - | Z99: 3 | AA99: 1 | AB99: 1 | AC99: 64.8 | AD99: 60.4 | AE99: 72.0 | AF99: 8 | AG99: - | AH99: - | AI99: - | AJ99: - | AK99: - | AL99: - | AM99: - | AN99: - | AO99: - | AP99: 1 | AQ99: 3 | AR99: - | AS99: 2 | AT99: 1 | AU99: 1 | AV99: 73.6 | AW99: 69.3 | AX99: 78.0 | AY99: 5 | AZ99: - | BA99: - | BB99: - | BC99: - | BD99: - | BE99: - | BF99: - | BG99: - | BH99: - | BI99: - | BJ99: 2 | BK99: - | BL99: 2 | BM99: 1 | BN99: - | BO99: 74.2 | BP99: 70.7 | BQ99: 79.5 | BR99: 7 | BS99: - | BT99: - | BU99: - | BV99: - | BW99: - | BX99: - | BY99: - | BZ99: - | CA99: 1 | CB99: - | CC99: 4 | CD99: - | CE99: 2 | CF99: - | CG99: - | CH99: 2 | CI99: - | CJ99: - | CK99: - | CL99: - | CM99: - | CN99: - | CO99: - | CP99: - | CQ99: 2 | CR99: - | CS99: - | CT99: - | CU99: - | DC99: 28 | DD99: 15 | DE99: 5 | DF99: 9 | DG99: 1 | DH99: 5 | DI99: 4 | DJ99: 4 | DK99: 7 | DL99: 7 | DM99: - | DN99: - | DO99: - | DP99: - | DQ99: - | DR99: - | DS99: - | DT99: - | DU99: - | DV99: - | DW99: - | DX99: - | DY99: - | DZ99: - | EA99: 7 | EB99: 423 | EC99: 374 | ED99: 49 | EE99: - | EF99: 11 | EG99: 9 | EH99: 3 | EI99: 5 | EJ99: 1 | EK99: - | EL99: - | EM99: 2 | EN99: 17 | EO99: 6 | EP99: 2 | EQ99: 4 | ER99: - | ES99: 5 | ET99: 4 | EU99: 2
A100: 栃木県 | B100: 宇都宮市 | C100: 瑞穂野村 | D100: 谷川 | E100: 15 | F100: 14 | G100: 1 | H100: 1 | I100: 6 | J100: 3 | K100: 7 | L100: 1 | M100: 39 | N100: 3 | O100: 1 | P100: 1 | Q100: 1 | R100: - | S100: 5 | T100: 6 | U100: 5 | V100: 7 | W100: 1 | X100: 3 | Y100: 4 | Z100: 2 | AA100: - | AB100: - | AC100: 51.1 | AD100: 48.8 | AE100: 53.8 | AF100: 17 | AG100: 2 | AH100: - | AI100: 1 | AJ100: 1 | AK100: - | AL100: 1 | AM100: 2 | AN100: 1 | AO100: - | AP100: 1 | AQ100: 2 | AR100: 4 | AS100: 2 | AT100: - | AU100: - | AV100: 53.9 | AW100: 52.5 | AX100: 55.1 | AY100: 12 | AZ100: - | BA100: - | BB100: 1 | BC100: 1 | BD100: - | BE100: 1 | BF100: 2 | BG100: - | BH100: - | BI100: 1 | BJ100: 2 | BK100: 3 | BL100: 1 | BM100: - | BN100: - | BO100: 56.9 | BP100: 57.6 | BQ100: 56.0 | BR100: 14 | BS100: - | BT100: - | BU100: - | BV100: - | BW100: - | BX100: 1 | BY100: 3 | BZ100: 2 | CA100: 4 | CB100: 1 | CC100: 1 | CD100: 1 | CE100: 1 | CF100: - | CG100: - | CH100: 8 | CI100: - | CJ100: - | CK100: - | CL100: - | CM100: 2 | CN100: 2 | CO100: 1 | CP100: 1 | CQ100: 1 | CR100: 1 | CS100: - | CT100: - | CU100: - | DC100: 53 | DD100: 30 | DE100: 12 | DF100: 17 | DG100: 1 | DH100: 8 | DI100: 8 | DJ100: 7 | DK100: 11 | DL100: 10 | DM100: - | DN100: - | DO100: - | DP100: - | DQ100: 1 | DR100: - | DS100: - | DT100: - | DU100: - | DV100: - | DW100: - | DX100: - | DY100: - | DZ100: - | EA100: 14 | EB100: 2,028 | EC100: 1,825 | ED100: 203 | EE100: - | EF100: 26 | EG100: 20 | EH100: 7 | EI100: 13 | EJ100: - | EK100: - | EL100: 6 | EM100: - | EN100: 27 | EO100: 10 | EP100: 5 | EQ100: 4 | ER100: 1 | ES100: 8 | ET100: 2 | EU100: 7
A101: 栃木県 | B101: 宇都宮市 | C101: 瑞穂野村 | D101: 高田根本 | E101: 18 | F101: 16 | G101: 4 | H101: 4 | I101: 6 | J101: 1 | K101: 6 | L101: 2 | M101: 50 | N101: - | O101: 1 | P101: 3 | Q101: 4 | R101: 3 | S101: 3 | T101: 2 | U101: 6 | V101: 9 | W101: 5 | X101: 7 | Y101: 4 | Z101: 1 | AA101: - | AB101: 2 | AC101: 54.2 | AD101: 51.0 | AE101: 58.0 | AF101: 25 | AG101: - | AH101: - | AI101: - | AJ101: 1 | AK101: 1 | AL101: - | AM101: - | AN101: 6 | AO101: 5 | AP101: - | AQ101: 6 | AR101: 3 | AS101: 1 | AT101: - | AU101: 2 | AV101: 61.9 | AW101: 58.3 | AX101: 64.7 | AY101: 21 | AZ101: - | BA101: - | BB101: - | BC101: - | BD101: 1 | BE101: - | BF101: - | BG101: 6 | BH101: 4 | BI101: - | BJ101: 6 | BK101: 2 | BL101: 1 | BM101: - | BN101: 1 | BO101: 62.0 | BP101: 61.1 | BQ101: 62.7 | BR101: 16 | BS101: - | BT101: - | BU101: - | BV101: - | BW101: - | BX101: 1 | BY101: 1 | BZ101: 2 | CA101: 5 | CB101: 3 | CC101: 2 | CD101: 2 | CE101: - | CF101: - | CG101: - | CH101: 12 | CI101: - | CJ101: - | CK101: - | CL101: 1 | CM101: - | CN101: 2 | CO101: 5 | CP101: 2 | CQ101: 1 | CR101: 1 | CS101: - | CT101: - | CU101: - | DC101: 72 | DD101: 50 | DE101: 21 | DF101: 23 | DG101: 6 | DH101: 2 | DI101: 3 | DJ101: 17 | DK101: 16 | DL101: 12 | DM101: - | DN101: - | DO101: - | DP101: - | DQ101: 3 | DR101: - | DS101: - | DT101: 1 | DU101: - | DV101: - | DW101: - | DX101: - | DY101: - | DZ101: - | EA101: 16 | EB101: 3,429 | EC101: 3,086 | ED101: 315 | EE101: 28 | EF101: 35 | EG101: 27 | EH101: 10 | EI101: 13 | EJ101: 4 | EK101: - | EL101: 3 | EM101: 5 | EN101: 37 | EO101: 23 | EP101: 11 | EQ101: 10 | ER101: 2 | ES101: 2 | ET101: - | EU101: 12
A102: 栃木県 | B102: 宇都宮市 | C102: 瑞穂野村 | D102: 畑ケ中 | E102: 14 | F102: 13 | G102: 3 | H102: 3 | I102: 4 | J102: 3 | K102: 6 | L102: 1 | M102: 28 | N102: - | O102: 1 | P102: - | Q102: - | R102: 1 | S102: - | T102: 4 | U102: 3 | V102: 7 | W102: 4 | X102: 4 | Y102: 1 | Z102: - | AA102: 2 | AB102: 1 | AC102: 58.7 | AD102: 58.1 | AE102: 59.5 | AF102: 14 | AG102: - | AH102: - | AI102: - | AJ102: - | AK102: - | AL102: - | AM102: 2 | AN102: 2 | AO102: - | AP102: 3 | AQ102: 3 | AR102: 1 | AS102: - | AT102: 2 | AU102: 1 | AV102: 65.2 | AW102: 66.3 | AX102: 64.4 | AY102: 9 | AZ102: - | BA102: - | BB102: - | BC102: - | BD102: - | BE102: - | BF102: 2 | BG102: 1 | BH102: - | BI102: 2 | BJ102: 2 | BK102: 1 | BL102: - | BM102: 1 | BN102: - | BO102: 62.0 | BP102: 65.8 | BQ102: 57.3 | BR102: 13 | BS102: - | BT102: - | BU102: - | BV102: - | BW102: - | BX102: - | BY102: 2 | BZ102: 1 | CA102: 4 | CB102: 1 | CC102: 3 | CD102: 1 | CE102: - | CF102: 1 | CG102: - | CH102: 5 | CI102: - | CJ102: - | CK102: - | CL102: - | CM102: - | CN102: 1 | CO102: 1 | CP102: 1 | CQ102: 1 | CR102: - | CS102: - | CT102: 1 | CU102: - | DC102: 38 | DD102: 27 | DE102: 9 | DF102: 17 | DG102: 1 | DH102: 3 | DI102: - | DJ102: 8 | DK102: 13 | DL102: 9 | DM102: - | DN102: - | DO102: - | DP102: - | DQ102: 4 | DR102: - | DS102: - | DT102: - | DU102: - | DV102: - | DW102: - | DX102: - | DY102: - | DZ102: - | EA102: 13 | EB102: 1,766 | EC102: 1,472 | ED102: 294 | EE102: - | EF102: 19 | EG102: 16 | EH102: 5 | EI102: 10 | EJ102: 1 | EK102: - | EL102: - | EM102: 3 | EN102: 19 | EO102: 11 | EP102: 4 | EQ102: 7 | ER102: - | ES102: 3 | ET102: - | EU102: 5
A103: 栃木県 | B103: 宇都宮市 | C103: 瑞穂野村 | D103: 前田内 | E103: 21 | F103: 19 | G103: 3 | H103: 3 | I103: 5 | J103: 2 | K103: 11 | L103: 2 | M103: 58 | N103: 2 | O103: 1 | P103: 8 | Q103: 3 | R103: 1 | S103: 2 | T103: 5 | U103: 5 | V103: 6 | W103: 8 | X103: 3 | Y103: 4 | Z103: 2 | AA103: 6 | AB103: 2 | AC103: 54.1 | AD103: 58.2 | AE103: 50.4 | AF103: 25 | AG103: - | AH103: - | AI103: - | AJ103: - | AK103: 1 | AL103: 1 | AM103: - | AN103: 3 | AO103: 1 | AP103: 2 | AQ103: 3 | AR103: 4 | AS103: 2 | AT103: 6 | AU103: 2 | AV103: 69.2 | AW103: 73.8 | AX103: 65.6 | AY103: 17 | AZ103: - | BA103: - | BB103: - | BC103: - | BD103: - | BE103: 1 | BF103: - | BG103: 3 | BH103: - | BI103: 1 | BJ103: 2 | BK103: 4 | BL103: 2 | BM103: 4 | BN103: - | BO103: 68.6 | BP103: 72.8 | BQ103: 62.7 | BR103: 19 | BS103: - | BT103: - | BU103: - | BV103: - | BW103: - | BX103: 1 | BY103: 2 | BZ103: 1 | CA103: 4 | CB103: 5 | CC103: - | CD103: 3 | CE103: 1 | CF103: 2 | CG103: - | CH103: 6 | CI103: - | CJ103: - | CK103: - | CL103: - | CM103: - | CN103: - | CO103: 3 | CP103: 2 | CQ103: - | CR103: - | CS103: - | CT103: 1 | CU103: - | DC103: 81 | DD103: 53 | DE103: 17 | DF103: 35 | DG103: 1 | DH103: 7 | DI103: 6 | DJ103: 15 | DK103: 17 | DL103: 11 | DM103: - | DN103: - | DO103: - | DP103: 1 | DQ103: 5 | DR103: - | DS103: - | DT103: - | DU103: - | DV103: - | DW103: - | DX103: - | DY103: - | DZ103: - | EA103: 19 | EB103: 2,515 | EC103: 1,969 | ED103: 546 | EE103: - | EF103: 34 | EG103: 28 | EH103: 10 | EI103: 18 | EJ103: - | EK103: - | EL103: 2 | EM103: 4 | EN103: 47 | EO103: 25 | EP103: 7 | EQ103: 17 | ER103: 1 | ES103: 7 | ET103: 4 | EU103: 11
A104: 栃木県 | B104: 宇都宮市 | C104: 瑞穂野村 | D104: 喜楽町 | E104: 8 | F104: 8 | G104: 2 | H104: - | I104: 2 | J104: - | K104: 4 | L104: - | M104: 29 | N104: 1 | O104: 2 | P104: 4 | Q104: 1 | R104: - | S104: 3 | T104: 5 | U104: 2 | V104: 2 | W104: 2 | X104: 1 | Y104: 1 | Z104: 3 | AA104: 2 | AB104: - | AC104: 49.4 | AD104: 47.3 | AE104: 50.7 | AF104: 13 | AG104: 1 | AH104: 1 | AI104: - | AJ104: - | AK104: - | AL104: 1 | AM104: 1 | AN104: 1 | AO104: - | AP104: 1 | AQ104: 1 | AR104: 1 | AS104: 3 | AT104: 2 | AU104: - | AV104: 59.8 | AW104: 56.8 | AX104: 61.1 | AY104: 6 | AZ104: - | BA104: - | BB104: - | BC104: - | BD104: - | BE104: - | BF104: - | BG104: - | BH104: - | BI104: 1 | BJ104: 1 | BK104: - | BL104: 2 | BM104: 2 | BN104: - | BO104: 74.7 | BP104: 69.7 | BQ104: 79.7 | BR104: 8 | BS104: - | BT104: - | BU104: - | BV104: - | BW104: - | BX104: 1 | BY104: 1 | BZ104: 1 | CA104: 1 | CB104: 1 | CC104: 1 | CD104: - | CE104: 1 | CF104: 1 | CG104: - | CH104: 4 | CI104: - | CJ104: - | CK104: - | CL104: - | CM104: 1 | CN104: - | CO104: - | CP104: 1 | CQ104: - | CR104: - | CS104: 1 | CT104: 1 | CU104: - | DC104: 35 | DD104: 21 | DE104: 6 | DF104: 15 | DG104: - | DH104: 8 | DI104: 4 | DJ104: 2 | DK104: 6 | DL104: 4 | DM104: - | DN104: - | DO104: - | DP104: 2 | DQ104: - | DR104: - | DS104: - | DT104: - | DU104: - | DV104: - | DW104: - | DX104: - | DY104: - | DZ104: - | EA104: 8 | EB104: 653 | EC104: 478 | ED104: 175 | EE104: - | EF104: 12 | EG104: 10 | EH104: 3 | EI104: 7 | EJ104: - | EK104: - | EL104: 1 | EM104: 1 | EN104: 23 | EO104: 11 | EP104: 3 | EQ104: 8 | ER104: - | ES104: 8 | ET104: 3 | EU104: 1
A105: 栃木県 | B105: 宇都宮市 | C105: 瑞穂野村 | D105: 堀の内 | E105: 30 | F105: 24 | G105: 6 | H105: 4 | I105: 5 | J105: 1 | K105: 13 | L105: 6 | M105: 68 | N105: - | O105: 1 | P105: 1 | Q105: 5 | R105: 4 | S105: 1 | T105: 2 | U105: 3 | V105: 12 | W105: 15 | X105: 8 | Y105: 5 | Z105: 6 | AA105: 3 | AB105: 2 | AC105: 59.3 | AD105: 58.6 | AE105: 60.1 | AF105: 32 | AG105: - | AH105: - | AI105: - | AJ105: 2 | AK105: - | AL105: - | AM105: - | AN105: 1 | AO105: 3 | AP105: 6 | AQ105: 4 | AR105: 5 | AS105: 6 | AT105: 3 | AU105: 2 | AV105: 68.4 | AW105: 68.9 | AX105: 67.8 | AY105: 22 | AZ105: - | BA105: - | BB105: - | BC105: 2 | BD105: - | BE105: - | BF105: - | BG105: - | BH105: 3 | BI105: 5 | BJ105: 2 | BK105: 3 | BL105: 6 | BM105: 1 | BN105: - | BO105: 66.1 | BP105: 65.9 | BQ105: 66.3 | BR105: 24 | BS105: - | BT105: - | BU105: - | BV105: - | BW105: - | BX105: - | BY105: - | BZ105: 1 | CA105: 4 | CB105: 9 | CC105: 4 | CD105: 3 | CE105: 1 | CF105: 2 | CG105: - | CH105: 17 | CI105: - | CJ105: - | CK105: - | CL105: - | CM105: - | CN105: - | CO105: 3 | CP105: 9 | CQ105: 2 | CR105: 2 | CS105: - | CT105: 1 | CU105: - | DC105: 90 | DD105: 64 | DE105: 22 | DF105: 36 | DG105: 6 | DH105: 5 | DI105: 2 | DJ105: 19 | DK105: 21 | DL105: 16 | DM105: - | DN105: - | DO105: - | DP105: 1 | DQ105: 4 | DR105: - | DS105: - | DT105: - | DU105: - | DV105: - | DW105: - | DX105: - | DY105: - | DZ105: - | EA105: 24 | EB105: 3,527 | EC105: 2,976 | ED105: 551 | EE105: - | EF105: 45 | EG105: 37 | EH105: 13 | EI105: 20 | EJ105: 4 | EK105: - | EL105: - | EM105: 8 | EN105: 45 | EO105: 27 | EP105: 9 | EQ105: 16 | ER105: 2 | ES105: 5 | ET105: 2 | EU105: 11
A106: 栃木県 | B106: 宇都宮市 | C106: 瑞穂野村 | D106: 田中 | E106: 11 | F106: 9 | G106: 1 | H106: 1 | I106: 3 | J106: 1 | K106: 5 | L106: 2 | M106: 23 | N106: - | O106: - | P106: 1 | Q106: 2 | R106: 1 | S106: 2 | T106: - | U106: 2 | V106: 1 | W106: 2 | X106: 6 | Y106: 3 | Z106: 2 | AA106: 1 | AB106: - | AC106: 59.0 | AD106: 58.9 | AE106: 59.2 | AF106: 16 | AG106: - | AH106: - | AI106: - | AJ106: 1 | AK106: - | AL106: 2 | AM106: - | AN106: - | AO106: - | AP106: 2 | AQ106: 5 | AR106: 3 | AS106: 2 | AT106: 1 | AU106: - | AV106: 64.0 | AW106: 64.7 | AX106: 62.8 | AY106: 14 | AZ106: - | BA106: - | BB106: - | BC106: 1 | BD106: - | BE106: 1 | BF106: - | BG106: - | BH106: - | BI106: 2 | BJ106: 5 | BK106: 3 | BL106: 2 | BM106: - | BN106: - | BO106: 64.3 | BP106: 62.8 | BQ106: 67.0 | BR106: 9 | BS106: - | BT106: - | BU106: - | BV106: - | BW106: - | BX106: - | BY106: - | BZ106: - | CA106: 1 | CB106: 1 | CC106: 2 | CD106: 2 | CE106: 2 | CF106: 1 | CG106: - | CH106: 7 | CI106: - | CJ106: - | CK106: - | CL106: - | CM106: - | CN106: - | CO106: 1 | CP106: 1 | CQ106: - | CR106: 2 | CS106: 2 | CT106: 1 | CU106: - | DC106: 38 | DD106: 24 | DE106: 14 | DF106: 9 | DG106: 1 | DH106: 5 | DI106: 2 | DJ106: 7 | DK106: 9 | DL106: 7 | DM106: - | DN106: - | DO106: - | DP106: - | DQ106: 2 | DR106: - | DS106: - | DT106: - | DU106: - | DV106: - | DW106: - | DX106: - | DY106: - | DZ106: - | EA106: 9 | EB106: 1,505 | EC106: 1,377 | ED106: 128 | EE106: - | EF106: 19 | EG106: 15 | EH106: 9 | EI106: 5 | EJ106: 1 | EK106: - | EL106: 2 | EM106: 2 | EN106: 19 | EO106: 9 | EP106: 5 | EQ106: 4 | ER106: - | ES106: 5 | ET106: - | EU106: 5
A107: 栃木県 | B107: 宇都宮市 | C107: 瑞穂野村 | D107: 木代上 | E107: 20 | F107: 14 | G107: 3 | H107: 3 | I107: 3 | J107: 1 | K107: 8 | L107: 6 | M107: 44 | N107: 3 | O107: 3 | P107: - | Q107: 3 | R107: 1 | S107: 2 | T107: 2 | U107: 8 | V107: 6 | W107: 3 | X107: 2 | Y107: 3 | Z107: 2 | AA107: 6 | AB107: - | AC107: 53.9 | AD107: 58.1 | AE107: 50.7 | AF107: 21 | AG107: 2 | AH107: - | AI107: - | AJ107: - | AK107: - | AL107: - | AM107: - | AN107: 1 | AO107: 2 | AP107: 3 | AQ107: 2 | AR107: 3 | AS107: 2 | AT107: 6 | AU107: - | AV107: 66.0 | AW107: 69.4 | AX107: 63.3 | AY107: 15 | AZ107: - | BA107: - | BB107: - | BC107: - | BD107: - | BE107: - | BF107: - | BG107: 1 | BH107: 2 | BI107: 3 | BJ107: 2 | BK107: 3 | BL107: 1 | BM107: 3 | BN107: - | BO107: 68.7 | BP107: 68.1 | BQ107: 69.3 | BR107: 14 | BS107: - | BT107: - | BU107: - | BV107: - | BW107: - | BX107: 1 | BY107: - | BZ107: 4 | CA107: 2 | CB107: 1 | CC107: 1 | CD107: 2 | CE107: - | CF107: 3 | CG107: - | CH107: 6 | CI107: - | CJ107: - | CK107: - | CL107: - | CM107: - | CN107: - | CO107: 1 | CP107: 1 | CQ107: - | CR107: 2 | CS107: - | CT107: 2 | CU107: - | DC107: 51 | DD107: 35 | DE107: 15 | DF107: 20 | DG107: - | DH107: 5 | DI107: 5 | DJ107: 6 | DK107: 14 | DL107: 14 | DM107: - | DN107: - | DO107: - | DP107: - | DQ107: - | DR107: - | DS107: - | DT107: - | DU107: - | DV107: - | DW107: - | DX107: - | DY107: - | DZ107: - | EA107: 14 | EB107: 2,525 | EC107: 2,284 | ED107: 241 | EE107: - | EF107: 24 | EG107: 20 | EH107: 8 | EI107: 12 | EJ107: - | EK107: 1 | EL107: 1 | EM107: 2 | EN107: 27 | EO107: 15 | EP107: 7 | EQ107: 8 | ER107: - | ES107: 4 | ET107: 4 | EU107: 4
A108: 栃木県 | B108: 宇都宮市 | C108: 瑞穂野村 | D108: 木代下 | E108: 25 | F108: 21 | G108: 7 | H108: 7 | I108: 7 | J108: 3 | K108: 7 | L108: 4 | M108: 59 | N108: 2 | O108: 1 | P108: 2 | Q108: 3 | R108: 5 | S108: 1 | T108: 4 | U108: 4 | V108: 11 | W108: 16 | X108: 2 | Y108: 2 | Z108: 4 | AA108: 2 | AB108: - | AC108: 54.0 | AD108: 52.1 | AE108: 56.5 | AF108: 25 | AG108: - | AH108: - | AI108: - | AJ108: - | AK108: 2 | AL108: - | AM108: 1 | AN108: 1 | AO108: 3 | AP108: 9 | AQ108: 1 | AR108: 2 | AS108: 4 | AT108: 2 | AU108: - | AV108: 63.2 | AW108: 63.5 | AX108: 63.0 | AY108: 24 | AZ108: - | BA108: - | BB108: - | BC108: - | BD108: 2 | BE108: - | BF108: 1 | BG108: 1 | BH108: 3 | BI108: 9 | BJ108: 1 | BK108: 2 | BL108: 4 | BM108: 1 | BN108: - | BO108: 62.5 | BP108: 61.9 | BQ108: 63.0 | BR108: 21 | BS108: - | BT108: - | BU108: - | BV108: - | BW108: - | BX108: - | BY108: 1 | BZ108: 2 | CA108: 3 | CB108: 11 | CC108: 2 | CD108: - | CE108: 1 | CF108: 1 | CG108: - | CH108: 12 | CI108: - | CJ108: - | CK108: - | CL108: - | CM108: 1 | CN108: 1 | CO108: - | CP108: 7 | CQ108: 1 | CR108: - | CS108: 1 | CT108: 1 | CU108: - | DC108: 88 | DD108: 67 | DE108: 24 | DF108: 39 | DG108: 4 | DH108: 3 | DI108: 6 | DJ108: 12 | DK108: 20 | DL108: 13 | DM108: - | DN108: - | DO108: - | DP108: 1 | DQ108: 5 | DR108: 1 | DS108: - | DT108: - | DU108: - | DV108: - | DW108: - | DX108: - | DY108: - | DZ108: - | EA108: 21 | EB108: 4,022 | EC108: 3,528 | ED108: 494 | EE108: - | EF108: 44 | EG108: 35 | EH108: 12 | EI108: 20 | EJ108: 3 | EK108: - | EL108: 4 | EM108: 5 | EN108: 44 | EO108: 32 | EP108: 12 | EQ108: 19 | ER108: 1 | ES108: 3 | ET108: 2 | EU108: 7
A109: 栃木県 | B109: 宇都宮市 | C109: 瑞穂野村 | D109: 田中内 | E109: 20 | F109: 17 | G109: 5 | H109: 4 | I109: 4 | J109: 2 | K109: 8 | L109: 3 | M109: 54 | N109: 3 | O109: 2 | P109: 1 | Q109: 3 | R109: 2 | S109: 1 | T109: 3 | U109: 6 | V109: 10 | W109: 4 | X109: 4 | Y109: 4 | Z109: 6 | AA109: 3 | AB109: 2 | AC109: 56.4 | AD109: 55.4 | AE109: 57.3 | AF109: 30 | AG109: 1 | AH109: - | AI109: - | AJ109: 1 | AK109: - | AL109: 1 | AM109: 1 | AN109: 3 | AO109: 5 | AP109: 2 | AQ109: 4 | AR109: 4 | AS109: 4 | AT109: 2 | AU109: 2 | AV109: 63.5 | AW109: 62.4 | AX109: 64.5 | AY109: 26 | AZ109: - | BA109: - | BB109: - | BC109: - | BD109: - | BE109: 1 | BF109: 1 | BG109: 3 | BH109: 5 | BI109: 2 | BJ109: 2 | BK109: 4 | BL109: 4 | BM109: 2 | BN109: 2 | BO109: 66.2 | BP109: 65.5 | BQ109: 67.1 | BR109: 17 | BS109: - | BT109: - | BU109: - | BV109: - | BW109: - | BX109: - | BY109: 1 | BZ109: 3 | CA109: 6 | CB109: 2 | CC109: 1 | CD109: 3 | CE109: 1 | CF109: - | CG109: - | CH109: 9 | CI109: - | CJ109: - | CK109: - | CL109: - | CM109: - | CN109: - | CO109: 5 | CP109: 1 | CQ109: 1 | CR109: 2 | CS109: - | CT109: - | CU109: - | DC109: 69 | DD109: 49 | DE109: 26 | DF109: 23 | DG109: - | DH109: 11 | DI109: 7 | DJ109: 2 | DK109: 15 | DL109: 12 | DM109: - | DN109: - | DO109: - | DP109: - | DQ109: 1 | DR109: - | DS109: - | DT109: - | DU109: - | DV109: 1 | DW109: 1 | DX109: - | DY109: - | DZ109: - | EA109: 17 | EB109: 2,631 | EC109: 2,300 | ED109: 331 | EE109: - | EF109: 36 | EG109: 31 | EH109: 14 | EI109: 17 | EJ109: - | EK109: - | EL109: 4 | EM109: 1 | EN109: 33 | EO109: 18 | EP109: 12 | EQ109: 6 | ER109: - | ES109: 11 | ET109: 3 | EU109: 1
A110: 栃木県 | B110: 宇都宮市 | C110: 瑞穂野村 | D110: 平塚 | E110: 18 | F110: 17 | G110: 5 | H110: 4 | I110: 3 | J110: 2 | K110: 9 | L110: 1 | M110: 57 | N110: 2 | O110: 1 | P110: 1 | Q110: 3 | R110: 2 | S110: 3 | T110: 6 | U110: 11 | V110: 3 | W110: 4 | X110: 7 | Y110: 4 | Z110: 6 | AA110: 3 | AB110: 1 | AC110: 56.0 | AD110: 53.2 | AE110: 59.1 | AF110: 33 | AG110: - | AH110: 1 | AI110: - | AJ110: 1 | AK110: - | AL110: - | AM110: 2 | AN110: 5 | AO110: 2 | AP110: 2 | AQ110: 6 | AR110: 4 | AS110: 6 | AT110: 3 | AU110: 1 | AV110: 64.6 | AW110: 63.5 | AX110: 65.5 | AY110: 29 | AZ110: - | BA110: 1 | BB110: - | BC110: - | BD110: - | BE110: - | BF110: 2 | BG110: 5 | BH110: 2 | BI110: 2 | BJ110: 6 | BK110: 4 | BL110: 6 | BM110: 1 | BN110: - | BO110: 63.8 | BP110: 62.3 | BQ110: 65.1 | BR110: 17 | BS110: - | BT110: - | BU110: - | BV110: - | BW110: 1 | BX110: - | BY110: 1 | BZ110: 4 | CA110: 2 | CB110: 1 | CC110: 3 | CD110: 2 | CE110: 2 | CF110: - | CG110: 1 | CH110: 8 | CI110: - | CJ110: - | CK110: - | CL110: - | CM110: 1 | CN110: 2 | CO110: 1 | CP110: 1 | CQ110: - | CR110: 2 | CS110: 1 | CT110: - | CU110: - | DC110: 74 | DD110: 57 | DE110: 29 | DF110: 25 | DG110: 3 | DH110: 3 | DI110: 7 | DJ110: 7 | DK110: 15 | DL110: 12 | DM110: - | DN110: - | DO110: - | DP110: 2 | DQ110: - | DR110: - | DS110: - | DT110: - | DU110: - | DV110: - | DW110: 1 | DX110: - | DY110: - | DZ110: - | EA110: 17 | EB110: 4,345 | EC110: 3,888 | ED110: 442 | EE110: 15 | EF110: 35 | EG110: 29 | EH110: 14 | EI110: 14 | EJ110: 1 | EK110: - | EL110: 4 | EM110: 2 | EN110: 39 | EO110: 28 | EP110: 15 | EQ110: 11 | ER110: 2 | ES110: 3 | ET110: 3 | EU110: 5
A111: 栃木県 | B111: 宇都宮市 | C111: 瑞穂野村 | D111: 中前 | E111: 29 | F111: 24 | G111: 2 | H111: 2 | I111: 6 | J111: 3 | K111: 16 | L111: 5 | M111: 70 | N111: 3 | O111: 3 | P111: 2 | Q111: 2 | R111: 3 | S111: 4 | T111: 6 | U111: 6 | V111: 9 | W111: 6 | X111: 8 | Y111: 6 | Z111: 6 | AA111: 5 | AB111: 1 | AC111: 55.9 | AD111: 56.3 | AE111: 55.4 | AF111: 35 | AG111: 3 | AH111: 1 | AI111: - | AJ111: - | AK111: 2 | AL111: - | AM111: 3 | AN111: 3 | AO111: 3 | AP111: - | AQ111: 5 | AR111: 5 | AS111: 6 | AT111: 3 | AU111: 1 | AV111: 60.3 | AW111: 64.1 | AX111: 57.1 | AY111: 21 | AZ111: - | BA111: - | BB111: - | BC111: - | BD111: 1 | BE111: - | BF111: 2 | BG111: 1 | BH111: 2 | BI111: - | BJ111: 5 | BK111: 4 | BL111: 3 | BM111: 2 | BN111: 1 | BO111: 67.0 | BP111: 65.5 | BQ111: 69.5 | BR111: 24 | BS111: - | BT111: - | BU111: - | BV111: - | BW111: 1 | BX111: 2 | BY111: 1 | BZ111: 2 | CA111: 7 | CB111: 1 | CC111: 5 | CD111: 3 | CE111: 2 | CF111: - | CG111: - | CH111: 16 | CI111: - | CJ111: - | CK111: - | CL111: - | CM111: 1 | CN111: 2 | CO111: 4 | CP111: - | CQ111: 5 | CR111: 2 | CS111: 2 | CT111: - | CU111: - | DC111: 103 | DD111: 67 | DE111: 21 | DF111: 41 | DG111: 5 | DH111: 14 | DI111: 10 | DJ111: 12 | DK111: 19 | DL111: 16 | DM111: - | DN111: - | DO111: - | DP111: - | DQ111: 1 | DR111: 1 | DS111: - | DT111: - | DU111: - | DV111: - | DW111: 1 | DX111: - | DY111: - | DZ111: - | EA111: 23 | EB111: 2,486 | EC111: 2,162 | ED111: 274 | EE111: 50 | EF111: 52 | EG111: 41 | EH111: 13 | EI111: 24 | EJ111: 4 | EK111: - | EL111: 6 | EM111: 5 | EN111: 51 | EO111: 26 | EP111: 8 | EQ111: 17 | ER111: 1 | ES111: 14 | ET111: 4 | EU111: 7
A112: 栃木県 | B112: 宇都宮市 | C112: 瑞穂野村 | D112: 中後 | E112: 25 | F112: 20 | G112: 11 | H112: 9 | I112: 5 | J112: 3 | K112: 4 | L112: 5 | M112: 70 | N112: 2 | O112: 5 | P112: 6 | Q112: 3 | R112: 1 | S112: 2 | T112: 7 | U112: 6 | V112: 11 | W112: 6 | X112: 5 | Y112: 3 | Z112: 5 | AA112: 5 | AB112: 3 | AC112: 53.4 | AD112: 49.9 | AE112: 57.2 | AF112: 45 | AG112: 2 | AH112: 1 | AI112: 1 | AJ112: - | AK112: - | AL112: 1 | AM112: 5 | AN112: 2 | AO112: 8 | AP112: 5 | AQ112: 4 | AR112: 3 | AS112: 5 | AT112: 5 | AU112: 3 | AV112: 61.2 | AW112: 61.4 | AX112: 61.0 | AY112: 38 | AZ112: - | BA112: 1 | BB112: 1 | BC112: - | BD112: - | BE112: 1 | BF112: 5 | BG112: 2 | BH112: 8 | BI112: 5 | BJ112: 4 | BK112: 2 | BL112: 2 | BM112: 4 | BN112: 3 | BO112: 61.6 | BP112: 63.1 | BQ112: 60.3 | BR112: 20 | BS112: - | BT112: - | BU112: - | BV112: - | BW112: - | BX112: - | BY112: 5 | BZ112: 1 | CA112: 7 | CB112: 4 | CC112: 2 | CD112: 1 | CE112: - | CF112: - | CG112: - | CH112: 13 | CI112: - | CJ112: - | CK112: - | CL112: - | CM112: 3 | CN112: 1 | CO112: 3 | CP112: 3 | CQ112: 2 | CR112: 1 | CS112: - | CT112: - | CU112: - | DC112: 94 | DD112: 73 | DE112: 38 | DF112: 31 | DG112: 4 | DH112: 6 | DI112: 8 | DJ112: 7 | DK112: 20 | DL112: 11 | DM112: - | DN112: - | DO112: - | DP112: 1 | DQ112: 7 | DR112: - | DS112: - | DT112: - | DU112: - | DV112: 1 | DW112: - | DX112: - | DY112: - | DZ112: - | EA112: 20 | EB112: 3,933 | EC112: 3,713 | ED112: 220 | EE112: - | EF112: 40 | EG112: 36 | EH112: 17 | EI112: 18 | EJ112: 1 | EK112: - | EL112: 2 | EM112: 2 | EN112: 54 | EO112: 37 | EP112: 21 | EQ112: 13 | ER112: 3 | ES112: 6 | ET112: 6 | EU112: 5
A113: 栃木県 | B113: 宇都宮市 | C113: 瑞穂野村 | D113: 渕の上 | E113: 10 | F113: 9 | G113: 2 | H113: 2 | I113: 3 | J113: 1 | K113: 4 | L113: 1 | M113: 26 | N113: - | O113: - | P113: 2 | Q113: 1 | R113: 1 | S113: 3 | T113: 1 | U113: 2 | V113: 6 | W113: 2 | X113: 2 | Y113: 3 | Z113: 2 | AA113: 1 | AB113: - | AC113: 55.7 | AD113: 55.5 | AE113: 56.1 | AF113: 14 | AG113: - | AH113: - | AI113: - | AJ113: - | AK113: - | AL113: - | AM113: 1 | AN113: 2 | AO113: 3 | AP113: 1 | AQ113: 1 | AR113: 3 | AS113: 2 | AT113: 1 | AU113: - | AV113: 64.4 | AW113: 64.0 | AX113: 64.7 | AY113: 11 | AZ113: - | BA113: - | BB113: - | BC113: - | BD113: - | BE113: - | BF113: 1 | BG113: 2 | BH113: 3 | BI113: - | BJ113: 1 | BK113: 3 | BL113: - | BM113: 1 | BN113: - | BO113: 62.1 | BP113: 61.8 | BQ113: 62.3 | BR113: 9 | BS113: - | BT113: - | BU113: - | BV113: - | BW113: - | BX113: - | BY113: 1 | BZ113: 1 | CA113: 3 | CB113: 2 | CC113: 1 | CD113: 1 | CE113: - | CF113: - | CG113: - | CH113: 7 | CI113: - | CJ113: - | CK113: - | CL113: - | CM113: - | CN113: 1 | CO113: 3 | CP113: 1 | CQ113: 1 | CR113: 1 | CS113: - | CT113: - | CU113: - | DC113: 33 | DD113: 25 | DE113: 11 | DF113: 11 | DG113: 3 | DH113: 1 | DI113: 1 | DJ113: 6 | DK113: 9 | DL113: 7 | DM113: 1 | DN113: - | DO113: - | DP113: - | DQ113: - | DR113: - | DS113: 1 | DT113: - | DU113: - | DV113: - | DW113: - | DX113: - | DY113: - | DZ113: - | EA113: 9 | EB113: 2,929 | EC113: 2,717 | ED113: 212 | EE113: - | EF113: 17 | EG113: 14 | EH113: 5 | EI113: 8 | EJ113: 1 | EK113: - | EL113: 1 | EM113: 2 | EN113: 16 | EO113: 11 | EP113: 6 | EQ113: 3 | ER113: 2 | ES113: 1 | ET113: - | EU113: 4
A114: 栃木県 | B114: 宇都宮市 | C114: 瑞穂野村 | D114: 万所内 | E114: 21 | F114: 18 | G114: 6 | H114: 6 | I114: 2 | J114: 1 | K114: 10 | L114: 3 | M114: 47 | N114: - | O114: 2 | P114: 1 | Q114: 2 | R114: 2 | S114: 2 | T114: 3 | U114: 5 | V114: 8 | W114: 7 | X114: 4 | Y114: 4 | Z114: 4 | AA114: 3 | AB114: - | AC114: 57.8 | AD114: 54.0 | AE114: 61.2 | AF114: 27 | AG114: - | AH114: - | AI114: - | AJ114: 1 | AK114: - | AL114: 1 | AM114: 1 | AN114: - | AO114: 6 | AP114: 5 | AQ114: 4 | AR114: 3 | AS114: 3 | AT114: 3 | AU114: - | AV114: 64.7 | AW114: 64.5 | AX114: 64.8 | AY114: 21 | AZ114: - | BA114: - | BB114: - | BC114: - | BD114: - | BE114: - | BF114: 1 | BG114: - | BH114: 6 | BI114: 4 | BJ114: 4 | BK114: 3 | BL114: 1 | BM114: 2 | BN114: - | BO114: 65.4 | BP114: 64.5 | BQ114: 66.3 | BR114: 18 | BS114: - | BT114: - | BU114: - | BV114: - | BW114: 1 | BX114: 1 | BY114: 2 | BZ114: 4 | CA114: 3 | CB114: 4 | CC114: 2 | CD114: 1 | CE114: - | CF114: - | CG114: - | CH114: 11 | CI114: - | CJ114: - | CK114: - | CL114: - | CM114: 1 | CN114: 2 | CO114: 2 | CP114: 3 | CQ114: 2 | CR114: 1 | CS114: - | CT114: - | CU114: - | DC114: 69 | DD114: 49 | DE114: 21 | DF114: 28 | DG114: - | DH114: 7 | DI114: 5 | DJ114: 8 | DK114: 14 | DL114: 9 | DM114: - | DN114: - | DO114: - | DP114: 1 | DQ114: 2 | DR114: - | DS114: - | DT114: 2 | DU114: - | DV114: - | DW114: - | DX114: - | DY114: - | DZ114: - | EA114: 18 | EB114: 3,048 | EC114: 2,813 | ED114: 235 | EE114: - | EF114: 29 | EG114: 26 | EH114: 10 | EI114: 16 | EJ114: - | EK114: - | EL114: 3 | EM114: - | EN114: 40 | EO114: 23 | EP114: 11 | EQ114: 12 | ER114: - | ES114: 7 | ET114: 2 | EU114: 8
A115: 栃木県 | B115: 宇都宮市 | C115: 瑞穂野村 | D115: 清水内 | E115: 26 | F115: 17 | G115: 5 | H115: 4 | I115: 3 | J115: 1 | K115: 9 | L115: 9 | M115: 41 | N115: - | O115: 1 | P115: 2 | Q115: 2 | R115: 1 | S115: 2 | T115: 2 | U115: 3 | V115: 8 | W115: 7 | X115: 3 | Y115: 3 | Z115: 1 | AA115: 3 | AB115: 3 | AC115: 58.7 | AD115: 58.0 | AE115: 59.5 | AF115: 21 | AG115: - | AH115: 1 | AI115: - | AJ115: 1 | AK115: - | AL115: - | AM115: - | AN115: 1 | AO115: 3 | AP115: 6 | AQ115: 1 | AR115: 2 | AS115: 1 | AT115: 3 | AU115: 2 | AV115: 64.4 | AW115: 66.3 | AX115: 62.4 | AY115: 17 | AZ115: - | BA115: 1 | BB115: - | BC115: 1 | BD115: - | BE115: - | BF115: - | BG115: 1 | BH115: 3 | BI115: 6 | BJ115: - | BK115: 1 | BL115: 1 | BM115: 2 | BN115: 1 | BO115: 61.4 | BP115: 62.4 | BQ115: 60.3 | BR115: 17 | BS115: - | BT115: - | BU115: - | BV115: - | BW115: - | BX115: 1 | BY115: 1 | BZ115: 1 | CA115: 3 | CB115: 6 | CC115: 1 | CD115: 1 | CE115: 1 | CF115: 2 | CG115: - | CH115: 8 | CI115: - | CJ115: - | CK115: - | CL115: - | CM115: - | CN115: - | CO115: - | CP115: 5 | CQ115: 1 | CR115: - | CS115: 1 | CT115: 1 | CU115: - | DC115: 64 | DD115: 46 | DE115: 17 | DF115: 28 | DG115: 1 | DH115: 4 | DI115: 2 | DJ115: 12 | DK115: 15 | DL115: 15 | DM115: - | DN115: - | DO115: - | DP115: - | DQ115: - | DR115: - | DS115: - | DT115: - | DU115: - | DV115: - | DW115: - | DX115: - | DY115: - | DZ115: - | EA115: 17 | EB115: 2,508 | EC115: 2,359 | ED115: 149 | EE115: - | EF115: 28 | EG115: 23 | EH115: 9 | EI115: 14 | EJ115: - | EK115: - | EL115: 2 | EM115: 3 | EN115: 36 | EO115: 23 | EP115: 8 | EQ115: 14 | ER115: 1 | ES115: 4 | ET115: - | EU115: 9
A116: 栃木県 | B116: 宇都宮市 | C116: 雀宮村 | E116: 401 | F116: 321 | G116: 78 | H116: 66 | I116: 90 | J116: 37 | K116: 153 | L116: 80 | M116: 911 | N116: 8 | O116: 24 | P116: 41 | Q116: 30 | R116: 46 | S116: 45 | T116: 54 | U116: 104 | V116: 134 | W116: 108 | X116: 58 | Y116: 84 | Z116: 92 | AA116: 58 | AB116: 25 | AC116: 57.7 | AD116: 56.1 | AE116: 59.5 | AF116: 492 | AG116: - | AH116: 3 | AI116: 6 | AJ116: 5 | AK116: 13 | AL116: 11 | AM116: 16 | AN116: 37 | AO116: 55 | AP116: 76 | AQ116: 48 | AR116: 71 | AS116: 83 | AT116: 48 | AU116: 20 | AV116: 65.7 | AW116: 65.8 | AX116: 65.5 | AY116: 429 | AZ116: - | BA116: 2 | BB116: 5 | BC116: 2 | BD116: 13 | BE116: 8 | BF116: 13 | BG116: 33 | BH116: 50 | BI116: 68 | BJ116: 43 | BK116: 67 | BL116: 74 | BM116: 35 | BN116: 16 | BO116: 65.7 | BP116: 65.8 | BQ116: 65.6 | BR116: 321 | BS116: - | BT116: - | BU116: - | BV116: 2 | BW116: 2 | BX116: 11 | BY116: 17 | BZ116: 44 | CA116: 65 | CB116: 58 | CC116: 27 | CD116: 39 | CE116: 33 | CF116: 15 | CG116: 8 | CH116: 172 | CI116: - | CJ116: - | CK116: - | CL116: 3 | CM116: 3 | CN116: 15 | CO116: 37 | CP116: 35 | CQ116: 17 | CR116: 21 | CS116: 21 | CT116: 12 | CU116: 8 | DC116: 1,232 | DD116: 894 | DE116: 429 | DF116: 425 | DG116: 40 | DH116: 112 | DI116: 72 | DJ116: 154 | DK116: 292 | DL116: 227 | DM116: - | DN116: - | DO116: - | DP116: 21 | DQ116: 17 | DR116: 17 | DS116: 5 | DT116: 1 | DU116: - | DV116: 3 | DW116: - | DX116: 1 | DY116: - | DZ116: - | EA116: 321 | EB116: 57,883 | EC116: 48,809 | ED116: 6,891 | EE116: 2,183 | EF116: 580 | EG116: 498 | EH116: 216 | EI116: 253 | EJ116: 29 | EK116: - | EL116: 28 | EM116: 54 | EN116: 652 | EO116: 396 | EP116: 213 | EQ116: 172 | ER116: 11 | ES116: 112 | ET116: 44 | EU116: 100
A117: 栃木県 | B117: 宇都宮市 | C117: 雀宮村 | D117: 上御田第一 | E117: 11 | F117: 10 | G117: 2 | H117: 2 | I117: 3 | J117: 1 | K117: 5 | L117: 1 | M117: 34 | N117: - | O117: - | P117: 1 | Q117: 1 | R117: 4 | S117: 1 | T117: 4 | U117: 1 | V117: 5 | W117: 2 | X117: 3 | Y117: 3 | Z117: 3 | AA117: 6 | AB117: - | AC117: 60.2 | AD117: 58.4 | AE117: 62.5 | AF117: 19 | AG117: - | AH117: - | AI117: - | AJ117: - | AK117: - | AL117: - | AM117: - | AN117: 1 | AO117: 3 | AP117: 2 | AQ117: 2 | AR117: 2 | AS117: 3 | AT117: 6 | AU117: - | AV117: 71.5 | AW117: 72.4 | AX117: 70.7 | AY117: 13 | AZ117: - | BA117: - | BB117: - | BC117: - | BD117: - | BE117: - | BF117: - | BG117: 1 | BH117: 3 | BI117: 1 | BJ117: 2 | BK117: 2 | BL117: 2 | BM117: 2 | BN117: - | BO117: 68.5 | BP117: 69.9 | BQ117: 66.8 | BR117: 10 | BS117: - | BT117: - | BU117: - | BV117: - | BW117: - | BX117: - | BY117: 1 | BZ117: 1 | CA117: 3 | CB117: - | CC117: 1 | CD117: 2 | CE117: 1 | CF117: 1 | CG117: - | CH117: 4 | CI117: - | CJ117: - | CK117: - | CL117: - | CM117: - | CN117: - | CO117: 1 | CP117: - | CQ117: - | CR117: 1 | CS117: 1 | CT117: 1 | CU117: - | DC117: 40 | DD117: 29 | DE117: 13 | DF117: 14 | DG117: 2 | DH117: 2 | DI117: 1 | DJ117: 8 | DK117: 10 | DL117: 9 | DM117: - | DN117: - | DO117: - | DP117: - | DQ117: 1 | DR117: - | DS117: - | DT117: - | DU117: - | DV117: - | DW117: - | DX117: - | DY117: - | DZ117: - | EA117: 10 | EB117: 1,664 | EC117: 1,531 | ED117: 133 | EE117: - | EF117: 19 | EG117: 16 | EH117: 7 | EI117: 8 | EJ117: 1 | EK117: - | EL117: - | EM117: 3 | EN117: 21 | EO117: 13 | EP117: 6 | EQ117: 6 | ER117: 1 | ES117: 2 | ET117: 1 | EU117: 5
A118: 栃木県 | B118: 宇都宮市 | C118: 雀宮村 | D118: 上御田第二 | E118: 19 | F118: 16 | G118: 5 | H118: 4 | I118: 5 | J118: - | K118: 6 | L118: 3 | M118: 48 | N118: - | O118: 2 | P118: 2 | Q118: 4 | R118: 2 | S118: 2 | T118: 7 | U118: 3 | V118: 10 | W118: 7 | X118: - | Y118: 3 | Z118: 4 | AA118: - | AB118: 2 | AC118: 53.4 | AD118: 50.2 | AE118: 57.5 | AF118: 23 | AG118: - | AH118: - | AI118: - | AJ118: 1 | AK118: - | AL118: 1 | AM118: - | AN118: 2 | AO118: 6 | AP118: 5 | AQ118: - | AR118: 3 | AS118: 3 | AT118: - | AU118: 2 | AV118: 63.2 | AW118: 63.6 | AX118: 62.8 | AY118: 18 | AZ118: - | BA118: - | BB118: - | BC118: 1 | BD118: - | BE118: - | BF118: - | BG118: 2 | BH118: 6 | BI118: 3 | BJ118: - | BK118: 2 | BL118: 3 | BM118: - | BN118: 1 | BO118: 62.7 | BP118: 62.8 | BQ118: 62.7 | BR118: 16 | BS118: - | BT118: - | BU118: - | BV118: - | BW118: - | BX118: - | BY118: 3 | BZ118: 1 | CA118: 6 | CB118: 4 | CC118: - | CD118: 2 | CE118: - | CF118: - | CG118: - | CH118: 8 | CI118: - | CJ118: - | CK118: - | CL118: - | CM118: - | CN118: - | CO118: 3 | CP118: 3 | CQ118: - | CR118: 2 | CS118: - | CT118: - | CU118: - | DC118: 60 | DD118: 43 | DE118: 18 | DF118: 24 | DG118: 1 | DH118: 8 | DI118: 2 | DJ118: 7 | DK118: 14 | DL118: 12 | DM118: - | DN118: - | DO118: - | DP118: 1 | DQ118: - | DR118: - | DS118: 1 | DT118: - | DU118: - | DV118: - | DW118: - | DX118: - | DY118: - | DZ118: - | EA118: 16 | EB118: 4,855 | EC118: 4,613 | ED118: 242 | EE118: - | EF118: 31 | EG118: 28 | EH118: 9 | EI118: 18 | EJ118: 1 | EK118: - | EL118: - | EM118: 3 | EN118: 29 | EO118: 15 | EP118: 9 | EQ118: 6 | ER118: - | ES118: 8 | ET118: 2 | EU118: 4
A119: 栃木県 | B119: 宇都宮市 | C119: 雀宮村 | D119: 中島 | E119: 36 | F119: 32 | G119: 5 | H119: 4 | I119: 11 | J119: 6 | K119: 16 | L119: 4 | M119: 92 | N119: 2 | O119: 3 | P119: 4 | Q119: 2 | R119: 7 | S119: 7 | T119: 4 | U119: 7 | V119: 11 | W119: 10 | X119: 5 | Y119: 13 | Z119: 8 | AA119: 6 | AB119: 3 | AC119: 57.3 | AD119: 56.2 | AE119: 58.6 | AF119: 42 | AG119: - | AH119: - | AI119: - | AJ119: - | AK119: - | AL119: - | AM119: 2 | AN119: 3 | AO119: 1 | AP119: 6 | AQ119: 5 | AR119: 9 | AS119: 8 | AT119: 6 | AU119: 2 | AV119: 70.2 | AW119: 71.7 | AX119: 68.4 | AY119: 32 | AZ119: - | BA119: - | BB119: - | BC119: - | BD119: - | BE119: - | BF119: 2 | BG119: 2 | BH119: 1 | BI119: 5 | BJ119: 5 | BK119: 7 | BL119: 5 | BM119: 4 | BN119: 1 | BO119: 69.0 | BP119: 70.1 | BQ119: 67.3 | BR119: 32 | BS119: - | BT119: - | BU119: - | BV119: - | BW119: - | BX119: 3 | BY119: 2 | BZ119: 2 | CA119: 7 | CB119: 4 | CC119: 3 | CD119: 5 | CE119: 3 | CF119: 2 | CG119: 1 | CH119: 18 | CI119: - | CJ119: - | CK119: - | CL119: 2 | CM119: 1 | CN119: 1 | CO119: 5 | CP119: 1 | CQ119: 2 | CR119: 2 | CS119: 2 | CT119: 1 | CU119: 1 | DC119: 123 | DD119: 79 | DE119: 32 | DF119: 40 | DG119: 7 | DH119: 14 | DI119: 7 | DJ119: 23 | DK119: 30 | DL119: 26 | DM119: - | DN119: - | DO119: - | DP119: 2 | DQ119: 2 | DR119: - | DS119: - | DT119: - | DU119: - | DV119: - | DW119: - | DX119: - | DY119: - | DZ119: - | EA119: 32 | EB119: 7,088 | EC119: 6,642 | ED119: 436 | EE119: 10 | EF119: 62 | EG119: 51 | EH119: 20 | EI119: 26 | EJ119: 5 | EK119: - | EL119: 4 | EM119: 7 | EN119: 61 | EO119: 28 | EP119: 12 | EQ119: 14 | ER119: 2 | ES119: 14 | ET119: 3 | EU119: 16
A120: 栃木県 | B120: 宇都宮市 | C120: 雀宮村 | D120: 東谷第二 | E120: 26 | F120: 24 | G120: 3 | H120: 3 | I120: 7 | J120: 1 | K120: 14 | L120: 2 | M120: 65 | N120: - | O120: 1 | P120: 4 | Q120: 1 | R120: 3 | S120: 3 | T120: 2 | U120: 15 | V120: 11 | W120: 5 | X120: 4 | Y120: 1 | Z120: 8 | AA120: 3 | AB120: 4 | AC120: 58.0 | AD120: 54.0 | AE120: 62.0 | AF120: 29 | AG120: - | AH120: - | AI120: - | AJ120: - | AK120: 3 | AL120: 1 | AM120: - | AN120: - | AO120: 4 | AP120: 3 | AQ120: 3 | AR120: - | AS120: 8 | AT120: 3 | AU120: 4 | AV120: 68.2 | AW120: 61.9 | AX120: 71.6 | AY120: 26 | AZ120: - | BA120: - | BB120: - | BC120: - | BD120: 3 | BE120: 1 | BF120: - | BG120: - | BH120: 3 | BI120: 3 | BJ120: 3 | BK120: - | BL120: 7 | BM120: 3 | BN120: 3 | BO120: 67.6 | BP120: 61.9 | BQ120: 71.2 | BR120: 24 | BS120: - | BT120: - | BU120: - | BV120: - | BW120: - | BX120: 1 | BY120: - | BZ120: 6 | CA120: 6 | CB120: 3 | CC120: 2 | CD120: - | CE120: 3 | CF120: 2 | CG120: 1 | CH120: 15 | CI120: - | CJ120: - | CK120: - | CL120: - | CM120: - | CN120: 2 | CO120: 4 | CP120: 3 | CQ120: 2 | CR120: - | CS120: 2 | CT120: 1 | CU120: 1 | DC120: 103 | DD120: 71 | DE120: 26 | DF120: 41 | DG120: 4 | DH120: 12 | DI120: 9 | DJ120: 11 | DK120: 21 | DL120: 17 | DM120: - | DN120: - | DO120: - | DP120: 3 | DQ120: 1 | DR120: - | DS120: - | DT120: - | DU120: - | DV120: - | DW120: - | DX120: - | DY120: - | DZ120: - | EA120: 24 | EB120: 3,334 | EC120: 2,730 | ED120: 604 | EE120: - | EF120: 49 | EG120: 39 | EH120: 10 | EI120: 25 | EJ120: 4 | EK120: - | EL120: 5 | EM120: 5 | EN120: 54 | EO120: 32 | EP120: 16 | EQ120: 16 | ER120: - | ES120: 12 | ET120: 4 | EU120: 6
A121: 栃木県 | B121: 宇都宮市 | C121: 雀宮村 | D121: 東谷第一 | E121: 19 | F121: 17 | G121: 5 | H121: 3 | I121: 3 | J121: - | K121: 9 | L121: 2 | M121: 48 | N121: 2 | O121: 1 | P121: 3 | Q121: 1 | R121: - | S121: 4 | T121: 2 | U121: 3 | V121: 6 | W121: 3 | X121: 4 | Y121: 8 | Z121: 4 | AA121: 5 | AB121: 2 | AC121: 59.6 | AD121: 63.9 | AE121: 55.4 | AF121: 26 | AG121: - | AH121: - | AI121: 1 | AJ121: - | AK121: - | AL121: 2 | AM121: - | AN121: - | AO121: 1 | AP121: 2 | AQ121: 3 | AR121: 8 | AS121: 3 | AT121: 4 | AU121: 2 | AV121: 69.6 | AW121: 71.9 | AX121: 66.4 | AY121: 24 | AZ121: - | BA121: - | BB121: 1 | BC121: - | BD121: - | BE121: 2 | BF121: - | BG121: - | BH121: - | BI121: 2 | BJ121: 3 | BK121: 8 | BL121: 3 | BM121: 3 | BN121: 2 | BO121: 69.7 | BP121: 71.9 | BQ121: 65.9 | BR121: 17 | BS121: - | BT121: - | BU121: - | BV121: - | BW121: - | BX121: 1 | BY121: 1 | BZ121: 1 | CA121: 1 | CB121: 1 | CC121: 1 | CD121: 4 | CE121: 3 | CF121: 2 | CG121: 2 | CH121: 9 | CI121: - | CJ121: - | CK121: - | CL121: - | CM121: - | CN121: - | CO121: - | CP121: - | CQ121: 1 | CR121: 3 | CS121: 1 | CT121: 2 | CU121: 2 | DC121: 54 | DD121: 40 | DE121: 24 | DF121: 13 | DG121: 3 | DH121: 7 | DI121: 4 | DJ121: 3 | DK121: 17 | DL121: 15 | DM121: - | DN121: - | DO121: - | DP121: 1 | DQ121: - | DR121: - | DS121: 1 | DT121: - | DU121: - | DV121: - | DW121: - | DX121: - | DY121: - | DZ121: - | EA121: 17 | EB121: 2,637 | EC121: 2,207 | ED121: 430 | EE121: - | EF121: 25 | EG121: 24 | EH121: 15 | EI121: 8 | EJ121: 1 | EK121: - | EL121: - | EM121: 1 | EN121: 29 | EO121: 16 | EP121: 9 | EQ121: 5 | ER121: 2 | ES121: 7 | ET121: 4 | EU121: 2
A122: 栃木県 | B122: 宇都宮市 | C122: 雀宮村 | D122: 下横田 | E122: 17 | F122: 13 | G122: 4 | H122: 4 | I122: 5 | J122: 3 | K122: 4 | L122: 4 | M122: 30 | N122: - | O122: - | P122: 1 | Q122: 1 | R122: 2 | S122: - | T122: 1 | U122: 4 | V122: 2 | W122: 13 | X122: 1 | Y122: 1 | Z122: 3 | AA122: 1 | AB122: - | AC122: 58.9 | AD122: 56.3 | AE122: 61.5 | AF122: 20 | AG122: - | AH122: - | AI122: - | AJ122: 1 | AK122: - | AL122: - | AM122: - | AN122: 4 | AO122: - | AP122: 10 | AQ122: 1 | AR122: 1 | AS122: 3 | AT122: - | AU122: - | AV122: 61.6 | AW122: 60.9 | AX122: 62.1 | AY122: 18 | AZ122: - | BA122: - | BB122: - | BC122: - | BD122: - | BE122: - | BF122: - | BG122: 4 | BH122: - | BI122: 10 | BJ122: - | BK122: 1 | BL122: 3 | BM122: - | BN122: - | BO122: 63.0 | BP122: 64.4 | BQ122: 62.1 | BR122: 13 | BS122: - | BT122: - | BU122: - | BV122: - | BW122: - | BX122: - | BY122: 1 | BZ122: 1 | CA122: 1 | CB122: 6 | CC122: 1 | CD122: 1 | CE122: 2 | CF122: - | CG122: - | CH122: 8 | CI122: - | CJ122: - | CK122: - | CL122: - | CM122: - | CN122: 1 | CO122: 1 | CP122: 4 | CQ122: 1 | CR122: - | CS122: 1 | CT122: - | CU122: - | DC122: 46 | DD122: 33 | DE122: 18 | DF122: 14 | DG122: 1 | DH122: 3 | DI122: 1 | DJ122: 9 | DK122: 12 | DL122: 9 | DM122: - | DN122: - | DO122: - | DP122: 1 | DQ122: - | DR122: - | DS122: - | DT122: - | DU122: - | DV122: 2 | DW122: - | DX122: - | DY122: - | DZ122: - | EA122: 13 | EB122: 3,616 | EC122: 3,307 | ED122: 309 | EE122: - | EF122: 20 | EG122: 16 | EH122: 7 | EI122: 9 | EJ122: - | EK122: - | EL122: - | EM122: 4 | EN122: 26 | EO122: 17 | EP122: 11 | EQ122: 5 | ER122: 1 | ES122: 3 | ET122: 1 | EU122: 5
A123: 栃木県 | B123: 宇都宮市 | C123: 雀宮村 | D123: 細工瀬 | E123: 8 | F123: 7 | G123: - | H123: - | I123: 2 | J123: 1 | K123: 5 | L123: 1 | M123: 23 | N123: - | O123: - | P123: 2 | Q123: 2 | R123: 1 | S123: 1 | T123: - | U123: 2 | V123: 5 | W123: - | X123: 2 | Y123: 3 | Z123: 2 | AA123: 2 | AB123: 1 | AC123: 58.9 | AD123: 60.8 | AE123: 56.3 | AF123: 9 | AG123: - | AH123: - | AI123: - | AJ123: - | AK123: - | AL123: - | AM123: - | AN123: - | AO123: 1 | AP123: - | AQ123: 1 | AR123: 3 | AS123: 1 | AT123: 2 | AU123: 1 | AV123: 75.0 | AW123: 77.8 | AX123: 71.5 | AY123: 8 | AZ123: - | BA123: - | BB123: - | BC123: - | BD123: - | BE123: - | BF123: - | BG123: - | BH123: 1 | BI123: - | BJ123: 1 | BK123: 3 | BL123: 1 | BM123: 2 | BN123: - | BO123: 73.6 | BP123: 75.8 | BQ123: 71.5 | BR123: 7 | BS123: - | BT123: - | BU123: - | BV123: - | BW123: 1 | BX123: - | BY123: - | BZ123: 1 | CA123: 1 | CB123: - | CC123: 1 | CD123: 2 | CE123: - | CF123: - | CG123: 1 | CH123: 4 | CI123: - | CJ123: - | CK123: - | CL123: - | CM123: - | CN123: - | CO123: 1 | CP123: - | CQ123: 1 | CR123: 1 | CS123: - | CT123: - | CU123: 1 | DC123: 28 | DD123: 21 | DE123: 8 | DF123: 13 | DG123: - | DH123: - | DI123: 3 | DJ123: 4 | DK123: 7 | DL123: 7 | DM123: - | DN123: - | DO123: - | DP123: - | DQ123: - | DR123: - | DS123: - | DT123: - | DU123: - | DV123: - | DW123: - | DX123: - | DY123: - | DZ123: - | EA123: 7 | EB123: 964 | EC123: 835 | ED123: 129 | EE123: - | EF123: 14 | EG123: 11 | EH123: 4 | EI123: 7 | EJ123: - | EK123: - | EL123: 1 | EM123: 2 | EN123: 14 | EO123: 10 | EP123: 4 | EQ123: 6 | ER123: - | ES123: - | ET123: 2 | EU123: 2
A124: 栃木県 | B124: 宇都宮市 | C124: 雀宮村 | D124: 下反町第一 | E124: 17 | F124: 15 | G124: 4 | H124: 4 | I124: 4 | J124: 2 | K124: 7 | L124: 2 | M124: 47 | N124: - | O124: 3 | P124: 4 | Q124: 1 | R124: 2 | S124: 2 | T124: 1 | U124: 7 | V124: 7 | W124: 5 | X124: 4 | Y124: 2 | Z124: 4 | AA124: 3 | AB124: 2 | AC124: 55.8 | AD124: 53.9 | AE124: 57.9 | AF124: 24 | AG124: - | AH124: 2 | AI124: 2 | AJ124: - | AK124: - | AL124: - | AM124: - | AN124: 3 | AO124: 5 | AP124: 2 | AQ124: 1 | AR124: 1 | AS124: 4 | AT124: 3 | AU124: 1 | AV124: 59.8 | AW124: 59.5 | AX124: 60.1 | AY124: 21 | AZ124: - | BA124: 2 | BB124: 1 | BC124: - | BD124: - | BE124: - | BF124: - | BG124: 2 | BH124: 5 | BI124: 2 | BJ124: 1 | BK124: 1 | BL124: 4 | BM124: 2 | BN124: 1 | BO124: 60.8 | BP124: 59.5 | BQ124: 62.2 | BR124: 15 | BS124: - | BT124: - | BU124: - | BV124: - | BW124: - | BX124: - | BY124: 1 | BZ124: 2 | CA124: 3 | CB124: 3 | CC124: 2 | CD124: 1 | CE124: 1 | CF124: 1 | CG124: 1 | CH124: 12 | CI124: - | CJ124: - | CK124: - | CL124: - | CM124: - | CN124: 2 | CO124: 1 | CP124: 3 | CQ124: 2 | CR124: 1 | CS124: 1 | CT124: 1 | CU124: 1 | DC124: 57 | DD124: 40 | DE124: 21 | DF124: 17 | DG124: 2 | DH124: 8 | DI124: 1 | DJ124: 8 | DK124: 15 | DL124: 14 | DM124: - | DN124: - | DO124: - | DP124: - | DQ124: 1 | DR124: - | DS124: - | DT124: - | DU124: - | DV124: - | DW124: - | DX124: - | DY124: - | DZ124: - | EA124: 15 | EB124: 3,950 | EC124: 3,690 | ED124: 260 | EE124: - | EF124: 27 | EG124: 23 | EH124: 11 | EI124: 10 | EJ124: 2 | EK124: - | EL124: 1 | EM124: 3 | EN124: 30 | EO124: 17 | EP124: 10 | EQ124: 7 | ER124: - | ES124: 8 | ET124: - | EU124: 5
A125: 栃木県 | B125: 宇都宮市 | C125: 雀宮村 | D125: 下反町第二 | E125: 24 | F125: 19 | G125: 3 | H125: 2 | I125: 6 | J125: 4 | K125: 10 | L125: 5 | M125: 50 | N125: - | O125: 2 | P125: 1 | Q125: 1 | R125: 1 | S125: 3 | T125: - | U125: 7 | V125: 12 | W125: 8 | X125: 2 | Y125: 4 | Z125: 2 | AA125: 5 | AB125: 2 | AC125: 59.5 | AD125: 57.7 | AE125: 61.8 | AF125: 25 | AG125: - | AH125: 1 | AI125: - | AJ125: - | AK125: - | AL125: 1 | AM125: - | AN125: 2 | AO125: 6 | AP125: 5 | AQ125: 1 | AR125: 2 | AS125: 2 | AT125: 4 | AU125: 1 | AV125: 64.2 | AW125: 64.5 | AX125: 63.7 | AY125: 21 | AZ125: - | BA125: - | BB125: - | BC125: - | BD125: - | BE125: 1 | BF125: - | BG125: 2 | BH125: 5 | BI125: 5 | BJ125: 1 | BK125: 2 | BL125: 2 | BM125: 2 | BN125: 1 | BO125: 64.7 | BP125: 66.7 | BQ125: 62.1 | BR125: 19 | BS125: - | BT125: - | BU125: - | BV125: - | BW125: - | BX125: - | BY125: - | BZ125: 2 | CA125: 4 | CB125: 5 | CC125: 1 | CD125: 3 | CE125: 2 | CF125: 2 | CG125: - | CH125: 12 | CI125: - | CJ125: - | CK125: - | CL125: - | CM125: - | CN125: 1 | CO125: 3 | CP125: 2 | CQ125: - | CR125: 2 | CS125: 2 | CT125: 2 | CU125: - | DC125: 73 | DD125: 54 | DE125: 21 | DF125: 33 | DG125: - | DH125: 6 | DI125: 6 | DJ125: 7 | DK125: 18 | DL125: 17 | DM125: - | DN125: - | DO125: - | DP125: - | DQ125: 1 | DR125: - | DS125: - | DT125: - | DU125: - | DV125: - | DW125: - | DX125: - | DY125: - | DZ125: - | EA125: 19 | EB125: 2,326 | EC125: 2,119 | ED125: 207 | EE125: - | EF125: 35 | EG125: 31 | EH125: 12 | EI125: 19 | EJ125: - | EK125: - | EL125: 3 | EM125: 1 | EN125: 38 | EO125: 23 | EP125: 9 | EQ125: 14 | ER125: - | ES125: 6 | ET125: 3 | EU125: 6
A126: 栃木県 | B126: 宇都宮市 | C126: 雀宮村 | D126: 羽牛田 | E126: 23 | F126: 19 | G126: 6 | H126: 6 | I126: 4 | J126: 2 | K126: 9 | L126: 4 | M126: 55 | N126: - | O126: 2 | P126: 1 | Q126: 4 | R126: 3 | S126: 4 | T126: 4 | U126: 6 | V126: 8 | W126: 4 | X126: 3 | Y126: 9 | Z126: 5 | AA126: 2 | AB126: - | AC126: 56.1 | AD126: 57.3 | AE126: 55.1 | AF126: 38 | AG126: - | AH126: - | AI126: - | AJ126: 2 | AK126: 2 | AL126: 2 | AM126: 1 | AN126: 3 | AO126: 6 | AP126: 4 | AQ126: 3 | AR126: 9 | AS126: 5 | AT126: 1 | AU126: - | AV126: 61.5 | AW126: 61.7 | AX126: 61.4 | AY126: 34 | AZ126: - | BA126: - | BB126: - | BC126: - | BD126: 2 | BE126: 2 | BF126: 1 | BG126: 3 | BH126: 5 | BI126: 4 | BJ126: 3 | BK126: 9 | BL126: 4 | BM126: 1 | BN126: - | BO126: 63.0 | BP126: 63.4 | BQ126: 62.6 | BR126: 19 | BS126: - | BT126: - | BU126: - | BV126: 1 | BW126: - | BX126: 1 | BY126: 1 | BZ126: 2 | CA126: 4 | CB126: 2 | CC126: 1 | CD126: 4 | CE126: 3 | CF126: - | CG126: - | CH126: 8 | CI126: - | CJ126: - | CK126: - | CL126: - | CM126: - | CN126: - | CO126: 1 | CP126: 2 | CQ126: 1 | CR126: 1 | CS126: 3 | CT126: - | CU126: - | DC126: 74 | DD126: 51 | DE126: 34 | DF126: 17 | DG126: - | DH126: 8 | DI126: 5 | DJ126: 10 | DK126: 18 | DL126: 12 | DM126: - | DN126: - | DO126: - | DP126: 1 | DQ126: 5 | DR126: - | DS126: - | DT126: - | DU126: - | DV126: - | DW126: - | DX126: - | DY126: - | DZ126: - | EA126: 19 | EB126: 2,593 | EC126: 2,228 | ED126: 365 | EE126: - | EF126: 31 | EG126: 26 | EH126: 17 | EI126: 9 | EJ126: - | EK126: - | EL126: 1 | EM126: 4 | EN126: 43 | EO126: 25 | EP126: 17 | EQ126: 8 | ER126: - | ES126: 8 | ET126: 4 | EU126: 6
A127: 栃木県 | B127: 宇都宮市 | C127: 雀宮村 | D127: 御田長島 | E127: 27 | F127: 23 | G127: 2 | H127: 2 | I127: 12 | J127: 7 | K127: 9 | L127: 4 | M127: 78 | N127: 1 | O127: 1 | P127: 7 | Q127: 4 | R127: 5 | S127: 1 | T127: 5 | U127: 9 | V127: 12 | W127: 10 | X127: 3 | Y127: 5 | Z127: 8 | AA127: 5 | AB127: 2 | AC127: 55.8 | AD127: 53.2 | AE127: 58.5 | AF127: 33 | AG127: - | AH127: - | AI127: - | AJ127: - | AK127: 2 | AL127: - | AM127: 1 | AN127: 3 | AO127: 3 | AP127: 5 | AQ127: 3 | AR127: 5 | AS127: 6 | AT127: 4 | AU127: 1 | AV127: 66.7 | AW127: 68.7 | AX127: 65.4 | AY127: 30 | AZ127: - | BA127: - | BB127: - | BC127: - | BD127: 2 | BE127: - | BF127: - | BG127: 3 | BH127: 2 | BI127: 5 | BJ127: 3 | BK127: 5 | BL127: 6 | BM127: 3 | BN127: 1 | BO127: 67.2 | BP127: 68.7 | BQ127: 66.0 | BR127: 23 | BS127: - | BT127: - | BU127: - | BV127: - | BW127: - | BX127: - | BY127: 2 | BZ127: 3 | CA127: 6 | CB127: 6 | CC127: 1 | CD127: 3 | CE127: - | CF127: 2 | CG127: - | CH127: 14 | CI127: - | CJ127: - | CK127: - | CL127: - | CM127: 1 | CN127: 2 | CO127: 5 | CP127: 2 | CQ127: 1 | CR127: 2 | CS127: - | CT127: 1 | CU127: - | DC127: 106 | DD127: 79 | DE127: 30 | DF127: 44 | DG127: 5 | DH127: 8 | DI127: 3 | DJ127: 16 | DK127: 21 | DL127: 18 | DM127: - | DN127: - | DO127: - | DP127: - | DQ127: 3 | DR127: - | DS127: - | DT127: - | DU127: - | DV127: - | DW127: - | DX127: - | DY127: - | DZ127: - | EA127: 23 | EB127: 3,522 | EC127: 3,194 | ED127: 328 | EE127: - | EF127: 48 | EG127: 43 | EH127: 13 | EI127: 25 | EJ127: 5 | EK127: - | EL127: 2 | EM127: 3 | EN127: 58 | EO127: 36 | EP127: 17 | EQ127: 19 | ER127: - | ES127: 8 | ET127: 1 | EU127: 13
A128: 栃木県 | B128: 宇都宮市 | C128: 雀宮村 | D128: 茂原東 | E128: 23 | F128: 22 | G128: 2 | H128: 2 | I128: 6 | J128: 2 | K128: 14 | L128: 1 | M128: 60 | N128: 3 | O128: 2 | P128: - | Q128: - | R128: 3 | S128: 7 | T128: 5 | U128: 9 | V128: 3 | W128: 3 | X128: 5 | Y128: 10 | Z128: 10 | AA128: - | AB128: - | AC128: 56.5 | AD128: 54.5 | AE128: 58.4 | AF128: 29 | AG128: - | AH128: - | AI128: - | AJ128: - | AK128: 1 | AL128: - | AM128: 2 | AN128: 1 | AO128: - | AP128: 3 | AQ128: 4 | AR128: 10 | AS128: 8 | AT128: - | AU128: - | AV128: 68.2 | AW128: 70.0 | AX128: 67.0 | AY128: 23 | AZ128: - | BA128: - | BB128: - | BC128: - | BD128: 1 | BE128: - | BF128: 1 | BG128: - | BH128: - | BI128: 2 | BJ128: 3 | BK128: 9 | BL128: 7 | BM128: - | BN128: - | BO128: 69.5 | BP128: 69.4 | BQ128: 69.6 | BR128: 22 | BS128: - | BT128: - | BU128: - | BV128: - | BW128: 1 | BX128: 2 | BY128: 1 | BZ128: 5 | CA128: 2 | CB128: 1 | CC128: 1 | CD128: 4 | CE128: 5 | CF128: - | CG128: - | CH128: 10 | CI128: - | CJ128: - | CK128: - | CL128: 1 | CM128: - | CN128: 1 | CO128: 2 | CP128: 1 | CQ128: 1 | CR128: 1 | CS128: 3 | CT128: - | CU128: - | DC128: 80 | DD128: 57 | DE128: 23 | DF128: 33 | DG128: 1 | DH128: 9 | DI128: 7 | DJ128: 7 | DK128: 18 | DL128: 17 | DM128: - | DN128: - | DO128: - | DP128: 1 | DQ128: - | DR128: - | DS128: - | DT128: - | DU128: - | DV128: - | DW128: - | DX128: - | DY128: - | DZ128: - | EA128: 22 | EB128: 3,001 | EC128: 2,466 | ED128: 535 | EE128: - | EF128: 38 | EG128: 33 | EH128: 11 | EI128: 21 | EJ128: 1 | EK128: - | EL128: 2 | EM128: 3 | EN128: 42 | EO128: 24 | EP128: 12 | EQ128: 12 | ER128: - | ES128: 9 | ET128: 5 | EU128: 4
A129: 栃木県 | B129: 宇都宮市 | C129: 雀宮村 | D129: 江面 | E129: 7 | F129: 7 | G129: 2 | H129: 2 | I129: - | J129: - | K129: 5 | L129: - | M129: 14 | N129: - | O129: - | P129: - | Q129: 1 | R129: - | S129: - | T129: - | U129: 1 | V129: 1 | W129: 1 | X129: 4 | Y129: 1 | Z129: 4 | AA129: 1 | AB129: - | AC129: 66.3 | AD129: 62.3 | AE129: 71.7 | AF129: 11 | AG129: - | AH129: - | AI129: - | AJ129: - | AK129: - | AL129: - | AM129: - | AN129: 1 | AO129: - | AP129: 1 | AQ129: 3 | AR129: 1 | AS129: 4 | AT129: 1 | AU129: - | AV129: 70.1 | AW129: 67.8 | AX129: 72.8 | AY129: 10 | AZ129: - | BA129: - | BB129: - | BC129: - | BD129: - | BE129: - | BF129: - | BG129: 1 | BH129: - | BI129: 1 | BJ129: 3 | BK129: 1 | BL129: 3 | BM129: 1 | BN129: - | BO129: 69.5 | BP129: 67.8 | BQ129: 72.0 | BR129: 7 | BS129: - | BT129: - | BU129: - | BV129: - | BW129: - | BX129: - | BY129: - | BZ129: 1 | CA129: 1 | CB129: 1 | CC129: 2 | CD129: 1 | CE129: 1 | CF129: - | CG129: - | CH129: 4 | CI129: - | CJ129: - | CK129: - | CL129: - | CM129: - | CN129: 1 | CO129: 1 | CP129: 1 | CQ129: 1 | CR129: - | CS129: - | CT129: - | CU129: - | DC129: 19 | DD129: 14 | DE129: 10 | DF129: 4 | DG129: - | DH129: 2 | DI129: - | DJ129: 3 | DK129: 6 | DL129: 6 | DM129: - | DN129: - | DO129: - | DP129: - | DQ129: - | DR129: - | DS129: - | DT129: - | DU129: - | DV129: - | DW129: - | DX129: - | DY129: - | DZ129: - | EA129: 7 | EB129: 1,791 | EC129: 1,576 | ED129: 175 | EE129: 40 | EF129: 9 | EG129: 8 | EH129: 6 | EI129: 2 | EJ129: - | EK129: - | EL129: - | EM129: 1 | EN129: 10 | EO129: 6 | EP129: 4 | EQ129: 2 | ER129: - | ES129: 2 | ET129: - | EU129: 2
A130: 栃木県 | B130: 宇都宮市 | C130: 雀宮村 | D130: 茂原西 | E130: 26 | F130: 21 | G130: 8 | H130: 5 | I130: 5 | J130: 2 | K130: 8 | L130: 5 | M130: 57 | N130: - | O130: 4 | P130: 2 | Q130: - | R130: 2 | S130: 1 | T130: 2 | U130: 9 | V130: 12 | W130: 7 | X130: 3 | Y130: 2 | Z130: 3 | AA130: 10 | AB130: - | AC130: 58.4 | AD130: 55.5 | AE130: 61.9 | AF130: 34 | AG130: - | AH130: - | AI130: - | AJ130: - | AK130: 2 | AL130: - | AM130: - | AN130: 4 | AO130: 8 | AP130: 5 | AQ130: 3 | AR130: 2 | AS130: 3 | AT130: 7 | AU130: - | AV130: 64.6 | AW130: 64.4 | AX130: 64.9 | AY130: 32 | AZ130: - | BA130: - | BB130: - | BC130: - | BD130: 2 | BE130: - | BF130: - | BG130: 3 | BH130: 8 | BI130: 5 | BJ130: 3 | BK130: 2 | BL130: 2 | BM130: 7 | BN130: - | BO130: 64.6 | BP130: 65.0 | BQ130: 64.3 | BR130: 21 | BS130: - | BT130: - | BU130: - | BV130: - | BW130: - | BX130: 1 | BY130: - | BZ130: 5 | CA130: 6 | CB130: 5 | CC130: 2 | CD130: - | CE130: 1 | CF130: 1 | CG130: - | CH130: 8 | CI130: - | CJ130: - | CK130: - | CL130: - | CM130: - | CN130: 1 | CO130: 2 | CP130: 3 | CQ130: 1 | CR130: - | CS130: - | CT130: 1 | CU130: - | DC130: 71 | DD130: 60 | DE130: 32 | DF130: 24 | DG130: 4 | DH130: 3 | DI130: 2 | DJ130: 6 | DK130: 18 | DL130: 14 | DM130: - | DN130: - | DO130: - | DP130: 3 | DQ130: - | DR130: - | DS130: 1 | DT130: - | DU130: - | DV130: - | DW130: - | DX130: - | DY130: - | DZ130: - | EA130: 21 | EB130: 4,917 | EC130: 4,140 | ED130: 777 | EE130: - | EF130: 35 | EG130: 32 | EH130: 16 | EI130: 14 | EJ130: 2 | EK130: - | EL130: 1 | EM130: 2 | EN130: 36 | EO130: 28 | EP130: 16 | EQ130: 10 | ER130: 2 | ES130: 3 | ET130: 1 | EU130: 4
A131: 栃木県 | B131: 宇都宮市 | C131: 雀宮村 | D131: 下原第一 | E131: - | F131: - | G131: - | H131: - | I131: - | J131: - | K131: - | L131: - | M131: - | N131: - | O131: - | P131: - | Q131: - | R131: - | S131: - | T131: - | U131: - | V131: - | W131: - | X131: - | Y131: - | Z131: - | AA131: - | AB131: - | AC131: … | AD131: … | AE131: … | AF131: - | AG131: - | AH131: - | AI131: - | AJ131: - | AK131: - | AL131: - | AM131: - | AN131: - | AO131: - | AP131: - | AQ131: - | AR131: - | AS131: - | AT131: - | AU131: - | AV131: … | AW131: … | AX131: … | AY131: - | AZ131: - | BA131: - | BB131: - | BC131: - | BD131: - | BE131: - | BF131: - | BG131: - | BH131: - | BI131: - | BJ131: - | BK131: - | BL131: - | BM131: - | BN131: - | BO131: … | BP131: … | BQ131: … | BR131: - | BS131: - | BT131: - | BU131: - | BV131: - | BW131: - | BX131: - | BY131: - | BZ131: - | CA131: - | CB131: - | CC131: - | CD131: - | CE131: - | CF131: - | CG131: - | CH131: - | CI131: - | CJ131: - | CK131: - | CL131: - | CM131: - | CN131: - | CO131: - | CP131: - | CQ131: - | CR131: - | CS131: - | CT131: - | CU131: - | DC131: - | DD131: - | DE131: - | DF131: - | DG131: - | DH131: - | DI131: - | DJ131: - | DK131: - | DL131: - | DM131: - | DN131: - | DO131: - | DP131: - | DQ131: - | DR131: - | DS131: - | DT131: - | DU131: - | DV131: - | DW131: - | DX131: - | DY131: - | DZ131: - | EA131: - | EB131: - | EC131: - | ED131: - | EE131: - | EF131: - | EG131: - | EH131: - | EI131: - | EJ131: - | EK131: - | EL131: - | EM131: - | EN131: - | EO131: - | EP131: - | EQ131: - | ER131: - | ES131: - | ET131: - | EU131: -
A132: 栃木県 | B132: 宇都宮市 | C132: 雀宮村 | D132: 下原第二 | E132: 7 | F132: 1 | G132: x | H132: x | I132: x | J132: x | K132: x | L132: 6 | M132: x | N132: x | O132: x | P132: x | Q132: x | R132: x | S132: x | T132: x | U132: x | V132: x | W132: x | X132: x | Y132: x | Z132: x | AA132: x | AB132: x | AC132: 63.7 | AD132: 70.5 | AE132: 50.0 | AF132: x | AG132: x | AH132: x | AI132: x | AJ132: x | AK132: x | AL132: x | AM132: x | AN132: x | AO132: x | AP132: x | AQ132: x | AR132: x | AS132: x | AT132: x | AU132: x | AV132: 68.0 | AW132: 86.0 | AX132: 50.0 | AY132: x | AZ132: x | BA132: x | BB132: x | BC132: x | BD132: x | BE132: x | BF132: x | BG132: x | BH132: x | BI132: x | BJ132: x | BK132: x | BL132: x | BM132: x | BN132: x | BO132: 68.0 | BP132: 86.0 | BQ132: 50.0 | BR132: 1 | BS132: - | BT132: - | BU132: - | BV132: - | BW132: - | BX132: - | BY132: - | BZ132: - | CA132: - | CB132: - | CC132: - | CD132: - | CE132: - | CF132: - | CG132: 1 | CH132: 1 | CI132: - | CJ132: - | CK132: - | CL132: - | CM132: - | CN132: - | CO132: - | CP132: - | CQ132: - | CR132: - | CS132: - | CT132: - | CU132: 1 | DC132: 3 | DD132: 3 | DE132: 2 | DF132: 1 | DG132: - | DH132: - | DI132: - | DJ132: - | DK132: 1 | DL132: 1 | DM132: - | DN132: - | DO132: - | DP132: - | DQ132: - | DR132: - | DS132: - | DT132: - | DU132: - | DV132: - | DW132: - | DX132: - | DY132: - | DZ132: - | EA132: 1 | EB132: 170 | EC132: 100 | ED132: 50 | EE132: 20 | EF132: 2 | EG132: 2 | EH132: 1 | EI132: 1 | EJ132: - | EK132: - | EL132: - | EM132: - | EN132: 1 | EO132: 1 | EP132: 1 | EQ132: - | ER132: - | ES132: - | ET132: - | EU132: -
A133: 栃木県 | B133: 宇都宮市 | C133: 雀宮村 | D133: 雀宮下第一 | E133: 19 | F133: 8 | G133: - | H133: - | I133: 3 | J133: 1 | K133: 5 | L133: 11 | M133: 22 | N133: - | O133: - | P133: - | Q133: - | R133: 1 | S133: 2 | T133: 2 | U133: 1 | V133: 2 | W133: 2 | X133: 2 | Y133: 6 | Z133: 3 | AA133: 1 | AB133: - | AC133: 63.0 | AD133: 60.5 | AE133: 65.4 | AF133: 14 | AG133: - | AH133: - | AI133: - | AJ133: - | AK133: - | AL133: 1 | AM133: 1 | AN133: - | AO133: - | AP133: - | AQ133: 2 | AR133: 6 | AS133: 3 | AT133: 1 | AU133: - | AV133: 69.6 | AW133: 74.0 | AX133: 67.1 | AY133: 11 | AZ133: - | BA133: - | BB133: - | BC133: - | BD133: - | BE133: - | BF133: 1 | BG133: - | BH133: - | BI133: - | BJ133: 1 | BK133: 6 | BL133: 3 | BM133: - | BN133: - | BO133: 71.2 | BP133: 74.0 | BQ133: 68.8 | BR133: 8 | BS133: - | BT133: - | BU133: - | BV133: - | BW133: - | BX133: - | BY133: - | BZ133: 1 | CA133: 1 | CB133: 1 | CC133: 1 | CD133: 2 | CE133: 2 | CF133: - | CG133: - | CH133: 4 | CI133: - | CJ133: - | CK133: - | CL133: - | CM133: - | CN133: 1 | CO133: - | CP133: 1 | CQ133: - | CR133: 1 | CS133: 1 | CT133: - | CU133: - | DC133: 29 | DD133: 23 | DE133: 11 | DF133: 7 | DG133: 5 | DH133: 3 | DI133: 2 | DJ133: 1 | DK133: 7 | DL133: 7 | DM133: - | DN133: - | DO133: - | DP133: - | DQ133: - | DR133: - | DS133: - | DT133: - | DU133: - | DV133: - | DW133: - | DX133: - | DY133: - | DZ133: - | EA133: 8 | EB133: 1,371 | EC133: 912 | ED133: 459 | EE133: - | EF133: 13 | EG133: 12 | EH133: 5 | EI133: 4 | EJ133: 3 | EK133: - | EL133: 1 | EM133: - | EN133: 16 | EO133: 11 | EP133: 6 | EQ133: 3 | ER133: 2 | ES133: 3 | ET133: 1 | EU133: 1
A134: 栃木県 | B134: 宇都宮市 | C134: 雀宮村 | D134: 雀宮下第二 | E134: 4 | F134: 1 | G134: x | H134: x | I134: x | J134: x | K134: x | L134: 3 | M134: x | N134: x | O134: x | P134: x | Q134: x | R134: x | S134: x | T134: x | U134: x | V134: x | W134: x | X134: x | Y134: x | Z134: x | AA134: x | AB134: x | AC134: 61.0 | AD134: 53.0 | AE134: 65.0 | AF134: x | AG134: x | AH134: x | AI134: x | AJ134: x | AK134: x | AL134: x | AM134: x | AN134: x | AO134: x | AP134: x | AQ134: x | AR134: x | AS134: x | AT134: x | AU134: x | AV134: 77.0 | AW134: … | AX134: 77.0 | AY134: x | AZ134: x | BA134: x | BB134: x | BC134: x | BD134: x | BE134: x | BF134: x | BG134: x | BH134: x | BI134: x | BJ134: x | BK134: x | BL134: x | BM134: x | BN134: x | BO134: 77.0 | BP134: … | BQ134: 77.0 | BR134: 1 | BS134: - | BT134: - | BU134: - | BV134: - | BW134: - | BX134: - | BY134: - | BZ134: 1 | CA134: - | CB134: - | CC134: - | CD134: - | CE134: - | CF134: - | CG134: - | CH134: - | CI134: - | CJ134: - | CK134: - | CL134: - | CM134: - | CN134: - | CO134: - | CP134: - | CQ134: - | CR134: - | CS134: - | CT134: - | CU134: - | DC134: 5 | DD134: 3 | DE134: 1 | DF134: 1 | DG134: 1 | DH134: - | DI134: 2 | DJ134: - | DK134: 1 | DL134: 1 | DM134: - | DN134: - | DO134: - | DP134: - | DQ134: - | DR134: - | DS134: - | DT134: - | DU134: - | DV134: - | DW134: - | DX134: - | DY134: - | DZ134: - | EA134: 1 | EB134: 92 | EC134: 88 | ED134: 4 | EE134: - | EF134: 1 | EG134: 1 | EH134: - | EI134: - | EJ134: 1 | EK134: - | EL134: - | EM134: - | EN134: 4 | EO134: 2 | EP134: 1 | EQ134: 1 | ER134: - | ES134: - | ET134: 2 | EU134: -
A135: 栃木県 | B135: 宇都宮市 | C135: 雀宮村 | D135: 雀宮上第一 | E135: 7 | F135: 4 | G135: 1 | H135: 1 | I135: - | J135: - | K135: 3 | L135: 3 | M135: 8 | N135: - | O135: - | P135: - | Q135: - | R135: - | S135: - | T135: - | U135: - | V135: - | W135: 3 | X135: - | Y135: 2 | Z135: 2 | AA135: - | AB135: 1 | AC135: 71.4 | AD135: 68.8 | AE135: 74.0 | AF135: 6 | AG135: - | AH135: - | AI135: - | AJ135: - | AK135: - | AL135: - | AM135: - | AN135: - | AO135: - | AP135: 2 | AQ135: - | AR135: 2 | AS135: 2 | AT135: - | AU135: - | AV135: 70.3 | AW135: 71.0 | AX135: 69.7 | AY135: 6 | AZ135: - | BA135: - | BB135: - | BC135: - | BD135: - | BE135: - | BF135: - | BG135: - | BH135: - | BI135: 2 | BJ135: - | BK135: 2 | BL135: 2 | BM135: - | BN135: - | BO135: 70.3 | BP135: 71.0 | BQ135: 69.7 | BR135: 4 | BS135: - | BT135: - | BU135: - | BV135: - | BW135: - | BX135: - | BY135: - | BZ135: - | CA135: - | CB135: 2 | CC135: - | CD135: 1 | CE135: 1 | CF135: - | CG135: - | CH135: 1 | CI135: - | CJ135: - | CK135: - | CL135: - | CM135: - | CN135: - | CO135: - | CP135: - | CQ135: - | CR135: - | CS135: 1 | CT135: - | CU135: - | DC135: 12 | DD135: 8 | DE135: 6 | DF135: 2 | DG135: - | DH135: 1 | DI135: 1 | DJ135: 2 | DK135: 3 | DL135: 2 | DM135: - | DN135: - | DO135: - | DP135: - | DQ135: - | DR135: - | DS135: - | DT135: - | DU135: - | DV135: 1 | DW135: - | DX135: - | DY135: - | DZ135: - | EA135: 4 | EB135: 312 | EC135: 292 | ED135: 20 | EE135: - | EF135: 5 | EG135: 4 | EH135: 3 | EI135: 1 | EJ135: - | EK135: - | EL135: - | EM135: 1 | EN135: 7 | EO135: 4 | EP135: 3 | EQ135: 1 | ER135: - | ES135: 1 | ET135: 1 | EU135: 1
A136: 栃木県 | B136: 宇都宮市 | C136: 雀宮村 | D136: 雀宮上第二 | E136: 4 | F136: 2 | G136: x | H136: x | I136: x | J136: x | K136: x | L136: 2 | M136: x | N136: x | O136: x | P136: x | Q136: x | R136: x | S136: x | T136: x | U136: x | V136: x | W136: x | X136: x | Y136: x | Z136: x | AA136: x | AB136: x | AC136: 57.1 | AD136: 55.3 | AE136: 59.7 | AF136: x | AG136: x | AH136: x | AI136: x | AJ136: x | AK136: x | AL136: x | AM136: x | AN136: x | AO136: x | AP136: x | AQ136: x | AR136: x | AS136: x | AT136: x | AU136: x | AV136: 68.0 | AW136: 69.0 | AX136: 67.0 | AY136: x | AZ136: x | BA136: x | BB136: x | BC136: x | BD136: x | BE136: x | BF136: x | BG136: x | BH136: x | BI136: x | BJ136: x | BK136: x | BL136: x | BM136: x | BN136: x | BO136: 68.0 | BP136: 69.0 | BQ136: 67.0 | BR136: 2 | BS136: - | BT136: - | BU136: - | BV136: - | BW136: - | BX136: - | BY136: - | BZ136: - | CA136: - | CB136: - | CC136: 1 | CD136: - | CE136: 1 | CF136: - | CG136: - | CH136: 2 | CI136: - | CJ136: - | CK136: - | CL136: - | CM136: - | CN136: - | CO136: - | CP136: - | CQ136: 1 | CR136: - | CS136: 1 | CT136: - | CU136: - | DC136: 12 | DD136: 7 | DE136: 2 | DF136: 5 | DG136: - | DH136: 2 | DI136: 3 | DJ136: - | DK136: 1 | DL136: - | DM136: - | DN136: - | DO136: - | DP136: 1 | DQ136: - | DR136: - | DS136: - | DT136: - | DU136: - | DV136: - | DW136: - | DX136: - | DY136: - | DZ136: - | EA136: 2 | EB136: 353 | EC136: 248 | ED136: 105 | EE136: - | EF136: 7 | EG136: 5 | EH136: 1 | EI136: 4 | EJ136: - | EK136: - | EL136: 2 | EM136: - | EN136: 5 | EO136: 2 | EP136: 1 | EQ136: 1 | ER136: - | ES136: 2 | ET136: 1 | EU136: -
A137: 栃木県 | B137: 宇都宮市 | C137: 雀宮村 | D137: 宮の内 | E137: 5 | F137: 4 | G137: - | H137: - | I137: - | J137: - | K137: 4 | L137: 1 | M137: 8 | N137: - | O137: - | P137: - | Q137: - | R137: - | S137: - | T137: - | U137: 1 | V137: 2 | W137: 1 | X137: - | Y137: - | Z137: 3 | AA137: - | AB137: 1 | AC137: 69.4 | AD137: 72.3 | AE137: 66.5 | AF137: 4 | AG137: - | AH137: - | AI137: - | AJ137: - | AK137: - | AL137: - | AM137: - | AN137: - | AO137: - | AP137: - | AQ137: - | AR137: - | AS137: 3 | AT137: - | AU137: 1 | AV137: 81.8 | AW137: 86.0 | AX137: 77.5 | AY137: 4 | AZ137: - | BA137: - | BB137: - | BC137: - | BD137: - | BE137: - | BF137: - | BG137: - | BH137: - | BI137: - | BJ137: - | BK137: - | BL137: 3 | BM137: - | BN137: 1 | BO137: 81.8 | BP137: 86.0 | BQ137: 77.5 | BR137: 4 | BS137: - | BT137: - | BU137: - | BV137: - | BW137: - | BX137: - | BY137: - | BZ137: - | CA137: 1 | CB137: 1 | CC137: - | CD137: - | CE137: 2 | CF137: - | CG137: - | CH137: 2 | CI137: - | CJ137: - | CK137: - | CL137: - | CM137: - | CN137: - | CO137: - | CP137: 1 | CQ137: - | CR137: - | CS137: 1 | CT137: - | CU137: - | DC137: 14 | DD137: 12 | DE137: 4 | DF137: 8 | DG137: - | DH137: - | DI137: 1 | DJ137: 1 | DK137: 2 | DL137: 1 | DM137: - | DN137: - | DO137: - | DP137: - | DQ137: - | DR137: - | DS137: 1 | DT137: - | DU137: - | DV137: - | DW137: - | DX137: - | DY137: - | DZ137: - | EA137: 4 | EB137: 272 | EC137: 165 | ED137: 107 | EE137: - | EF137: 6 | EG137: 5 | EH137: 2 | EI137: 3 | EJ137: - | EK137: - | EL137: 1 | EM137: - | EN137: 8 | EO137: 7 | EP137: 2 | EQ137: 5 | ER137: - | ES137: - | ET137: - | EU137: 1
A138: 栃木県 | B138: 宇都宮市 | C138: 雀宮村 | D138: 西原 | E138: 13 | F138: 7 | G138: 3 | H138: 2 | I138: 1 | J138: 1 | K138: 3 | L138: 6 | M138: 20 | N138: - | O138: - | P138: 1 | Q138: 1 | R138: 1 | S138: 2 | T138: 1 | U138: - | V138: 2 | W138: 5 | X138: 2 | Y138: 1 | Z138: 3 | AA138: - | AB138: 1 | AC138: 58.7 | AD138: 53.0 | AE138: 64.4 | AF138: 16 | AG138: - | AH138: - | AI138: 1 | AJ138: 1 | AK138: - | AL138: 1 | AM138: - | AN138: - | AO138: 2 | AP138: 5 | AQ138: 2 | AR138: - | AS138: 3 | AT138: - | AU138: 1 | AV138: 61.1 | AW138: 55.8 | AX138: 66.4 | AY138: 14 | AZ138: - | BA138: - | BB138: 1 | BC138: 1 | BD138: - | BE138: 1 | BF138: - | BG138: - | BH138: 2 | BI138: 3 | BJ138: 2 | BK138: - | BL138: 3 | BM138: - | BN138: 1 | BO138: 61.1 | BP138: 55.0 | BQ138: 67.3 | BR138: 7 | BS138: - | BT138: - | BU138: - | BV138: - | BW138: - | BX138: - | BY138: - | BZ138: - | CA138: 1 | CB138: 3 | CC138: 1 | CD138: - | CE138: 2 | CF138: - | CG138: - | CH138: 5 | CI138: - | CJ138: - | CK138: - | CL138: - | CM138: - | CN138: - | CO138: 1 | CP138: 2 | CQ138: 1 | CR138: - | CS138: 1 | CT138: - | CU138: - | DC138: 24 | DD138: 18 | DE138: 14 | DF138: 4 | DG138: - | DH138: 2 | DI138: - | DJ138: 4 | DK138: 7 | DL138: 2 | DM138: - | DN138: - | DO138: - | DP138: 4 | DQ138: - | DR138: - | DS138: 1 | DT138: - | DU138: - | DV138: - | DW138: - | DX138: - | DY138: - | DZ138: - | EA138: 7 | EB138: 1,561 | EC138: 1,378 | ED138: 183 | EE138: - | EF138: 11 | EG138: 9 | EH138: 7 | EI138: 2 | EJ138: - | EK138: - | EL138: - | EM138: 2 | EN138: 13 | EO138: 9 | EP138: 7 | EQ138: 2 | ER138: - | ES138: 2 | ET138: - | EU138: 2
A139: 栃木県 | B139: 宇都宮市 | C139: 雀宮村 | D139: 針谷下 | E139: 20 | F139: 18 | G139: 9 | H139: 8 | I139: 4 | J139: 2 | K139: 5 | L139: 2 | M139: 46 | N139: - | O139: 1 | P139: 2 | Q139: 1 | R139: 1 | S139: 3 | T139: 3 | U139: 8 | V139: 9 | W139: 4 | X139: 3 | Y139: 4 | Z139: 5 | AA139: 2 | AB139: - | AC139: 57.3 | AD139: 54.8 | AE139: 61.2 | AF139: 31 | AG139: - | AH139: - | AI139: 1 | AJ139: - | AK139: - | AL139: 2 | AM139: 1 | AN139: 5 | AO139: 5 | AP139: 4 | AQ139: 3 | AR139: 3 | AS139: 5 | AT139: 2 | AU139: - | AV139: 62.1 | AW139: 62.0 | AX139: 62.3 | AY139: 28 | AZ139: - | BA139: - | BB139: 1 | BC139: - | BD139: - | BE139: 1 | BF139: 1 | BG139: 5 | BH139: 5 | BI139: 3 | BJ139: 2 | BK139: 3 | BL139: 5 | BM139: 2 | BN139: - | BO139: 62.7 | BP139: 62.0 | BQ139: 63.5 | BR139: 18 | BS139: - | BT139: - | BU139: - | BV139: - | BW139: - | BX139: 2 | BY139: - | BZ139: 4 | CA139: 5 | CB139: 2 | CC139: 2 | CD139: 2 | CE139: - | CF139: 1 | CG139: - | CH139: 9 | CI139: - | CJ139: - | CK139: - | CL139: - | CM139: - | CN139: 2 | CO139: 3 | CP139: 1 | CQ139: - | CR139: 2 | CS139: - | CT139: 1 | CU139: - | DC139: 63 | DD139: 48 | DE139: 28 | DF139: 19 | DG139: 1 | DH139: 6 | DI139: 3 | DJ139: 6 | DK139: 17 | DL139: 7 | DM139: - | DN139: - | DO139: - | DP139: 3 | DQ139: 2 | DR139: 3 | DS139: - | DT139: 1 | DU139: - | DV139: - | DW139: - | DX139: 1 | DY139: - | DZ139: - | EA139: 18 | EB139: 2,498 | EC139: 1,588 | ED139: 520 | EE139: 390 | EF139: 32 | EG139: 29 | EH139: 15 | EI139: 13 | EJ139: 1 | EK139: - | EL139: - | EM139: 3 | EN139: 31 | EO139: 19 | EP139: 13 | EQ139: 6 | ER139: - | ES139: 6 | ET139: 3 | EU139: 3
A140: 栃木県 | B140: 宇都宮市 | C140: 雀宮村 | D140: 針谷中 | E140: 18 | F140: 12 | G140: 1 | H140: 1 | I140: 5 | J140: - | K140: 6 | L140: 6 | M140: 35 | N140: - | O140: 2 | P140: 4 | Q140: 1 | R140: 2 | S140: - | T140: 2 | U140: 5 | V140: 9 | W140: 3 | X140: 4 | Y140: - | Z140: 1 | AA140: 2 | AB140: - | AC140: 52.2 | AD140: 51.4 | AE140: 53.0 | AF140: 7 | AG140: - | AH140: - | AI140: - | AJ140: - | AK140: - | AL140: - | AM140: 1 | AN140: 1 | AO140: - | AP140: 1 | AQ140: 4 | AR140: - | AS140: - | AT140: - | AU140: - | AV140: 62.1 | AW140: 63.3 | AX140: 61.3 | AY140: 6 | AZ140: - | BA140: - | BB140: - | BC140: - | BD140: - | BE140: - | BF140: 1 | BG140: 1 | BH140: - | BI140: 1 | BJ140: 3 | BK140: - | BL140: - | BM140: - | BN140: - | BO140: 61.2 | BP140: 63.3 | BQ140: 59.0 | BR140: 12 | BS140: - | BT140: - | BU140: - | BV140: 1 | BW140: - | BX140: - | BY140: - | BZ140: 3 | CA140: 5 | CB140: 1 | CC140: 2 | CD140: - | CE140: - | CF140: - | CG140: - | CH140: 2 | CI140: - | CJ140: - | CK140: - | CL140: - | CM140: - | CN140: - | CO140: 2 | CP140: - | CQ140: - | CR140: - | CS140: - | CT140: - | CU140: - | DC140: 60 | DD140: 41 | DE140: 6 | DF140: 34 | DG140: 1 | DH140: 3 | DI140: 4 | DJ140: 12 | DK140: 10 | DL140: 9 | DM140: - | DN140: - | DO140: - | DP140: - | DQ140: 1 | DR140: - | DS140: - | DT140: - | DU140: - | DV140: - | DW140: - | DX140: - | DY140: - | DZ140: - | EA140: 12 | EB140: 1,179 | EC140: 937 | ED140: 242 | EE140: - | EF140: 27 | EG140: 20 | EH140: 3 | EI140: 16 | EJ140: 1 | EK140: - | EL140: 2 | EM140: 5 | EN140: 33 | EO140: 21 | EP140: 3 | EQ140: 18 | ER140: - | ES140: 3 | ET140: 2 | EU140: 7
A141: 栃木県 | B141: 宇都宮市 | C141: 雀宮村 | D141: 針谷上 | E141: 21 | F141: 19 | G141: 13 | H141: 11 | I141: 3 | J141: 2 | K141: 3 | L141: 2 | M141: 58 | N141: - | O141: - | P141: 2 | Q141: 4 | R141: 4 | S141: 1 | T141: 9 | U141: 3 | V141: 4 | W141: 12 | X141: 2 | Y141: 5 | Z141: 5 | AA141: 4 | AB141: 3 | AC141: 58.2 | AD141: 56.7 | AE141: 59.3 | AF141: 47 | AG141: - | AH141: - | AI141: 1 | AJ141: - | AK141: 3 | AL141: - | AM141: 7 | AN141: 3 | AO141: 4 | AP141: 11 | AQ141: 2 | AR141: 4 | AS141: 5 | AT141: 4 | AU141: 3 | AV141: 61.9 | AW141: 59.5 | AX141: 63.8 | AY141: 45 | AZ141: - | BA141: - | BB141: 1 | BC141: - | BD141: 3 | BE141: - | BF141: 6 | BG141: 3 | BH141: 4 | BI141: 11 | BJ141: 2 | BK141: 4 | BL141: 5 | BM141: 3 | BN141: 3 | BO141: 61.8 | BP141: 59.5 | BQ141: 63.9 | BR141: 19 | BS141: - | BT141: - | BU141: - | BV141: - | BW141: - | BX141: - | BY141: 4 | BZ141: 2 | CA141: 1 | CB141: 7 | CC141: 1 | CD141: 2 | CE141: - | CF141: 1 | CG141: 1 | CH141: 12 | CI141: - | CJ141: - | CK141: - | CL141: - | CM141: 1 | CN141: - | CO141: 1 | CP141: 5 | CQ141: 1 | CR141: 2 | CS141: - | CT141: 1 | CU141: 1 | DC141: 76 | DD141: 60 | DE141: 45 | DF141: 13 | DG141: 2 | DH141: 5 | DI141: 5 | DJ141: 6 | DK141: 18 | DL141: 4 | DM141: - | DN141: - | DO141: - | DP141: - | DQ141: - | DR141: 14 | DS141: - | DT141: - | DU141: - | DV141: - | DW141: - | DX141: - | DY141: - | DZ141: - | EA141: 19 | EB141: 3,817 | EC141: 1,823 | ED141: 271 | EE141: 1,723 | EF141: 33 | EG141: 30 | EH141: 21 | EI141: 8 | EJ141: 1 | EK141: - | EL141: 2 | EM141: 1 | EN141: 43 | EO141: 30 | EP141: 24 | EQ141: 5 | ER141: 1 | ES141: 5 | ET141: 3 | EU141: 5
A142: 栃木県 | B142: 宇都宮市 | C142: 姿川村 | E142: 392 | F142: 322 | G142: 71 | H142: 59 | I142: 103 | J142: 29 | K142: 148 | L142: 70 | M142: 901 | N142: 16 | O142: 21 | P142: 32 | Q142: 37 | R142: 37 | S142: 46 | T142: 69 | U142: 88 | V142: 127 | W142: 118 | X142: 63 | Y142: 73 | Z142: 86 | AA142: 59 | AB142: 29 | AC142: 57.6 | AD142: 55.8 | AE142: 59.5 | AF142: 491 | AG142: - | AH142: 1 | AI142: 6 | AJ142: 4 | AK142: 9 | AL142: 22 | AM142: 19 | AN142: 19 | AO142: 50 | AP142: 80 | AQ142: 57 | AR142: 70 | AS142: 76 | AT142: 52 | AU142: 26 | AV142: 66.1 | AW142: 65.5 | AX142: 66.6 | AY142: 433 | AZ142: - | BA142: 1 | BB142: 5 | BC142: 3 | BD142: 6 | BE142: 18 | BF142: 15 | BG142: 18 | BH142: 48 | BI142: 74 | BJ142: 53 | BK142: 62 | BL142: 67 | BM142: 46 | BN142: 17 | BO142: 66.0 | BP142: 65.0 | BQ142: 67.0 | BR142: 322 | BS142: - | BT142: - | BU142: 1 | BV142: 3 | BW142: 3 | BX142: 11 | BY142: 24 | BZ142: 32 | CA142: 62 | CB142: 62 | CC142: 35 | CD142: 32 | CE142: 27 | CF142: 19 | CG142: 11 | CH142: 162 | CI142: - | CJ142: - | CK142: - | CL142: 2 | CM142: 3 | CN142: 11 | CO142: 32 | CP142: 35 | CQ142: 22 | CR142: 19 | CS142: 16 | CT142: 13 | CU142: 9 | DC142: 1,235 | DD142: 872 | DE142: 433 | DF142: 399 | DG142: 40 | DH142: 109 | DI142: 106 | DJ142: 148 | DK142: 281 | DL142: 228 | DM142: - | DN142: 2 | DO142: - | DP142: 13 | DQ142: 17 | DR142: 9 | DS142: 10 | DT142: 1 | DU142: - | DV142: 1 | DW142: - | DX142: - | DY142: - | DZ142: - | EA142: 321 | EB142: 58,399 | EC142: 48,105 | ED142: 8,386 | EE142: 1,908 | EF142: 582 | EG142: 487 | EH142: 218 | EI142: 244 | EJ142: 25 | EK142: 2 | EL142: 50 | EM142: 43 | EN142: 653 | EO142: 385 | EP142: 215 | EQ142: 155 | ER142: 15 | ES142: 107 | ET142: 56 | EU142: 105
A143: 栃木県 | B143: 宇都宮市 | C143: 姿川村 | D143: 鶴田三の沢西 | E143: 6 | F143: 5 | G143: 1 | H143: 1 | I143: - | J143: - | K143: 4 | L143: 1 | M143: 12 | N143: - | O143: 1 | P143: - | Q143: - | R143: - | S143: 1 | T143: - | U143: 1 | V143: 2 | W143: - | X143: - | Y143: 3 | Z143: 3 | AA143: - | AB143: 1 | AC143: 64.4 | AD143: 58.0 | AE143: 73.4 | AF143: 11 | AG143: - | AH143: 1 | AI143: - | AJ143: - | AK143: - | AL143: - | AM143: - | AN143: 1 | AO143: 2 | AP143: - | AQ143: - | AR143: 3 | AS143: 3 | AT143: - | AU143: 1 | AV143: 66.4 | AW143: 60.5 | AX143: 73.4 | AY143: 8 | AZ143: - | BA143: 1 | BB143: - | BC143: - | BD143: - | BE143: - | BF143: - | BG143: 1 | BH143: 1 | BI143: - | BJ143: - | BK143: 2 | BL143: 3 | BM143: - | BN143: - | BO143: 63.8 | BP143: 57.8 | BQ143: 73.7 | BR143: 5 | BS143: - | BT143: - | BU143: - | BV143: - | BW143: - | BX143: 1 | BY143: - | BZ143: 1 | CA143: - | CB143: - | CC143: - | CD143: 1 | CE143: 1 | CF143: - | CG143: 1 | CH143: 1 | CI143: - | CJ143: - | CK143: - | CL143: - | CM143: - | CN143: - | CO143: - | CP143: - | CQ143: - | CR143: - | CS143: - | CT143: - | CU143: 1 | DC143: 15 | DD143: 9 | DE143: 8 | DF143: 1 | DG143: - | DH143: 2 | DI143: - | DJ143: 4 | DK143: 4 | DL143: 4 | DM143: - | DN143: - | DO143: - | DP143: - | DQ143: - | DR143: - | DS143: - | DT143: - | DU143: - | DV143: - | DW143: - | DX143: - | DY143: - | DZ143: - | EA143: 5 | EB143: 357 | EC143: 299 | ED143: 58 | EE143: - | EF143: 7 | EG143: 6 | EH143: 5 | EI143: 1 | EJ143: - | EK143: - | EL143: - | EM143: 1 | EN143: 8 | EO143: 3 | EP143: 3 | EQ143: - | ER143: - | ES143: 2 | ET143: - | EU143: 3
A144: 栃木県 | B144: 宇都宮市 | C144: 姿川村 | D144: 鶴田三の沢東 | E144: 3 | F144: 3 | G144: 1 | H144: 1 | I144: 2 | J144: 1 | K144: - | L144: - | M144: 9 | N144: - | O144: - | P144: - | Q144: - | R144: - | S144: - | T144: 1 | U144: 1 | V144: 3 | W144: 1 | X144: - | Y144: - | Z144: 2 | AA144: 1 | AB144: - | AC144: 63.0 | AD144: 62.0 | AE144: 63.8 | AF144: 6 | AG144: - | AH144: - | AI144: - | AJ144: - | AK144: - | AL144: - | AM144: - | AN144: - | AO144: 3 | AP144: 1 | AQ144: - | AR144: - | AS144: 1 | AT144: 1 | AU144: - | AV144: 65.3 | AW144: 66.0 | AX144: 64.7 | AY144: 6 | AZ144: - | BA144: - | BB144: - | BC144: - | BD144: - | BE144: - | BF144: - | BG144: - | BH144: 3 | BI144: 1 | BJ144: - | BK144: - | BL144: 1 | BM144: 1 | BN144: - | BO144: 65.3 | BP144: 66.0 | BQ144: 64.7 | BR144: 3 | BS144: - | BT144: - | BU144: - | BV144: - | BW144: - | BX144: - | BY144: - | BZ144: 1 | CA144: 1 | CB144: 1 | CC144: - | CD144: - | CE144: - | CF144: - | CG144: - | CH144: 3 | CI144: - | CJ144: - | CK144: - | CL144: - | CM144: - | CN144: 1 | CO144: 1 | CP144: 1 | CQ144: - | CR144: - | CS144: - | CT144: - | CU144: - | DC144: 13 | DD144: 8 | DE144: 6 | DF144: 2 | DG144: - | DH144: 1 | DI144: 2 | DJ144: 2 | DK144: 3 | DL144: 3 | DM144: - | DN144: - | DO144: - | DP144: - | DQ144: - | DR144: - | DS144: - | DT144: - | DU144: - | DV144: - | DW144: - | DX144: - | DY144: - | DZ144: - | EA144: 3 | EB144: 693 | EC144: 613 | ED144: 45 | EE144: 35 | EF144: 5 | EG144: 4 | EH144: 3 | EI144: 1 | EJ144: - | EK144: - | EL144: 1 | EM144: - | EN144: 8 | EO144: 4 | EP144: 3 | EQ144: 1 | ER144: - | ES144: 1 | ET144: 1 | EU144: 2
A145: 栃木県 | B145: 宇都宮市 | C145: 姿川村 | D145: 鶴田駒生開拓 | E145: 1 | F145: - | G145: - | H145: - | I145: - | J145: - | K145: - | L145: 1 | M145: - | N145: - | O145: - | P145: - | Q145: - | R145: - | S145: - | T145: - | U145: - | V145: - | W145: - | X145: - | Y145: - | Z145: - | AA145: - | AB145: - | AC145: … | AD145: … | AE145: … | AF145: - | AG145: - | AH145: - | AI145: - | AJ145: - | AK145: - | AL145: - | AM145: - | AN145: - | AO145: - | AP145: - | AQ145: - | AR145: - | AS145: - | AT145: - | AU145: - | AV145: … | AW145: … | AX145: … | AY145: - | AZ145: - | BA145: - | BB145: - | BC145: - | BD145: - | BE145: - | BF145: - | BG145: - | BH145: - | BI145: - | BJ145: - | BK145: - | BL145: - | BM145: - | BN145: - | BO145: … | BP145: … | BQ145: … | BR145: - | BS145: - | BT145: - | BU145: - | BV145: - | BW145: - | BX145: - | BY145: - | BZ145: - | CA145: - | CB145: - | CC145: - | CD145: - | CE145: - | CF145: - | CG145: - | CH145: - | CI145: - | CJ145: - | CK145: - | CL145: - | CM145: - | CN145: - | CO145: - | CP145: - | CQ145: - | CR145: - | CS145: - | CT145: - | CU145: - | DC145: - | DD145: - | DE145: - | DF145: - | DG145: - | DH145: - | DI145: - | DJ145: - | DK145: - | DL145: - | DM145: - | DN145: - | DO145: - | DP145: - | DQ145: - | DR145: - | DS145: - | DT145: - | DU145: - | DV145: - | DW145: - | DX145: - | DY145: - | DZ145: - | EA145: - | EB145: - | EC145: - | ED145: - | EE145: - | EF145: - | EG145: - | EH145: - | EI145: - | EJ145: - | EK145: - | EL145: - | EM145: - | EN145: - | EO145: - | EP145: - | EQ145: - | ER145: - | ES145: - | ET145: - | EU145: -
A146: 栃木県 | B146: 宇都宮市 | C146: 姿川村 | D146: 鶴田北部 | E146: 3 | F146: 2 | G146: x | H146: x | I146: x | J146: x | K146: x | L146: 1 | M146: x | N146: x | O146: x | P146: x | Q146: x | R146: x | S146: x | T146: x | U146: x | V146: x | W146: x | X146: x | Y146: x | Z146: x | AA146: x | AB146: x | AC146: 60.7 | AD146: 60.8 | AE146: 60.7 | AF146: x | AG146: x | AH146: x | AI146: x | AJ146: x | AK146: x | AL146: x | AM146: x | AN146: x | AO146: x | AP146: x | AQ146: x | AR146: x | AS146: x | AT146: x | AU146: x | AV146: 64.3 | AW146: 60.8 | AX146: 71.5 | AY146: x | AZ146: x | BA146: x | BB146: x | BC146: x | BD146: x | BE146: x | BF146: x | BG146: x | BH146: x | BI146: x | BJ146: x | BK146: x | BL146: x | BM146: x | BN146: x | BO146: 56.8 | BP146: 54.3 | BQ146: 64.0 | BR146: 2 | BS146: - | BT146: - | BU146: - | BV146: - | BW146: - | BX146: - | BY146: - | BZ146: - | CA146: 1 | CB146: - | CC146: 1 | CD146: - | CE146: - | CF146: - | CG146: - | CH146: 2 | CI146: - | CJ146: - | CK146: - | CL146: - | CM146: - | CN146: - | CO146: 1 | CP146: - | CQ146: 1 | CR146: - | CS146: - | CT146: - | CU146: - | DC146: 9 | DD146: 5 | DE146: 4 | DF146: 1 | DG146: - | DH146: - | DI146: 1 | DJ146: 3 | DK146: 2 | DL146: 2 | DM146: - | DN146: - | DO146: - | DP146: - | DQ146: - | DR146: - | DS146: - | DT146: - | DU146: - | DV146: - | DW146: - | DX146: - | DY146: - | DZ146: - | EA146: 2 | EB146: 1,058 | EC146: 1,003 | ED146: 40 | EE146: 15 | EF146: 5 | EG146: 3 | EH146: 3 | EI146: - | EJ146: - | EK146: - | EL146: 1 | EM146: 1 | EN146: 4 | EO146: 2 | EP146: 1 | EQ146: 1 | ER146: - | ES146: - | ET146: - | EU146: 2
A147: 栃木県 | B147: 宇都宮市 | C147: 姿川村 | D147: 鶴田西部 | E147: 23 | F147: 19 | G147: 4 | H147: 2 | I147: 2 | J147: - | K147: 13 | L147: 4 | M147: 42 | N147: - | O147: - | P147: 1 | Q147: 1 | R147: 2 | S147: 4 | T147: 4 | U147: 2 | V147: 3 | W147: 3 | X147: 7 | Y147: 10 | Z147: 1 | AA147: 3 | AB147: 1 | AC147: 60.6 | AD147: 56.9 | AE147: 66.6 | AF147: 29 | AG147: - | AH147: - | AI147: - | AJ147: - | AK147: 1 | AL147: 1 | AM147: - | AN147: 1 | AO147: 2 | AP147: 3 | AQ147: 7 | AR147: 10 | AS147: 1 | AT147: 2 | AU147: 1 | AV147: 67.3 | AW147: 66.4 | AX147: 68.5 | AY147: 23 | AZ147: - | BA147: - | BB147: - | BC147: - | BD147: 1 | BE147: 1 | BF147: - | BG147: 1 | BH147: 2 | BI147: 1 | BJ147: 5 | BK147: 8 | BL147: 1 | BM147: 2 | BN147: 1 | BO147: 67.3 | BP147: 65.7 | BQ147: 69.7 | BR147: 19 | BS147: - | BT147: - | BU147: - | BV147: - | BW147: - | BX147: 1 | BY147: 2 | BZ147: - | CA147: 3 | CB147: 1 | CC147: 4 | CD147: 6 | CE147: - | CF147: 1 | CG147: 1 | CH147: 10 | CI147: - | CJ147: - | CK147: - | CL147: - | CM147: - | CN147: - | CO147: 2 | CP147: 1 | CQ147: 2 | CR147: 4 | CS147: - | CT147: - | CU147: 1 | DC147: 66 | DD147: 44 | DE147: 23 | DF147: 18 | DG147: 3 | DH147: 10 | DI147: 3 | DJ147: 9 | DK147: 15 | DL147: 11 | DM147: - | DN147: 1 | DO147: - | DP147: 3 | DQ147: - | DR147: - | DS147: - | DT147: - | DU147: - | DV147: - | DW147: - | DX147: - | DY147: - | DZ147: - | EA147: 19 | EB147: 3,513 | EC147: 2,166 | ED147: 1,021 | EE147: 326 | EF147: 33 | EG147: 29 | EH147: 14 | EI147: 14 | EJ147: 1 | EK147: - | EL147: 2 | EM147: 2 | EN147: 33 | EO147: 15 | EP147: 9 | EQ147: 4 | ER147: 2 | ES147: 10 | ET147: 1 | EU147: 7
A148: 栃木県 | B148: 宇都宮市 | C148: 姿川村 | D148: 鶴田中部 | E148: 19 | F148: 12 | G148: 2 | H148: 1 | I148: 7 | J148: 3 | K148: 3 | L148: 7 | M148: 33 | N148: - | O148: 1 | P148: 1 | Q148: 3 | R148: - | S148: - | T148: 3 | U148: 5 | V148: 6 | W148: 3 | X148: - | Y148: 4 | Z148: 4 | AA148: 3 | AB148: - | AC148: 58.1 | AD148: 55.4 | AE148: 61.4 | AF148: 19 | AG148: - | AH148: - | AI148: - | AJ148: - | AK148: - | AL148: - | AM148: 1 | AN148: 1 | AO148: 5 | AP148: 2 | AQ148: - | AR148: 4 | AS148: 3 | AT148: 3 | AU148: - | AV148: 67.6 | AW148: 69.1 | AX148: 66.2 | AY148: 18 | AZ148: - | BA148: - | BB148: - | BC148: - | BD148: - | BE148: - | BF148: 1 | BG148: 1 | BH148: 5 | BI148: 2 | BJ148: - | BK148: 4 | BL148: 2 | BM148: 3 | BN148: - | BO148: 67.0 | BP148: 69.1 | BQ148: 64.9 | BR148: 12 | BS148: - | BT148: - | BU148: - | BV148: - | BW148: - | BX148: - | BY148: 1 | BZ148: 2 | CA148: 2 | CB148: 3 | CC148: - | CD148: 1 | CE148: 2 | CF148: 1 | CG148: - | CH148: 7 | CI148: - | CJ148: - | CK148: - | CL148: - | CM148: - | CN148: 1 | CO148: 1 | CP148: 2 | CQ148: - | CR148: 1 | CS148: 1 | CT148: 1 | CU148: - | DC148: 50 | DD148: 35 | DE148: 18 | DF148: 15 | DG148: 2 | DH148: 5 | DI148: 4 | DJ148: 6 | DK148: 11 | DL148: 7 | DM148: - | DN148: - | DO148: - | DP148: 4 | DQ148: - | DR148: - | DS148: - | DT148: - | DU148: - | DV148: - | DW148: - | DX148: - | DY148: - | DZ148: - | EA148: 12 | EB148: 1,631 | EC148: 1,224 | ED148: 407 | EE148: - | EF148: 26 | EG148: 21 | EH148: 9 | EI148: 11 | EJ148: 1 | EK148: - | EL148: 2 | EM148: 3 | EN148: 24 | EO148: 14 | EP148: 9 | EQ148: 4 | ER148: 1 | ES148: 5 | ET148: 2 | EU148: 3
A149: 栃木県 | B149: 宇都宮市 | C149: 姿川村 | D149: 鶴田東部 | E149: 5 | F149: 2 | G149: x | H149: x | I149: x | J149: x | K149: x | L149: 3 | M149: x | N149: x | O149: x | P149: x | Q149: x | R149: x | S149: x | T149: x | U149: x | V149: x | W149: x | X149: x | Y149: x | Z149: x | AA149: x | AB149: x | AC149: 67.2 | AD149: 69.0 | AE149: 66.3 | AF149: x | AG149: x | AH149: x | AI149: x | AJ149: x | AK149: x | AL149: x | AM149: x | AN149: x | AO149: x | AP149: x | AQ149: x | AR149: x | AS149: x | AT149: x | AU149: x | AV149: 80.0 | AW149: 81.0 | AX149: 79.0 | AY149: x | AZ149: x | BA149: x | BB149: x | BC149: x | BD149: x | BE149: x | BF149: x | BG149: x | BH149: x | BI149: x | BJ149: x | BK149: x | BL149: x | BM149: x | BN149: x | BO149: 80.0 | BP149: 81.0 | BQ149: 79.0 | BR149: 2 | BS149: - | BT149: - | BU149: - | BV149: - | BW149: - | BX149: - | BY149: - | BZ149: - | CA149: 1 | CB149: - | CC149: - | CD149: - | CE149: - | CF149: 1 | CG149: - | CH149: 1 | CI149: - | CJ149: - | CK149: - | CL149: - | CM149: - | CN149: - | CO149: - | CP149: - | CQ149: - | CR149: - | CS149: - | CT149: 1 | CU149: - | DC149: 8 | DD149: 4 | DE149: 2 | DF149: 2 | DG149: - | DH149: 2 | DI149: 1 | DJ149: 1 | DK149: 1 | DL149: - | DM149: - | DN149: - | DO149: - | DP149: 1 | DQ149: - | DR149: - | DS149: - | DT149: - | DU149: - | DV149: - | DW149: - | DX149: - | DY149: - | DZ149: - | EA149: 2 | EB149: 110 | EC149: - | ED149: 110 | EE149: - | EF149: 3 | EG149: 3 | EH149: 1 | EI149: 2 | EJ149: - | EK149: - | EL149: - | EM149: - | EN149: 5 | EO149: 1 | EP149: 1 | EQ149: - | ER149: - | ES149: 2 | ET149: 1 | EU149: 1
A150: 栃木県 | B150: 宇都宮市 | C150: 姿川村 | D150: 鶴田南部 | E150: 6 | F150: 4 | G150: - | H150: - | I150: 1 | J150: 1 | K150: 3 | L150: 2 | M150: 10 | N150: - | O150: - | P150: - | Q150: - | R150: 1 | S150: - | T150: - | U150: 1 | V150: 3 | W150: - | X150: 3 | Y150: - | Z150: 1 | AA150: 1 | AB150: - | AC150: 61.9 | AD150: 60.0 | AE150: 63.8 | AF150: 7 | AG150: - | AH150: - | AI150: - | AJ150: - | AK150: - | AL150: - | AM150: - | AN150: 1 | AO150: 1 | AP150: - | AQ150: 3 | AR150: - | AS150: 1 | AT150: 1 | AU150: - | AV150: 67.1 | AW150: 68.7 | AX150: 66.0 | AY150: 7 | AZ150: - | BA150: - | BB150: - | BC150: - | BD150: - | BE150: - | BF150: - | BG150: 1 | BH150: 1 | BI150: - | BJ150: 3 | BK150: - | BL150: 1 | BM150: 1 | BN150: - | BO150: 67.1 | BP150: 68.7 | BQ150: 66.0 | BR150: 4 | BS150: - | BT150: - | BU150: - | BV150: - | BW150: 1 | BX150: - | BY150: - | BZ150: - | CA150: 2 | CB150: - | CC150: 1 | CD150: - | CE150: - | CF150: - | CG150: - | CH150: - | CI150: - | CJ150: - | CK150: - | CL150: - | CM150: - | CN150: - | CO150: - | CP150: - | CQ150: - | CR150: - | CS150: - | CT150: - | CU150: - | DC150: 14 | DD150: 12 | DE150: 7 | DF150: 4 | DG150: 1 | DH150: - | DI150: - | DJ150: 2 | DK150: 2 | DL150: 1 | DM150: - | DN150: - | DO150: - | DP150: - | DQ150: - | DR150: - | DS150: 1 | DT150: - | DU150: - | DV150: - | DW150: - | DX150: - | DY150: - | DZ150: - | EA150: 4 | EB150: 704 | EC150: 672 | ED150: 32 | EE150: - | EF150: 6 | EG150: 6 | EH150: 3 | EI150: 2 | EJ150: 1 | EK150: - | EL150: - | EM150: - | EN150: 8 | EO150: 6 | EP150: 4 | EQ150: 2 | ER150: - | ES150: - | ET150: - | EU150: 2
A151: 栃木県 | B151: 宇都宮市 | C151: 姿川村 | D151: 堀切 | E151: 4 | F151: 3 | G151: 2 | H151: 1 | I151: - | J151: - | K151: 1 | L151: 1 | M151: 13 | N151: 1 | O151: 1 | P151: 1 | Q151: - | R151: - | S151: 2 | T151: 1 | U151: 1 | V151: - | W151: 2 | X151: - | Y151: 1 | Z151: 2 | AA151: 1 | AB151: - | AC151: 52.3 | AD151: 49.0 | AE151: 55.1 | AF151: 8 | AG151: - | AH151: - | AI151: - | AJ151: - | AK151: - | AL151: 2 | AM151: - | AN151: - | AO151: - | AP151: 2 | AQ151: - | AR151: 1 | AS151: 2 | AT151: 1 | AU151: - | AV151: 64.1 | AW151: 64.0 | AX151: 64.2 | AY151: 8 | AZ151: - | BA151: - | BB151: - | BC151: - | BD151: - | BE151: 2 | BF151: - | BG151: - | BH151: - | BI151: 2 | BJ151: - | BK151: 1 | BL151: 2 | BM151: 1 | BN151: - | BO151: 64.1 | BP151: 64.0 | BQ151: 64.2 | BR151: 3 | BS151: - | BT151: - | BU151: - | BV151: - | BW151: - | BX151: 1 | BY151: - | BZ151: - | CA151: - | CB151: - | CC151: - | CD151: 1 | CE151: - | CF151: 1 | CG151: - | CH151: 2 | CI151: - | CJ151: - | CK151: - | CL151: 1 | CM151: - | CN151: - | CO151: - | CP151: - | CQ151: - | CR151: - | CS151: - | CT151: 1 | CU151: - | DC151: 15 | DD151: 12 | DE151: 8 | DF151: 4 | DG151: - | DH151: - | DI151: 2 | DJ151: 1 | DK151: 3 | DL151: 1 | DM151: - | DN151: - | DO151: - | DP151: - | DQ151: 1 | DR151: 1 | DS151: - | DT151: - | DU151: - | DV151: - | DW151: - | DX151: - | DY151: - | DZ151: - | EA151: 3 | EB151: 417 | EC151: 252 | ED151: 136 | EE151: 29 | EF151: 7 | EG151: 6 | EH151: 3 | EI151: 3 | EJ151: - | EK151: - | EL151: - | EM151: 1 | EN151: 8 | EO151: 6 | EP151: 5 | EQ151: 1 | ER151: - | ES151: - | ET151: 2 | EU151: -
A152: 栃木県 | B152: 宇都宮市 | C152: 姿川村 | D152: 鶴田滝の原 | E152: @ | F152: @ | G152: @ | H152: @ | I152: @ | J152: @ | K152: @ | L152: @ | M152: @ | N152: @ | O152: @ | P152: @ | Q152: @ | R152: @ | S152: @ | T152: @ | U152: @ | V152: @ | W152: @ | X152: @ | Y152: @ | Z152: @ | AA152: @ | AB152: @ | AC152: … | AD152: … | AE152: … | AF152: @ | AG152: @ | AH152: @ | AI152: @ | AJ152: @ | AK152: @ | AL152: @ | AM152: @ | AN152: @ | AO152: @ | AP152: @ | AQ152: @ | AR152: @ | AS152: @ | AT152: @ | AU152: @ | AV152: … | AW152: … | AX152: … | AY152: @ | AZ152: @ | BA152: @ | BB152: @ | BC152: @ | BD152: @ | BE152: @ | BF152: @ | BG152: @ | BH152: @ | BI152: @ | BJ152: @ | BK152: @ | BL152: @ | BM152: @ | BN152: @ | BO152: … | BP152: … | BQ152: … | BR152: - | BS152: - | BT152: - | BU152: - | BV152: - | BW152: - | BX152: - | BY152: - | BZ152: - | CA152: - | CB152: - | CC152: - | CD152: - | CE152: - | CF152: - | CG152: - | CH152: - | CI152: - | CJ152: - | CK152: - | CL152: - | CM152: - | CN152: - | CO152: - | CP152: - | CQ152: - | CR152: - | CS152: - | CT152: - | CU152: - | DC152: - | DD152: - | DE152: - | DF152: - | DG152: - | DH152: - | DI152: - | DJ152: - | DK152: - | DL152: - | DM152: - | DN152: - | DO152: - | DP152: - | DQ152: - | DR152: - | DS152: - | DT152: - | DU152: - | DV152: - | DW152: - | DX152: - | DY152: - | DZ152: - | EA152: - | EB152: - | EC152: - | ED152: - | EE152: - | EF152: - | EG152: - | EH152: - | EI152: - | EJ152: - | EK152: - | EL152: - | EM152: - | EN152: - | EO152: - | EP152: - | EQ152: - | ER152: - | ES152: - | ET152: - | EU152: -
A153: 栃木県 | B153: 宇都宮市 | C153: 姿川村 | D153: 黒木橋中部 | E153: 6 | F153: 1 | G153: x | H153: x | I153: x | J153: x | K153: x | L153: 5 | M153: x | N153: x | O153: x | P153: x | Q153: x | R153: x | S153: x | T153: x | U153: x | V153: x | W153: x | X153: x | Y153: x | Z153: x | AA153: x | AB153: x | AC153: 70.0 | AD153: 70.0 | AE153: … | AF153: x | AG153: x | AH153: x | AI153: x | AJ153: x | AK153: x | AL153: x | AM153: x | AN153: x | AO153: x | AP153: x | AQ153: x | AR153: x | AS153: x | AT153: x | AU153: x | AV153: 70.0 | AW153: 70.0 | AX153: … | AY153: x | AZ153: x | BA153: x | BB153: x | BC153: x | BD153: x | BE153: x | BF153: x | BG153: x | BH153: x | BI153: x | BJ153: x | BK153: x | BL153: x | BM153: x | BN153: x | BO153: 70.0 | BP153: 70.0 | BQ153: … | BR153: 1 | BS153: - | BT153: - | BU153: - | BV153: - | BW153: - | BX153: - | BY153: - | BZ153: - | CA153: - | CB153: - | CC153: - | CD153: 1 | CE153: - | CF153: - | CG153: - | CH153: - | CI153: - | CJ153: - | CK153: - | CL153: - | CM153: - | CN153: - | CO153: - | CP153: - | CQ153: - | CR153: - | CS153: - | CT153: - | CU153: - | DC153: 2 | DD153: 1 | DE153: 1 | DF153: - | DG153: - | DH153: - | DI153: - | DJ153: 1 | DK153: - | DL153: - | DM153: - | DN153: - | DO153: - | DP153: - | DQ153: - | DR153: - | DS153: - | DT153: - | DU153: - | DV153: - | DW153: - | DX153: - | DY153: - | DZ153: - | EA153: 1 | EB153: 75 | EC153: 60 | ED153: 15 | EE153: - | EF153: 1 | EG153: 1 | EH153: 1 | EI153: - | EJ153: - | EK153: - | EL153: - | EM153: - | EN153: 1 | EO153: - | EP153: - | EQ153: - | ER153: - | ES153: - | ET153: - | EU153: 1
A154: 栃木県 | B154: 宇都宮市 | C154: 姿川村 | D154: 黒木橋南部 | E154: 5 | F154: 5 | G154: - | H154: - | I154: 2 | J154: 1 | K154: 3 | L154: - | M154: 12 | N154: - | O154: - | P154: - | Q154: - | R154: 1 | S154: - | T154: 1 | U154: - | V154: 3 | W154: 1 | X154: 1 | Y154: - | Z154: 5 | AA154: - | AB154: - | AC154: 63.5 | AD154: 63.7 | AE154: 63.3 | AF154: 8 | AG154: - | AH154: - | AI154: - | AJ154: - | AK154: - | AL154: - | AM154: - | AN154: - | AO154: 1 | AP154: 1 | AQ154: 1 | AR154: - | AS154: 5 | AT154: - | AU154: - | AV154: 70.8 | AW154: 72.3 | AX154: 69.3 | AY154: 7 | AZ154: - | BA154: - | BB154: - | BC154: - | BD154: - | BE154: - | BF154: - | BG154: - | BH154: 1 | BI154: 1 | BJ154: 1 | BK154: - | BL154: 4 | BM154: - | BN154: - | BO154: 70.1 | BP154: 71.3 | BQ154: 69.3 | BR154: 5 | BS154: - | BT154: - | BU154: - | BV154: - | BW154: - | BX154: - | BY154: - | BZ154: - | CA154: 1 | CB154: 1 | CC154: - | CD154: - | CE154: 3 | CF154: - | CG154: - | CH154: 2 | CI154: - | CJ154: - | CK154: - | CL154: - | CM154: - | CN154: - | CO154: - | CP154: - | CQ154: - | CR154: - | CS154: 2 | CT154: - | CU154: - | DC154: 18 | DD154: 13 | DE154: 7 | DF154: 5 | DG154: 1 | DH154: 1 | DI154: - | DJ154: 4 | DK154: 4 | DL154: 4 | DM154: - | DN154: - | DO154: - | DP154: - | DQ154: - | DR154: - | DS154: - | DT154: - | DU154: - | DV154: - | DW154: - | DX154: - | DY154: - | DZ154: - | EA154: 5 | EB154: 541 | EC154: 381 | ED154: 74 | EE154: 86 | EF154: 7 | EG154: 5 | EH154: 3 | EI154: 1 | EJ154: 1 | EK154: - | EL154: - | EM154: 2 | EN154: 11 | EO154: 8 | EP154: 4 | EQ154: 4 | ER154: - | ES154: 1 | ET154: - | EU154: 2
A155: 栃木県 | B155: 宇都宮市 | C155: 姿川村 | D155: 西川田北部 | E155: 17 | F155: 11 | G155: 2 | H155: 2 | I155: 6 | J155: 2 | K155: 3 | L155: 6 | M155: 34 | N155: 2 | O155: - | P155: 1 | Q155: 1 | R155: - | S155: - | T155: 4 | U155: 6 | V155: 2 | W155: 8 | X155: 3 | Y155: - | Z155: 4 | AA155: 1 | AB155: 2 | AC155: 57.9 | AD155: 56.5 | AE155: 59.4 | AF155: 19 | AG155: - | AH155: - | AI155: - | AJ155: 1 | AK155: - | AL155: - | AM155: 2 | AN155: 1 | AO155: 1 | AP155: 6 | AQ155: 3 | AR155: - | AS155: 3 | AT155: - | AU155: 2 | AV155: 63.8 | AW155: 63.6 | AX155: 64.1 | AY155: 18 | AZ155: - | BA155: - | BB155: - | BC155: 1 | BD155: - | BE155: - | BF155: 2 | BG155: 1 | BH155: 1 | BI155: 6 | BJ155: 3 | BK155: - | BL155: 3 | BM155: - | BN155: 1 | BO155: 62.7 | BP155: 63.6 | BQ155: 61.1 | BR155: 11 | BS155: - | BT155: - | BU155: - | BV155: - | BW155: - | BX155: - | BY155: - | BZ155: 3 | CA155: 1 | CB155: 1 | CC155: 3 | CD155: - | CE155: 2 | CF155: - | CG155: 1 | CH155: 6 | CI155: - | CJ155: - | CK155: - | CL155: - | CM155: - | CN155: 1 | CO155: - | CP155: - | CQ155: 2 | CR155: - | CS155: 2 | CT155: - | CU155: 1 | DC155: 45 | DD155: 32 | DE155: 18 | DF155: 11 | DG155: 3 | DH155: 1 | DI155: 2 | DJ155: 10 | DK155: 9 | DL155: 7 | DM155: - | DN155: - | DO155: - | DP155: - | DQ155: - | DR155: 1 | DS155: 1 | DT155: - | DU155: - | DV155: - | DW155: - | DX155: - | DY155: - | DZ155: - | EA155: 11 | EB155: 1,175 | EC155: 859 | ED155: 246 | EE155: 70 | EF155: 22 | EG155: 20 | EH155: 11 | EI155: 7 | EJ155: 2 | EK155: - | EL155: 1 | EM155: 1 | EN155: 23 | EO155: 12 | EP155: 7 | EQ155: 4 | ER155: 1 | ES155: 1 | ET155: 1 | EU155: 9
A156: 栃木県 | B156: 宇都宮市 | C156: 姿川村 | D156: 西川田中部 | E156: 21 | F156: 16 | G156: 3 | H156: 2 | I156: 5 | J156: 3 | K156: 8 | L156: 5 | M156: 46 | N156: 2 | O156: 1 | P156: 4 | Q156: - | R156: 3 | S156: 2 | T156: 1 | U156: 5 | V156: 7 | W156: 6 | X156: 3 | Y156: 2 | Z156: 5 | AA156: 3 | AB156: 2 | AC156: 56.1 | AD156: 55.7 | AE156: 56.4 | AF156: 22 | AG156: - | AH156: - | AI156: - | AJ156: - | AK156: 2 | AL156: - | AM156: - | AN156: 2 | AO156: 1 | AP156: 5 | AQ156: 2 | AR156: 2 | AS156: 3 | AT156: 3 | AU156: 2 | AV156: 66.9 | AW156: 70.0 | AX156: 64.3 | AY156: 18 | AZ156: - | BA156: - | BB156: - | BC156: - | BD156: 1 | BE156: - | BF156: - | BG156: 2 | BH156: 1 | BI156: 5 | BJ156: 2 | BK156: 1 | BL156: 3 | BM156: 3 | BN156: - | BO156: 65.9 | BP156: 68.2 | BQ156: 63.7 | BR156: 16 | BS156: - | BT156: - | BU156: - | BV156: - | BW156: - | BX156: - | BY156: - | BZ156: 1 | CA156: 4 | CB156: 4 | CC156: 2 | CD156: 1 | CE156: 2 | CF156: 1 | CG156: 1 | CH156: 6 | CI156: - | CJ156: - | CK156: - | CL156: - | CM156: - | CN156: 1 | CO156: 2 | CP156: 1 | CQ156: - | CR156: 1 | CS156: - | CT156: 1 | CU156: - | DC156: 58 | DD156: 42 | DE156: 18 | DF156: 21 | DG156: 3 | DH156: 6 | DI156: 5 | DJ156: 5 | DK156: 11 | DL156: 9 | DM156: - | DN156: - | DO156: - | DP156: - | DQ156: 2 | DR156: - | DS156: - | DT156: - | DU156: - | DV156: - | DW156: - | DX156: - | DY156: - | DZ156: - | EA156: 16 | EB156: 1,762 | EC156: 1,427 | ED156: 315 | EE156: 20 | EF156: 31 | EG156: 25 | EH156: 9 | EI156: 14 | EJ156: 2 | EK156: - | EL156: 3 | EM156: 3 | EN156: 27 | EO156: 17 | EP156: 9 | EQ156: 7 | ER156: 1 | ES156: 6 | ET156: 2 | EU156: 2
A157: 栃木県 | B157: 宇都宮市 | C157: 姿川村 | D157: 西川田南部 | E157: 10 | F157: 8 | G157: 1 | H157: 1 | I157: 2 | J157: - | K157: 5 | L157: 2 | M157: 23 | N157: - | O157: - | P157: - | Q157: - | R157: 2 | S157: 2 | T157: 2 | U157: - | V157: 3 | W157: 3 | X157: - | Y157: 5 | Z157: 2 | AA157: 4 | AB157: - | AC157: 63.0 | AD157: 62.1 | AE157: 63.7 | AF157: 11 | AG157: - | AH157: - | AI157: - | AJ157: - | AK157: - | AL157: 1 | AM157: - | AN157: - | AO157: 1 | AP157: - | AQ157: - | AR157: 5 | AS157: 1 | AT157: 3 | AU157: - | AV157: 70.9 | AW157: 77.3 | AX157: 67.3 | AY157: 11 | AZ157: - | BA157: - | BB157: - | BC157: - | BD157: - | BE157: 1 | BF157: - | BG157: - | BH157: 1 | BI157: - | BJ157: - | BK157: 5 | BL157: 1 | BM157: 3 | BN157: - | BO157: 70.9 | BP157: 77.3 | BQ157: 67.3 | BR157: 8 | BS157: - | BT157: - | BU157: - | BV157: - | BW157: - | BX157: 1 | BY157: 1 | BZ157: - | CA157: - | CB157: 2 | CC157: - | CD157: 2 | CE157: - | CF157: 2 | CG157: - | CH157: 4 | CI157: - | CJ157: - | CK157: - | CL157: - | CM157: - | CN157: - | CO157: - | CP157: 1 | CQ157: - | CR157: 2 | CS157: - | CT157: 1 | CU157: - | DC157: 35 | DD157: 25 | DE157: 11 | DF157: 10 | DG157: 4 | DH157: 2 | DI157: 5 | DJ157: 3 | DK157: 7 | DL157: 7 | DM157: - | DN157: - | DO157: - | DP157: - | DQ157: - | DR157: - | DS157: - | DT157: - | DU157: - | DV157: - | DW157: - | DX157: - | DY157: - | DZ157: - | EA157: 8 | EB157: 724 | EC157: 672 | ED157: 52 | EE157: - | EF157: 17 | EG157: 12 | EH157: 4 | EI157: 6 | EJ157: 2 | EK157: - | EL157: 4 | EM157: 1 | EN157: 18 | EO157: 13 | EP157: 7 | EQ157: 4 | ER157: 2 | ES157: 2 | ET157: 1 | EU157: 2
A158: 栃木県 | B158: 宇都宮市 | C158: 姿川村 | D158: 西川田東部 | E158: 2 | F158: 2 | G158: x | H158: x | I158: x | J158: x | K158: x | L158: - | M158: x | N158: x | O158: x | P158: x | Q158: x | R158: x | S158: x | T158: x | U158: x | V158: x | W158: x | X158: x | Y158: x | Z158: x | AA158: x | AB158: x | AC158: 53.0 | AD158: 53.3 | AE158: 52.5 | AF158: x | AG158: x | AH158: x | AI158: x | AJ158: x | AK158: x | AL158: x | AM158: x | AN158: x | AO158: x | AP158: x | AQ158: x | AR158: x | AS158: x | AT158: x | AU158: x | AV158: 74.0 | AW158: 74.0 | AX158: 74.0 | AY158: x | AZ158: x | BA158: x | BB158: x | BC158: x | BD158: x | BE158: x | BF158: x | BG158: x | BH158: x | BI158: x | BJ158: x | BK158: x | BL158: x | BM158: x | BN158: x | BO158: 74.0 | BP158: 74.0 | BQ158: 74.0 | BR158: 2 | BS158: - | BT158: - | BU158: - | BV158: - | BW158: - | BX158: - | BY158: - | BZ158: - | CA158: 1 | CB158: - | CC158: - | CD158: 1 | CE158: - | CF158: - | CG158: - | CH158: 2 | CI158: - | CJ158: - | CK158: - | CL158: - | CM158: - | CN158: - | CO158: 1 | CP158: - | CQ158: - | CR158: 1 | CS158: - | CT158: - | CU158: - | DC158: 6 | DD158: 4 | DE158: 2 | DF158: 2 | DG158: - | DH158: 2 | DI158: - | DJ158: - | DK158: 2 | DL158: 1 | DM158: - | DN158: - | DO158: - | DP158: 1 | DQ158: - | DR158: - | DS158: - | DT158: - | DU158: - | DV158: - | DW158: - | DX158: - | DY158: - | DZ158: - | EA158: 2 | EB158: 151 | EC158: 50 | ED158: 101 | EE158: - | EF158: 3 | EG158: 3 | EH158: 1 | EI158: 2 | EJ158: - | EK158: - | EL158: - | EM158: - | EN158: 3 | EO158: 1 | EP158: 1 | EQ158: - | ER158: - | ES158: 2 | ET158: - | EU158: -
A159: 栃木県 | B159: 宇都宮市 | C159: 姿川村 | D159: 兵庫塚 | E159: 17 | F159: 16 | G159: 2 | H159: 2 | I159: 7 | J159: 1 | K159: 7 | L159: 1 | M159: 50 | N159: - | O159: 3 | P159: 3 | Q159: 2 | R159: 1 | S159: 3 | T159: 3 | U159: 11 | V159: 3 | W159: 4 | X159: 2 | Y159: 2 | Z159: 5 | AA159: 6 | AB159: 2 | AC159: 56.2 | AD159: 53.2 | AE159: 60.4 | AF159: 24 | AG159: - | AH159: - | AI159: 1 | AJ159: - | AK159: - | AL159: 2 | AM159: 1 | AN159: 1 | AO159: - | AP159: 4 | AQ159: 2 | AR159: 2 | AS159: 4 | AT159: 5 | AU159: 2 | AV159: 67.5 | AW159: 66.5 | AX159: 68.6 | AY159: 23 | AZ159: - | BA159: - | BB159: 1 | BC159: - | BD159: - | BE159: 2 | BF159: 1 | BG159: 1 | BH159: - | BI159: 4 | BJ159: 2 | BK159: 2 | BL159: 4 | BM159: 4 | BN159: 2 | BO159: 67.0 | BP159: 65.4 | BQ159: 68.6 | BR159: 16 | BS159: - | BT159: - | BU159: - | BV159: - | BW159: - | BX159: - | BY159: 3 | BZ159: 2 | CA159: 1 | CB159: 3 | CC159: - | CD159: 1 | CE159: - | CF159: 4 | CG159: 2 | CH159: 8 | CI159: - | CJ159: - | CK159: - | CL159: - | CM159: 1 | CN159: - | CO159: 1 | CP159: 2 | CQ159: - | CR159: 1 | CS159: - | CT159: 2 | CU159: 1 | DC159: 73 | DD159: 48 | DE159: 23 | DF159: 19 | DG159: 6 | DH159: 5 | DI159: 10 | DJ159: 10 | DK159: 13 | DL159: 8 | DM159: - | DN159: - | DO159: - | DP159: 2 | DQ159: - | DR159: 3 | DS159: - | DT159: - | DU159: - | DV159: - | DW159: - | DX159: - | DY159: - | DZ159: - | EA159: 16 | EB159: 2,016 | EC159: 939 | ED159: 355 | EE159: 722 | EF159: 37 | EG159: 25 | EH159: 12 | EI159: 10 | EJ159: 3 | EK159: - | EL159: 6 | EM159: 6 | EN159: 36 | EO159: 23 | EP159: 11 | EQ159: 9 | ER159: 3 | ES159: 5 | ET159: 4 | EU159: 4
A160: 栃木県 | B160: 宇都宮市 | C160: 姿川村 | D160: 幕田南部 | E160: 25 | F160: 24 | G160: 3 | H160: 2 | I160: 5 | J160: 2 | K160: 16 | L160: 1 | M160: 63 | N160: - | O160: - | P160: 2 | Q160: 5 | R160: 6 | S160: 5 | T160: 3 | U160: 2 | V160: 5 | W160: 8 | X160: 7 | Y160: 10 | Z160: 6 | AA160: 1 | AB160: 3 | AC160: 57.9 | AD160: 59.7 | AE160: 55.5 | AF160: 33 | AG160: - | AH160: - | AI160: - | AJ160: - | AK160: - | AL160: 1 | AM160: 1 | AN160: - | AO160: - | AP160: 5 | AQ160: 6 | AR160: 10 | AS160: 6 | AT160: 1 | AU160: 3 | AV160: 70.0 | AW160: 71.0 | AX160: 68.7 | AY160: 30 | AZ160: - | BA160: - | BB160: - | BC160: - | BD160: - | BE160: - | BF160: 1 | BG160: - | BH160: - | BI160: 5 | BJ160: 6 | BK160: 10 | BL160: 6 | BM160: 1 | BN160: 1 | BO160: 69.6 | BP160: 70.0 | BQ160: 69.2 | BR160: 24 | BS160: - | BT160: - | BU160: - | BV160: - | BW160: 1 | BX160: - | BY160: 2 | BZ160: 1 | CA160: 3 | CB160: 4 | CC160: 5 | CD160: 3 | CE160: 4 | CF160: - | CG160: 1 | CH160: 10 | CI160: - | CJ160: - | CK160: - | CL160: - | CM160: - | CN160: - | CO160: 2 | CP160: 1 | CQ160: 2 | CR160: 1 | CS160: 3 | CT160: - | CU160: 1 | DC160: 81 | DD160: 61 | DE160: 30 | DF160: 28 | DG160: 3 | DH160: 7 | DI160: 5 | DJ160: 8 | DK160: 24 | DL160: 18 | DM160: - | DN160: 1 | DO160: - | DP160: - | DQ160: 1 | DR160: 4 | DS160: - | DT160: - | DU160: - | DV160: - | DW160: - | DX160: - | DY160: - | DZ160: - | EA160: 24 | EB160: 5,451 | EC160: 4,654 | ED160: 437 | EE160: 360 | EF160: 37 | EG160: 35 | EH160: 17 | EI160: 15 | EJ160: 3 | EK160: - | EL160: 1 | EM160: 1 | EN160: 44 | EO160: 26 | EP160: 13 | EQ160: 13 | ER160: - | ES160: 7 | ET160: 4 | EU160: 7
A161: 栃木県 | B161: 宇都宮市 | C161: 姿川村 | D161: 幕田東部 | E161: 15 | F161: 11 | G161: 7 | H161: 7 | I161: 1 | J161: 1 | K161: 3 | L161: 4 | M161: 39 | N161: 1 | O161: 2 | P161: 3 | Q161: 1 | R161: 1 | S161: 3 | T161: 1 | U161: 4 | V161: 5 | W161: 6 | X161: 2 | Y161: 1 | Z161: 3 | AA161: 4 | AB161: 2 | AC161: 55.9 | AD161: 53.8 | AE161: 57.5 | AF161: 25 | AG161: - | AH161: - | AI161: 1 | AJ161: - | AK161: 1 | AL161: 2 | AM161: 1 | AN161: 2 | AO161: 4 | AP161: 3 | AQ161: 2 | AR161: 1 | AS161: 3 | AT161: 4 | AU161: 1 | AV161: 62.3 | AW161: 58.0 | AX161: 67.0 | AY161: 20 | AZ161: - | BA161: - | BB161: - | BC161: - | BD161: 1 | BE161: 2 | BF161: - | BG161: 1 | BH161: 4 | BI161: 3 | BJ161: 2 | BK161: - | BL161: 3 | BM161: 4 | BN161: - | BO161: 63.8 | BP161: 61.7 | BQ161: 66.2 | BR161: 11 | BS161: - | BT161: - | BU161: - | BV161: - | BW161: - | BX161: 1 | BY161: - | BZ161: 1 | CA161: 2 | CB161: 3 | CC161: 1 | CD161: - | CE161: 1 | CF161: 2 | CG161: - | CH161: 7 | CI161: - | CJ161: - | CK161: - | CL161: - | CM161: - | CN161: 1 | CO161: 1 | CP161: 3 | CQ161: 1 | CR161: - | CS161: - | CT161: 1 | CU161: - | DC161: 48 | DD161: 33 | DE161: 20 | DF161: 12 | DG161: 1 | DH161: 4 | DI161: 5 | DJ161: 6 | DK161: 11 | DL161: 9 | DM161: - | DN161: - | DO161: - | DP161: - | DQ161: 2 | DR161: - | DS161: - | DT161: - | DU161: - | DV161: - | DW161: - | DX161: - | DY161: - | DZ161: - | EA161: 11 | EB161: 2,494 | EC161: 2,165 | ED161: 309 | EE161: 20 | EF161: 21 | EG161: 16 | EH161: 11 | EI161: 5 | EJ161: - | EK161: 1 | EL161: 3 | EM161: 1 | EN161: 27 | EO161: 17 | EP161: 9 | EQ161: 7 | ER161: 1 | ES161: 3 | ET161: 2 | EU161: 5
A162: 栃木県 | B162: 宇都宮市 | C162: 姿川村 | D162: 幕田西部 | E162: 21 | F162: 15 | G162: 1 | H162: 1 | I162: 11 | J162: 3 | K162: 3 | L162: 6 | M162: 44 | N162: 2 | O162: - | P162: - | Q162: 2 | R162: 3 | S162: - | T162: 8 | U162: 5 | V162: 4 | W162: 9 | X162: 2 | Y162: 2 | Z162: 6 | AA162: - | AB162: 1 | AC162: 55.7 | AD162: 55.2 | AE162: 56.2 | AF162: 17 | AG162: - | AH162: - | AI162: - | AJ162: - | AK162: - | AL162: - | AM162: 1 | AN162: - | AO162: 1 | AP162: 5 | AQ162: 2 | AR162: 2 | AS162: 5 | AT162: - | AU162: 1 | AV162: 67.9 | AW162: 69.6 | AX162: 67.3 | AY162: 16 | AZ162: - | BA162: - | BB162: - | BC162: - | BD162: - | BE162: - | BF162: - | BG162: - | BH162: 1 | BI162: 5 | BJ162: 2 | BK162: 2 | BL162: 5 | BM162: - | BN162: 1 | BO162: 69.3 | BP162: 69.6 | BQ162: 69.1 | BR162: 15 | BS162: - | BT162: - | BU162: - | BV162: - | BW162: - | BX162: - | BY162: 2 | BZ162: 2 | CA162: 1 | CB162: 4 | CC162: 2 | CD162: - | CE162: 4 | CF162: - | CG162: - | CH162: 6 | CI162: - | CJ162: - | CK162: - | CL162: - | CM162: - | CN162: - | CO162: 1 | CP162: 1 | CQ162: 2 | CR162: - | CS162: 2 | CT162: - | CU162: - | DC162: 64 | DD162: 42 | DE162: 16 | DF162: 25 | DG162: 1 | DH162: 7 | DI162: 9 | DJ162: 6 | DK162: 15 | DL162: 14 | DM162: - | DN162: - | DO162: - | DP162: - | DQ162: 1 | DR162: - | DS162: - | DT162: - | DU162: - | DV162: - | DW162: - | DX162: - | DY162: - | DZ162: - | EA162: 15 | EB162: 1,858 | EC162: 1,498 | ED162: 320 | EE162: 40 | EF162: 27 | EG162: 23 | EH162: 5 | EI162: 17 | EJ162: 1 | EK162: - | EL162: 3 | EM162: 1 | EN162: 37 | EO162: 19 | EP162: 11 | EQ162: 8 | ER162: - | ES162: 7 | ET162: 6 | EU162: 5
A163: 栃木県 | B163: 宇都宮市 | C163: 姿川村 | D163: 鷺の谷 | E163: 15 | F163: 11 | G163: 2 | H163: 2 | I163: 3 | J163: 1 | K163: 6 | L163: 4 | M163: 27 | N163: - | O163: 2 | P163: - | Q163: 2 | R163: 1 | S163: 1 | T163: - | U163: 2 | V163: 5 | W163: 6 | X163: 4 | Y163: 3 | Z163: - | AA163: 1 | AB163: - | AC163: 56.3 | AD163: 52.8 | AE163: 61.5 | AF163: 14 | AG163: - | AH163: - | AI163: - | AJ163: - | AK163: 1 | AL163: - | AM163: - | AN163: 1 | AO163: 2 | AP163: 3 | AQ163: 4 | AR163: 2 | AS163: - | AT163: 1 | AU163: - | AV163: 63.1 | AW163: 65.0 | AX163: 62.0 | AY163: 12 | AZ163: - | BA163: - | BB163: - | BC163: - | BD163: - | BE163: - | BF163: - | BG163: 1 | BH163: 2 | BI163: 3 | BJ163: 4 | BK163: 1 | BL163: - | BM163: 1 | BN163: - | BO163: 64.8 | BP163: 65.0 | BQ163: 64.7 | BR163: 11 | BS163: - | BT163: - | BU163: - | BV163: - | BW163: - | BX163: - | BY163: - | BZ163: 1 | CA163: 2 | CB163: 4 | CC163: 2 | CD163: 2 | CE163: - | CF163: - | CG163: - | CH163: 7 | CI163: - | CJ163: - | CK163: - | CL163: - | CM163: - | CN163: 1 | CO163: 1 | CP163: 2 | CQ163: 2 | CR163: 1 | CS163: - | CT163: - | CU163: - | DC163: 38 | DD163: 33 | DE163: 12 | DF163: 13 | DG163: 8 | DH163: 2 | DI163: - | DJ163: 3 | DK163: 11 | DL163: 10 | DM163: - | DN163: - | DO163: - | DP163: - | DQ163: 1 | DR163: - | DS163: - | DT163: - | DU163: - | DV163: - | DW163: - | DX163: - | DY163: - | DZ163: - | EA163: 11 | EB163: 1,812 | EC163: 1,556 | ED163: 246 | EE163: 10 | EF163: 18 | EG163: 18 | EH163: 5 | EI163: 8 | EJ163: 5 | EK163: - | EL163: - | EM163: - | EN163: 20 | EO163: 15 | EP163: 7 | EQ163: 5 | ER163: 3 | ES163: 2 | ET163: - | EU163: 3
A164: 栃木県 | B164: 宇都宮市 | C164: 姿川村 | D164: 下欠第一 | E164: 17 | F164: 16 | G164: 5 | H164: 5 | I164: 3 | J164: 1 | K164: 8 | L164: 1 | M164: 51 | N164: - | O164: 2 | P164: 3 | Q164: 2 | R164: - | S164: 4 | T164: 5 | U164: 3 | V164: 11 | W164: 2 | X164: 1 | Y164: 2 | Z164: 9 | AA164: 4 | AB164: 3 | AC164: 59.1 | AD164: 54.9 | AE164: 63.5 | AF164: 31 | AG164: - | AH164: - | AI164: 1 | AJ164: - | AK164: - | AL164: 3 | AM164: 3 | AN164: 1 | AO164: 5 | AP164: 2 | AQ164: 1 | AR164: 2 | AS164: 9 | AT164: 3 | AU164: 1 | AV164: 64.6 | AW164: 62.8 | AX164: 66.0 | AY164: 27 | AZ164: - | BA164: - | BB164: 1 | BC164: - | BD164: - | BE164: 2 | BF164: 3 | BG164: 1 | BH164: 5 | BI164: 2 | BJ164: 1 | BK164: 2 | BL164: 7 | BM164: 2 | BN164: 1 | BO164: 64.0 | BP164: 62.8 | BQ164: 65.1 | BR164: 16 | BS164: - | BT164: - | BU164: 1 | BV164: - | BW164: - | BX164: 1 | BY164: 2 | BZ164: 1 | CA164: 5 | CB164: 1 | CC164: 1 | CD164: - | CE164: 3 | CF164: - | CG164: 1 | CH164: 6 | CI164: - | CJ164: - | CK164: - | CL164: 1 | CM164: - | CN164: - | CO164: 1 | CP164: - | CQ164: - | CR164: - | CS164: 3 | CT164: - | CU164: 1 | DC164: 63 | DD164: 46 | DE164: 27 | DF164: 18 | DG164: 1 | DH164: 6 | DI164: 3 | DJ164: 8 | DK164: 15 | DL164: 9 | DM164: - | DN164: - | DO164: - | DP164: 1 | DQ164: 5 | DR164: - | DS164: - | DT164: - | DU164: - | DV164: - | DW164: - | DX164: - | DY164: - | DZ164: - | EA164: 16 | EB164: 3,158 | EC164: 2,713 | ED164: 445 | EE164: - | EF164: 31 | EG164: 27 | EH164: 13 | EI164: 13 | EJ164: 1 | EK164: - | EL164: 1 | EM164: 3 | EN164: 32 | EO164: 19 | EP164: 14 | EQ164: 5 | ER164: - | ES164: 6 | ET164: 2 | EU164: 5
A165: 栃木県 | B165: 宇都宮市 | C165: 姿川村 | D165: 下欠第二 | E165: 16 | F165: 14 | G165: 5 | H165: 5 | I165: 5 | J165: 1 | K165: 4 | L165: 2 | M165: 37 | N165: 1 | O165: 1 | P165: 2 | Q165: 1 | R165: 1 | S165: - | T165: 2 | U165: 7 | V165: 9 | W165: 4 | X165: 2 | Y165: - | Z165: 7 | AA165: - | AB165: - | AC165: 55.4 | AD165: 50.2 | AE165: 61.5 | AF165: 20 | AG165: - | AH165: - | AI165: 1 | AJ165: - | AK165: - | AL165: - | AM165: 1 | AN165: 2 | AO165: 4 | AP165: 3 | AQ165: 2 | AR165: - | AS165: 7 | AT165: - | AU165: - | AV165: 63.4 | AW165: 58.1 | AX165: 66.8 | AY165: 17 | AZ165: - | BA165: - | BB165: 1 | BC165: - | BD165: - | BE165: - | BF165: - | BG165: 2 | BH165: 4 | BI165: 2 | BJ165: 2 | BK165: - | BL165: 6 | BM165: - | BN165: - | BO165: 63.8 | BP165: 58.1 | BQ165: 68.8 | BR165: 14 | BS165: - | BT165: - | BU165: - | BV165: - | BW165: - | BX165: - | BY165: 1 | BZ165: 3 | CA165: 6 | CB165: 3 | CC165: 1 | CD165: - | CE165: - | CF165: - | CG165: - | CH165: 9 | CI165: - | CJ165: - | CK165: - | CL165: - | CM165: 1 | CN165: 2 | CO165: 3 | CP165: 2 | CQ165: 1 | CR165: - | CS165: - | CT165: - | CU165: - | DC165: 55 | DD165: 38 | DE165: 17 | DF165: 20 | DG165: 1 | DH165: 4 | DI165: 6 | DJ165: 7 | DK165: 14 | DL165: 12 | DM165: - | DN165: - | DO165: - | DP165: - | DQ165: 1 | DR165: - | DS165: 1 | DT165: - | DU165: - | DV165: - | DW165: - | DX165: - | DY165: - | DZ165: - | EA165: 14 | EB165: 3,684 | EC165: 3,275 | ED165: 359 | EE165: 50 | EF165: 23 | EG165: 19 | EH165: 8 | EI165: 10 | EJ165: 1 | EK165: - | EL165: 2 | EM165: 2 | EN165: 32 | EO165: 19 | EP165: 9 | EQ165: 10 | ER165: - | ES165: 4 | ET165: 4 | EU165: 5
A166: 栃木県 | B166: 宇都宮市 | C166: 姿川村 | D166: 上欠第一 | E166: 19 | F166: 17 | G166: - | H166: - | I166: 7 | J166: 1 | K166: 10 | L166: 2 | M166: 48 | N166: - | O166: 3 | P166: 4 | Q166: 3 | R166: - | S166: 3 | T166: 4 | U166: 5 | V166: 6 | W166: 7 | X166: 4 | Y166: 4 | Z166: 2 | AA166: 3 | AB166: - | AC166: 53.6 | AD166: 51.9 | AE166: 56.1 | AF166: 18 | AG166: - | AH166: - | AI166: 1 | AJ166: - | AK166: - | AL166: - | AM166: - | AN166: 1 | AO166: 1 | AP166: 3 | AQ166: 3 | AR166: 4 | AS166: 2 | AT166: 3 | AU166: - | AV166: 67.4 | AW166: 67.2 | AX166: 67.8 | AY166: 18 | AZ166: - | BA166: - | BB166: 1 | BC166: - | BD166: - | BE166: - | BF166: - | BG166: 1 | BH166: 1 | BI166: 3 | BJ166: 3 | BK166: 4 | BL166: 2 | BM166: 3 | BN166: - | BO166: 67.4 | BP166: 67.2 | BQ166: 67.8 | BR166: 17 | BS166: - | BT166: - | BU166: - | BV166: - | BW166: - | BX166: 1 | BY166: - | BZ166: 3 | CA166: 3 | CB166: 5 | CC166: 2 | CD166: 2 | CE166: 1 | CF166: - | CG166: - | CH166: 6 | CI166: - | CJ166: - | CK166: - | CL166: - | CM166: - | CN166: - | CO166: 1 | CP166: 3 | CQ166: - | CR166: 1 | CS166: 1 | CT166: - | CU166: - | DC166: 67 | DD166: 48 | DE166: 18 | DF166: 30 | DG166: - | DH166: 5 | DI166: 8 | DJ166: 6 | DK166: 12 | DL166: 11 | DM166: - | DN166: - | DO166: - | DP166: - | DQ166: - | DR166: - | DS166: 1 | DT166: - | DU166: - | DV166: - | DW166: - | DX166: - | DY166: - | DZ166: - | EA166: 17 | EB166: 2,290 | EC166: 1,710 | ED166: 580 | EE166: - | EF166: 32 | EG166: 27 | EH166: 10 | EI166: 17 | EJ166: - | EK166: - | EL166: 3 | EM166: 2 | EN166: 35 | EO166: 21 | EP166: 8 | EQ166: 13 | ER166: - | ES166: 5 | ET166: 5 | EU166: 4
A167: 栃木県 | B167: 宇都宮市 | C167: 姿川村 | D167: 上欠第二 | E167: 22 | F167: 19 | G167: 6 | H167: 5 | I167: 8 | J167: - | K167: 5 | L167: 3 | M167: 56 | N167: 1 | O167: - | P167: 2 | Q167: 7 | R167: 3 | S167: - | T167: 7 | U167: 5 | V167: 5 | W167: 12 | X167: 3 | Y167: 2 | Z167: 3 | AA167: 4 | AB167: 2 | AC167: 55.4 | AD167: 54.7 | AE167: 56.2 | AF167: 29 | AG167: - | AH167: - | AI167: - | AJ167: 1 | AK167: 2 | AL167: - | AM167: 4 | AN167: 2 | AO167: 1 | AP167: 7 | AQ167: 2 | AR167: 2 | AS167: 3 | AT167: 3 | AU167: 2 | AV167: 62.3 | AW167: 64.6 | AX167: 60.4 | AY167: 25 | AZ167: - | BA167: - | BB167: - | BC167: 1 | BD167: 1 | BE167: - | BF167: 4 | BG167: 2 | BH167: 1 | BI167: 5 | BJ167: 1 | BK167: 2 | BL167: 3 | BM167: 3 | BN167: 2 | BO167: 63.2 | BP167: 64.6 | BQ167: 61.7 | BR167: 19 | BS167: - | BT167: - | BU167: - | BV167: 2 | BW167: - | BX167: - | BY167: 3 | BZ167: 4 | CA167: 1 | CB167: 6 | CC167: 1 | CD167: 1 | CE167: - | CF167: - | CG167: 1 | CH167: 9 | CI167: - | CJ167: - | CK167: - | CL167: - | CM167: - | CN167: 2 | CO167: 1 | CP167: 4 | CQ167: 1 | CR167: - | CS167: - | CT167: - | CU167: 1 | DC167: 75 | DD167: 52 | DE167: 25 | DF167: 27 | DG167: - | DH167: 7 | DI167: 8 | DJ167: 8 | DK167: 18 | DL167: 14 | DM167: - | DN167: - | DO167: - | DP167: - | DQ167: 2 | DR167: - | DS167: 1 | DT167: - | DU167: - | DV167: 1 | DW167: - | DX167: - | DY167: - | DZ167: - | EA167: 19 | EB167: 4,694 | EC167: 4,221 | ED167: 473 | EE167: - | EF167: 34 | EG167: 31 | EH167: 13 | EI167: 18 | EJ167: - | EK167: - | EL167: 2 | EM167: 1 | EN167: 41 | EO167: 21 | EP167: 12 | EQ167: 9 | ER167: - | ES167: 7 | ET167: 6 | EU167: 7
A168: 栃木県 | B168: 宇都宮市 | C168: 姿川村 | D168: 下砥上第一 | E168: 17 | F168: 16 | G168: 3 | H168: 3 | I168: 6 | J168: 2 | K168: 7 | L168: 1 | M168: 43 | N168: - | O168: - | P168: - | Q168: 1 | R168: 2 | S168: 3 | T168: 4 | U168: 8 | V168: 9 | W168: 1 | X168: 4 | Y168: 4 | Z168: 2 | AA168: 4 | AB168: 1 | AC168: 59.2 | AD168: 56.0 | AE168: 62.6 | AF168: 19 | AG168: - | AH168: - | AI168: - | AJ168: - | AK168: 2 | AL168: 1 | AM168: - | AN168: 1 | AO168: 3 | AP168: - | AQ168: 4 | AR168: 2 | AS168: 1 | AT168: 4 | AU168: 1 | AV168: 65.4 | AW168: 61.5 | AX168: 68.3 | AY168: 17 | AZ168: - | BA168: - | BB168: - | BC168: - | BD168: 2 | BE168: 1 | BF168: - | BG168: 1 | BH168: 3 | BI168: - | BJ168: 3 | BK168: 2 | BL168: 1 | BM168: 3 | BN168: 1 | BO168: 64.2 | BP168: 58.6 | BQ168: 68.2 | BR168: 16 | BS168: - | BT168: - | BU168: - | BV168: - | BW168: - | BX168: 1 | BY168: 1 | BZ168: 2 | CA168: 7 | CB168: - | CC168: - | CD168: 3 | CE168: - | CF168: 2 | CG168: - | CH168: 7 | CI168: - | CJ168: - | CK168: - | CL168: - | CM168: - | CN168: - | CO168: 3 | CP168: - | CQ168: - | CR168: 3 | CS168: - | CT168: 1 | CU168: - | DC168: 59 | DD168: 42 | DE168: 17 | DF168: 25 | DG168: - | DH168: 6 | DI168: 2 | DJ168: 9 | DK168: 15 | DL168: 13 | DM168: - | DN168: - | DO168: - | DP168: - | DQ168: 1 | DR168: - | DS168: 1 | DT168: - | DU168: - | DV168: - | DW168: - | DX168: - | DY168: - | DZ168: - | EA168: 16 | EB168: 2,314 | EC168: 1,715 | ED168: 583 | EE168: 16 | EF168: 25 | EG168: 22 | EH168: 7 | EI168: 15 | EJ168: - | EK168: - | EL168: 1 | EM168: 2 | EN168: 34 | EO168: 20 | EP168: 10 | EQ168: 10 | ER168: - | ES168: 6 | ET168: 1 | EU168: 7
A169: 栃木県 | B169: 宇都宮市 | C169: 姿川村 | D169: 下砥上第二 | E169: 23 | F169: 22 | G169: 6 | H169: 5 | I169: 3 | J169: - | K169: 13 | L169: 1 | M169: 60 | N169: 1 | O169: - | P169: 1 | Q169: - | R169: 4 | S169: 6 | T169: 8 | U169: 3 | V169: 9 | W169: 4 | X169: 6 | Y169: 10 | Z169: 5 | AA169: 2 | AB169: 1 | AC169: 58.3 | AD169: 56.0 | AE169: 60.8 | AF169: 33 | AG169: - | AH169: - | AI169: - | AJ169: - | AK169: - | AL169: 3 | AM169: 1 | AN169: 1 | AO169: 4 | AP169: 2 | AQ169: 5 | AR169: 10 | AS169: 5 | AT169: 1 | AU169: 1 | AV169: 66.1 | AW169: 63.2 | AX169: 68.9 | AY169: 29 | AZ169: - | BA169: - | BB169: - | BC169: - | BD169: - | BE169: 2 | BF169: 1 | BG169: 1 | BH169: 4 | BI169: 2 | BJ169: 5 | BK169: 8 | BL169: 4 | BM169: 1 | BN169: 1 | BO169: 66.2 | BP169: 63.7 | BQ169: 68.5 | BR169: 22 | BS169: - | BT169: - | BU169: - | BV169: - | BW169: - | BX169: 1 | BY169: 4 | BZ169: 1 | CA169: 4 | CB169: 3 | CC169: 4 | CD169: 3 | CE169: 2 | CF169: - | CG169: - | CH169: 13 | CI169: - | CJ169: - | CK169: - | CL169: - | CM169: 1 | CN169: 1 | CO169: 3 | CP169: 2 | CQ169: 4 | CR169: 1 | CS169: 1 | CT169: - | CU169: - | DC169: 80 | DD169: 59 | DE169: 29 | DF169: 30 | DG169: - | DH169: 5 | DI169: 9 | DJ169: 7 | DK169: 18 | DL169: 17 | DM169: - | DN169: - | DO169: - | DP169: - | DQ169: - | DR169: - | DS169: 1 | DT169: - | DU169: - | DV169: - | DW169: - | DX169: - | DY169: - | DZ169: - | EA169: 22 | EB169: 6,174 | EC169: 5,531 | ED169: 579 | EE169: 64 | EF169: 37 | EG169: 29 | EH169: 14 | EI169: 15 | EJ169: - | EK169: - | EL169: 4 | EM169: 4 | EN169: 43 | EO169: 30 | EP169: 15 | EQ169: 15 | ER169: - | ES169: 5 | ET169: 5 | EU169: 3
A170: 栃木県 | B170: 宇都宮市 | C170: 姿川村 | D170: 砥上南 | E170: 19 | F170: 18 | G170: 7 | H170: 7 | I170: 5 | J170: 2 | K170: 6 | L170: 1 | M170: 54 | N170: 3 | O170: 4 | P170: 1 | Q170: 3 | R170: - | S170: 5 | T170: 2 | U170: 6 | V170: 7 | W170: 9 | X170: 2 | Y170: 1 | Z170: 3 | AA170: 7 | AB170: 1 | AC170: 54.3 | AD170: 55.6 | AE170: 53.3 | AF170: 29 | AG170: - | AH170: - | AI170: - | AJ170: 1 | AK170: - | AL170: 4 | AM170: 1 | AN170: - | AO170: 2 | AP170: 7 | AQ170: 2 | AR170: 1 | AS170: 3 | AT170: 7 | AU170: 1 | AV170: 65.4 | AW170: 65.5 | AX170: 65.4 | AY170: 24 | AZ170: - | BA170: - | BB170: - | BC170: - | BD170: - | BE170: 3 | BF170: 1 | BG170: - | BH170: 2 | BI170: 7 | BJ170: 2 | BK170: 1 | BL170: 2 | BM170: 5 | BN170: 1 | BO170: 65.9 | BP170: 64.1 | BQ170: 67.4 | BR170: 18 | BS170: - | BT170: - | BU170: - | BV170: - | BW170: - | BX170: 2 | BY170: 1 | BZ170: 1 | CA170: 4 | CB170: 4 | CC170: 1 | CD170: 1 | CE170: 1 | CF170: 3 | CG170: - | CH170: 10 | CI170: - | CJ170: - | CK170: - | CL170: - | CM170: - | CN170: - | CO170: 4 | CP170: 2 | CQ170: 1 | CR170: - | CS170: - | CT170: 3 | CU170: - | DC170: 60 | DD170: 45 | DE170: 24 | DF170: 21 | DG170: - | DH170: 6 | DI170: 3 | DJ170: 6 | DK170: 15 | DL170: 11 | DM170: - | DN170: - | DO170: - | DP170: 1 | DQ170: - | DR170: - | DS170: 2 | DT170: 1 | DU170: - | DV170: - | DW170: - | DX170: - | DY170: - | DZ170: - | EA170: 17 | EB170: 3,999 | EC170: 3,469 | ED170: 530 | EE170: - | EF170: 26 | EG170: 22 | EH170: 11 | EI170: 11 | EJ170: - | EK170: - | EL170: 2 | EM170: 2 | EN170: 34 | EO170: 23 | EP170: 13 | EQ170: 10 | ER170: - | ES170: 6 | ET170: 1 | EU170: 4
A171: 栃木県 | B171: 宇都宮市 | C171: 姿川村 | D171: 砥上北 | E171: 34 | F171: 29 | G171: 7 | H171: 3 | I171: 10 | J171: 2 | K171: 12 | L171: 5 | M171: 74 | N171: 2 | O171: - | P171: 2 | Q171: 2 | R171: 5 | S171: 1 | T171: 5 | U171: 3 | V171: 14 | W171: 16 | X171: 6 | Y171: 4 | Z171: 3 | AA171: 4 | AB171: 7 | AC171: 59.3 | AD171: 58.1 | AE171: 60.9 | AF171: 48 | AG171: - | AH171: - | AI171: 1 | AJ171: 1 | AK171: - | AL171: 1 | AM171: 2 | AN171: - | AO171: 5 | AP171: 15 | AQ171: 5 | AR171: 4 | AS171: 3 | AT171: 4 | AU171: 7 | AV171: 66.3 | AW171: 65.3 | AX171: 67.2 | AY171: 42 | AZ171: - | BA171: - | BB171: 1 | BC171: 1 | BD171: - | BE171: 1 | BF171: 1 | BG171: - | BH171: 4 | BI171: 14 | BJ171: 5 | BK171: 4 | BL171: 2 | BM171: 4 | BN171: 5 | BO171: 65.8 | BP171: 63.3 | BQ171: 68.6 | BR171: 29 | BS171: - | BT171: - | BU171: - | BV171: 1 | BW171: 1 | BX171: - | BY171: 1 | BZ171: 2 | CA171: 6 | CB171: 8 | CC171: 4 | CD171: 2 | CE171: 1 | CF171: 1 | CG171: 2 | CH171: 17 | CI171: - | CJ171: - | CK171: - | CL171: - | CM171: - | CN171: - | CO171: 2 | CP171: 6 | CQ171: 3 | CR171: 2 | CS171: 1 | CT171: 1 | CU171: 2 | DC171: 116 | DD171: 78 | DE171: 42 | DF171: 34 | DG171: 2 | DH171: 12 | DI171: 13 | DJ171: 13 | DK171: 25 | DL171: 24 | DM171: - | DN171: - | DO171: - | DP171: - | DQ171: - | DR171: - | DS171: 1 | DT171: - | DU171: - | DV171: - | DW171: - | DX171: - | DY171: - | DZ171: - | EA171: 29 | EB171: 5,466 | EC171: 4,903 | ED171: 518 | EE171: 45 | EF171: 60 | EG171: 48 | EH171: 22 | EI171: 25 | EJ171: 1 | EK171: 1 | EL171: 8 | EM171: 3 | EN171: 56 | EO171: 30 | EP171: 20 | EQ171: 9 | ER171: 1 | ES171: 11 | ET171: 5 | EU171: 10
A172: 栃木県 | B172: 宇都宮市 | C172: 姿川村 | D172: 陽南第二（緑町） | E172: @ | F172: @ | G172: @ | H172: @ | I172: @ | J172: @ | K172: @ | L172: @ | M172: @ | N172: @ | O172: @ | P172: @ | Q172: @ | R172: @ | S172: @ | T172: @ | U172: @ | V172: @ | W172: @ | X172: @ | Y172: @ | Z172: @ | AA172: @ | AB172: @ | AC172: 60.5 | AD172: 61.0 | AE172: 60.0 | AF172: @ | AG172: @ | AH172: @ | AI172: @ | AJ172: @ | AK172: @ | AL172: @ | AM172: @ | AN172: @ | AO172: @ | AP172: @ | AQ172: @ | AR172: @ | AS172: @ | AT172: @ | AU172: @ | AV172: … | AW172: … | AX172: … | AY172: @ | AZ172: @ | BA172: @ | BB172: @ | BC172: @ | BD172: @ | BE172: @ | BF172: @ | BG172: @ | BH172: @ | BI172: @ | BJ172: @ | BK172: @ | BL172: @ | BM172: @ | BN172: @ | BO172: … | BP172: … | BQ172: … | BR172: 1 | BS172: - | BT172: - | BU172: - | BV172: - | BW172: - | BX172: - | BY172: - | BZ172: - | CA172: - | CB172: 1 | CC172: - | CD172: - | CE172: - | CF172: - | CG172: - | CH172: 1 | CI172: - | CJ172: - | CK172: - | CL172: - | CM172: - | CN172: - | CO172: - | CP172: 1 | CQ172: - | CR172: - | CS172: - | CT172: - | CU172: - | DC172: 2 | DD172: 1 | DE172: - | DF172: 1 | DG172: - | DH172: 1 | DI172: - | DJ172: - | DK172: 1 | DL172: 1 | DM172: - | DN172: - | DO172: - | DP172: - | DQ172: - | DR172: - | DS172: - | DT172: - | DU172: - | DV172: - | DW172: - | DX172: - | DY172: - | DZ172: - | EA172: 1 | EB172: 78 | EC172: 78 | ED172: - | EE172: - | EF172: 1 | EG172: 1 | EH172: - | EI172: 1 | EJ172: - | EK172: - | EL172: - | EM172: - | EN172: 1 | EO172: - | EP172: - | EQ172: - | ER172: - | ES172: 1 | ET172: - | EU172: -
A173: 栃木県 | B173: 宇都宮市 | C173: 城山村２－１ | E173: 429 | F173: 335 | G173: 108 | H173: 95 | I173: 81 | J173: 33 | K173: 146 | L173: 94 | M173: 929 | N173: 14 | O173: 35 | P173: 31 | Q173: 35 | R173: 41 | S173: 41 | T173: 60 | U173: 100 | V173: 115 | W173: 119 | X173: 78 | Y173: 98 | Z173: 97 | AA173: 49 | AB173: 16 | AC173: 57.3 | AD173: 56.0 | AE173: 59.0 | AF173: 587 | AG173: 8 | AH173: 15 | AI173: 9 | AJ173: 12 | AK173: 11 | AL173: 13 | AM173: 24 | AN173: 45 | AO173: 63 | AP173: 85 | AQ173: 68 | AR173: 89 | AS173: 91 | AT173: 42 | AU173: 12 | AV173: 62.7 | AW173: 61.9 | AX173: 63.5 | AY173: 505 | AZ173: - | BA173: 6 | BB173: 9 | BC173: 11 | BD173: 9 | BE173: 12 | BF173: 21 | BG173: 42 | BH173: 59 | BI173: 78 | BJ173: 65 | BK173: 80 | BL173: 78 | BM173: 26 | BN173: 9 | BO173: 63.3 | BP173: 62.7 | BQ173: 63.9 | BR173: 335 | BS173: - | BT173: - | BU173: - | BV173: 2 | BW173: 5 | BX173: 13 | BY173: 21 | BZ173: 51 | CA173: 55 | CB173: 64 | CC173: 45 | CD173: 45 | CE173: 20 | CF173: 10 | CG173: 4 | CH173: 181 | CI173: - | CJ173: - | CK173: - | CL173: 1 | CM173: 8 | CN173: 28 | CO173: 28 | CP173: 35 | CQ173: 31 | CR173: 33 | CS173: 9 | CT173: 5 | CU173: 3 | DC173: 1,335 | DD173: 953 | DE173: 505 | DF173: 401 | DG173: 47 | DH173: 105 | DI173: 97 | DJ173: 180 | DK173: 310 | DL173: 199 | DM173: - | DN173: 1 | DO173: - | DP173: 19 | DQ173: 16 | DR173: 51 | DS173: 4 | DT173: 2 | DU173: 4 | DV173: 12 | DW173: 1 | DX173: 1 | DY173: - | DZ173: - | EA173: 334 | EB173: 78,282 | EC173: 53,441 | ED173: 13,495 | EE173: 11,346 | EF173: 663 | EG173: 539 | EH173: 275 | EI173: 230 | EJ173: 34 | EK173: - | EL173: 62 | EM173: 62 | EN173: 672 | EO173: 414 | EP173: 230 | EQ173: 171 | ER173: 13 | ES173: 105 | ET173: 35 | EU173: 118
A174: 栃木県 | B174: 宇都宮市 | C174: 城山村２－１ | D174: 上古賀志 | E174: 36 | F174: 32 | G174: 4 | H174: 4 | I174: 11 | J174: 1 | K174: 17 | L174: 4 | M174: 81 | N174: 1 | O174: 1 | P174: 1 | Q174: 3 | R174: 1 | S174: 1 | T174: 6 | U174: 11 | V174: 8 | W174: 9 | X174: 9 | Y174: 8 | Z174: 16 | AA174: 6 | AB174: - | AC174: 61.6 | AD174: 60.3 | AE174: 63.1 | AF174: 45 | AG174: - | AH174: - | AI174: - | AJ174: - | AK174: - | AL174: 1 | AM174: 1 | AN174: 3 | AO174: 3 | AP174: 5 | AQ174: 6 | AR174: 5 | AS174: 15 | AT174: 6 | AU174: - | AV174: 69.7 | AW174: 71.7 | AX174: 68.2 | AY174: 39 | AZ174: - | BA174: - | BB174: - | BC174: - | BD174: - | BE174: - | BF174: 1 | BG174: 1 | BH174: 3 | BI174: 4 | BJ174: 6 | BK174: 5 | BL174: 14 | BM174: 5 | BN174: - | BO174: 70.9 | BP174: 72.7 | BQ174: 69.4 | BR174: 32 | BS174: - | BT174: - | BU174: - | BV174: - | BW174: - | BX174: - | BY174: 2 | BZ174: 7 | CA174: 3 | CB174: 5 | CC174: 7 | CD174: 3 | CE174: 4 | CF174: 1 | CG174: - | CH174: 17 | CI174: - | CJ174: - | CK174: - | CL174: - | CM174: 1 | CN174: 4 | CO174: 2 | CP174: 3 | CQ174: 4 | CR174: 2 | CS174: 1 | CT174: - | CU174: - | DC174: 111 | DD174: 87 | DE174: 39 | DF174: 40 | DG174: 8 | DH174: 7 | DI174: 6 | DJ174: 11 | DK174: 30 | DL174: 26 | DM174: - | DN174: - | DO174: - | DP174: 2 | DQ174: - | DR174: - | DS174: 1 | DT174: - | DU174: - | DV174: - | DW174: - | DX174: 1 | DY174: - | DZ174: - | EA174: 32 | EB174: 5,312 | EC174: 3,714 | ED174: 1,090 | EE174: 508 | EF174: 54 | EG174: 47 | EH174: 18 | EI174: 23 | EJ174: 6 | EK174: - | EL174: 3 | EM174: 4 | EN174: 57 | EO174: 40 | EP174: 21 | EQ174: 17 | ER174: 2 | ES174: 7 | ET174: 3 | EU174: 7
A175: 栃木県 | B175: 宇都宮市 | C175: 城山村２－１ | D175: 下古賀志 | E175: 27 | F175: 22 | G175: 7 | H175: 7 | I175: 3 | J175: - | K175: 12 | L175: 5 | M175: 58 | N175: 1 | O175: 3 | P175: - | Q175: 2 | R175: 1 | S175: 5 | T175: 2 | U175: 5 | V175: 6 | W175: 13 | X175: 7 | Y175: 6 | Z175: 2 | AA175: 3 | AB175: 2 | AC175: 57.9 | AD175: 56.6 | AE175: 59.3 | AF175: 42 | AG175: 1 | AH175: - | AI175: - | AJ175: 1 | AK175: 1 | AL175: - | AM175: - | AN175: 3 | AO175: 6 | AP175: 11 | AQ175: 7 | AR175: 5 | AS175: 2 | AT175: 3 | AU175: 2 | AV175: 63.4 | AW175: 62.0 | AX175: 65.0 | AY175: 36 | AZ175: - | BA175: - | BB175: - | BC175: 1 | BD175: 1 | BE175: - | BF175: - | BG175: 3 | BH175: 5 | BI175: 9 | BJ175: 6 | BK175: 5 | BL175: 2 | BM175: 2 | BN175: 2 | BO175: 64.3 | BP175: 62.9 | BQ175: 65.8 | BR175: 22 | BS175: - | BT175: - | BU175: - | BV175: - | BW175: - | BX175: 1 | BY175: 1 | BZ175: 2 | CA175: 2 | CB175: 9 | CC175: 4 | CD175: 2 | CE175: - | CF175: - | CG175: 1 | CH175: 13 | CI175: - | CJ175: - | CK175: - | CL175: 1 | CM175: 1 | CN175: 2 | CO175: - | CP175: 3 | CQ175: 3 | CR175: 2 | CS175: - | CT175: - | CU175: 1 | DC175: 88 | DD175: 65 | DE175: 36 | DF175: 29 | DG175: - | DH175: 4 | DI175: 5 | DJ175: 14 | DK175: 18 | DL175: 8 | DM175: - | DN175: - | DO175: - | DP175: - | DQ175: 1 | DR175: 4 | DS175: - | DT175: 1 | DU175: 1 | DV175: 3 | DW175: - | DX175: - | DY175: - | DZ175: - | EA175: 22 | EB175: 4,817 | EC175: 1,690 | ED175: 1,790 | EE175: 1,337 | EF175: 40 | EG175: 32 | EH175: 19 | EI175: 13 | EJ175: - | EK175: - | EL175: 3 | EM175: 5 | EN175: 48 | EO175: 33 | EP175: 17 | EQ175: 16 | ER175: - | ES175: 4 | ET175: 2 | EU175: 9
A176: 栃木県 | B176: 宇都宮市 | C176: 城山村２－１ | D176: 新田 | E176: 13 | F176: 11 | G176: 4 | H176: 4 | I176: 3 | J176: - | K176: 4 | L176: 2 | M176: 29 | N176: - | O176: 3 | P176: 1 | Q176: - | R176: 2 | S176: - | T176: 3 | U176: 3 | V176: 4 | W176: 2 | X176: 2 | Y176: 2 | Z176: 6 | AA176: 1 | AB176: - | AC176: 56.3 | AD176: 56.2 | AE176: 56.4 | AF176: 21 | AG176: - | AH176: 3 | AI176: - | AJ176: - | AK176: - | AL176: - | AM176: 1 | AN176: 3 | AO176: 1 | AP176: 2 | AQ176: 2 | AR176: 2 | AS176: 6 | AT176: 1 | AU176: - | AV176: 60.2 | AW176: 59.4 | AX176: 61.2 | AY176: 16 | AZ176: - | BA176: 1 | BB176: - | BC176: - | BD176: - | BE176: - | BF176: 1 | BG176: 3 | BH176: 1 | BI176: 2 | BJ176: 2 | BK176: 2 | BL176: 3 | BM176: 1 | BN176: - | BO176: 61.8 | BP176: 61.6 | BQ176: 62.1 | BR176: 11 | BS176: - | BT176: - | BU176: - | BV176: - | BW176: 1 | BX176: - | BY176: 3 | BZ176: 1 | CA176: 2 | CB176: 1 | CC176: 2 | CD176: - | CE176: 1 | CF176: - | CG176: - | CH176: 5 | CI176: - | CJ176: - | CK176: - | CL176: - | CM176: - | CN176: 1 | CO176: 1 | CP176: 1 | CQ176: 1 | CR176: - | CS176: 1 | CT176: - | CU176: - | DC176: 42 | DD176: 26 | DE176: 16 | DF176: 8 | DG176: 2 | DH176: 6 | DI176: 2 | DJ176: 8 | DK176: 10 | DL176: 7 | DM176: - | DN176: - | DO176: - | DP176: - | DQ176: - | DR176: 1 | DS176: - | DT176: - | DU176: 1 | DV176: - | DW176: 1 | DX176: - | DY176: - | DZ176: - | EA176: 10 | EB176: 3,125 | EC176: 1,359 | ED176: 805 | EE176: 961 | EF176: 20 | EG176: 16 | EH176: 9 | EI176: 6 | EJ176: 1 | EK176: - | EL176: 2 | EM176: 2 | EN176: 22 | EO176: 10 | EP176: 7 | EQ176: 2 | ER176: 1 | ES176: 6 | ET176: - | EU176: 6
A177: 栃木県 | B177: 宇都宮市 | C177: 城山村２－１ | D177: 上福岡 | E177: 21 | F177: 12 | G177: 1 | H177: 1 | I177: 1 | J177: 1 | K177: 10 | L177: 9 | M177: 41 | N177: 1 | O177: 2 | P177: 2 | Q177: 3 | R177: 2 | S177: 2 | T177: 4 | U177: 2 | V177: 2 | W177: 4 | X177: 4 | Y177: 5 | Z177: 7 | AA177: - | AB177: 1 | AC177: 55.2 | AD177: 51.7 | AE177: 58.8 | AF177: 23 | AG177: 1 | AH177: 2 | AI177: 1 | AJ177: 1 | AK177: 1 | AL177: - | AM177: - | AN177: - | AO177: - | AP177: - | AQ177: 4 | AR177: 5 | AS177: 7 | AT177: - | AU177: 1 | AV177: 61.0 | AW177: 55.3 | AX177: 66.3 | AY177: 20 | AZ177: - | BA177: - | BB177: 1 | BC177: 1 | BD177: 1 | BE177: - | BF177: - | BG177: - | BH177: - | BI177: - | BJ177: 4 | BK177: 5 | BL177: 7 | BM177: - | BN177: 1 | BO177: 67.2 | BP177: 63.3 | BQ177: 70.4 | BR177: 12 | BS177: - | BT177: - | BU177: - | BV177: - | BW177: - | BX177: - | BY177: 1 | BZ177: 1 | CA177: 1 | CB177: 2 | CC177: 1 | CD177: 3 | CE177: 3 | CF177: - | CG177: - | CH177: 8 | CI177: - | CJ177: - | CK177: - | CL177: - | CM177: 1 | CN177: 1 | CO177: - | CP177: 1 | CQ177: 1 | CR177: 2 | CS177: 2 | CT177: - | CU177: - | DC177: 54 | DD177: 40 | DE177: 20 | DF177: 17 | DG177: 3 | DH177: 2 | DI177: 10 | DJ177: 2 | DK177: 11 | DL177: 7 | DM177: - | DN177: - | DO177: - | DP177: - | DQ177: 1 | DR177: 2 | DS177: - | DT177: - | DU177: - | DV177: 1 | DW177: - | DX177: - | DY177: - | DZ177: - | EA177: 12 | EB177: 1,982 | EC177: 1,543 | ED177: 324 | EE177: 115 | EF177: 27 | EG177: 20 | EH177: 9 | EI177: 9 | EJ177: 2 | EK177: - | EL177: 6 | EM177: 1 | EN177: 27 | EO177: 20 | EP177: 11 | EQ177: 8 | ER177: 1 | ES177: 2 | ET177: 4 | EU177: 1
A178: 栃木県 | B178: 宇都宮市 | C178: 城山村２－１ | D178: 下福岡 | E178: 37 | F178: 27 | G178: 9 | H178: 8 | I178: 9 | J178: 6 | K178: 9 | L178: 10 | M178: 70 | N178: 1 | O178: 1 | P178: 3 | Q178: 5 | R178: 4 | S178: 3 | T178: 1 | U178: 9 | V178: 11 | W178: 18 | X178: 3 | Y178: 8 | Z178: - | AA178: 3 | AB178: - | AC178: 54.5 | AD178: 54.8 | AE178: 54.2 | AF178: 42 | AG178: 1 | AH178: 1 | AI178: 1 | AJ178: - | AK178: 2 | AL178: 1 | AM178: - | AN178: 5 | AO178: 7 | AP178: 11 | AQ178: 3 | AR178: 8 | AS178: - | AT178: 2 | AU178: - | AV178: 58.5 | AW178: 59.0 | AX178: 58.1 | AY178: 38 | AZ178: - | BA178: - | BB178: 1 | BC178: - | BD178: 2 | BE178: 1 | BF178: - | BG178: 5 | BH178: 7 | BI178: 11 | BJ178: 3 | BK178: 8 | BL178: - | BM178: - | BN178: - | BO178: 59.3 | BP178: 58.5 | BQ178: 60.2 | BR178: 27 | BS178: - | BT178: - | BU178: - | BV178: - | BW178: - | BX178: 1 | BY178: 1 | BZ178: 2 | CA178: 3 | CB178: 12 | CC178: 2 | CD178: 5 | CE178: - | CF178: 1 | CG178: - | CH178: 16 | CI178: - | CJ178: - | CK178: - | CL178: - | CM178: 1 | CN178: 1 | CO178: 2 | CP178: 6 | CQ178: 2 | CR178: 4 | CS178: - | CT178: - | CU178: - | DC178: 100 | DD178: 73 | DE178: 38 | DF178: 33 | DG178: 2 | DH178: 4 | DI178: 6 | DJ178: 17 | DK178: 27 | DL178: 15 | DM178: - | DN178: - | DO178: - | DP178: 1 | DQ178: - | DR178: 8 | DS178: - | DT178: - | DU178: 1 | DV178: 2 | DW178: - | DX178: - | DY178: - | DZ178: - | EA178: 27 | EB178: 8,392 | EC178: 5,348 | ED178: 1,771 | EE178: 1,273 | EF178: 43 | EG178: 34 | EH178: 19 | EI178: 13 | EJ178: 2 | EK178: - | EL178: 4 | EM178: 5 | EN178: 57 | EO178: 39 | EP178: 19 | EQ178: 20 | ER178: - | ES178: 4 | ET178: 2 | EU178: 12
A179: 栃木県 | B179: 宇都宮市 | C179: 城山村２－１ | D179: 田下 | E179: 6 | F179: 6 | G179: x | H179: x | I179: x | J179: x | K179: x | L179: - | M179: x | N179: x | O179: x | P179: x | Q179: x | R179: x | S179: x | T179: x | U179: x | V179: x | W179: x | X179: x | Y179: x | Z179: x | AA179: x | AB179: x | AC179: 53.3 | AD179: 52.2 | AE179: 54.4 | AF179: x | AG179: x | AH179: x | AI179: x | AJ179: x | AK179: x | AL179: x | AM179: x | AN179: x | AO179: x | AP179: x | AQ179: x | AR179: x | AS179: x | AT179: x | AU179: x | AV179: 58.8 | AW179: 59.2 | AX179: 58.4 | AY179: x | AZ179: x | BA179: x | BB179: x | BC179: x | BD179: x | BE179: x | BF179: x | BG179: x | BH179: x | BI179: x | BJ179: x | BK179: x | BL179: x | BM179: x | BN179: x | BO179: 58.8 | BP179: 59.2 | BQ179: 58.4 | BR179: 6 | BS179: - | BT179: - | BU179: - | BV179: - | BW179: - | BX179: - | BY179: - | BZ179: 2 | CA179: 2 | CB179: 1 | CC179: - | CD179: - | CE179: - | CF179: 1 | CG179: - | CH179: 1 | CI179: - | CJ179: - | CK179: - | CL179: - | CM179: - | CN179: 1 | CO179: - | CP179: - | CQ179: - | CR179: - | CS179: - | CT179: - | CU179: - | DC179: 29 | DD179: 22 | DE179: 10 | DF179: 8 | DG179: 4 | DH179: 1 | DI179: - | DJ179: 6 | DK179: 6 | DL179: 4 | DM179: - | DN179: - | DO179: - | DP179: 1 | DQ179: 1 | DR179: - | DS179: - | DT179: - | DU179: - | DV179: - | DW179: - | DX179: - | DY179: - | DZ179: - | EA179: 6 | EB179: 1,111 | EC179: 892 | ED179: 199 | EE179: 20 | EF179: 13 | EG179: 10 | EH179: 5 | EI179: 3 | EJ179: 2 | EK179: - | EL179: - | EM179: 3 | EN179: 16 | EO179: 12 | EP179: 5 | EQ179: 5 | ER179: 2 | ES179: 1 | ET179: - | EU179: 3
A180: 栃木県 | B180: 宇都宮市 | C180: 城山村２－１ | D180: 田野 | E180: 34 | F180: 27 | G180: 5 | H180: 5 | I180: 6 | J180: 4 | K180: 16 | L180: 7 | M180: 72 | N180: 1 | O180: 5 | P180: 4 | Q180: 6 | R180: 1 | S180: 3 | T180: 1 | U180: 5 | V180: 14 | W180: 5 | X180: 6 | Y180: 7 | Z180: 8 | AA180: 5 | AB180: 1 | AC180: 56.1 | AD180: 57.7 | AE180: 53.7 | AF180: 45 | AG180: 1 | AH180: 3 | AI180: 1 | AJ180: 2 | AK180: - | AL180: - | AM180: - | AN180: 3 | AO180: 7 | AP180: 2 | AQ180: 5 | AR180: 7 | AS180: 8 | AT180: 5 | AU180: 1 | AV180: 62.2 | AW180: 64.4 | AX180: 59.5 | AY180: 35 | AZ180: - | BA180: 1 | BB180: 1 | BC180: 2 | BD180: - | BE180: - | BF180: - | BG180: 3 | BH180: 6 | BI180: 1 | BJ180: 5 | BK180: 6 | BL180: 8 | BM180: 2 | BN180: - | BO180: 63.1 | BP180: 66.7 | BQ180: 58.3 | BR180: 27 | BS180: - | BT180: - | BU180: - | BV180: - | BW180: - | BX180: 1 | BY180: - | BZ180: 3 | CA180: 9 | CB180: 2 | CC180: 4 | CD180: 4 | CE180: 4 | CF180: - | CG180: - | CH180: 16 | CI180: - | CJ180: - | CK180: - | CL180: - | CM180: - | CN180: - | CO180: 5 | CP180: 2 | CQ180: 4 | CR180: 3 | CS180: 2 | CT180: - | CU180: - | DC180: 101 | DD180: 70 | DE180: 35 | DF180: 34 | DG180: 1 | DH180: 12 | DI180: 4 | DJ180: 15 | DK180: 26 | DL180: 17 | DM180: - | DN180: - | DO180: - | DP180: 1 | DQ180: - | DR180: - | DS180: - | DT180: 1 | DU180: 1 | DV180: 6 | DW180: - | DX180: - | DY180: - | DZ180: - | EA180: 27 | EB180: 3,773 | EC180: 2,504 | ED180: 1,139 | EE180: 130 | EF180: 53 | EG180: 45 | EH180: 20 | EI180: 24 | EJ180: 1 | EK180: - | EL180: 3 | EM180: 5 | EN180: 48 | EO180: 25 | EP180: 15 | EQ180: 10 | ER180: - | ES180: 12 | ET180: 1 | EU180: 10
A181: 栃木県 | B181: 宇都宮市 | C181: 城山村２－１ | D181: 立岩 | E181: 8 | F181: 6 | G181: 4 | H181: 3 | I181: 1 | J181: - | K181: 1 | L181: 2 | M181: 17 | N181: - | O181: 1 | P181: 1 | Q181: - | R181: - | S181: - | T181: 4 | U181: 4 | V181: 2 | W181: - | X181: - | Y181: 2 | Z181: 2 | AA181: 1 | AB181: - | AC181: 54.7 | AD181: 50.7 | AE181: 60.4 | AF181: 13 | AG181: - | AH181: 1 | AI181: - | AJ181: - | AK181: - | AL181: - | AM181: 3 | AN181: 2 | AO181: 2 | AP181: - | AQ181: - | AR181: 2 | AS181: 2 | AT181: 1 | AU181: - | AV181: 57.9 | AW181: 54.3 | AX181: 62.2 | AY181: 9 | AZ181: - | BA181: - | BB181: - | BC181: - | BD181: - | BE181: - | BF181: 3 | BG181: 2 | BH181: 2 | BI181: - | BJ181: - | BK181: 1 | BL181: 1 | BM181: - | BN181: - | BO181: 55.8 | BP181: 56.8 | BQ181: 54.5 | BR181: 6 | BS181: - | BT181: - | BU181: - | BV181: - | BW181: - | BX181: - | BY181: 1 | BZ181: 2 | CA181: 2 | CB181: - | CC181: - | CD181: 1 | CE181: - | CF181: - | CG181: - | CH181: 4 | CI181: - | CJ181: - | CK181: - | CL181: - | CM181: 1 | CN181: 2 | CO181: - | CP181: - | CQ181: - | CR181: 1 | CS181: - | CT181: - | CU181: - | DC181: 28 | DD181: 17 | DE181: 9 | DF181: 8 | DG181: - | DH181: - | DI181: 5 | DJ181: 6 | DK181: 6 | DL181: 4 | DM181: - | DN181: - | DO181: - | DP181: - | DQ181: 1 | DR181: - | DS181: 1 | DT181: - | DU181: - | DV181: - | DW181: - | DX181: - | DY181: - | DZ181: - | EA181: 6 | EB181: 1,630 | EC181: 1,525 | ED181: 105 | EE181: - | EF181: 15 | EG181: 8 | EH181: 5 | EI181: 3 | EJ181: - | EK181: - | EL181: 4 | EM181: 3 | EN181: 13 | EO181: 9 | EP181: 4 | EQ181: 5 | ER181: - | ES181: - | ET181: 1 | EU181: 3
